Workbook

Sheet 目次
B2: 自治体排出量カルテ 目次 | E2: =年度マスタ!J4 -> 羽咋市
B4: 項目 | C4: 表示形式 | D4: 対象年度 | E4: 具体内容
B5: 自治体排出量カルテ① CO2排出量の現状把握
B6: ○地方公共団体の部門・分野別CO2排出量（標準的手法）
B7: 1）部門・分野別CO2排出量構成比 平成17年度（2005年度） | C7: 円グラフ | D7: 2005年度 | E7: ・標準的手法に基づくCO2排出量推計データの部門・分野別排出量を集計
B8: 2）部門・分野別CO2排出量構成比 平成25年度（2013年度） | C8: 円グラフ | D8: 2013年度 | E8: ・標準的手法に基づくCO2排出量推計データの部門・分野別排出量を集計
B9: 3）部門・分野別CO2排出量構成比 令和4年度（2022年度） | C9: 円グラフ | D9: 2022年度 | E9: ・標準的手法に基づくCO2排出量推計データの部門・分野別排出量を集計
B10: 4）部門・分野別CO2排出量の推移 | C10: 積上げ縦棒グラフ | D10: 2009～2022年度 | E10: ・2009年度以降の部門・分野別CO2排出量の推移
B11: 5）部門・分野別CO2排出量構成比の比較（都道府県平均及び全国平均） | C11: 100％積上げ横棒グラフ | D11: 2022年度 | E11: ・地方公共団体と該当都道府県平均、全国平均の部門・分野別のCO2排出量構成比の比較
B13: 自治体排出量カルテ② 活動量の現状把握
B14: ○地方公共団体の活動量
B15: 1）部門・分野別指標の推移（廃棄物分野のみCO2排出量の推移） | C15: 折れ線グラフ・縦棒グラフ | D15: 2009～2022年度 | E15: ・標準的手法の部門・分野別の活動量の推移
B17: 自治体排出量カルテ③ 特定事業所の温室効果ガス排出量の現状把握
B18: 1 地方公共団体の特定事業所排出量
B19: 1）特定事業所の部門別排出量（令和3年度） | C19: 円グラフ | D19: 2021年度 | E19: ・特定事業所の部門別排出量構成比
B20: 2）特定事業所の部門別排出量の推移 | C20: 積上げ縦棒グラフ | D20: 2011~2021年度 | E20: ・2011年度以降の特定事業所の部門別排出量の推移
B21: 3）特定事業所のガス種別排出量（令和3年度） | C21: 円グラフ | D21: 2021年度 | E21: ・特定事業所のガス種別排出量構成比
B22: 4）特定事業所のガス種別排出量の推移 | C22: 積上げ縦棒グラフ | D22: 2011~2021年度 | E22: ・2011年度以降の特定事業所のガス種別排出量の推移
B23: 5）業種別の特定事業所の事業所数及び排出量（令和3年度） | C23: 横棒グラフ | D23: 2021年度 | E23: ・特定事業所の業種別事業所数及び排出量
B24: 2 地方公共団体の区域のCO2排出量との比較
B25: 6）区域のCO2排出量の推移及び特定事業所排出量のカバー率の推移 | C25: 積上げ縦棒・折れ線グラフ | D25: 2011~2021年度 | E25: ・区域の産業部門・業務その他部門の排出量の推移と特定事業所排出量が占める割合（カバー率）の推移
B26: 3 全国の1事業所当たりの排出傾向との比較
B27: 7）1事業所当たりの排出傾向（全国平均値との比較）（令和3年度） | C27: 横棒グラフ | D27: 2021年度 | E27: ・特定事業所1事業所当たりの排出量の全国平均との比較
B29: 自治体排出量カルテ④ 地方公共団体の再生可能エネルギー導入状況及び導入ポテンシャルの現状把握
B30: 1 地方公共団体のFIT・FIP制度による再生可能エネルギー（電気）
B31: 1）区域の再生可能エネルギーの導入設備容量（令和5年度） | C31: 円グラフ | D31: 2023年度 | E31: ・FIT・FIP公表情報の再生可能エネルギーの設備別の導入状況（導入設備容量）
B32: 2）区域の再生可能エネルギーによる発電電力量（令和5年度） | C32: 円グラフ | D32: 2023年度 | E32: ・FIT・FIP公表情報の再生可能エネルギーの設備別の導入状況（発電電力量）
B33: 3）区域の再生可能エネルギーの導入設備容量の推移（累積） | C33: 積上げ縦棒・折れ線グラフ | D33: 2015～2023年度 | E33: ・FIT・FIP公表情報の再生可能エネルギーの設備別導入設備容量の推移と区域の電気使用量に対するFIT・FIP太陽光導入比の推移
B34: 4）区域の太陽光発電（10kW未満）設備の導入件数の推移（累積） | C34: 縦棒グラフ | D34: 2015～2023年度 | E34: ・FIT・FIP公表情報の太陽光（10kW未満）の導入件数の推移
B35: 2 地方公共団体の再生可能エネルギーの導入ポテンシャル
B36: 5）導入ポテンシャル（電気のみ・設備容量） | C36: 円グラフ | D36: 2024年11月末時点 | E36: ・REPOSの再エネ導入ポテンシャル（電気のみ・設備容量）
B37: 6）導入ポテンシャル（発電電力量・利用可能熱量） | C37: 円グラフ | D37: 2024年11月末時点 | E37: ・REPOSの再エネ導入ポテンシャル（発電電力量・利用可能熱量）
B38: 3 区域のエネルギー消費量及び再生可能エネルギー導入ポテンシャル・導入量の比較（電気）
B39: 7）区域内のエネルギー消費量に対する再エネ導入ポテンシャル（電気） | C39: 縦棒グラフ | D39: 2023年度 | E39: ・区域の電気使用量に対する再エネ導入量、再エネ導入ポテンシャルの比較 ※区域の電気使用量は2022年度で代用
B40: 8）区域内の再エネ導入ポテンシャルと再エネ導入量（電気） | C40: 縦棒グラフ | D40: 2023年度 | E40: ・再エネ種別の再エネ導入ポテンシャルに対する再エネ導入量の比較
B42: ※人口が同程度の他の地方公共団体との排出量の比較シート、他の地方公共団体との再エネ導入量や再エネポテンシャルの比較シート、特定事業所集計表シートも付録しています。
B43: 自治体排出量カルテ 他の地方公共団体との比較（部門・分野別排出量）
B44: 1 部門・分野別排出量の比較（標準的手法）（令和3年度（2021年度）)
B45: 1）部門・分野別CO2排出量の比較 | C45: 積上げ横棒グラフ | D45: 2021年度 | E45: ・標準的手法に基づく区域の部門・分野別CO₂排出量を人口が同程度の28市区町村（都道府県の場合は47都道府県）と比較
B46: 2）部門・分野別CO2排出量構成比の比較 | C46: 100％積上げ横棒グラフ | D46: 2021年度 | E46: ・標準的手法に基づく区域の部門・分野別CO₂排出量構成比を人口が同程度の28市区町村（都道府県の場合は47都道府県）と比較
B47: 2 区域の排出量に占める特定事業所排出量比率の比較（令和3年度（2021年度）)
B48: 3）産業部門 | C48: 横棒グラフ | D48: 2021年度 | E48: ・標準的手法に基づく区域の産業部門排出量に対し特定事業所排出量が占める割合（カバー率）を人口が同程度の28市区町村（都道府県の場合は47都道府県）と比較
B49: 4）業務その他部門 | C49: 横棒グラフ | D49: 2021年度 | E49: ・標準的手法に基づく区域の業務その他部門排出量に対し特定事業所排出量が占める割合（カバー率）を人口が同程度の28市区町村（都道府県の場合は47都道府県）と比較
B50: 3 特定事業所排出量の比較（令和3年度（2021年度）)
B51: 5）特定事業所排出量の比較 | C51: 積上げ横棒グラフ | D51: 2021年度 | E51: ・特定事業所排出量を人口が同程度の28市区町村（都道府県の場合は47都道府県）と比較
B52: 6）特定事業所数の比較 | C52: 積上げ横棒グラフ | D52: 2021年度 | E52: ・特定事業所数を人口が同程度の28市区町村（都道府県の場合は47都道府県）と比較
B53: 7）特定事業所排出量の部門別構成比の比較 | C53: 100％積上げ横棒グラフ | D53: 2021年度 | E53: ・特定事業所排出量の部門別構成比を人口が同程度の28市区町村（都道府県の場合は47都道府県）と比較
B55: 自治体排出量カルテ 他の地方公共団体との比較（再エネ導入量・再エネポテンシャル）
B56: 1 再エネ導入量の比較（令和5年度（2023年度））
B57: 1）他の地方公共団体との再エネ別導入設備容量の比較 | C57: 積上げ横棒グラフ | D57: 2023年度 | E57: ・再エネ別導入設備容量を人口が同程度の28市区町村（都道府県の場合は47都道府県）と比較
B58: 2）他の地方公共団体との再エネ別発電電力量の比較 | C58: 積上げ横棒グラフ | D58: 2023年度 | E58: ・再エネ別発電電力量を人口が同程度の28市区町村（都道府県の場合は47都道府県）と比較
B59: 3）他の地方公共団体との対電気使用量FIT・FIP導入比の比較 | C59: 積上げ横棒グラフ | D59: 2023年度 | E59: ・対電気使用量FIT・FIP導入比を人口が同程度の28市区町村（都道府県の場合は47都道府県）と比較 ※区域の電気使用量は2022年度で代用
B60: 4）対世帯数FIT・FIP太陽光発電（10kW未満）導入比の比較 | C60: 横棒グラフ | D60: 2023年度 | E60: ・対世帯数FIT・FIP太陽光発電（10kW未満）導入比を人口が同程度の28市区町村（都道府県の場合は47都道府県）と比較 ※世帯数は2022年度で代用
B61: 2 再エネ導入ポテンシャルの比較
B62: 5）同一都道府県内における他の地方公共団体の再エネポテンシャル（発電電力量）の比較 | C62: 積上げ横棒グラフ | D62: 2024年11月末時点 | E62: ・他の地方公共団体の再エネポテンシャル（発電電力量）を同一都道府県内で比較
B63: 6）同一都道府県内における他の地方公共団体の電気使用量の比較 | C63: 横棒グラフ | D63: 2024年11月末時点 | E63: ・他の地方公共団体の電気使用量を同一都道府県内で比較（※2022年度で代用）
B64: 7）同一都道府県内の他の地方公共団体の再エネ不足量・余剰量の比較 | C64: 横棒グラフ | D64: 2024年11月末時点 | E64: ・他の地方公共団体の再エネ不足量・余剰量を同一都道府県内で比較 ※区域の電気使用量は2022年度で代用
B66: 特定事業所集計表シート
B67: 特定事業所集計表
B68: 特定事業所集計表 | C68: 表 | D68: 2011～2021年度 | E68: ・特定事業所の事業所数と排出量の集計表（日本標準産業分類別）

Sheet ①CO2排出量の現状把握
B1: 自治体排出量カルテ① CO2排出量の現状把握 | AK1: =年度マスタ!J4 -> 羽咋市 | AW1: グラフ用 | AY1: 1）～3） | AZ1: ※最新年度のグラフ名： | BB1: ="3）排出量の部門・分野別構成比 "&年度マスタ!K5&"（"&年度マスタ!J5&"年度）" -> 3）排出量の部門・分野別構成比 令和4年度（2022年度）
B3: ○地方公共団体の部門・分野別CO2排出量（標準的手法） | AZ3: 平成17年度 | BC3: 平成25年度 | BF3: =年度マスタ!K5 -> 令和4年度
C4: 1）部門・分野別CO2排出量構成比 平成17年度（2005年度） | T4: 4）部門・分野別CO2排出量の推移 | BA4: ［千t-CO2］
AY5: 産業部門 | BA5: =SUM(AZ6:AZ8) -> 43 | BD5: =SUM(BC6:BC8) -> 40 | BG5: =AK35 -> 33
K6: 部門・分野 | O6: 平成17年度 | P6: 構成比 | T6: [千t-CO2] | AX6: 製造業 | AY6: 製造業 | AZ6: =O11 -> 34 | BC6: =O32 -> 30 | BF6: =AK36 -> 24
O7: 排出量 | AX7: 建設業・鉱業 | AY7: 建設業・鉱業 | AZ7: =O12 -> 3 | BC7: =O33 -> 2 | BF7: =AK37 -> 1
O8: ［千t-CO2］ | AX8: 農林水産業 | AY8: 農林水産業 | AZ8: =O13 -> 6 | BC8: =O34 -> 8 | BF8: 7
K9: 合 計 | O9: =O10+O14+O15+O16+O22 -> 164.9552548 | P9: =P10+P14+P15+P16+P22 -> 100% | AX9: 業務その他部門 | AY9: 業務その他部門 | AZ9: =O14 -> 29 | BA9: =AZ9 -> 29 | BC9: =O35 -> 42 | BD9: =BC9 -> 42 | BF9: =AK39 -> 26 | BG9: =AK39 -> 26
L10: 産業部門 | O10: =SUM(O11:O13) -> 42.52591098 | P10: =O10/$O$9 -> 26% | AX10: 家庭部門 | AY10: 家庭部門 | AZ10: =O15 -> 36 | BA10: =AZ10 -> 36 | BC10: =O36 -> 48 | BD10: =BC10 -> 48 | BF10: =AK40 -> 34 | BG10: =AK40 -> 34
M11: 製造業 | O11: =VLOOKUP(年度マスタ!$K$4&"_"&O$6,データシート1!$A:$BT,MATCH("aa_"&$M11,データシート1!$A$1:$BT$1,0),0) -> 33.78694802 | P11: 20% | AX11: 運輸 | AY11: 運輸部門 | BA11: =SUM(AZ12:AZ14) -> 54 | BD11: =SUM(BC12:BC14) -> 49 | BG11: =AK41 -> 39
M12: 建設業・鉱業 | O12: =VLOOKUP(年度マスタ!$K$4&"_"&O$6,データシート1!$A:$BT,MATCH("aa_"&$M12,データシート1!$A$1:$BT$1,0),0) -> 2.684473916 | P12: 2% | AX12: 自動車 | AY12: 自動車 | AZ12: =O17 -> 53 | BC12: =O38 -> 47 | BF12: =AK42 -> 37
M13: 農林水産業 | O13: =VLOOKUP(年度マスタ!$K$4&"_"&O$6,データシート1!$A:$BT,MATCH("aa_"&$M13,データシート1!$A$1:$BT$1,0),0) -> 6.054489044 | P13: 4% | AX13: 鉄道 | AY13: 鉄道 | AZ13: =O20 -> 1 | BC13: =O41 -> 2 | BF13: =AK45 -> 1
L14: 業務その他部門 | O14: =VLOOKUP(年度マスタ!$K$4&"_"&O$6,データシート1!$A:$BT,MATCH("aa_"&$L14,データシート1!$A$1:$BT$1,0),0) -> 29.36717446 | P14: 18% | AX14: 船舶 | AY14: 船舶 | AZ14: =O21 -> 0 | BC14: =O42 -> 0 | BF14: =AK46 -> 0
L15: 家庭部門 | O15: =VLOOKUP(年度マスタ!$K$4&"_"&O$6,データシート1!$A:$BT,MATCH("aa_"&$L15,データシート1!$A$1:$BT$1,0),0) -> 36.2370948 | P15: 22% | AX15: 廃棄物 | AY15: 廃棄物分野（一般廃棄物） | AZ15: =O22 -> 2 | BA15: =AZ15 -> 2 | BC15: =O43 -> 2 | BD15: =BC15 -> 2 | BF15: =AK47 -> 2 | BG15: =AK47 -> 2
L16: 運輸部門 | O16: =SUM(O18:O21) -> 54.37399861 | P16: 33%
M17: 自動車 | O17: =SUM(O18:O19) -> 52.87330729 | P17: 32%
N18: 旅客 | O18: =VLOOKUP(年度マスタ!$K$4&"_"&O$6,データシート1!$A:$BT,MATCH("aa_"&$N18,データシート1!$A$1:$BT$1,0),0) -> 28.91172568 | P18: 18%
N19: 貨物 | O19: =VLOOKUP(年度マスタ!$K$4&"_"&O$6,データシート1!$A:$BT,MATCH("aa_"&$N19,データシート1!$A$1:$BT$1,0),0) -> 23.96158162 | P19: 15% | AX19: 4）
M20: 鉄道 | O20: =VLOOKUP(年度マスタ!$K$4&"_"&O$6,データシート1!$A:$BT,MATCH("aa_"&$M20,データシート1!$A$1:$BT$1,0),0) -> 1.473388152 | P20: 1% | AY20: 2009年度 | AZ20: 2010年度 | BA20: 2011年度 | BB20: 2012年度 | BC20: 2013年度 | BD20: 2014年度 | BE20: 2015年度 | BF20: 2016年度 | BG20: 2017年度 | BH20: 2018年度 | BI20: 2019年度 | BJ20: 2020年度 | BK20: 2021年度 | BL20: 2022年度
M21: 船舶 | O21: =VLOOKUP(年度マスタ!$K$4&"_"&O$6,データシート1!$A:$BT,MATCH("aa_"&$M21,データシート1!$A$1:$BT$1,0),0) -> 0.02730316843 | P21: 0% | AY21: 平成21年度 | AZ21: 平成22年度 | BA21: 平成23年度 | BB21: 平成24年度 | BC21: 平成25年度 | BD21: 平成26年度 | BE21: 平成27年度 | BF21: 平成28年度 | BG21: 平成29年度 | BH21: 平成30年度 | BI21: 令和元年度 | BJ21: 令和2年度 | BK21: 令和3年度 | BL21: 令和4年度
L22: 廃棄物分野（一般廃棄物） | O22: =VLOOKUP(年度マスタ!$K$4&"_"&O$6,データシート1!$A:$BT,MATCH("aa_"&$L22,データシート1!$A$1:$BT$1,0),0) -> 2.451075914 | P22: 1% | AX22: 産業部門 | AY22: =X35 -> 36 | AZ22: 37 | BA22: 41 | BB22: 41 | BC22: 40 | BD22: 37 | BE22: 41 | BF22: 41 | BG22: 38 | BH22: 35 | BI22: 32 | BJ22: 34 | BK22: 44 | BL22: 33
Q23: ※表中の構成比は、四捨五入の関係で合計が100％にならない場合があります。 | AX23: 業務その他部門 | AY23: =X39 -> 28 | AZ23: =Y39 -> 31 | BA23: 42 | BB23: 42 | BC23: 42 | BD23: 37 | BE23: 36 | BF23: 34 | BG23: 30 | BH23: 28 | BI23: 27 | BJ23: 24 | BK23: 26 | BL23: 26
AX24: 家庭部門 | AY24: =X40 -> 31 | AZ24: =Y40 -> 38 | BA24: 53 | BB24: 56 | BC24: 48 | BD24: 46 | BE24: 45 | BF24: 43 | BG24: 45 | BH24: 38 | BI24: 33 | BJ24: 31 | BK24: 32 | BL24: 34
C25: 2）部門・分野別CO2排出量構成比 平成25年度（2013年度） | AX25: 運輸部門 | AY25: =X41 -> 51 | AZ25: =Y41 -> 51 | BA25: 50 | BB25: 50 | BC25: 49 | BD25: 47 | BE25: 47 | BF25: 46 | BG25: 46 | BH25: 45 | BI25: 43 | BJ25: 39 | BK25: 38 | BL25: 39
AX26: 廃棄物分野（一般廃棄物） | AY26: =X47 -> 0 | AZ26: 2 | BA26: 1 | BB26: 2 | BC26: 2 | BD26: 2 | BE26: 2 | BF26: 2 | BG26: 2 | BH26: 2 | BI26: 2 | BJ26: 2 | BK26: 2 | BL26: 2
K27: 部門・分野 | O27: 平成25年度 | P27: 構成比 | AX27: 合計 | AY27: =X34 -> 146 | AZ27: 159 | BA27: 186 | BB27: 190 | BC27: 181 | BD27: 169 | BE27: 171 | BF27: 166 | BG27: 160 | BH27: 149 | BI27: 136 | BJ27: 130 | BK27: 142 | BL27: 133
O28: 排出量
O29: ［千t-CO2］ | AX29: 5）
K30: 合 計 | O30: =O31+O35+O36+O37+O43 -> 180.5157984 | P30: =P31+P35+P36+P37+P43 -> 100% | AY30: データ（排出量）
L31: 産業部門 | O31: =SUM(O32:O34) -> 39.79824614 | P31: =O31/$O$30 -> 22% | AK31: ［千t-CO2］ | AY31: aa
M32: 製造業 | O32: =VLOOKUP(年度マスタ!$K$4&"_"&O$27,データシート1!$A:$BT,MATCH("aa_"&$M32,データシート1!$A$1:$BT$1,0),0) -> 30.13954757 | P32: 17% | T32: 部門・分野 | X32: 部門・分野別CO2排出量 | AY32: A.現況推計データ
M33: 建設業・鉱業 | O33: =VLOOKUP(年度マスタ!$K$4&"_"&O$27,データシート1!$A:$BT,MATCH("aa_"&$M33,データシート1!$A$1:$BT$1,0),0) -> 1.773320102 | P33: 1% | X33: 平成21年度 | Y33: 平成22年度 | Z33: 平成23年度 | AA33: 平成24年度 | AB33: 平成25年度 | AC33: 平成26年度 | AD33: 平成27年度 | AE33: 平成28年度 | AF33: 平成29年度 | AG33: 平成30年度 | AH33: 令和元年度 | AI33: 令和2年度 | AJ33: 令和3年度 | AK33: 令和4年度 | AY33: =VLOOKUP(AY$32,年度マスタ!$I$5:$K$9,2,0) -> 2022
M34: 農林水産業 | O34: =VLOOKUP(年度マスタ!$K$4&"_"&O$27,データシート1!$A:$BT,MATCH("aa_"&$M34,データシート1!$A$1:$BT$1,0),0) -> 7.885378471 | P34: 4% | T34: 合 計 | X34: =X35+X39+X40+X41+X47 -> 145.6619924 | Y34: =Y35+Y39+Y40+Y41+Y47 -> 158.9705757 | Z34: 186.4195373 | AA34: 190.3036716 | AB34: 180.5157984 | AC34: 169.3405211 | AD34: 171.1518098 | AE34: 165.8191752 | AF34: 159.682637 | AG34: 148.6719767 | AH34: 136.2525224 | AI34: 130.4782602 | AJ34: 142.3874759 | AK34: 132.6376155 | AY34: =VLOOKUP(AY$32,年度マスタ!$I$5:$K$9,3,0) -> 令和4年度
L35: 業務その他部門 | O35: =VLOOKUP(年度マスタ!$K$4&"_"&O$27,データシート1!$A:$BT,MATCH("aa_"&$L35,データシート1!$A$1:$BT$1,0),0) -> 42.27799344 | P35: 23% | U35: 産業部門 | X35: =SUM(X36:X38) -> 36.08883239 | Y35: =SUM(Y36:Y38) -> 37.01263771 | Z35: 41.19325134 | AA35: 41.19322394 | AB35: 39.79824614 | AC35: 37.10132642 | AD35: 41.31363335 | AE35: 40.9318464 | AF35: 37.51286478 | AG35: 35.25175749 | AH35: 31.8659891 | AI35: 34.39051281 | AJ35: 43.88704961 | AK35: 32.82693606
L36: 家庭部門 | O36: =VLOOKUP(年度マスタ!$K$4&"_"&O$27,データシート1!$A:$BT,MATCH("aa_"&$L36,データシート1!$A$1:$BT$1,0),0) -> 47.85211577 | P36: 27% | S36: 製造業 | V36: 製造業 | X36: =VLOOKUP(年度マスタ!$K$4&"_"&X$33,データシート1!$A:$BT,MATCH("aa_"&$S36,データシート1!$A$1:$BT$1,0),0) -> 26.15319192 | Y36: =VLOOKUP(年度マスタ!$K$4&"_"&Y$33,データシート1!$A:$BT,MATCH("aa_"&$S36,データシート1!$A$1:$BT$1,0),0) -> 27.71996414 | Z36: =VLOOKUP(年度マスタ!$K$4&"_"&Z$33,データシート1!$A:$BT,MATCH("aa_"&$S36,データシート1!$A$1:$BT$1,0),0) -> 29.64114977 | AA36: =VLOOKUP(年度マスタ!$K$4&"_"&AA$33,データシート1!$A:$BT,MATCH("aa_"&$S36,データシート1!$A$1:$BT$1,0),0) -> 30.22409982 | AB36: =VLOOKUP(年度マスタ!$K$4&"_"&AB$33,データシート1!$A:$BT,MATCH("aa_"&$S36,データシート1!$A$1:$BT$1,0),0) -> 30.13954757 | AC36: =VLOOKUP(年度マスタ!$K$4&"_"&AC$33,データシート1!$A:$BT,MATCH("aa_"&$S36,データシート1!$A$1:$BT$1,0),0) -> 28.19885252 | AD36: =VLOOKUP(年度マスタ!$K$4&"_"&AD$33,データシート1!$A:$BT,MATCH("aa_"&$S36,データシート1!$A$1:$BT$1,0),0) -> 31.82510297 | AE36: =VLOOKUP(年度マスタ!$K$4&"_"&AE$33,データシート1!$A:$BT,MATCH("aa_"&$S36,データシート1!$A$1:$BT$1,0),0) -> 31.03642115 | AF36: =VLOOKUP(年度マスタ!$K$4&"_"&AF$33,データシート1!$A:$BT,MATCH("aa_"&$S36,データシート1!$A$1:$BT$1,0),0) -> 28.02053892 | AG36: =VLOOKUP(年度マスタ!$K$4&"_"&AG$33,データシート1!$A:$BT,MATCH("aa_"&$S36,データシート1!$A$1:$BT$1,0),0) -> 26.51574048 | AH36: =VLOOKUP(年度マスタ!$K$4&"_"&AH$33,データシート1!$A:$BT,MATCH("aa_"&$S36,データシート1!$A$1:$BT$1,0),0) -> 23.23062958 | AI36: =VLOOKUP(年度マスタ!$K$4&"_"&AI$33,データシート1!$A:$BT,MATCH("aa_"&$S36,データシート1!$A$1:$BT$1,0),0) -> 24.00861295 | AJ36: =VLOOKUP(年度マスタ!$K$4&"_"&AJ$33,データシート1!$A:$BT,MATCH("aa_"&$S36,データシート1!$A$1:$BT$1,0),0) -> 33.54317091 | AK36: =VLOOKUP(年度マスタ!$K$4&"_"&AK$33,データシート1!$A:$BT,MATCH("aa_"&$S36,データシート1!$A$1:$BT$1,0),0) -> 24.40546731 | AX36: 列名 | AY36: 製造業 | AZ36: 建設業・鉱業 | BA36: 農林水産業 | BB36: 業務その他部門 | BC36: 家庭部門 | BD36: 旅客 | BE36: 貨物 | BF36: 鉄道 | BG36: 船舶 | BH36: 廃棄物分野（一般廃棄物）
L37: 運輸部門 | O37: =SUM(O39:O42) -> 48.76580516 | P37: 27% | S37: 建設業・鉱業 | V37: 建設業・鉱業 | X37: =VLOOKUP(年度マスタ!$K$4&"_"&X$33,データシート1!$A:$BT,MATCH("aa_"&$S37,データシート1!$A$1:$BT$1,0),0) -> 1.52896451 | Y37: =VLOOKUP(年度マスタ!$K$4&"_"&Y$33,データシート1!$A:$BT,MATCH("aa_"&$S37,データシート1!$A$1:$BT$1,0),0) -> 1.736511647 | Z37: =VLOOKUP(年度マスタ!$K$4&"_"&Z$33,データシート1!$A:$BT,MATCH("aa_"&$S37,データシート1!$A$1:$BT$1,0),0) -> 2.54031808 | AA37: =VLOOKUP(年度マスタ!$K$4&"_"&AA$33,データシート1!$A:$BT,MATCH("aa_"&$S37,データシート1!$A$1:$BT$1,0),0) -> 2.300457004 | AB37: =VLOOKUP(年度マスタ!$K$4&"_"&AB$33,データシート1!$A:$BT,MATCH("aa_"&$S37,データシート1!$A$1:$BT$1,0),0) -> 1.773320102 | AC37: =VLOOKUP(年度マスタ!$K$4&"_"&AC$33,データシート1!$A:$BT,MATCH("aa_"&$S37,データシート1!$A$1:$BT$1,0),0) -> 1.799786292 | AD37: =VLOOKUP(年度マスタ!$K$4&"_"&AD$33,データシート1!$A:$BT,MATCH("aa_"&$S37,データシート1!$A$1:$BT$1,0),0) -> 1.795195559 | AE37: =VLOOKUP(年度マスタ!$K$4&"_"&AE$33,データシート1!$A:$BT,MATCH("aa_"&$S37,データシート1!$A$1:$BT$1,0),0) -> 1.799517606 | AF37: =VLOOKUP(年度マスタ!$K$4&"_"&AF$33,データシート1!$A:$BT,MATCH("aa_"&$S37,データシート1!$A$1:$BT$1,0),0) -> 1.729564464 | AG37: =VLOOKUP(年度マスタ!$K$4&"_"&AG$33,データシート1!$A:$BT,MATCH("aa_"&$S37,データシート1!$A$1:$BT$1,0),0) -> 1.578847363 | AH37: =VLOOKUP(年度マスタ!$K$4&"_"&AH$33,データシート1!$A:$BT,MATCH("aa_"&$S37,データシート1!$A$1:$BT$1,0),0) -> 1.42516643 | AI37: =VLOOKUP(年度マスタ!$K$4&"_"&AI$33,データシート1!$A:$BT,MATCH("aa_"&$S37,データシート1!$A$1:$BT$1,0),0) -> 1.342444147 | AJ37: =VLOOKUP(年度マスタ!$K$4&"_"&AJ$33,データシート1!$A:$BT,MATCH("aa_"&$S37,データシート1!$A$1:$BT$1,0),0) -> 1.423027572 | AK37: =VLOOKUP(年度マスタ!$K$4&"_"&AK$33,データシート1!$A:$BT,MATCH("aa_"&$S37,データシート1!$A$1:$BT$1,0),0) -> 1.365314323 | AW37: 00 | AX37: 都道府県範囲(全国) | AY37: =VLOOKUP($AW37&"_"&$AY$34,データシート1!$A:$BT,MATCH($AY$31&"_"&AY$36,データシート1!$A$1:$BT$1,0),0) -> 374767.4341 | AZ37: =VLOOKUP($AW37&"_"&$AY$34,データシート1!$A:$BT,MATCH($AY$31&"_"&AZ$36,データシート1!$A$1:$BT$1,0),0) -> 8264.063512 | BA37: =VLOOKUP($AW37&"_"&$AY$34,データシート1!$A:$BT,MATCH($AY$31&"_"&BA$36,データシート1!$A$1:$BT$1,0),0) -> 15348.15635 | BB37: =VLOOKUP($AW37&"_"&$AY$34,データシート1!$A:$BT,MATCH($AY$31&"_"&BB$36,データシート1!$A$1:$BT$1,0),0) -> 181031.2943 | BC37: =VLOOKUP($AW37&"_"&$AY$34,データシート1!$A:$BT,MATCH($AY$31&"_"&BC$36,データシート1!$A$1:$BT$1,0),0) -> 170770.0373 | BD37: =VLOOKUP($AW37&"_"&$AY$34,データシート1!$A:$BT,MATCH($AY$31&"_"&BD$36,データシート1!$A$1:$BT$1,0),0) -> 91550.79553 | BE37: =VLOOKUP($AW37&"_"&$AY$34,データシート1!$A:$BT,MATCH($AY$31&"_"&BE$36,データシート1!$A$1:$BT$1,0),0) -> 72904.23852 | BF37: =VLOOKUP($AW37&"_"&$AY$34,データシート1!$A:$BT,MATCH($AY$31&"_"&BF$36,データシート1!$A$1:$BT$1,0),0) -> 7383.271797 | BG37: =VLOOKUP($AW37&"_"&$AY$34,データシート1!$A:$BT,MATCH($AY$31&"_"&BG$36,データシート1!$A$1:$BT$1,0),0) -> 10210.94777 | BH37: =VLOOKUP($AW37&"_"&$AY$34,データシート1!$A:$BT,MATCH($AY$31&"_"&BH$36,データシート1!$A$1:$BT$1,0),0) -> 14652.39616
M38: 自動車 | O38: =SUM(O39:O40) -> 46.96412675 | P38: 26% | S38: 農林水産業 | V38: 農林水産業 | X38: =VLOOKUP(年度マスタ!$K$4&"_"&X$33,データシート1!$A:$BT,MATCH("aa_"&$S38,データシート1!$A$1:$BT$1,0),0) -> 8.406675959 | Y38: =VLOOKUP(年度マスタ!$K$4&"_"&Y$33,データシート1!$A:$BT,MATCH("aa_"&$S38,データシート1!$A$1:$BT$1,0),0) -> 7.556161928 | Z38: =VLOOKUP(年度マスタ!$K$4&"_"&Z$33,データシート1!$A:$BT,MATCH("aa_"&$S38,データシート1!$A$1:$BT$1,0),0) -> 9.011783496 | AA38: =VLOOKUP(年度マスタ!$K$4&"_"&AA$33,データシート1!$A:$BT,MATCH("aa_"&$S38,データシート1!$A$1:$BT$1,0),0) -> 8.66866712 | AB38: =VLOOKUP(年度マスタ!$K$4&"_"&AB$33,データシート1!$A:$BT,MATCH("aa_"&$S38,データシート1!$A$1:$BT$1,0),0) -> 7.885378471 | AC38: =VLOOKUP(年度マスタ!$K$4&"_"&AC$33,データシート1!$A:$BT,MATCH("aa_"&$S38,データシート1!$A$1:$BT$1,0),0) -> 7.102687609 | AD38: =VLOOKUP(年度マスタ!$K$4&"_"&AD$33,データシート1!$A:$BT,MATCH("aa_"&$S38,データシート1!$A$1:$BT$1,0),0) -> 7.693334824 | AE38: =VLOOKUP(年度マスタ!$K$4&"_"&AE$33,データシート1!$A:$BT,MATCH("aa_"&$S38,データシート1!$A$1:$BT$1,0),0) -> 8.095907647 | AF38: =VLOOKUP(年度マスタ!$K$4&"_"&AF$33,データシート1!$A:$BT,MATCH("aa_"&$S38,データシート1!$A$1:$BT$1,0),0) -> 7.762761398 | AG38: =VLOOKUP(年度マスタ!$K$4&"_"&AG$33,データシート1!$A:$BT,MATCH("aa_"&$S38,データシート1!$A$1:$BT$1,0),0) -> 7.157169652 | AH38: =VLOOKUP(年度マスタ!$K$4&"_"&AH$33,データシート1!$A:$BT,MATCH("aa_"&$S38,データシート1!$A$1:$BT$1,0),0) -> 7.210193086 | AI38: =VLOOKUP(年度マスタ!$K$4&"_"&AI$33,データシート1!$A:$BT,MATCH("aa_"&$S38,データシート1!$A$1:$BT$1,0),0) -> 9.039455712 | AJ38: =VLOOKUP(年度マスタ!$K$4&"_"&AJ$33,データシート1!$A:$BT,MATCH("aa_"&$S38,データシート1!$A$1:$BT$1,0),0) -> 8.920851135 | AK38: =VLOOKUP(年度マスタ!$K$4&"_"&AK$33,データシート1!$A:$BT,MATCH("aa_"&$S38,データシート1!$A$1:$BT$1,0),0) -> 7.056154433 | AW38: =年度マスタ!H4 -> 17 | AX38: 都道府県範囲（都道府県） | AY38: =VLOOKUP($AW38&"_"&$AY$34,データシート1!$A:$BT,MATCH($AY$31&"_"&AY$36,データシート1!$A$1:$BT$1,0),0) -> 1598.08607 | AZ38: =VLOOKUP($AW38&"_"&$AY$34,データシート1!$A:$BT,MATCH($AY$31&"_"&AZ$36,データシート1!$A$1:$BT$1,0),0) -> 81.46375462 | BA38: =VLOOKUP($AW38&"_"&$AY$34,データシート1!$A:$BT,MATCH($AY$31&"_"&BA$36,データシート1!$A$1:$BT$1,0),0) -> 243.1869483 | BB38: =VLOOKUP($AW38&"_"&$AY$34,データシート1!$A:$BT,MATCH($AY$31&"_"&BB$36,データシート1!$A$1:$BT$1,0),0) -> 1803.598476 | BC38: =VLOOKUP($AW38&"_"&$AY$34,データシート1!$A:$BT,MATCH($AY$31&"_"&BC$36,データシート1!$A$1:$BT$1,0),0) -> 1973.914322 | BD38: =VLOOKUP($AW38&"_"&$AY$34,データシート1!$A:$BT,MATCH($AY$31&"_"&BD$36,データシート1!$A$1:$BT$1,0),0) -> 1066.07797 | BE38: =VLOOKUP($AW38&"_"&$AY$34,データシート1!$A:$BT,MATCH($AY$31&"_"&BE$36,データシート1!$A$1:$BT$1,0),0) -> 729.493158 | BF38: =VLOOKUP($AW38&"_"&$AY$34,データシート1!$A:$BT,MATCH($AY$31&"_"&BF$36,データシート1!$A$1:$BT$1,0),0) -> 65.77545164 | BG38: =VLOOKUP($AW38&"_"&$AY$34,データシート1!$A:$BT,MATCH($AY$31&"_"&BG$36,データシート1!$A$1:$BT$1,0),0) -> 20.25375027 | BH38: =VLOOKUP($AW38&"_"&$AY$34,データシート1!$A:$BT,MATCH($AY$31&"_"&BH$36,データシート1!$A$1:$BT$1,0),0) -> 126.5416512
N39: 旅客 | O39: =VLOOKUP(年度マスタ!$K$4&"_"&O$27,データシート1!$A:$BT,MATCH("aa_"&$N39,データシート1!$A$1:$BT$1,0),0) -> 25.62892744 | P39: 14% | S39: 業務その他部門 | U39: 業務その他部門 | X39: =VLOOKUP(年度マスタ!$K$4&"_"&X$33,データシート1!$A:$BT,MATCH("aa_"&$S39,データシート1!$A$1:$BT$1,0),0) -> 27.92963918 | Y39: =VLOOKUP(年度マスタ!$K$4&"_"&Y$33,データシート1!$A:$BT,MATCH("aa_"&$S39,データシート1!$A$1:$BT$1,0),0) -> 30.67121293 | Z39: =VLOOKUP(年度マスタ!$K$4&"_"&Z$33,データシート1!$A:$BT,MATCH("aa_"&$S39,データシート1!$A$1:$BT$1,0),0) -> 41.5803563 | AA39: =VLOOKUP(年度マスタ!$K$4&"_"&AA$33,データシート1!$A:$BT,MATCH("aa_"&$S39,データシート1!$A$1:$BT$1,0),0) -> 41.67940318 | AB39: =VLOOKUP(年度マスタ!$K$4&"_"&AB$33,データシート1!$A:$BT,MATCH("aa_"&$S39,データシート1!$A$1:$BT$1,0),0) -> 42.27799344 | AC39: =VLOOKUP(年度マスタ!$K$4&"_"&AC$33,データシート1!$A:$BT,MATCH("aa_"&$S39,データシート1!$A$1:$BT$1,0),0) -> 36.88354141 | AD39: =VLOOKUP(年度マスタ!$K$4&"_"&AD$33,データシート1!$A:$BT,MATCH("aa_"&$S39,データシート1!$A$1:$BT$1,0),0) -> 35.93303186 | AE39: =VLOOKUP(年度マスタ!$K$4&"_"&AE$33,データシート1!$A:$BT,MATCH("aa_"&$S39,データシート1!$A$1:$BT$1,0),0) -> 33.80189598 | AF39: =VLOOKUP(年度マスタ!$K$4&"_"&AF$33,データシート1!$A:$BT,MATCH("aa_"&$S39,データシート1!$A$1:$BT$1,0),0) -> 29.78424237 | AG39: =VLOOKUP(年度マスタ!$K$4&"_"&AG$33,データシート1!$A:$BT,MATCH("aa_"&$S39,データシート1!$A$1:$BT$1,0),0) -> 28.38253986 | AH39: =VLOOKUP(年度マスタ!$K$4&"_"&AH$33,データシート1!$A:$BT,MATCH("aa_"&$S39,データシート1!$A$1:$BT$1,0),0) -> 26.57526314 | AI39: =VLOOKUP(年度マスタ!$K$4&"_"&AI$33,データシート1!$A:$BT,MATCH("aa_"&$S39,データシート1!$A$1:$BT$1,0),0) -> 24.44226189 | AJ39: =VLOOKUP(年度マスタ!$K$4&"_"&AJ$33,データシート1!$A:$BT,MATCH("aa_"&$S39,データシート1!$A$1:$BT$1,0),0) -> 25.77287432 | AK39: =VLOOKUP(年度マスタ!$K$4&"_"&AK$33,データシート1!$A:$BT,MATCH("aa_"&$S39,データシート1!$A$1:$BT$1,0),0) -> 26.03910489 | AW39: =年度マスタ!K4 -> 17207 | AX39: 市区町村範囲 | AY39: =VLOOKUP($AW39&"_"&$AY$34,データシート1!$A:$BT,MATCH($AY$31&"_"&AY$36,データシート1!$A$1:$BT$1,0),0) -> 24.40546731 | AZ39: =VLOOKUP($AW39&"_"&$AY$34,データシート1!$A:$BT,MATCH($AY$31&"_"&AZ$36,データシート1!$A$1:$BT$1,0),0) -> 1.365314323 | BA39: =VLOOKUP($AW39&"_"&$AY$34,データシート1!$A:$BT,MATCH($AY$31&"_"&BA$36,データシート1!$A$1:$BT$1,0),0) -> 7.056154433 | BB39: =VLOOKUP($AW39&"_"&$AY$34,データシート1!$A:$BT,MATCH($AY$31&"_"&BB$36,データシート1!$A$1:$BT$1,0),0) -> 26.03910489 | BC39: =VLOOKUP($AW39&"_"&$AY$34,データシート1!$A:$BT,MATCH($AY$31&"_"&BC$36,データシート1!$A$1:$BT$1,0),0) -> 33.67183896 | BD39: =VLOOKUP($AW39&"_"&$AY$34,データシート1!$A:$BT,MATCH($AY$31&"_"&BD$36,データシート1!$A$1:$BT$1,0),0) -> 19.5407216 | BE39: =VLOOKUP($AW39&"_"&$AY$34,データシート1!$A:$BT,MATCH($AY$31&"_"&BE$36,データシート1!$A$1:$BT$1,0),0) -> 17.7764413 | BF39: =VLOOKUP($AW39&"_"&$AY$34,データシート1!$A:$BT,MATCH($AY$31&"_"&BF$36,データシート1!$A$1:$BT$1,0),0) -> 1.187169244 | BG39: =VLOOKUP($AW39&"_"&$AY$34,データシート1!$A:$BT,MATCH($AY$31&"_"&BG$36,データシート1!$A$1:$BT$1,0),0) -> 0.01309348943 | BH39: =VLOOKUP($AW39&"_"&$AY$34,データシート1!$A:$BT,MATCH($AY$31&"_"&BH$36,データシート1!$A$1:$BT$1,0),0) -> 1.582309946
N40: 貨物 | O40: =VLOOKUP(年度マスタ!$K$4&"_"&O$27,データシート1!$A:$BT,MATCH("aa_"&$N40,データシート1!$A$1:$BT$1,0),0) -> 21.3351993 | P40: 12% | S40: 家庭部門 | U40: 家庭部門 | X40: =VLOOKUP(年度マスタ!$K$4&"_"&X$33,データシート1!$A:$BT,MATCH("aa_"&$S40,データシート1!$A$1:$BT$1,0),0) -> 30.61294636 | Y40: =VLOOKUP(年度マスタ!$K$4&"_"&Y$33,データシート1!$A:$BT,MATCH("aa_"&$S40,データシート1!$A$1:$BT$1,0),0) -> 37.89541802 | Z40: =VLOOKUP(年度マスタ!$K$4&"_"&Z$33,データシート1!$A:$BT,MATCH("aa_"&$S40,データシート1!$A$1:$BT$1,0),0) -> 52.63979117 | AA40: =VLOOKUP(年度マスタ!$K$4&"_"&AA$33,データシート1!$A:$BT,MATCH("aa_"&$S40,データシート1!$A$1:$BT$1,0),0) -> 55.54503074 | AB40: =VLOOKUP(年度マスタ!$K$4&"_"&AB$33,データシート1!$A:$BT,MATCH("aa_"&$S40,データシート1!$A$1:$BT$1,0),0) -> 47.85211577 | AC40: =VLOOKUP(年度マスタ!$K$4&"_"&AC$33,データシート1!$A:$BT,MATCH("aa_"&$S40,データシート1!$A$1:$BT$1,0),0) -> 46.33356243 | AD40: =VLOOKUP(年度マスタ!$K$4&"_"&AD$33,データシート1!$A:$BT,MATCH("aa_"&$S40,データシート1!$A$1:$BT$1,0),0) -> 45.30906834 | AE40: =VLOOKUP(年度マスタ!$K$4&"_"&AE$33,データシート1!$A:$BT,MATCH("aa_"&$S40,データシート1!$A$1:$BT$1,0),0) -> 42.73413778 | AF40: =VLOOKUP(年度マスタ!$K$4&"_"&AF$33,データシート1!$A:$BT,MATCH("aa_"&$S40,データシート1!$A$1:$BT$1,0),0) -> 44.77755288 | AG40: =VLOOKUP(年度マスタ!$K$4&"_"&AG$33,データシート1!$A:$BT,MATCH("aa_"&$S40,データシート1!$A$1:$BT$1,0),0) -> 38.10163851 | AH40: =VLOOKUP(年度マスタ!$K$4&"_"&AH$33,データシート1!$A:$BT,MATCH("aa_"&$S40,データシート1!$A$1:$BT$1,0),0) -> 32.57714013 | AI40: =VLOOKUP(年度マスタ!$K$4&"_"&AI$33,データシート1!$A:$BT,MATCH("aa_"&$S40,データシート1!$A$1:$BT$1,0),0) -> 30.59927685 | AJ40: =VLOOKUP(年度マスタ!$K$4&"_"&AJ$33,データシート1!$A:$BT,MATCH("aa_"&$S40,データシート1!$A$1:$BT$1,0),0) -> 32.2833725 | AK40: =VLOOKUP(年度マスタ!$K$4&"_"&AK$33,データシート1!$A:$BT,MATCH("aa_"&$S40,データシート1!$A$1:$BT$1,0),0) -> 33.67183896
M41: 鉄道 | O41: =VLOOKUP(年度マスタ!$K$4&"_"&O$27,データシート1!$A:$BT,MATCH("aa_"&$M41,データシート1!$A$1:$BT$1,0),0) -> 1.789450758 | P41: 1% | S41: 運輸部門 | U41: 運輸部門 | X41: =X42+X45+X46 -> 51.0305745 | Y41: =Y42+Y45+Y46 -> 51.0175528 | Z41: 50.0034142 | AA41: 49.87789482 | AB41: 48.76580516 | AC41: 47.2598775 | AD41: 46.81756163 | AE41: 46.25611025 | AF41: 45.54735646 | AG41: 45.37537767 | AH41: 43.10765365 | AI41: =AI42+AI45+AI46 -> 38.70153032 | AJ41: =AJ42+AJ45+AJ46 -> 38.06663152 | AK41: =AK42+AK45+AK46 -> 38.51742563
M42: 船舶 | O42: =VLOOKUP(年度マスタ!$K$4&"_"&O$27,データシート1!$A:$BT,MATCH("aa_"&$M42,データシート1!$A$1:$BT$1,0),0) -> 0.012227652 | P42: 0% | V42: 自動車 | X42: =SUM(X43:X44) -> 49.60698665 | Y42: =SUM(Y43:Y44) -> 49.54844792 | Z42: 48.33063093 | AA42: 48.07209627 | AB42: 46.96412675 | AC42: 45.53638666 | AD42: 45.13093217 | AE42: 44.62540759 | AF42: 44.03868547 | AG42: 43.98389803 | AH42: 41.77997775 | AI42: 37.45493924 | AJ42: 36.85376961 | AK42: 37.3171629 | AX42: 産業部門 | AY42: 業務その他部門 | AZ42: 家庭部門 | BA42: 運輸部門 | BB42: 廃棄物分野（一般廃棄物） | BC42: 合計
L43: 廃棄物分野（一般廃棄物） | O43: =VLOOKUP(年度マスタ!$K$4&"_"&O$27,データシート1!$A:$BT,MATCH("aa_"&$L43,データシート1!$A$1:$BT$1,0),0) -> 1.821637858 | P43: 1% | S43: 旅客 | W43: 旅客 | X43: =VLOOKUP(年度マスタ!$K$4&"_"&X$33,データシート1!$A:$BT,MATCH("aa_"&$S43,データシート1!$A$1:$BT$1,0),0) -> 27.2489307 | Y43: =VLOOKUP(年度マスタ!$K$4&"_"&Y$33,データシート1!$A:$BT,MATCH("aa_"&$S43,データシート1!$A$1:$BT$1,0),0) -> 27.14258598 | Z43: =VLOOKUP(年度マスタ!$K$4&"_"&Z$33,データシート1!$A:$BT,MATCH("aa_"&$S43,データシート1!$A$1:$BT$1,0),0) -> 26.71576753 | AA43: =VLOOKUP(年度マスタ!$K$4&"_"&AA$33,データシート1!$A:$BT,MATCH("aa_"&$S43,データシート1!$A$1:$BT$1,0),0) -> 26.65275818 | AB43: =VLOOKUP(年度マスタ!$K$4&"_"&AB$33,データシート1!$A:$BT,MATCH("aa_"&$S43,データシート1!$A$1:$BT$1,0),0) -> 25.62892744 | AC43: =VLOOKUP(年度マスタ!$K$4&"_"&AC$33,データシート1!$A:$BT,MATCH("aa_"&$S43,データシート1!$A$1:$BT$1,0),0) -> 24.31122873 | AD43: =VLOOKUP(年度マスタ!$K$4&"_"&AD$33,データシート1!$A:$BT,MATCH("aa_"&$S43,データシート1!$A$1:$BT$1,0),0) -> 24.03473871 | AE43: =VLOOKUP(年度マスタ!$K$4&"_"&AE$33,データシート1!$A:$BT,MATCH("aa_"&$S43,データシート1!$A$1:$BT$1,0),0) -> 23.80578411 | AF43: =VLOOKUP(年度マスタ!$K$4&"_"&AF$33,データシート1!$A:$BT,MATCH("aa_"&$S43,データシート1!$A$1:$BT$1,0),0) -> 23.53440872 | AG43: =VLOOKUP(年度マスタ!$K$4&"_"&AG$33,データシート1!$A:$BT,MATCH("aa_"&$S43,データシート1!$A$1:$BT$1,0),0) -> 22.99542226 | AH43: =VLOOKUP(年度マスタ!$K$4&"_"&AH$33,データシート1!$A:$BT,MATCH("aa_"&$S43,データシート1!$A$1:$BT$1,0),0) -> 22.29952973 | AI43: =VLOOKUP(年度マスタ!$K$4&"_"&AI$33,データシート1!$A:$BT,MATCH("aa_"&$S43,データシート1!$A$1:$BT$1,0),0) -> 19.41718923 | AJ43: =VLOOKUP(年度マスタ!$K$4&"_"&AJ$33,データシート1!$A:$BT,MATCH("aa_"&$S43,データシート1!$A$1:$BT$1,0),0) -> 18.66229185 | AK43: =VLOOKUP(年度マスタ!$K$4&"_"&AK$33,データシート1!$A:$BT,MATCH("aa_"&$S43,データシート1!$A$1:$BT$1,0),0) -> 19.5407216 | AW43: =AW46 -> 全国 | AX43: =AX46/$BC46 -> 42% | AY43: 19% | AZ43: 18% | BA43: 19% | BB43: 2% | BC43: =SUM(AX43:BB43) -> 100%
Q44: ※表中の構成比は、四捨五入の関係で合計が100％にならない場合があります。 | S44: 貨物 | W44: 貨物 | X44: =VLOOKUP(年度マスタ!$K$4&"_"&X$33,データシート1!$A:$BT,MATCH("aa_"&$S44,データシート1!$A$1:$BT$1,0),0) -> 22.35805595 | Y44: =VLOOKUP(年度マスタ!$K$4&"_"&Y$33,データシート1!$A:$BT,MATCH("aa_"&$S44,データシート1!$A$1:$BT$1,0),0) -> 22.40586193 | Z44: =VLOOKUP(年度マスタ!$K$4&"_"&Z$33,データシート1!$A:$BT,MATCH("aa_"&$S44,データシート1!$A$1:$BT$1,0),0) -> 21.6148634 | AA44: =VLOOKUP(年度マスタ!$K$4&"_"&AA$33,データシート1!$A:$BT,MATCH("aa_"&$S44,データシート1!$A$1:$BT$1,0),0) -> 21.41933809 | AB44: =VLOOKUP(年度マスタ!$K$4&"_"&AB$33,データシート1!$A:$BT,MATCH("aa_"&$S44,データシート1!$A$1:$BT$1,0),0) -> 21.3351993 | AC44: =VLOOKUP(年度マスタ!$K$4&"_"&AC$33,データシート1!$A:$BT,MATCH("aa_"&$S44,データシート1!$A$1:$BT$1,0),0) -> 21.22515793 | AD44: =VLOOKUP(年度マスタ!$K$4&"_"&AD$33,データシート1!$A:$BT,MATCH("aa_"&$S44,データシート1!$A$1:$BT$1,0),0) -> 21.09619346 | AE44: =VLOOKUP(年度マスタ!$K$4&"_"&AE$33,データシート1!$A:$BT,MATCH("aa_"&$S44,データシート1!$A$1:$BT$1,0),0) -> 20.81962349 | AF44: =VLOOKUP(年度マスタ!$K$4&"_"&AF$33,データシート1!$A:$BT,MATCH("aa_"&$S44,データシート1!$A$1:$BT$1,0),0) -> 20.50427675 | AG44: =VLOOKUP(年度マスタ!$K$4&"_"&AG$33,データシート1!$A:$BT,MATCH("aa_"&$S44,データシート1!$A$1:$BT$1,0),0) -> 20.98847577 | AH44: =VLOOKUP(年度マスタ!$K$4&"_"&AH$33,データシート1!$A:$BT,MATCH("aa_"&$S44,データシート1!$A$1:$BT$1,0),0) -> 19.48044802 | AI44: =VLOOKUP(年度マスタ!$K$4&"_"&AI$33,データシート1!$A:$BT,MATCH("aa_"&$S44,データシート1!$A$1:$BT$1,0),0) -> 18.03775001 | AJ44: =VLOOKUP(年度マスタ!$K$4&"_"&AJ$33,データシート1!$A:$BT,MATCH("aa_"&$S44,データシート1!$A$1:$BT$1,0),0) -> 18.19147776 | AK44: =VLOOKUP(年度マスタ!$K$4&"_"&AK$33,データシート1!$A:$BT,MATCH("aa_"&$S44,データシート1!$A$1:$BT$1,0),0) -> 17.7764413 | AW44: =AW47 -> 石川県 | AX44: 25% | AY44: 23% | AZ44: 26% | BA44: 24% | BB44: 2% | BC44: =SUM(AX44:BB44) -> 100%
S45: 鉄道 | V45: 鉄道 | X45: =VLOOKUP(年度マスタ!$K$4&"_"&X$33,データシート1!$A:$BT,MATCH("aa_"&$S45,データシート1!$A$1:$BT$1,0),0) -> 1.39738768 | Y45: =VLOOKUP(年度マスタ!$K$4&"_"&Y$33,データシート1!$A:$BT,MATCH("aa_"&$S45,データシート1!$A$1:$BT$1,0),0) -> 1.441457626 | Z45: =VLOOKUP(年度マスタ!$K$4&"_"&Z$33,データシート1!$A:$BT,MATCH("aa_"&$S45,データシート1!$A$1:$BT$1,0),0) -> 1.645090214 | AA45: =VLOOKUP(年度マスタ!$K$4&"_"&AA$33,データシート1!$A:$BT,MATCH("aa_"&$S45,データシート1!$A$1:$BT$1,0),0) -> 1.777369151 | AB45: =VLOOKUP(年度マスタ!$K$4&"_"&AB$33,データシート1!$A:$BT,MATCH("aa_"&$S45,データシート1!$A$1:$BT$1,0),0) -> 1.789450758 | AC45: =VLOOKUP(年度マスタ!$K$4&"_"&AC$33,データシート1!$A:$BT,MATCH("aa_"&$S45,データシート1!$A$1:$BT$1,0),0) -> 1.694457758 | AD45: =VLOOKUP(年度マスタ!$K$4&"_"&AD$33,データシート1!$A:$BT,MATCH("aa_"&$S45,データシート1!$A$1:$BT$1,0),0) -> 1.640383461 | AE45: =VLOOKUP(年度マスタ!$K$4&"_"&AE$33,データシート1!$A:$BT,MATCH("aa_"&$S45,データシート1!$A$1:$BT$1,0),0) -> 1.582228056 | AF45: =VLOOKUP(年度マスタ!$K$4&"_"&AF$33,データシート1!$A:$BT,MATCH("aa_"&$S45,データシート1!$A$1:$BT$1,0),0) -> 1.50867099 | AG45: =VLOOKUP(年度マスタ!$K$4&"_"&AG$33,データシート1!$A:$BT,MATCH("aa_"&$S45,データシート1!$A$1:$BT$1,0),0) -> 1.375554227 | AH45: =VLOOKUP(年度マスタ!$K$4&"_"&AH$33,データシート1!$A:$BT,MATCH("aa_"&$S45,データシート1!$A$1:$BT$1,0),0) -> 1.315908722 | AI45: =VLOOKUP(年度マスタ!$K$4&"_"&AI$33,データシート1!$A:$BT,MATCH("aa_"&$S45,データシート1!$A$1:$BT$1,0),0) -> 1.234637548 | AJ45: =VLOOKUP(年度マスタ!$K$4&"_"&AJ$33,データシート1!$A:$BT,MATCH("aa_"&$S45,データシート1!$A$1:$BT$1,0),0) -> 1.201022799 | AK45: =VLOOKUP(年度マスタ!$K$4&"_"&AK$33,データシート1!$A:$BT,MATCH("aa_"&$S45,データシート1!$A$1:$BT$1,0),0) -> 1.187169244 | AW45: =AW48 -> 羽咋市 | AX45: =AX48/$BC48 -> 25% | AY45: 20% | AZ45: 25% | BA45: 29% | BB45: 1% | BC45: =SUM(AX45:BB45) -> 100%
C46: 3）部門・分野別CO2排出量構成比 令和4年度（2022年度） | S46: 船舶 | V46: 船舶 | X46: =VLOOKUP(年度マスタ!$K$4&"_"&X$33,データシート1!$A:$BT,MATCH("aa_"&$S46,データシート1!$A$1:$BT$1,0),0) -> 0.02620016222 | Y46: =VLOOKUP(年度マスタ!$K$4&"_"&Y$33,データシート1!$A:$BT,MATCH("aa_"&$S46,データシート1!$A$1:$BT$1,0),0) -> 0.02764725219 | Z46: =VLOOKUP(年度マスタ!$K$4&"_"&Z$33,データシート1!$A:$BT,MATCH("aa_"&$S46,データシート1!$A$1:$BT$1,0),0) -> 0.02769305306 | AA46: =VLOOKUP(年度マスタ!$K$4&"_"&AA$33,データシート1!$A:$BT,MATCH("aa_"&$S46,データシート1!$A$1:$BT$1,0),0) -> 0.02842939745 | AB46: =VLOOKUP(年度マスタ!$K$4&"_"&AB$33,データシート1!$A:$BT,MATCH("aa_"&$S46,データシート1!$A$1:$BT$1,0),0) -> 0.012227652 | AC46: =VLOOKUP(年度マスタ!$K$4&"_"&AC$33,データシート1!$A:$BT,MATCH("aa_"&$S46,データシート1!$A$1:$BT$1,0),0) -> 0.02903308199 | AD46: =VLOOKUP(年度マスタ!$K$4&"_"&AD$33,データシート1!$A:$BT,MATCH("aa_"&$S46,データシート1!$A$1:$BT$1,0),0) -> 0.0462460052 | AE46: =VLOOKUP(年度マスタ!$K$4&"_"&AE$33,データシート1!$A:$BT,MATCH("aa_"&$S46,データシート1!$A$1:$BT$1,0),0) -> 0.04847459479 | AF46: =VLOOKUP(年度マスタ!$K$4&"_"&AF$33,データシート1!$A:$BT,MATCH("aa_"&$S46,データシート1!$A$1:$BT$1,0),0) -> 0 | AG46: =VLOOKUP(年度マスタ!$K$4&"_"&AG$33,データシート1!$A:$BT,MATCH("aa_"&$S46,データシート1!$A$1:$BT$1,0),0) -> 0.01592540641 | AH46: =VLOOKUP(年度マスタ!$K$4&"_"&AH$33,データシート1!$A:$BT,MATCH("aa_"&$S46,データシート1!$A$1:$BT$1,0),0) -> 0.01176717303 | AI46: =VLOOKUP(年度マスタ!$K$4&"_"&AI$33,データシート1!$A:$BT,MATCH("aa_"&$S46,データシート1!$A$1:$BT$1,0),0) -> 0.01195353297 | AJ46: =VLOOKUP(年度マスタ!$K$4&"_"&AJ$33,データシート1!$A:$BT,MATCH("aa_"&$S46,データシート1!$A$1:$BT$1,0),0) -> 0.0118391046 | AK46: =VLOOKUP(年度マスタ!$K$4&"_"&AK$33,データシート1!$A:$BT,MATCH("aa_"&$S46,データシート1!$A$1:$BT$1,0),0) -> 0.01309348943 | AW46: 全国 | AX46: =SUM(AY37:BA37) -> 398,380 | AY46: =BB37 -> 181,031 | AZ46: 170,770 | BA46: =SUM(BD37:BG37) -> 182,049 | BB46: =BH37 -> 14,652 | BC46: =SUM(AX46:BB46) -> 946,883
C47: =BB1 -> 3）排出量の部門・分野別構成比 令和4年度（2022年度） | S47: 廃棄物分野（一般廃棄物） | U47: 廃棄物分野（一般廃棄物） | X47: =VLOOKUP(年度マスタ!$K$4&"_"&X$33,データシート1!$A:$BT,MATCH("aa_"&$S47,データシート1!$A$1:$BT$1,0),0) -> 0 | Y47: =VLOOKUP(年度マスタ!$K$4&"_"&Y$33,データシート1!$A:$BT,MATCH("aa_"&$S47,データシート1!$A$1:$BT$1,0),0) -> 2.373754285 | Z47: =VLOOKUP(年度マスタ!$K$4&"_"&Z$33,データシート1!$A:$BT,MATCH("aa_"&$S47,データシート1!$A$1:$BT$1,0),0) -> 1.002724243 | AA47: =VLOOKUP(年度マスタ!$K$4&"_"&AA$33,データシート1!$A:$BT,MATCH("aa_"&$S47,データシート1!$A$1:$BT$1,0),0) -> 2.008118871 | AB47: =VLOOKUP(年度マスタ!$K$4&"_"&AB$33,データシート1!$A:$BT,MATCH("aa_"&$S47,データシート1!$A$1:$BT$1,0),0) -> 1.821637858 | AC47: =VLOOKUP(年度マスタ!$K$4&"_"&AC$33,データシート1!$A:$BT,MATCH("aa_"&$S47,データシート1!$A$1:$BT$1,0),0) -> 1.762213392 | AD47: =VLOOKUP(年度マスタ!$K$4&"_"&AD$33,データシート1!$A:$BT,MATCH("aa_"&$S47,データシート1!$A$1:$BT$1,0),0) -> 1.778514586 | AE47: =VLOOKUP(年度マスタ!$K$4&"_"&AE$33,データシート1!$A:$BT,MATCH("aa_"&$S47,データシート1!$A$1:$BT$1,0),0) -> 2.095184761 | AF47: =VLOOKUP(年度マスタ!$K$4&"_"&AF$33,データシート1!$A:$BT,MATCH("aa_"&$S47,データシート1!$A$1:$BT$1,0),0) -> 2.060620545 | AG47: =VLOOKUP(年度マスタ!$K$4&"_"&AG$33,データシート1!$A:$BT,MATCH("aa_"&$S47,データシート1!$A$1:$BT$1,0),0) -> 1.560663216 | AH47: =VLOOKUP(年度マスタ!$K$4&"_"&AH$33,データシート1!$A:$BT,MATCH("aa_"&$S47,データシート1!$A$1:$BT$1,0),0) -> 2.126476424 | AI47: =VLOOKUP(年度マスタ!$K$4&"_"&AI$33,データシート1!$A:$BT,MATCH("aa_"&$S47,データシート1!$A$1:$BT$1,0),0) -> 2.344678332 | AJ47: =VLOOKUP(年度マスタ!$K$4&"_"&AJ$33,データシート1!$A:$BT,MATCH("aa_"&$S47,データシート1!$A$1:$BT$1,0),0) -> 2.377547953 | AK47: =VLOOKUP(年度マスタ!$K$4&"_"&AK$33,データシート1!$A:$BT,MATCH("aa_"&$S47,データシート1!$A$1:$BT$1,0),0) -> 1.582309946 | AW47: =年度マスタ!I4 -> 石川県 | AX47: =SUM(AY38:BA38) -> 1,923 | AY47: 1,804 | AZ47: 1,974 | BA47: =SUM(BD38:BG38) -> 1,882 | BB47: =BH38 -> 127 | BC47: =SUM(AX47:BB47) -> 7,708
K48: 部門・分野 | O48: =年度マスタ!K5 -> 令和4年度 | P48: 構成比 | AK48: ※表中の内訳と小計・合計は、四捨五入の関係で一致しない場合があります。 | AW48: =年度マスタ!J4 -> 羽咋市 | AX48: =SUM(AY39:BA39) -> 33 | AY48: =BB39 -> 26 | AZ48: =BC39 -> 34 | BA48: =SUM(BD39:BG39) -> 39 | BB48: =BH39 -> 2 | BC48: =SUM(AX48:BB48) -> 133
O49: 排出量
O50: ［千t-CO2］ | T50: 5）部門・分野別CO2排出量構成比の比較（都道府県平均及び全国平均）
K51: 合 計 | O51: =O52+O56+O57+O58+O64 -> 132.6376155 | P51: =P52+P56+P57+P58+P64 -> 100% | AK51: ="（"&年度マスタ!$K$5&"）" -> （令和4年度）
L52: 産業部門 | O52: =SUM(O53:O55) -> 32.82693606 | P52: =O52/$O$51 -> 25%
J53: 製造業 | M53: 製造業 | O53: =AK36 -> 24.40546731 | P53: 18%
J54: 建設業・鉱業 | M54: 建設業・鉱業 | O54: =AK37 -> 1.365314323 | P54: 1%
J55: 農林水産業 | M55: 農林水産業 | O55: =AK38 -> 7.056154433 | P55: 5%
J56: 業務その他部門 | L56: 業務その他部門 | O56: =AK39 -> 26.03910489 | P56: 20%
J57: 家庭部門 | L57: 家庭部門 | O57: =AK40 -> 33.67183896 | P57: 25%
L58: 運輸部門 | O58: =SUM(O60:O63) -> 38.51742563 | P58: 29%
M59: 自動車 | O59: =SUM(O60:O61) -> 37.3171629 | P59: 28%
J60: 旅客 | N60: 旅客 | O60: =AK43 -> 19.5407216 | P60: 15%
J61: 貨物 | N61: 貨物 | O61: =AK44 -> 17.7764413 | P61: 13%
J62: 鉄道 | M62: 鉄道 | O62: =AK45 -> 1.187169244 | P62: 1%
J63: 船舶 | M63: 船舶 | O63: =AK46 -> 0.01309348943 | P63: 0%
J64: 廃棄物分野（一般廃棄物） | L64: 廃棄物分野（一般廃棄物） | O64: =AK47 -> 1.582309946 | P64: 1%
Q65: ※表中の構成比は、四捨五入の関係で合計が100％にならない場合があります。
B67: 区域のCO2排出量は、環境省「地方公共団体実行計画（区域施策編）策定･実施マニュアル」の標準的手法に基づき、統計資料の按分により地方公共団体別部門・分野別CO2排出量を推計した値です。なお、一般廃棄物のCO2排出量は、一般廃棄物処理実態調査結果の焼却施設ごとの年間処理量等から推計しています。 各地方公共団体の過年度のデータは、地方公共団体実行計画策定・実施支援サイト「部門別CO2排出量の現況推計(部門別データ)」（https://www.env.go.jp/policy/local_keikaku/tools/suikei2.html）を御参照ください。 本カルテに掲載している推計年度は、地方公共団体実行計画（区域施策編）で地域の温室効果ガス排出量の目標を策定する際に基準年度や現状年度として選択できます。令和4年度（2022年度）は最新の現況推計年度です。各部門・分野別CO2排出量構成比を分析することで施策の検討に役立てることができます。

Sheet ②活動量の現状把握
B1: 自治体排出量カルテ② 活動量の現状把握 | Z1: =年度マスタ!J4 -> 羽咋市
AH2: 製造業 | AI2: 建設業・鉱業 | AJ2: 農林水産業 | AK2: 業務その他 | AL2: 家庭 | AM2: 旅客自動車 | AN2: 貨物自動車 | AO2: 鉄道 | AP2: 船舶 | AQ2: 廃棄物
B3: ○地方公共団体の活動量 | AG3: １）部門・分野別指標の推移（廃棄物のみ排出量の推移）
AG4: 年度 | AH4: 製造業 | AI4: 建設業・鉱業 | AJ4: 農林水産業 | AK4: 業務その他 | AL4: 家庭 | AM4: 自動車 | AO4: 鉄道 | AP4: 船舶 | AQ4: 廃棄物分野（一般廃棄物）
C5: 1）部門・分野別指標の推移（廃棄物分野のみCO2排出量の推移） | AH5: 製造品出荷額等 | AI5: 従業者数 | AJ5: 従業者数 | AK5: 従業者数 | AL5: 世帯数 | AM5: 旅客 | AN5: 貨物 | AO5: 人口 | AP5: 入港船舶総トン数 | AQ5: CO2排出量
D6: 産業部門（製造業）- 製造品出荷額等 | L6: 産業部門（建設業・鉱業）- 従業者数 | T6: 産業部門（農林水産業）- 従業者数 | AH6: ［億円］ | AI6: ［人］ | AJ6: ［人］ | AK6: ［人］ | AL6: ［世帯］ | AM6: ［台］ | AN6: ［台］ | AO6: ［人］ | AP6: ［トン］ | AQ6: ［千t-CO2］
D7: =AH6 -> ［億円］ | L7: =AI6 -> ［人］ | T7: =AJ6 -> ［人］ | AF7: 2009 | AG7: 平成21年度 | AH7: =VLOOKUP(年度マスタ!$K$4&"_"&$AG7,データシート1!$A:$BT,MATCH("ab_"&$AH$2,データシート1!$A$1:$BT$1,0),0)/10^4 -> 368 | AI7: =VLOOKUP(年度マスタ!$K$4&"_"&$AG7,データシート1!$A:$BT,MATCH("ab_"&AI$2,データシート1!$A$1:$BT$1,0),0) -> 912 | AJ7: =VLOOKUP(年度マスタ!$K$4&"_"&$AG7,データシート1!$A:$BT,MATCH("ab_"&AJ$2,データシート1!$A$1:$BT$1,0),0) -> 129 | AK7: =VLOOKUP(年度マスタ!$K$4&"_"&$AG7,データシート1!$A:$BT,MATCH("ab_"&AK$2,データシート1!$A$1:$BT$1,0),0) -> 7,004 | AL7: =VLOOKUP(年度マスタ!$K$4&"_"&$AG7,データシート1!$A:$BT,MATCH("ab_"&AL$2,データシート1!$A$1:$BT$1,0),0) -> 8,364 | AM7: =VLOOKUP(年度マスタ!$K$4&"_"&$AG7,データシート1!$A:$BT,MATCH("ab_"&AM$2,データシート1!$A$1:$BT$1,0),0) -> 13,775 | AN7: =VLOOKUP(年度マスタ!$K$4&"_"&$AG7,データシート1!$A:$BT,MATCH("ab_"&AN$2,データシート1!$A$1:$BT$1,0),0) -> 4,500 | AO7: =VLOOKUP(年度マスタ!$K$4&"_"&$AG7,データシート1!$A:$BT,MATCH("ab_"&AO$2,データシート1!$A$1:$BT$1,0),0) -> 23,970 | AP7: =VLOOKUP(年度マスタ!$K$4&"_"&$AG7,データシート1!$A:$BT,MATCH("ab_"&AP$2,データシート1!$A$1:$BT$1,0),0) -> 4,828 | AQ7: =VLOOKUP(年度マスタ!$K$4&"_"&$AG7,データシート1!$A:$BT,MATCH("ab_"&AQ$2,データシート1!$A$1:$BT$1,0),0) -> 0
AF8: 2010 | AG8: 平成22年度 | AH8: =VLOOKUP(年度マスタ!$K$4&"_"&$AG8,データシート1!$A:$BT,MATCH("ab_"&$AH$2,データシート1!$A$1:$BT$1,0),0)/10^4 -> 407 | AI8: =VLOOKUP(年度マスタ!$K$4&"_"&$AG8,データシート1!$A:$BT,MATCH("ab_"&AI$2,データシート1!$A$1:$BT$1,0),0) -> 912 | AJ8: =VLOOKUP(年度マスタ!$K$4&"_"&$AG8,データシート1!$A:$BT,MATCH("ab_"&AJ$2,データシート1!$A$1:$BT$1,0),0) -> 129 | AK8: =VLOOKUP(年度マスタ!$K$4&"_"&$AG8,データシート1!$A:$BT,MATCH("ab_"&AK$2,データシート1!$A$1:$BT$1,0),0) -> 7,004 | AL8: =VLOOKUP(年度マスタ!$K$4&"_"&$AG8,データシート1!$A:$BT,MATCH("ab_"&AL$2,データシート1!$A$1:$BT$1,0),0) -> 8,356 | AM8: =VLOOKUP(年度マスタ!$K$4&"_"&$AG8,データシート1!$A:$BT,MATCH("ab_"&AM$2,データシート1!$A$1:$BT$1,0),0) -> 13,785 | AN8: =VLOOKUP(年度マスタ!$K$4&"_"&$AG8,データシート1!$A:$BT,MATCH("ab_"&AN$2,データシート1!$A$1:$BT$1,0),0) -> 4,397 | AO8: =VLOOKUP(年度マスタ!$K$4&"_"&$AG8,データシート1!$A:$BT,MATCH("ab_"&AO$2,データシート1!$A$1:$BT$1,0),0) -> 23,693 | AP8: =VLOOKUP(年度マスタ!$K$4&"_"&$AG8,データシート1!$A:$BT,MATCH("ab_"&AP$2,データシート1!$A$1:$BT$1,0),0) -> 4,828 | AQ8: =VLOOKUP(年度マスタ!$K$4&"_"&$AG8,データシート1!$A:$BT,MATCH("ab_"&AQ$2,データシート1!$A$1:$BT$1,0),0) -> 2.373754285
AF9: 2011 | AG9: 平成23年度 | AH9: =VLOOKUP(年度マスタ!$K$4&"_"&$AG9,データシート1!$A:$BT,MATCH("ab_"&$AH$2,データシート1!$A$1:$BT$1,0),0)/10^4 -> 374 | AI9: =VLOOKUP(年度マスタ!$K$4&"_"&$AG9,データシート1!$A:$BT,MATCH("ab_"&AI$2,データシート1!$A$1:$BT$1,0),0) -> 912 | AJ9: =VLOOKUP(年度マスタ!$K$4&"_"&$AG9,データシート1!$A:$BT,MATCH("ab_"&AJ$2,データシート1!$A$1:$BT$1,0),0) -> 129 | AK9: =VLOOKUP(年度マスタ!$K$4&"_"&$AG9,データシート1!$A:$BT,MATCH("ab_"&AK$2,データシート1!$A$1:$BT$1,0),0) -> 7,004 | AL9: =VLOOKUP(年度マスタ!$K$4&"_"&$AG9,データシート1!$A:$BT,MATCH("ab_"&AL$2,データシート1!$A$1:$BT$1,0),0) -> 8,378 | AM9: =VLOOKUP(年度マスタ!$K$4&"_"&$AG9,データシート1!$A:$BT,MATCH("ab_"&AM$2,データシート1!$A$1:$BT$1,0),0) -> 13,863 | AN9: =VLOOKUP(年度マスタ!$K$4&"_"&$AG9,データシート1!$A:$BT,MATCH("ab_"&AN$2,データシート1!$A$1:$BT$1,0),0) -> 4,368 | AO9: =VLOOKUP(年度マスタ!$K$4&"_"&$AG9,データシート1!$A:$BT,MATCH("ab_"&AO$2,データシート1!$A$1:$BT$1,0),0) -> 23,442 | AP9: =VLOOKUP(年度マスタ!$K$4&"_"&$AG9,データシート1!$A:$BT,MATCH("ab_"&AP$2,データシート1!$A$1:$BT$1,0),0) -> 4,828 | AQ9: =VLOOKUP(年度マスタ!$K$4&"_"&$AG9,データシート1!$A:$BT,MATCH("ab_"&AQ$2,データシート1!$A$1:$BT$1,0),0) -> 1.002724243
AF10: 2012 | AG10: 平成24年度 | AH10: =VLOOKUP(年度マスタ!$K$4&"_"&$AG10,データシート1!$A:$BT,MATCH("ab_"&$AH$2,データシート1!$A$1:$BT$1,0),0)/10^4 -> 388 | AI10: =VLOOKUP(年度マスタ!$K$4&"_"&$AG10,データシート1!$A:$BT,MATCH("ab_"&AI$2,データシート1!$A$1:$BT$1,0),0) -> 912 | AJ10: =VLOOKUP(年度マスタ!$K$4&"_"&$AG10,データシート1!$A:$BT,MATCH("ab_"&AJ$2,データシート1!$A$1:$BT$1,0),0) -> 129 | AK10: =VLOOKUP(年度マスタ!$K$4&"_"&$AG10,データシート1!$A:$BT,MATCH("ab_"&AK$2,データシート1!$A$1:$BT$1,0),0) -> 7,004 | AL10: =VLOOKUP(年度マスタ!$K$4&"_"&$AG10,データシート1!$A:$BT,MATCH("ab_"&AL$2,データシート1!$A$1:$BT$1,0),0) -> 8,494 | AM10: =VLOOKUP(年度マスタ!$K$4&"_"&$AG10,データシート1!$A:$BT,MATCH("ab_"&AM$2,データシート1!$A$1:$BT$1,0),0) -> 13,940 | AN10: =VLOOKUP(年度マスタ!$K$4&"_"&$AG10,データシート1!$A:$BT,MATCH("ab_"&AN$2,データシート1!$A$1:$BT$1,0),0) -> 4,304 | AO10: =VLOOKUP(年度マスタ!$K$4&"_"&$AG10,データシート1!$A:$BT,MATCH("ab_"&AO$2,データシート1!$A$1:$BT$1,0),0) -> 23,311 | AP10: =VLOOKUP(年度マスタ!$K$4&"_"&$AG10,データシート1!$A:$BT,MATCH("ab_"&AP$2,データシート1!$A$1:$BT$1,0),0) -> 4,828 | AQ10: =VLOOKUP(年度マスタ!$K$4&"_"&$AG10,データシート1!$A:$BT,MATCH("ab_"&AQ$2,データシート1!$A$1:$BT$1,0),0) -> 2.008118871
AF11: 2013 | AG11: 平成25年度 | AH11: =VLOOKUP(年度マスタ!$K$4&"_"&$AG11,データシート1!$A:$BT,MATCH("ab_"&$AH$2,データシート1!$A$1:$BT$1,0),0)/10^4 -> 381 | AI11: =VLOOKUP(年度マスタ!$K$4&"_"&$AG11,データシート1!$A:$BT,MATCH("ab_"&AI$2,データシート1!$A$1:$BT$1,0),0) -> 912 | AJ11: =VLOOKUP(年度マスタ!$K$4&"_"&$AG11,データシート1!$A:$BT,MATCH("ab_"&AJ$2,データシート1!$A$1:$BT$1,0),0) -> 129 | AK11: =VLOOKUP(年度マスタ!$K$4&"_"&$AG11,データシート1!$A:$BT,MATCH("ab_"&AK$2,データシート1!$A$1:$BT$1,0),0) -> 7,004 | AL11: =VLOOKUP(年度マスタ!$K$4&"_"&$AG11,データシート1!$A:$BT,MATCH("ab_"&AL$2,データシート1!$A$1:$BT$1,0),0) -> 8,496 | AM11: =VLOOKUP(年度マスタ!$K$4&"_"&$AG11,データシート1!$A:$BT,MATCH("ab_"&AM$2,データシート1!$A$1:$BT$1,0),0) -> 14,003 | AN11: =VLOOKUP(年度マスタ!$K$4&"_"&$AG11,データシート1!$A:$BT,MATCH("ab_"&AN$2,データシート1!$A$1:$BT$1,0),0) -> 4,271 | AO11: =VLOOKUP(年度マスタ!$K$4&"_"&$AG11,データシート1!$A:$BT,MATCH("ab_"&AO$2,データシート1!$A$1:$BT$1,0),0) -> 23,133 | AP11: =VLOOKUP(年度マスタ!$K$4&"_"&$AG11,データシート1!$A:$BT,MATCH("ab_"&AP$2,データシート1!$A$1:$BT$1,0),0) -> 2,027 | AQ11: =VLOOKUP(年度マスタ!$K$4&"_"&$AG11,データシート1!$A:$BT,MATCH("ab_"&AQ$2,データシート1!$A$1:$BT$1,0),0) -> 1.821637858
AF12: 2014 | AG12: 平成26年度 | AH12: =VLOOKUP(年度マスタ!$K$4&"_"&$AG12,データシート1!$A:$BT,MATCH("ab_"&$AH$2,データシート1!$A$1:$BT$1,0),0)/10^4 -> 405 | AI12: =VLOOKUP(年度マスタ!$K$4&"_"&$AG12,データシート1!$A:$BT,MATCH("ab_"&AI$2,データシート1!$A$1:$BT$1,0),0) -> 750 | AJ12: =VLOOKUP(年度マスタ!$K$4&"_"&$AG12,データシート1!$A:$BT,MATCH("ab_"&AJ$2,データシート1!$A$1:$BT$1,0),0) -> 126 | AK12: =VLOOKUP(年度マスタ!$K$4&"_"&$AG12,データシート1!$A:$BT,MATCH("ab_"&AK$2,データシート1!$A$1:$BT$1,0),0) -> 6,261 | AL12: =VLOOKUP(年度マスタ!$K$4&"_"&$AG12,データシート1!$A:$BT,MATCH("ab_"&AL$2,データシート1!$A$1:$BT$1,0),0) -> 8,480 | AM12: =VLOOKUP(年度マスタ!$K$4&"_"&$AG12,データシート1!$A:$BT,MATCH("ab_"&AM$2,データシート1!$A$1:$BT$1,0),0) -> 13,990 | AN12: =VLOOKUP(年度マスタ!$K$4&"_"&$AG12,データシート1!$A:$BT,MATCH("ab_"&AN$2,データシート1!$A$1:$BT$1,0),0) -> 4,227 | AO12: =VLOOKUP(年度マスタ!$K$4&"_"&$AG12,データシート1!$A:$BT,MATCH("ab_"&AO$2,データシート1!$A$1:$BT$1,0),0) -> 22,831 | AP12: =VLOOKUP(年度マスタ!$K$4&"_"&$AG12,データシート1!$A:$BT,MATCH("ab_"&AP$2,データシート1!$A$1:$BT$1,0),0) -> 4,828 | AQ12: =VLOOKUP(年度マスタ!$K$4&"_"&$AG12,データシート1!$A:$BT,MATCH("ab_"&AQ$2,データシート1!$A$1:$BT$1,0),0) -> 1.762213392
AF13: 2015 | AG13: 平成27年度 | AH13: =VLOOKUP(年度マスタ!$K$4&"_"&$AG13,データシート1!$A:$BT,MATCH("ab_"&$AH$2,データシート1!$A$1:$BT$1,0),0)/10^4 -> 423 | AI13: =VLOOKUP(年度マスタ!$K$4&"_"&$AG13,データシート1!$A:$BT,MATCH("ab_"&AI$2,データシート1!$A$1:$BT$1,0),0) -> 750 | AJ13: =VLOOKUP(年度マスタ!$K$4&"_"&$AG13,データシート1!$A:$BT,MATCH("ab_"&AJ$2,データシート1!$A$1:$BT$1,0),0) -> 126 | AK13: =VLOOKUP(年度マスタ!$K$4&"_"&$AG13,データシート1!$A:$BT,MATCH("ab_"&AK$2,データシート1!$A$1:$BT$1,0),0) -> 6,261 | AL13: =VLOOKUP(年度マスタ!$K$4&"_"&$AG13,データシート1!$A:$BT,MATCH("ab_"&AL$2,データシート1!$A$1:$BT$1,0),0) -> 8,499 | AM13: =VLOOKUP(年度マスタ!$K$4&"_"&$AG13,データシート1!$A:$BT,MATCH("ab_"&AM$2,データシート1!$A$1:$BT$1,0),0) -> 13,964 | AN13: =VLOOKUP(年度マスタ!$K$4&"_"&$AG13,データシート1!$A:$BT,MATCH("ab_"&AN$2,データシート1!$A$1:$BT$1,0),0) -> 4,198 | AO13: =VLOOKUP(年度マスタ!$K$4&"_"&$AG13,データシート1!$A:$BT,MATCH("ab_"&AO$2,データシート1!$A$1:$BT$1,0),0) -> 22,578 | AP13: =VLOOKUP(年度マスタ!$K$4&"_"&$AG13,データシート1!$A:$BT,MATCH("ab_"&AP$2,データシート1!$A$1:$BT$1,0),0) -> 7,905 | AQ13: =VLOOKUP(年度マスタ!$K$4&"_"&$AG13,データシート1!$A:$BT,MATCH("ab_"&AQ$2,データシート1!$A$1:$BT$1,0),0) -> 1.778514586
AF14: 2016 | AG14: 平成28年度 | AH14: =VLOOKUP(年度マスタ!$K$4&"_"&$AG14,データシート1!$A:$BT,MATCH("ab_"&$AH$2,データシート1!$A$1:$BT$1,0),0)/10^4 -> 422 | AI14: =VLOOKUP(年度マスタ!$K$4&"_"&$AG14,データシート1!$A:$BT,MATCH("ab_"&AI$2,データシート1!$A$1:$BT$1,0),0) -> 750 | AJ14: =VLOOKUP(年度マスタ!$K$4&"_"&$AG14,データシート1!$A:$BT,MATCH("ab_"&AJ$2,データシート1!$A$1:$BT$1,0),0) -> 126 | AK14: =VLOOKUP(年度マスタ!$K$4&"_"&$AG14,データシート1!$A:$BT,MATCH("ab_"&AK$2,データシート1!$A$1:$BT$1,0),0) -> 6,261 | AL14: =VLOOKUP(年度マスタ!$K$4&"_"&$AG14,データシート1!$A:$BT,MATCH("ab_"&AL$2,データシート1!$A$1:$BT$1,0),0) -> 8,553 | AM14: =VLOOKUP(年度マスタ!$K$4&"_"&$AG14,データシート1!$A:$BT,MATCH("ab_"&AM$2,データシート1!$A$1:$BT$1,0),0) -> 14,001 | AN14: =VLOOKUP(年度マスタ!$K$4&"_"&$AG14,データシート1!$A:$BT,MATCH("ab_"&AN$2,データシート1!$A$1:$BT$1,0),0) -> 4,285 | AO14: =VLOOKUP(年度マスタ!$K$4&"_"&$AG14,データシート1!$A:$BT,MATCH("ab_"&AO$2,データシート1!$A$1:$BT$1,0),0) -> 22,401 | AP14: =VLOOKUP(年度マスタ!$K$4&"_"&$AG14,データシート1!$A:$BT,MATCH("ab_"&AP$2,データシート1!$A$1:$BT$1,0),0) -> 8,279 | AQ14: =VLOOKUP(年度マスタ!$K$4&"_"&$AG14,データシート1!$A:$BT,MATCH("ab_"&AQ$2,データシート1!$A$1:$BT$1,0),0) -> 2.095184761
AF15: 2017 | AG15: 平成29年度 | AH15: =VLOOKUP(年度マスタ!$K$4&"_"&$AG15,データシート1!$A:$BT,MATCH("ab_"&$AH$2,データシート1!$A$1:$BT$1,0),0)/10^4 -> 436 | AI15: =VLOOKUP(年度マスタ!$K$4&"_"&$AG15,データシート1!$A:$BT,MATCH("ab_"&AI$2,データシート1!$A$1:$BT$1,0),0) -> 750 | AJ15: =VLOOKUP(年度マスタ!$K$4&"_"&$AG15,データシート1!$A:$BT,MATCH("ab_"&AJ$2,データシート1!$A$1:$BT$1,0),0) -> 126 | AK15: =VLOOKUP(年度マスタ!$K$4&"_"&$AG15,データシート1!$A:$BT,MATCH("ab_"&AK$2,データシート1!$A$1:$BT$1,0),0) -> 6,261 | AL15: =VLOOKUP(年度マスタ!$K$4&"_"&$AG15,データシート1!$A:$BT,MATCH("ab_"&AL$2,データシート1!$A$1:$BT$1,0),0) -> 8,562 | AM15: =VLOOKUP(年度マスタ!$K$4&"_"&$AG15,データシート1!$A:$BT,MATCH("ab_"&AM$2,データシート1!$A$1:$BT$1,0),0) -> 14,071 | AN15: =VLOOKUP(年度マスタ!$K$4&"_"&$AG15,データシート1!$A:$BT,MATCH("ab_"&AN$2,データシート1!$A$1:$BT$1,0),0) -> 4,247 | AO15: =VLOOKUP(年度マスタ!$K$4&"_"&$AG15,データシート1!$A:$BT,MATCH("ab_"&AO$2,データシート1!$A$1:$BT$1,0),0) -> 22,088 | AP15: =VLOOKUP(年度マスタ!$K$4&"_"&$AG15,データシート1!$A:$BT,MATCH("ab_"&AP$2,データシート1!$A$1:$BT$1,0),0) -> 0 | AQ15: =VLOOKUP(年度マスタ!$K$4&"_"&$AG15,データシート1!$A:$BT,MATCH("ab_"&AQ$2,データシート1!$A$1:$BT$1,0),0) -> 2.060620545
AF16: 2018 | AG16: 平成30年度 | AH16: =VLOOKUP(年度マスタ!$K$4&"_"&$AG16,データシート1!$A:$BT,MATCH("ab_"&$AH$2,データシート1!$A$1:$BT$1,0),0)/10^4 -> 436 | AI16: =VLOOKUP(年度マスタ!$K$4&"_"&$AG16,データシート1!$A:$BT,MATCH("ab_"&AI$2,データシート1!$A$1:$BT$1,0),0) -> 750 | AJ16: =VLOOKUP(年度マスタ!$K$4&"_"&$AG16,データシート1!$A:$BT,MATCH("ab_"&AJ$2,データシート1!$A$1:$BT$1,0),0) -> 126 | AK16: =VLOOKUP(年度マスタ!$K$4&"_"&$AG16,データシート1!$A:$BT,MATCH("ab_"&AK$2,データシート1!$A$1:$BT$1,0),0) -> 6,261 | AL16: =VLOOKUP(年度マスタ!$K$4&"_"&$AG16,データシート1!$A:$BT,MATCH("ab_"&AL$2,データシート1!$A$1:$BT$1,0),0) -> 8,551 | AM16: =VLOOKUP(年度マスタ!$K$4&"_"&$AG16,データシート1!$A:$BT,MATCH("ab_"&AM$2,データシート1!$A$1:$BT$1,0),0) -> 14,012 | AN16: =VLOOKUP(年度マスタ!$K$4&"_"&$AG16,データシート1!$A:$BT,MATCH("ab_"&AN$2,データシート1!$A$1:$BT$1,0),0) -> 4,391 | AO16: =VLOOKUP(年度マスタ!$K$4&"_"&$AG16,データシート1!$A:$BT,MATCH("ab_"&AO$2,データシート1!$A$1:$BT$1,0),0) -> 21,703 | AP16: =VLOOKUP(年度マスタ!$K$4&"_"&$AG16,データシート1!$A:$BT,MATCH("ab_"&AP$2,データシート1!$A$1:$BT$1,0),0) -> 2,763 | AQ16: =VLOOKUP(年度マスタ!$K$4&"_"&$AG16,データシート1!$A:$BT,MATCH("ab_"&AQ$2,データシート1!$A$1:$BT$1,0),0) -> 1.560663216
AF17: 2019 | AG17: 令和元年度 | AH17: =VLOOKUP(年度マスタ!$K$4&"_"&$AG17,データシート1!$A:$BT,MATCH("ab_"&$AH$2,データシート1!$A$1:$BT$1,0),0)/10^4 -> 413 | AI17: =VLOOKUP(年度マスタ!$K$4&"_"&$AG17,データシート1!$A:$BT,MATCH("ab_"&AI$2,データシート1!$A$1:$BT$1,0),0) -> 750 | AJ17: =VLOOKUP(年度マスタ!$K$4&"_"&$AG17,データシート1!$A:$BT,MATCH("ab_"&AJ$2,データシート1!$A$1:$BT$1,0),0) -> 126 | AK17: =VLOOKUP(年度マスタ!$K$4&"_"&$AG17,データシート1!$A:$BT,MATCH("ab_"&AK$2,データシート1!$A$1:$BT$1,0),0) -> 6,261 | AL17: =VLOOKUP(年度マスタ!$K$4&"_"&$AG17,データシート1!$A:$BT,MATCH("ab_"&AL$2,データシート1!$A$1:$BT$1,0),0) -> 8,537 | AM17: =VLOOKUP(年度マスタ!$K$4&"_"&$AG17,データシート1!$A:$BT,MATCH("ab_"&AM$2,データシート1!$A$1:$BT$1,0),0) -> 13,961 | AN17: =VLOOKUP(年度マスタ!$K$4&"_"&$AG17,データシート1!$A:$BT,MATCH("ab_"&AN$2,データシート1!$A$1:$BT$1,0),0) -> 4,045 | AO17: =VLOOKUP(年度マスタ!$K$4&"_"&$AG17,データシート1!$A:$BT,MATCH("ab_"&AO$2,データシート1!$A$1:$BT$1,0),0) -> 21,324 | AP17: =VLOOKUP(年度マスタ!$K$4&"_"&$AG17,データシート1!$A:$BT,MATCH("ab_"&AP$2,データシート1!$A$1:$BT$1,0),0) -> 2,075 | AQ17: =VLOOKUP(年度マスタ!$K$4&"_"&$AG17,データシート1!$A:$BT,MATCH("ab_"&AQ$2,データシート1!$A$1:$BT$1,0),0) -> 2.126476424
AF18: 2020 | AG18: 令和2年度 | AH18: =VLOOKUP(年度マスタ!$K$4&"_"&$AG18,データシート1!$A:$BT,MATCH("ab_"&$AH$2,データシート1!$A$1:$BT$1,0),0)/10^4 -> 388 | AI18: =VLOOKUP(年度マスタ!$K$4&"_"&$AG18,データシート1!$A:$BT,MATCH("ab_"&AI$2,データシート1!$A$1:$BT$1,0),0) -> 645 | AJ18: =VLOOKUP(年度マスタ!$K$4&"_"&$AG18,データシート1!$A:$BT,MATCH("ab_"&AJ$2,データシート1!$A$1:$BT$1,0),0) -> 155 | AK18: =VLOOKUP(年度マスタ!$K$4&"_"&$AG18,データシート1!$A:$BT,MATCH("ab_"&AK$2,データシート1!$A$1:$BT$1,0),0) -> 6,302 | AL18: =VLOOKUP(年度マスタ!$K$4&"_"&$AG18,データシート1!$A:$BT,MATCH("ab_"&AL$2,データシート1!$A$1:$BT$1,0),0) -> 8,553 | AM18: =VLOOKUP(年度マスタ!$K$4&"_"&$AG18,データシート1!$A:$BT,MATCH("ab_"&AM$2,データシート1!$A$1:$BT$1,0),0) -> 13,875 | AN18: =VLOOKUP(年度マスタ!$K$4&"_"&$AG18,データシート1!$A:$BT,MATCH("ab_"&AN$2,データシート1!$A$1:$BT$1,0),0) -> 3,981 | AO18: =VLOOKUP(年度マスタ!$K$4&"_"&$AG18,データシート1!$A:$BT,MATCH("ab_"&AO$2,データシート1!$A$1:$BT$1,0),0) -> 20,940 | AP18: =VLOOKUP(年度マスタ!$K$4&"_"&$AG18,データシート1!$A:$BT,MATCH("ab_"&AP$2,データシート1!$A$1:$BT$1,0),0) -> 2,119 | AQ18: =VLOOKUP(年度マスタ!$K$4&"_"&$AG18,データシート1!$A:$BT,MATCH("ab_"&AQ$2,データシート1!$A$1:$BT$1,0),0) -> 2.344678332
AF19: 2021 | AG19: 令和3年度 | AH19: =VLOOKUP(年度マスタ!$K$4&"_"&$AG19,データシート1!$A:$BT,MATCH("ab_"&$AH$2,データシート1!$A$1:$BT$1,0),0)/10^4 -> 455 | AI19: =VLOOKUP(年度マスタ!$K$4&"_"&$AG19,データシート1!$A:$BT,MATCH("ab_"&AI$2,データシート1!$A$1:$BT$1,0),0) -> 645 | AJ19: =VLOOKUP(年度マスタ!$K$4&"_"&$AG19,データシート1!$A:$BT,MATCH("ab_"&AJ$2,データシート1!$A$1:$BT$1,0),0) -> 155 | AK19: =VLOOKUP(年度マスタ!$K$4&"_"&$AG19,データシート1!$A:$BT,MATCH("ab_"&AK$2,データシート1!$A$1:$BT$1,0),0) -> 6,302 | AL19: =VLOOKUP(年度マスタ!$K$4&"_"&$AG19,データシート1!$A:$BT,MATCH("ab_"&AL$2,データシート1!$A$1:$BT$1,0),0) -> 8,537 | AM19: =VLOOKUP(年度マスタ!$K$4&"_"&$AG19,データシート1!$A:$BT,MATCH("ab_"&AM$2,データシート1!$A$1:$BT$1,0),0) -> 13,731 | AN19: =VLOOKUP(年度マスタ!$K$4&"_"&$AG19,データシート1!$A:$BT,MATCH("ab_"&AN$2,データシート1!$A$1:$BT$1,0),0) -> 3,915 | AO19: =VLOOKUP(年度マスタ!$K$4&"_"&$AG19,データシート1!$A:$BT,MATCH("ab_"&AO$2,データシート1!$A$1:$BT$1,0),0) -> 20,570 | AP19: =VLOOKUP(年度マスタ!$K$4&"_"&$AG19,データシート1!$A:$BT,MATCH("ab_"&AP$2,データシート1!$A$1:$BT$1,0),0) -> 2,036 | AQ19: =VLOOKUP(年度マスタ!$K$4&"_"&$AG19,データシート1!$A:$BT,MATCH("ab_"&AQ$2,データシート1!$A$1:$BT$1,0),0) -> 2.377547953
D20: 業務その他部門 - 従業者数 | L20: 家庭部門 - 世帯数 | T20: 運輸部門（自動車）- 自動車保有台数 | AF20: 2022 | AG20: 令和4年度 | AH20: =VLOOKUP(年度マスタ!$K$4&"_"&$AG20,データシート1!$A:$BT,MATCH("ab_"&$AH$2,データシート1!$A$1:$BT$1,0),0)/10^4 -> 469 | AI20: =VLOOKUP(年度マスタ!$K$4&"_"&$AG20,データシート1!$A:$BT,MATCH("ab_"&AI$2,データシート1!$A$1:$BT$1,0),0) -> 645 | AJ20: =VLOOKUP(年度マスタ!$K$4&"_"&$AG20,データシート1!$A:$BT,MATCH("ab_"&AJ$2,データシート1!$A$1:$BT$1,0),0) -> 155 | AK20: =VLOOKUP(年度マスタ!$K$4&"_"&$AG20,データシート1!$A:$BT,MATCH("ab_"&AK$2,データシート1!$A$1:$BT$1,0),0) -> 6,302 | AL20: =VLOOKUP(年度マスタ!$K$4&"_"&$AG20,データシート1!$A:$BT,MATCH("ab_"&AL$2,データシート1!$A$1:$BT$1,0),0) -> 8,484 | AM20: =VLOOKUP(年度マスタ!$K$4&"_"&$AG20,データシート1!$A:$BT,MATCH("ab_"&AM$2,データシート1!$A$1:$BT$1,0),0) -> 13,660 | AN20: =VLOOKUP(年度マスタ!$K$4&"_"&$AG20,データシート1!$A:$BT,MATCH("ab_"&AN$2,データシート1!$A$1:$BT$1,0),0) -> 3,884 | AO20: =VLOOKUP(年度マスタ!$K$4&"_"&$AG20,データシート1!$A:$BT,MATCH("ab_"&AO$2,データシート1!$A$1:$BT$1,0),0) -> 20,166 | AP20: =VLOOKUP(年度マスタ!$K$4&"_"&$AG20,データシート1!$A:$BT,MATCH("ab_"&AP$2,データシート1!$A$1:$BT$1,0),0) -> 2,280 | AQ20: =VLOOKUP(年度マスタ!$K$4&"_"&$AG20,データシート1!$A:$BT,MATCH("ab_"&AQ$2,データシート1!$A$1:$BT$1,0),0) -> 1.582309946
D21: =AK6 -> ［人］ | L21: =AL6 -> ［世帯］ | T21: =AM6 -> ［台］
D34: 運輸部門（鉄道）- 人口 | L34: 運輸部門（船舶）- 入港船舶総トン数 | T34: 廃棄物分野（一般廃棄物） - CO2排出量
D35: =AO6 -> ［人］ | L35: =AP6 -> ［トン］ | T35: [千t-CO2]
B50: 部門・分野別活動量の推移で示す各指標は、部門・分野別CO2排出量の推計に用いた按分指標です。それぞれの指標の経年変化を分析することで、CO2排出量の要因となる活動量がどのように増減しているかを把握することができます。 各指標の引用元は次のとおりです。製造品出荷額等（製造業）：令和元年度までは工業統計調査・令和2年度は経済センサス（活動調査）・令和3年度以降は経済構造実態調査， 従業者数（建設業・鉱業、農林水産業、業務その他部門）：令和元年度までは経済センサス（基礎調査）・令和2年度以降は経済センサス（活動調査）， 世帯数（家庭部門）：住民基本台帳に基づく人口、人口動態及び世帯数調査， 自動車保有台数（運輸部門）：一般財団法人自動車検査登録情報協会「市区町村別自動車保有車両数」及び一般社団法人全国軽自動車協会連合会「市区町村別軽自動車車両数」， 人口（鉄道）：住民基本台帳に基づく人口、人口動態及び世帯数調査， 入港船舶総トン数（船舶）：港湾統計年報 なお、従業者数は経済センサス（基礎調査）を使用し、「平成20年度」、「平成21年度～平成25年度」、「平成26年度～令和元年度」をそれぞれ同じ統計から集計（廃置分合等により数値が同値でない場合もあります）していましたが、令和3年経済センサスからは活動調査で把握されることとなり、令和2年度以降の従業者数は経済センサス（活動調査）から集計しています。廃棄物分野は按分ではなく一般廃棄物処理実態調査結果の焼却施設ごとの年間処理量等から推計しているため、推計したCO2排出量の推移を掲載しています。

Sheet ③特定事業所の現状把握
B2: 自治体排出量カルテ③ 特定事業所の温室効果ガス排出量の現状把握 | AP2: =年度マスタ!J4 -> 羽咋市
B3: 1 地方公共団体の特定事業所排出量 | AB3: 2 地方公共団体の区域のCO2排出量との比較
AV4: データ（特定事業所件数） | AW4: データ（特定事業所排出量）
AV5: bb | AW5: ba
AV6: _ene | AW6: _ene
AV7: B.SHKデータ | AW7: B.SHKデータ
AV8: =年度マスタ!K6 -> 令和3年度 | AW8: =年度マスタ!K6 -> 令和3年度
AV9: =年度マスタ!J6 -> 2021 | AW9: =年度マスタ!J6 -> 2021
AV11: 円グラフの作成
AV12: 部門別
AW13: 産業部門 | AY13: =SUM(AX14:AX16) -> 40 | BE13: =年度マスタ!K4 -> 17207 | BF13: =年度マスタ!K4 -> 17207 | BG13: =年度マスタ!K4 -> 17207 | BH13: 00 | BI13: 00 | BJ13: 00 | BK13: =年度マスタ!K4 -> 17207
AV14: 製造業 | AW14: 製造業 | AX14: =P23 -> 40 | BE14: =AP2 -> 羽咋市 | BF14: =AP2 -> 羽咋市 | BG14: =AP2 -> 羽咋市 | BH14: 全国 | BI14: 全国 | BJ14: 全国 | BK14: =AP2 -> 羽咋市
AV15: 建設業・鉱業 | AW15: 建設業・鉱業 | AX15: 0 | BA15: 参照用 | BB15: 大分類 | BC15: 中分類 | BD15: グラフ表示用 | BE15: 事業所数 | BF15: 特定事業所排出量 | BG15: 1事業所当たり | BH15: 事業所数 | BI15: 特定事業所排出量 | BJ15: 1事業所当たり | BK15: 全国平均との比較
AV16: 農林水産業 | AW16: 農林水産業 | AX16: 0 | BA16: 14 | BB16: エネルギー多消費業種 （エネルギー転換部門を除く） | BC16: 14：パルプ・紙・紙加工品製造業 | BD16: =BC16&"(N="&BE16&")" -> 14：パルプ・紙・紙加工品製造業(N=0) | BE16: =VLOOKUP(BE$13&"_"&$AV$8,データシート2!$A:$SI,MATCH($AV$5&"_"&$BA16&$AV$6,データシート2!$A$1:$SI$1,0),0) -> 0 | BF16: =VLOOKUP(BF$13&"_"&$AW$8,データシート2!$A:$SI,MATCH($AW$5&"_"&$BA16&$AW$6,データシート2!$A$1:$SI$1,0),0) -> 0 | BG16: =BF16/BE16 ->  | BH16: =VLOOKUP(BH$13&"_"&$AV$8,データシート2!$A:$SI,MATCH($AV$5&"_"&$BA16&$AV$6,データシート2!$A$1:$SI$1,0),0) -> 390 | BI16: =VLOOKUP(BI$13&"_"&$AW$8,データシート2!$A:$SI,MATCH($AW$5&"_"&$BA16&$AW$6,データシート2!$A$1:$SI$1,0),0) -> 23,128 | BJ16: =BI16/BH16 -> 59 | BK16: =BG16/BJ16 -> 
AW17: 業務その他部門 | AX17: =P26 -> 0 | AY17: =AX17 -> 0 | BA17: 16 | BC17: 16：化学工業 | BD17: =BC17&"(N="&BE17&")" -> 16：化学工業(N=0) | BE17: =VLOOKUP(BE$13&"_"&$AV$8,データシート2!$A:$SI,MATCH($AV$5&"_"&$BA17&$AV$6,データシート2!$A$1:$SI$1,0),0) -> 0 | BF17: =VLOOKUP(BF$13&"_"&$AW$8,データシート2!$A:$SI,MATCH($AW$5&"_"&$BA17&$AW$6,データシート2!$A$1:$SI$1,0),0) -> 0 | BG17: =BF17/BE17 ->  | BH17: =VLOOKUP(BH$13&"_"&$AV$8,データシート2!$A:$SI,MATCH($AV$5&"_"&$BA17&$AV$6,データシート2!$A$1:$SI$1,0),0) -> 1,191 | BI17: =VLOOKUP(BI$13&"_"&$AW$8,データシート2!$A:$SI,MATCH($AW$5&"_"&$BA17&$AW$6,データシート2!$A$1:$SI$1,0),0) -> 68,902 | BJ17: =BI17/BH17 -> 58 | BK17: =BG17/BJ17 -> 
AW18: エネルギー転換部門 | AX18: 0 | AY18: =AX18 -> 0 | BA18: 17 | BC18: 17：石油製品・石炭製品製造業 | BD18: 17：石油製品・石炭製品製造業(N=0) | BE18: =VLOOKUP(BE$13&"_"&$AV$8,データシート2!$A:$SI,MATCH($AV$5&"_"&$BA18&$AV$6,データシート2!$A$1:$SI$1,0),0) -> 0 | BF18: =VLOOKUP(BF$13&"_"&$AW$8,データシート2!$A:$SI,MATCH($AW$5&"_"&$BA18&$AW$6,データシート2!$A$1:$SI$1,0),0) -> 0 | BH18: =VLOOKUP(BH$13&"_"&$AV$8,データシート2!$A:$SI,MATCH($AV$5&"_"&$BA18&$AV$6,データシート2!$A$1:$SI$1,0),0) -> 98 | BI18: =VLOOKUP(BI$13&"_"&$AW$8,データシート2!$A:$SI,MATCH($AW$5&"_"&$BA18&$AW$6,データシート2!$A$1:$SI$1,0),0) -> 685 | BJ18: 7
P19: ［千t-CO2］ | AW19: 分類不能 | AX19: =P28 -> 0 | AY19: =AX19 -> 0 | BA19: 21 | BC19: 21：窯業・土石製品製造業 | BD19: 21：窯業・土石製品製造業(N=0) | BE19: =VLOOKUP(BE$13&"_"&$AV$8,データシート2!$A:$SI,MATCH($AV$5&"_"&$BA19&$AV$6,データシート2!$A$1:$SI$1,0),0) -> 0 | BF19: =VLOOKUP(BF$13&"_"&$AW$8,データシート2!$A:$SI,MATCH($AW$5&"_"&$BA19&$AW$6,データシート2!$A$1:$SI$1,0),0) -> 0 | BH19: =VLOOKUP(BH$13&"_"&$AV$8,データシート2!$A:$SI,MATCH($AV$5&"_"&$BA19&$AV$6,データシート2!$A$1:$SI$1,0),0) -> 465 | BI19: =VLOOKUP(BI$13&"_"&$AW$8,データシート2!$A:$SI,MATCH($AW$5&"_"&$BA19&$AW$6,データシート2!$A$1:$SI$1,0),0) -> 53,491 | BJ19: 115
C20: 部門 | F20: 平成23年度 | G20: 平成24年度 | H20: 平成25年度 | I20: 平成26年度 | J20: 平成27年度 | K20: 平成28年度 | L20: 平成29年度 | M20: 平成30年度 | N20: 令和元年度 | O20: 令和2年度 | P20: 令和3年度 | BA20: 22 | BC20: 22：鉄鋼業 | BD20: 22：鉄鋼業(N=4) | BE20: =VLOOKUP(BE$13&"_"&$AV$8,データシート2!$A:$SI,MATCH($AV$5&"_"&$BA20&$AV$6,データシート2!$A$1:$SI$1,0),0) -> 4 | BF20: =VLOOKUP(BF$13&"_"&$AW$8,データシート2!$A:$SI,MATCH($AW$5&"_"&$BA20&$AW$6,データシート2!$A$1:$SI$1,0),0) -> 29.552 | BG20: 7.388 | BH20: =VLOOKUP(BH$13&"_"&$AV$8,データシート2!$A:$SI,MATCH($AV$5&"_"&$BA20&$AV$6,データシート2!$A$1:$SI$1,0),0) -> 475 | BI20: =VLOOKUP(BI$13&"_"&$AW$8,データシート2!$A:$SI,MATCH($AW$5&"_"&$BA20&$AW$6,データシート2!$A$1:$SI$1,0),0) -> 171,964 | BJ20: 362 | BK20: 2%
C21: 合計 | F21: =SUM(F22,F26,F27,F28) -> 38.357 | G21: =SUM(G22,G26,G27,G28) -> 51.168 | H21: 53.259 | I21: 49.141 | J21: 51.727 | K21: 52.967 | L21: 55.203 | M21: 46.328 | N21: 41.951 | O21: 31.822 | P21: =SUM(P22,P26,P27,P28) -> 40.076 | AV21: ガス種別 | BA21: 9 | BB21: エネルギー多消費業種以外 （エネルギー転換部門を除く） | BC21: 9：食料品製造業 | BD21: 9：食料品製造業(N=0) | BE21: =VLOOKUP(BE$13&"_"&$AV$8,データシート2!$A:$SI,MATCH($AV$5&"_"&$BA21&$AV$6,データシート2!$A$1:$SI$1,0),0) -> 0 | BF21: =VLOOKUP(BF$13&"_"&$AW$8,データシート2!$A:$SI,MATCH($AW$5&"_"&$BA21&$AW$6,データシート2!$A$1:$SI$1,0),0) -> 0 | BH21: =VLOOKUP(BH$13&"_"&$AV$8,データシート2!$A:$SI,MATCH($AV$5&"_"&$BA21&$AV$6,データシート2!$A$1:$SI$1,0),0) -> 1,407 | BI21: =VLOOKUP(BI$13&"_"&$AW$8,データシート2!$A:$SI,MATCH($AW$5&"_"&$BA21&$AW$6,データシート2!$A$1:$SI$1,0),0) -> 12,164 | BJ21: 9
D22: 産業部門 | F22: =SUM(F23:F25) -> 34.98 | G22: =SUM(G23:G25) -> 47.386 | H22: 49.465 | I22: 49.141 | J22: 51.727 | K22: 52.967 | L22: 55.203 | M22: 46.328 | N22: 41.951 | O22: 31.822 | P22: 40.076 | AC22: 区域のエネルギー起源CO2排出量 | AP22: ［千t-CO2］ | AV22: =AW22 -> エネルギー起源CO2 | AW22: =D56 -> エネルギー起源CO2 | AX22: =P56 -> 40 | AY22: =AX22 -> 40 | BA22: 10 | BC22: 10：飲料・たばこ・飼料製造業 | BD22: 10：飲料・たばこ・飼料製造業(N=0) | BE22: =VLOOKUP(BE$13&"_"&$AV$8,データシート2!$A:$SI,MATCH($AV$5&"_"&$BA22&$AV$6,データシート2!$A$1:$SI$1,0),0) -> 0 | BF22: =VLOOKUP(BF$13&"_"&$AW$8,データシート2!$A:$SI,MATCH($AW$5&"_"&$BA22&$AW$6,データシート2!$A$1:$SI$1,0),0) -> 0 | BH22: =VLOOKUP(BH$13&"_"&$AV$8,データシート2!$A:$SI,MATCH($AV$5&"_"&$BA22&$AV$6,データシート2!$A$1:$SI$1,0),0) -> 322 | BI22: =VLOOKUP(BI$13&"_"&$AW$8,データシート2!$A:$SI,MATCH($AW$5&"_"&$BA22&$AW$6,データシート2!$A$1:$SI$1,0),0) -> 3,405 | BJ22: 11
E23: 製造業 | F23: =IFERROR(VLOOKUP(年度マスタ!$K$4&"_"&F$20,データシート1!$A:$BU,MATCH("ba_"&$E23,データシート1!$A$1:$BU$1,0),0),0) -> 34.98 | G23: =IFERROR(VLOOKUP(年度マスタ!$K$4&"_"&G$20,データシート1!$A:$BU,MATCH("ba_"&$E23,データシート1!$A$1:$BU$1,0),0),0) -> 47.386 | H23: =IFERROR(VLOOKUP(年度マスタ!$K$4&"_"&H$20,データシート1!$A:$BU,MATCH("ba_"&$E23,データシート1!$A$1:$BU$1,0),0),0) -> 49.465 | I23: =IFERROR(VLOOKUP(年度マスタ!$K$4&"_"&I$20,データシート1!$A:$BU,MATCH("ba_"&$E23,データシート1!$A$1:$BU$1,0),0),0) -> 49.141 | J23: =IFERROR(VLOOKUP(年度マスタ!$K$4&"_"&J$20,データシート1!$A:$BU,MATCH("ba_"&$E23,データシート1!$A$1:$BU$1,0),0),0) -> 51.727 | K23: =IFERROR(VLOOKUP(年度マスタ!$K$4&"_"&K$20,データシート1!$A:$BU,MATCH("ba_"&$E23,データシート1!$A$1:$BU$1,0),0),0) -> 52.967 | L23: =IFERROR(VLOOKUP(年度マスタ!$K$4&"_"&L$20,データシート1!$A:$BU,MATCH("ba_"&$E23,データシート1!$A$1:$BU$1,0),0),0) -> 55.203 | M23: =IFERROR(VLOOKUP(年度マスタ!$K$4&"_"&M$20,データシート1!$A:$BU,MATCH("ba_"&$E23,データシート1!$A$1:$BU$1,0),0),0) -> 46.328 | N23: =IFERROR(VLOOKUP(年度マスタ!$K$4&"_"&N$20,データシート1!$A:$BU,MATCH("ba_"&$E23,データシート1!$A$1:$BU$1,0),0),0) -> 41.951 | O23: =IFERROR(VLOOKUP(年度マスタ!$K$4&"_"&O$20,データシート1!$A:$BU,MATCH("ba_"&$E23,データシート1!$A$1:$BU$1,0),0),0) -> 31.822 | P23: =IFERROR(VLOOKUP(年度マスタ!$K$4&"_"&P$20,データシート1!$A:$BU,MATCH("ba_"&$E23,データシート1!$A$1:$BU$1,0),0),0) -> 40.076 | AC23: 部門 | AF23: 平成23年度 | AG23: 平成24年度 | AH23: 平成25年度 | AI23: 平成26年度 | AJ23: 平成27年度 | AK23: 平成28年度 | AL23: 平成29年度 | AM23: 平成30年度 | AN23: 令和元年度 | AO23: 令和2年度 | AP23: 令和3年度 | AV23: =AW23 -> 非エネルギー起源CO2 | AW23: =D57 -> 非エネルギー起源CO2 | AY23: =P57 -> 0 | BA23: 11 | BC23: 11：繊維工業 | BD23: =BC23&"(N="&BE23&")" -> 11：繊維工業(N=1) | BE23: =VLOOKUP(BE$13&"_"&$AV$8,データシート2!$A:$SI,MATCH($AV$5&"_"&$BA23&$AV$6,データシート2!$A$1:$SI$1,0),0) -> 1 | BF23: =VLOOKUP(BF$13&"_"&$AW$8,データシート2!$A:$SI,MATCH($AW$5&"_"&$BA23&$AW$6,データシート2!$A$1:$SI$1,0),0) -> 6.087 | BG23: =BF23/BE23 -> 6.087 | BH23: =VLOOKUP(BH$13&"_"&$AV$8,データシート2!$A:$SI,MATCH($AV$5&"_"&$BA23&$AV$6,データシート2!$A$1:$SI$1,0),0) -> 230 | BI23: =VLOOKUP(BI$13&"_"&$AW$8,データシート2!$A:$SI,MATCH($AW$5&"_"&$BA23&$AW$6,データシート2!$A$1:$SI$1,0),0) -> 4,563 | BJ23: =BI23/BH23 -> 20 | BK23: =BG23/BJ23 -> 31%
E24: 建設業・鉱業 | F24: =IFERROR(VLOOKUP(年度マスタ!$K$4&"_"&F$20,データシート1!$A:$BU,MATCH("ba_"&$E24,データシート1!$A$1:$BU$1,0),0),0) -> 0 | G24: =IFERROR(VLOOKUP(年度マスタ!$K$4&"_"&G$20,データシート1!$A:$BU,MATCH("ba_"&$E24,データシート1!$A$1:$BU$1,0),0),0) -> 0 | H24: =IFERROR(VLOOKUP(年度マスタ!$K$4&"_"&H$20,データシート1!$A:$BU,MATCH("ba_"&$E24,データシート1!$A$1:$BU$1,0),0),0) -> 0 | I24: =IFERROR(VLOOKUP(年度マスタ!$K$4&"_"&I$20,データシート1!$A:$BU,MATCH("ba_"&$E24,データシート1!$A$1:$BU$1,0),0),0) -> 0 | J24: =IFERROR(VLOOKUP(年度マスタ!$K$4&"_"&J$20,データシート1!$A:$BU,MATCH("ba_"&$E24,データシート1!$A$1:$BU$1,0),0),0) -> 0 | K24: =IFERROR(VLOOKUP(年度マスタ!$K$4&"_"&K$20,データシート1!$A:$BU,MATCH("ba_"&$E24,データシート1!$A$1:$BU$1,0),0),0) -> 0 | L24: =IFERROR(VLOOKUP(年度マスタ!$K$4&"_"&L$20,データシート1!$A:$BU,MATCH("ba_"&$E24,データシート1!$A$1:$BU$1,0),0),0) -> 0 | M24: =IFERROR(VLOOKUP(年度マスタ!$K$4&"_"&M$20,データシート1!$A:$BU,MATCH("ba_"&$E24,データシート1!$A$1:$BU$1,0),0),0) -> 0 | N24: =IFERROR(VLOOKUP(年度マスタ!$K$4&"_"&N$20,データシート1!$A:$BU,MATCH("ba_"&$E24,データシート1!$A$1:$BU$1,0),0),0) -> 0 | O24: =IFERROR(VLOOKUP(年度マスタ!$K$4&"_"&O$20,データシート1!$A:$BU,MATCH("ba_"&$E24,データシート1!$A$1:$BU$1,0),0),0) -> 0 | P24: =IFERROR(VLOOKUP(年度マスタ!$K$4&"_"&P$20,データシート1!$A:$BU,MATCH("ba_"&$E24,データシート1!$A$1:$BU$1,0),0),0) -> 0 | AC24: 産業・業務部門の合計 | AF24: =AF25+AF29 -> 82.77360765 | AG24: =AG25+AG29 -> 82.87262712 | AH24: 82.07623958 | AI24: 73.98486783 | AJ24: 77.24666521 | AK24: 74.73374238 | AL24: 67.29710715 | AM24: 63.63429735 | AN24: 58.44125224 | AO24: 58.8327747 | AP24: 69.65992393 | AV24: =AW24 -> 廃棄物原燃料 | AW24: =E58 -> 廃棄物原燃料 | AX24: =P58 -> 0 | BA24: 12 | BC24: 12：木材・木製品製造業 | BD24: 12：木材・木製品製造業(N=0) | BE24: =VLOOKUP(BE$13&"_"&$AV$8,データシート2!$A:$SI,MATCH($AV$5&"_"&$BA24&$AV$6,データシート2!$A$1:$SI$1,0),0) -> 0 | BF24: =VLOOKUP(BF$13&"_"&$AW$8,データシート2!$A:$SI,MATCH($AW$5&"_"&$BA24&$AW$6,データシート2!$A$1:$SI$1,0),0) -> 0 | BH24: =VLOOKUP(BH$13&"_"&$AV$8,データシート2!$A:$SI,MATCH($AV$5&"_"&$BA24&$AV$6,データシート2!$A$1:$SI$1,0),0) -> 62 | BI24: =VLOOKUP(BI$13&"_"&$AW$8,データシート2!$A:$SI,MATCH($AW$5&"_"&$BA24&$AW$6,データシート2!$A$1:$SI$1,0),0) -> 542 | BJ24: 9
E25: 農林水産業 | F25: =IFERROR(VLOOKUP(年度マスタ!$K$4&"_"&F$20,データシート1!$A:$BU,MATCH("ba_"&$E25,データシート1!$A$1:$BU$1,0),0),0) -> 0 | G25: =IFERROR(VLOOKUP(年度マスタ!$K$4&"_"&G$20,データシート1!$A:$BU,MATCH("ba_"&$E25,データシート1!$A$1:$BU$1,0),0),0) -> 0 | H25: =IFERROR(VLOOKUP(年度マスタ!$K$4&"_"&H$20,データシート1!$A:$BU,MATCH("ba_"&$E25,データシート1!$A$1:$BU$1,0),0),0) -> 0 | I25: =IFERROR(VLOOKUP(年度マスタ!$K$4&"_"&I$20,データシート1!$A:$BU,MATCH("ba_"&$E25,データシート1!$A$1:$BU$1,0),0),0) -> 0 | J25: =IFERROR(VLOOKUP(年度マスタ!$K$4&"_"&J$20,データシート1!$A:$BU,MATCH("ba_"&$E25,データシート1!$A$1:$BU$1,0),0),0) -> 0 | K25: =IFERROR(VLOOKUP(年度マスタ!$K$4&"_"&K$20,データシート1!$A:$BU,MATCH("ba_"&$E25,データシート1!$A$1:$BU$1,0),0),0) -> 0 | L25: =IFERROR(VLOOKUP(年度マスタ!$K$4&"_"&L$20,データシート1!$A:$BU,MATCH("ba_"&$E25,データシート1!$A$1:$BU$1,0),0),0) -> 0 | M25: =IFERROR(VLOOKUP(年度マスタ!$K$4&"_"&M$20,データシート1!$A:$BU,MATCH("ba_"&$E25,データシート1!$A$1:$BU$1,0),0),0) -> 0 | N25: =IFERROR(VLOOKUP(年度マスタ!$K$4&"_"&N$20,データシート1!$A:$BU,MATCH("ba_"&$E25,データシート1!$A$1:$BU$1,0),0),0) -> 0 | O25: =IFERROR(VLOOKUP(年度マスタ!$K$4&"_"&O$20,データシート1!$A:$BU,MATCH("ba_"&$E25,データシート1!$A$1:$BU$1,0),0),0) -> 0 | P25: =IFERROR(VLOOKUP(年度マスタ!$K$4&"_"&P$20,データシート1!$A:$BU,MATCH("ba_"&$E25,データシート1!$A$1:$BU$1,0),0),0) -> 0 | AD25: 産業部門 | AF25: =①CO2排出量の現状把握!Z35 -> 41.19325134 | AG25: =①CO2排出量の現状把握!AA35 -> 41.19322394 | AH25: =①CO2排出量の現状把握!AB35 -> 39.79824614 | AI25: =①CO2排出量の現状把握!AC35 -> 37.10132642 | AJ25: =①CO2排出量の現状把握!AD35 -> 41.31363335 | AK25: =①CO2排出量の現状把握!AE35 -> 40.9318464 | AL25: =①CO2排出量の現状把握!AF35 -> 37.51286478 | AM25: =①CO2排出量の現状把握!AG35 -> 35.25175749 | AN25: =①CO2排出量の現状把握!AH35 -> 31.8659891 | AO25: =①CO2排出量の現状把握!AI35 -> 34.39051281 | AP25: =①CO2排出量の現状把握!AJ35 -> 43.88704961 | AV25: =AW25 -> 廃棄物原燃料以外 | AW25: =E59 -> 廃棄物原燃料以外 | AX25: 0 | BA25: 13 | BC25: 13：家具・装備品製造業 | BD25: 13：家具・装備品製造業(N=0) | BE25: =VLOOKUP(BE$13&"_"&$AV$8,データシート2!$A:$SI,MATCH($AV$5&"_"&$BA25&$AV$6,データシート2!$A$1:$SI$1,0),0) -> 0 | BF25: =VLOOKUP(BF$13&"_"&$AW$8,データシート2!$A:$SI,MATCH($AW$5&"_"&$BA25&$AW$6,データシート2!$A$1:$SI$1,0),0) -> 0 | BH25: =VLOOKUP(BH$13&"_"&$AV$8,データシート2!$A:$SI,MATCH($AV$5&"_"&$BA25&$AV$6,データシート2!$A$1:$SI$1,0),0) -> 24 | BI25: =VLOOKUP(BI$13&"_"&$AW$8,データシート2!$A:$SI,MATCH($AW$5&"_"&$BA25&$AW$6,データシート2!$A$1:$SI$1,0),0) -> 112 | BJ25: 5
D26: 業務その他部門 | F26: =IFERROR(VLOOKUP(年度マスタ!$K$4&"_"&F$20,データシート1!$A:$BU,MATCH("ba_"&$D26,データシート1!$A$1:$BU$1,0),0),0) -> 3.377 | G26: =IFERROR(VLOOKUP(年度マスタ!$K$4&"_"&G$20,データシート1!$A:$BU,MATCH("ba_"&$D26,データシート1!$A$1:$BU$1,0),0),0) -> 3.782 | H26: =IFERROR(VLOOKUP(年度マスタ!$K$4&"_"&H$20,データシート1!$A:$BU,MATCH("ba_"&$D26,データシート1!$A$1:$BU$1,0),0),0) -> 3.794 | I26: =IFERROR(VLOOKUP(年度マスタ!$K$4&"_"&I$20,データシート1!$A:$BU,MATCH("ba_"&$D26,データシート1!$A$1:$BU$1,0),0),0) -> 0 | J26: =IFERROR(VLOOKUP(年度マスタ!$K$4&"_"&J$20,データシート1!$A:$BU,MATCH("ba_"&$D26,データシート1!$A$1:$BU$1,0),0),0) -> 0 | K26: =IFERROR(VLOOKUP(年度マスタ!$K$4&"_"&K$20,データシート1!$A:$BU,MATCH("ba_"&$D26,データシート1!$A$1:$BU$1,0),0),0) -> 0 | L26: =IFERROR(VLOOKUP(年度マスタ!$K$4&"_"&L$20,データシート1!$A:$BU,MATCH("ba_"&$D26,データシート1!$A$1:$BU$1,0),0),0) -> 0 | M26: =IFERROR(VLOOKUP(年度マスタ!$K$4&"_"&M$20,データシート1!$A:$BU,MATCH("ba_"&$D26,データシート1!$A$1:$BU$1,0),0),0) -> 0 | N26: =IFERROR(VLOOKUP(年度マスタ!$K$4&"_"&N$20,データシート1!$A:$BU,MATCH("ba_"&$D26,データシート1!$A$1:$BU$1,0),0),0) -> 0 | O26: =IFERROR(VLOOKUP(年度マスタ!$K$4&"_"&O$20,データシート1!$A:$BU,MATCH("ba_"&$D26,データシート1!$A$1:$BU$1,0),0),0) -> 0 | P26: =IFERROR(VLOOKUP(年度マスタ!$K$4&"_"&P$20,データシート1!$A:$BU,MATCH("ba_"&$D26,データシート1!$A$1:$BU$1,0),0),0) -> 0 | AE26: 製造業 | AF26: =①CO2排出量の現状把握!Z36 -> 29.64114977 | AG26: =①CO2排出量の現状把握!AA36 -> 30.22409982 | AH26: =①CO2排出量の現状把握!AB36 -> 30.13954757 | AI26: =①CO2排出量の現状把握!AC36 -> 28.19885252 | AJ26: =①CO2排出量の現状把握!AD36 -> 31.82510297 | AK26: =①CO2排出量の現状把握!AE36 -> 31.03642115 | AL26: =①CO2排出量の現状把握!AF36 -> 28.02053892 | AM26: =①CO2排出量の現状把握!AG36 -> 26.51574048 | AN26: =①CO2排出量の現状把握!AH36 -> 23.23062958 | AO26: =①CO2排出量の現状把握!AI36 -> 24.00861295 | AP26: =①CO2排出量の現状把握!AJ36 -> 33.54317091 | AV26: =AW26 -> CH4 | AW26: =D60 -> CH4 | AX26: 0 | AY26: =AX26 -> 0 | BA26: 15 | BC26: 15：印刷・同関連業 | BD26: 15：印刷・同関連業(N=0) | BE26: =VLOOKUP(BE$13&"_"&$AV$8,データシート2!$A:$SI,MATCH($AV$5&"_"&$BA26&$AV$6,データシート2!$A$1:$SI$1,0),0) -> 0 | BF26: =VLOOKUP(BF$13&"_"&$AW$8,データシート2!$A:$SI,MATCH($AW$5&"_"&$BA26&$AW$6,データシート2!$A$1:$SI$1,0),0) -> 0 | BH26: =VLOOKUP(BH$13&"_"&$AV$8,データシート2!$A:$SI,MATCH($AV$5&"_"&$BA26&$AV$6,データシート2!$A$1:$SI$1,0),0) -> 189 | BI26: =VLOOKUP(BI$13&"_"&$AW$8,データシート2!$A:$SI,MATCH($AW$5&"_"&$BA26&$AW$6,データシート2!$A$1:$SI$1,0),0) -> 1,412 | BJ26: 7
D27: エネルギー転換部門 | F27: =IFERROR(VLOOKUP(年度マスタ!$K$4&"_"&F$20,データシート1!$A:$BU,MATCH("ba_"&$D27,データシート1!$A$1:$BU$1,0),0),0) -> 0 | G27: =IFERROR(VLOOKUP(年度マスタ!$K$4&"_"&G$20,データシート1!$A:$BU,MATCH("ba_"&$D27,データシート1!$A$1:$BU$1,0),0),0) -> 0 | H27: =IFERROR(VLOOKUP(年度マスタ!$K$4&"_"&H$20,データシート1!$A:$BU,MATCH("ba_"&$D27,データシート1!$A$1:$BU$1,0),0),0) -> 0 | I27: =IFERROR(VLOOKUP(年度マスタ!$K$4&"_"&I$20,データシート1!$A:$BU,MATCH("ba_"&$D27,データシート1!$A$1:$BU$1,0),0),0) -> 0 | J27: =IFERROR(VLOOKUP(年度マスタ!$K$4&"_"&J$20,データシート1!$A:$BU,MATCH("ba_"&$D27,データシート1!$A$1:$BU$1,0),0),0) -> 0 | K27: =IFERROR(VLOOKUP(年度マスタ!$K$4&"_"&K$20,データシート1!$A:$BU,MATCH("ba_"&$D27,データシート1!$A$1:$BU$1,0),0),0) -> 0 | L27: =IFERROR(VLOOKUP(年度マスタ!$K$4&"_"&L$20,データシート1!$A:$BU,MATCH("ba_"&$D27,データシート1!$A$1:$BU$1,0),0),0) -> 0 | M27: =IFERROR(VLOOKUP(年度マスタ!$K$4&"_"&M$20,データシート1!$A:$BU,MATCH("ba_"&$D27,データシート1!$A$1:$BU$1,0),0),0) -> 0 | N27: =IFERROR(VLOOKUP(年度マスタ!$K$4&"_"&N$20,データシート1!$A:$BU,MATCH("ba_"&$D27,データシート1!$A$1:$BU$1,0),0),0) -> 0 | O27: =IFERROR(VLOOKUP(年度マスタ!$K$4&"_"&O$20,データシート1!$A:$BU,MATCH("ba_"&$D27,データシート1!$A$1:$BU$1,0),0),0) -> 0 | P27: =IFERROR(VLOOKUP(年度マスタ!$K$4&"_"&P$20,データシート1!$A:$BU,MATCH("ba_"&$D27,データシート1!$A$1:$BU$1,0),0),0) -> 0 | AE27: 建設業・鉱業 | AF27: =①CO2排出量の現状把握!Z37 -> 2.54031808 | AG27: =①CO2排出量の現状把握!AA37 -> 2.300457004 | AH27: =①CO2排出量の現状把握!AB37 -> 1.773320102 | AI27: =①CO2排出量の現状把握!AC37 -> 1.799786292 | AJ27: =①CO2排出量の現状把握!AD37 -> 1.795195559 | AK27: =①CO2排出量の現状把握!AE37 -> 1.799517606 | AL27: =①CO2排出量の現状把握!AF37 -> 1.729564464 | AM27: =①CO2排出量の現状把握!AG37 -> 1.578847363 | AN27: =①CO2排出量の現状把握!AH37 -> 1.42516643 | AO27: =①CO2排出量の現状把握!AI37 -> 1.342444147 | AP27: =①CO2排出量の現状把握!AJ37 -> 1.423027572 | AV27: =AW27 -> N2O | AW27: N2O | AX27: 0 | AY27: =AX27 -> 0 | BA27: 18 | BC27: 18：プラスチック製品製造業 | BD27: 18：プラスチック製品製造業(N=0) | BE27: =VLOOKUP(BE$13&"_"&$AV$8,データシート2!$A:$SI,MATCH($AV$5&"_"&$BA27&$AV$6,データシート2!$A$1:$SI$1,0),0) -> 0 | BF27: =VLOOKUP(BF$13&"_"&$AW$8,データシート2!$A:$SI,MATCH($AW$5&"_"&$BA27&$AW$6,データシート2!$A$1:$SI$1,0),0) -> 0 | BH27: =VLOOKUP(BH$13&"_"&$AV$8,データシート2!$A:$SI,MATCH($AV$5&"_"&$BA27&$AV$6,データシート2!$A$1:$SI$1,0),0) -> 706 | BI27: =VLOOKUP(BI$13&"_"&$AW$8,データシート2!$A:$SI,MATCH($AW$5&"_"&$BA27&$AW$6,データシート2!$A$1:$SI$1,0),0) -> 6,123 | BJ27: 9
D28: 分類不能 | F28: =IFERROR(VLOOKUP(年度マスタ!$K$4&"_"&F$20,データシート1!$A:$BU,MATCH("ba_"&$D28,データシート1!$A$1:$BU$1,0),0),0) -> 0 | G28: =IFERROR(VLOOKUP(年度マスタ!$K$4&"_"&G$20,データシート1!$A:$BU,MATCH("ba_"&$D28,データシート1!$A$1:$BU$1,0),0),0) -> 0 | H28: =IFERROR(VLOOKUP(年度マスタ!$K$4&"_"&H$20,データシート1!$A:$BU,MATCH("ba_"&$D28,データシート1!$A$1:$BU$1,0),0),0) -> 0 | I28: =IFERROR(VLOOKUP(年度マスタ!$K$4&"_"&I$20,データシート1!$A:$BU,MATCH("ba_"&$D28,データシート1!$A$1:$BU$1,0),0),0) -> 0 | J28: =IFERROR(VLOOKUP(年度マスタ!$K$4&"_"&J$20,データシート1!$A:$BU,MATCH("ba_"&$D28,データシート1!$A$1:$BU$1,0),0),0) -> 0 | K28: =IFERROR(VLOOKUP(年度マスタ!$K$4&"_"&K$20,データシート1!$A:$BU,MATCH("ba_"&$D28,データシート1!$A$1:$BU$1,0),0),0) -> 0 | L28: =IFERROR(VLOOKUP(年度マスタ!$K$4&"_"&L$20,データシート1!$A:$BU,MATCH("ba_"&$D28,データシート1!$A$1:$BU$1,0),0),0) -> 0 | M28: =IFERROR(VLOOKUP(年度マスタ!$K$4&"_"&M$20,データシート1!$A:$BU,MATCH("ba_"&$D28,データシート1!$A$1:$BU$1,0),0),0) -> 0 | N28: =IFERROR(VLOOKUP(年度マスタ!$K$4&"_"&N$20,データシート1!$A:$BU,MATCH("ba_"&$D28,データシート1!$A$1:$BU$1,0),0),0) -> 0 | O28: =IFERROR(VLOOKUP(年度マスタ!$K$4&"_"&O$20,データシート1!$A:$BU,MATCH("ba_"&$D28,データシート1!$A$1:$BU$1,0),0),0) -> 0 | P28: =IFERROR(VLOOKUP(年度マスタ!$K$4&"_"&P$20,データシート1!$A:$BU,MATCH("ba_"&$D28,データシート1!$A$1:$BU$1,0),0),0) -> 0 | AE28: 農林水産業 | AF28: =①CO2排出量の現状把握!Z38 -> 9.011783496 | AG28: =①CO2排出量の現状把握!AA38 -> 8.66866712 | AH28: =①CO2排出量の現状把握!AB38 -> 7.885378471 | AI28: =①CO2排出量の現状把握!AC38 -> 7.102687609 | AJ28: =①CO2排出量の現状把握!AD38 -> 7.693334824 | AK28: =①CO2排出量の現状把握!AE38 -> 8.095907647 | AL28: =①CO2排出量の現状把握!AF38 -> 7.762761398 | AM28: =①CO2排出量の現状把握!AG38 -> 7.157169652 | AN28: =①CO2排出量の現状把握!AH38 -> 7.210193086 | AO28: =①CO2排出量の現状把握!AI38 -> 9.039455712 | AP28: =①CO2排出量の現状把握!AJ38 -> 8.920851135 | AV28: HFC | AW28: HFC | AX28: 0 | AY28: 0 | BA28: 19 | BC28: 19：ゴム製品製造業 | BD28: 19：ゴム製品製造業(N=0) | BE28: =VLOOKUP(BE$13&"_"&$AV$8,データシート2!$A:$SI,MATCH($AV$5&"_"&$BA28&$AV$6,データシート2!$A$1:$SI$1,0),0) -> 0 | BF28: =VLOOKUP(BF$13&"_"&$AW$8,データシート2!$A:$SI,MATCH($AW$5&"_"&$BA28&$AW$6,データシート2!$A$1:$SI$1,0),0) -> 0 | BH28: =VLOOKUP(BH$13&"_"&$AV$8,データシート2!$A:$SI,MATCH($AV$5&"_"&$BA28&$AV$6,データシート2!$A$1:$SI$1,0),0) -> 148 | BI28: =VLOOKUP(BI$13&"_"&$AW$8,データシート2!$A:$SI,MATCH($AW$5&"_"&$BA28&$AW$6,データシート2!$A$1:$SI$1,0),0) -> 2,145 | BJ28: 14
AD29: 業務その他部門 | AF29: =①CO2排出量の現状把握!Z39 -> 41.5803563 | AG29: =①CO2排出量の現状把握!AA39 -> 41.67940318 | AH29: =①CO2排出量の現状把握!AB39 -> 42.27799344 | AI29: =①CO2排出量の現状把握!AC39 -> 36.88354141 | AJ29: =①CO2排出量の現状把握!AD39 -> 35.93303186 | AK29: =①CO2排出量の現状把握!AE39 -> 33.80189598 | AL29: =①CO2排出量の現状把握!AF39 -> 29.78424237 | AM29: =①CO2排出量の現状把握!AG39 -> 28.38253986 | AN29: =①CO2排出量の現状把握!AH39 -> 26.57526314 | AO29: =①CO2排出量の現状把握!AI39 -> 24.44226189 | AP29: =①CO2排出量の現状把握!AJ39 -> 25.77287432 | AV29: PFC | AW29: PFC | AX29: 0 | AY29: 0 | BA29: 20 | BC29: 20：なめし革・同製品・毛皮製造業 | BD29: 20：なめし革・同製品・毛皮製造業(N=0) | BE29: =VLOOKUP(BE$13&"_"&$AV$8,データシート2!$A:$SI,MATCH($AV$5&"_"&$BA29&$AV$6,データシート2!$A$1:$SI$1,0),0) -> 0 | BF29: =VLOOKUP(BF$13&"_"&$AW$8,データシート2!$A:$SI,MATCH($AW$5&"_"&$BA29&$AW$6,データシート2!$A$1:$SI$1,0),0) -> 0 | BH29: =VLOOKUP(BH$13&"_"&$AV$8,データシート2!$A:$SI,MATCH($AV$5&"_"&$BA29&$AV$6,データシート2!$A$1:$SI$1,0),0) -> 1 | BI29: =VLOOKUP(BI$13&"_"&$AW$8,データシート2!$A:$SI,MATCH($AW$5&"_"&$BA29&$AW$6,データシート2!$A$1:$SI$1,0),0) -> 6 | BJ29: 6
AC30: 区域のエネルギー起源CO2排出量における特定事業所の温室効果ガス排出量のカバー率 | AV30: SF6 | AW30: SF6 | AX30: 0 | AY30: 0 | BA30: 23 | BC30: 23：非鉄金属製造業 | BD30: 23：非鉄金属製造業(N=0) | BE30: =VLOOKUP(BE$13&"_"&$AV$8,データシート2!$A:$SI,MATCH($AV$5&"_"&$BA30&$AV$6,データシート2!$A$1:$SI$1,0),0) -> 0 | BF30: =VLOOKUP(BF$13&"_"&$AW$8,データシート2!$A:$SI,MATCH($AW$5&"_"&$BA30&$AW$6,データシート2!$A$1:$SI$1,0),0) -> 0 | BH30: =VLOOKUP(BH$13&"_"&$AV$8,データシート2!$A:$SI,MATCH($AV$5&"_"&$BA30&$AV$6,データシート2!$A$1:$SI$1,0),0) -> 325 | BI30: =VLOOKUP(BI$13&"_"&$AW$8,データシート2!$A:$SI,MATCH($AW$5&"_"&$BA30&$AW$6,データシート2!$A$1:$SI$1,0),0) -> 8,872 | BJ30: 27
AC31: 部門 | AF31: 平成23年度 | AG31: 平成24年度 | AH31: 平成25年度 | AI31: 平成26年度 | AJ31: 平成27年度 | AK31: 平成28年度 | AL31: 平成29年度 | AM31: 平成30年度 | AN31: 令和元年度 | AO31: 令和2年度 | AP31: 令和3年度 | AV31: NF3 | AW31: NF3 | AX31: 0 | AY31: 0 | BA31: 24 | BC31: 24：金属製品製造業 | BD31: 24：金属製品製造業(N=0) | BE31: =VLOOKUP(BE$13&"_"&$AV$8,データシート2!$A:$SI,MATCH($AV$5&"_"&$BA31&$AV$6,データシート2!$A$1:$SI$1,0),0) -> 0 | BF31: =VLOOKUP(BF$13&"_"&$AW$8,データシート2!$A:$SI,MATCH($AW$5&"_"&$BA31&$AW$6,データシート2!$A$1:$SI$1,0),0) -> 0 | BH31: =VLOOKUP(BH$13&"_"&$AV$8,データシート2!$A:$SI,MATCH($AV$5&"_"&$BA31&$AV$6,データシート2!$A$1:$SI$1,0),0) -> 435 | BI31: =VLOOKUP(BI$13&"_"&$AW$8,データシート2!$A:$SI,MATCH($AW$5&"_"&$BA31&$AW$6,データシート2!$A$1:$SI$1,0),0) -> 3,684 | BJ31: 8
AC32: 産業・業務部門の合計 | AF32: =IFERROR(IF(SUM(F23:F26)/AF24>1,1,SUM(F23:F26)/AF24),0) -> 46% | AG32: 62% | AH32: 65% | AI32: 66% | AJ32: 67% | AK32: 71% | AL32: 82% | AM32: 73% | AN32: 72% | AO32: 54% | AP32: 58% | BA32: 25 | BC32: 25：はん用機械器具製造業 | BD32: 25：はん用機械器具製造業(N=0) | BE32: =VLOOKUP(BE$13&"_"&$AV$8,データシート2!$A:$SI,MATCH($AV$5&"_"&$BA32&$AV$6,データシート2!$A$1:$SI$1,0),0) -> 0 | BF32: =VLOOKUP(BF$13&"_"&$AW$8,データシート2!$A:$SI,MATCH($AW$5&"_"&$BA32&$AW$6,データシート2!$A$1:$SI$1,0),0) -> 0 | BH32: =VLOOKUP(BH$13&"_"&$AV$8,データシート2!$A:$SI,MATCH($AV$5&"_"&$BA32&$AV$6,データシート2!$A$1:$SI$1,0),0) -> 205 | BI32: =VLOOKUP(BI$13&"_"&$AW$8,データシート2!$A:$SI,MATCH($AW$5&"_"&$BA32&$AW$6,データシート2!$A$1:$SI$1,0),0) -> 3,259 | BJ32: 16
AD33: 産業部門 | AF33: =IFERROR(IF(F22/AF25>1,1,F22/AF25),0) -> 85% | AG33: =IFERROR(IF(G22/AG25>1,1,G22/AG25),0) -> 100% | AH33: 100% | AI33: 100% | AJ33: 100% | AK33: 100% | AL33: 100% | AM33: 100% | AN33: =IFERROR(IF(N22/AN25>1,1,N22/AN25),0) -> 100% | AO33: 93% | AP33: 91% | BA33: 26 | BC33: 26：生産用機械器具製造業 | BD33: 26：生産用機械器具製造業(N=0) | BE33: =VLOOKUP(BE$13&"_"&$AV$8,データシート2!$A:$SI,MATCH($AV$5&"_"&$BA33&$AV$6,データシート2!$A$1:$SI$1,0),0) -> 0 | BF33: =VLOOKUP(BF$13&"_"&$AW$8,データシート2!$A:$SI,MATCH($AW$5&"_"&$BA33&$AW$6,データシート2!$A$1:$SI$1,0),0) -> 0 | BH33: =VLOOKUP(BH$13&"_"&$AV$8,データシート2!$A:$SI,MATCH($AV$5&"_"&$BA33&$AV$6,データシート2!$A$1:$SI$1,0),0) -> 212 | BI33: =VLOOKUP(BI$13&"_"&$AW$8,データシート2!$A:$SI,MATCH($AW$5&"_"&$BA33&$AW$6,データシート2!$A$1:$SI$1,0),0) -> 1,659 | BJ33: 8
AE34: 製造業 | AF34: =IFERROR(IF(F23/AF26>1,1,F23/AF26),0) -> 100% | AG34: =IFERROR(IF(G23/AG26>1,1,G23/AG26),0) -> 100% | AH34: 100% | AI34: 100% | AJ34: 100% | AK34: 100% | AL34: 100% | AM34: 100% | AN34: 100% | AO34: 100% | AP34: 100% | BA34: 27 | BC34: 27：業務用機械器具製造業 | BD34: 27：業務用機械器具製造業(N=0) | BE34: =VLOOKUP(BE$13&"_"&$AV$8,データシート2!$A:$SI,MATCH($AV$5&"_"&$BA34&$AV$6,データシート2!$A$1:$SI$1,0),0) -> 0 | BF34: =VLOOKUP(BF$13&"_"&$AW$8,データシート2!$A:$SI,MATCH($AW$5&"_"&$BA34&$AW$6,データシート2!$A$1:$SI$1,0),0) -> 0 | BH34: =VLOOKUP(BH$13&"_"&$AV$8,データシート2!$A:$SI,MATCH($AV$5&"_"&$BA34&$AV$6,データシート2!$A$1:$SI$1,0),0) -> 114 | BI34: =VLOOKUP(BI$13&"_"&$AW$8,データシート2!$A:$SI,MATCH($AW$5&"_"&$BA34&$AW$6,データシート2!$A$1:$SI$1,0),0) -> 1,183 | BJ34: 10
B35: =D35 -> 0 | AE35: 建設業・鉱業 | AF35: =IFERROR(IF(F24/AF27>1,1,F24/AF27),0) -> 0% | AG35: 0% | AH35: =IFERROR(IF(H24/AH27>1,1,H24/AH27),0) -> 0% | AI35: 0% | AJ35: 0% | AK35: 0% | AL35: 0% | AM35: 0% | AN35: 0% | AO35: 0% | AP35: 0% | BA35: 28 | BC35: 28：電子部品等製造業 | BD35: 28：電子部品等製造業(N=1) | BE35: =VLOOKUP(BE$13&"_"&$AV$8,データシート2!$A:$SI,MATCH($AV$5&"_"&$BA35&$AV$6,データシート2!$A$1:$SI$1,0),0) -> 1 | BF35: =VLOOKUP(BF$13&"_"&$AW$8,データシート2!$A:$SI,MATCH($AW$5&"_"&$BA35&$AW$6,データシート2!$A$1:$SI$1,0),0) -> 4.437 | BG35: 4.437 | BH35: =VLOOKUP(BH$13&"_"&$AV$8,データシート2!$A:$SI,MATCH($AV$5&"_"&$BA35&$AV$6,データシート2!$A$1:$SI$1,0),0) -> 484 | BI35: =VLOOKUP(BI$13&"_"&$AW$8,データシート2!$A:$SI,MATCH($AW$5&"_"&$BA35&$AW$6,データシート2!$A$1:$SI$1,0),0) -> 16,441 | BJ35: 34 | BK35: 13%
B36: 0 | AE36: 農林水産業 | AF36: 0% | AG36: 0% | AH36: 0% | AI36: 0% | AJ36: 0% | AK36: 0% | AL36: 0% | AM36: 0% | AN36: 0% | AO36: 0% | AP36: 0% | BA36: 29 | BC36: 29：電気機械器具製造業 | BD36: 29：電気機械器具製造業(N=0) | BE36: =VLOOKUP(BE$13&"_"&$AV$8,データシート2!$A:$SI,MATCH($AV$5&"_"&$BA36&$AV$6,データシート2!$A$1:$SI$1,0),0) -> 0 | BF36: =VLOOKUP(BF$13&"_"&$AW$8,データシート2!$A:$SI,MATCH($AW$5&"_"&$BA36&$AW$6,データシート2!$A$1:$SI$1,0),0) -> 0 | BH36: =VLOOKUP(BH$13&"_"&$AV$8,データシート2!$A:$SI,MATCH($AV$5&"_"&$BA36&$AV$6,データシート2!$A$1:$SI$1,0),0) -> 316 | BI36: =VLOOKUP(BI$13&"_"&$AW$8,データシート2!$A:$SI,MATCH($AW$5&"_"&$BA36&$AW$6,データシート2!$A$1:$SI$1,0),0) -> 3,825 | BJ36: 12
AD37: 業務その他部門 | AF37: =IFERROR(IF(F26/AF29>1,1,F26/AF29),0) -> 8% | AG37: =IFERROR(IF(G26/AG29>1,1,G26/AG29),0) -> 9% | AH37: 9% | AI37: 0% | AJ37: 0% | AK37: 0% | AL37: 0% | AM37: 0% | AN37: 0% | AO37: 0% | AP37: 0% | BA37: 30 | BC37: 30：情報通信機械器具製造業 | BD37: 30：情報通信機械器具製造業(N=0) | BE37: =VLOOKUP(BE$13&"_"&$AV$8,データシート2!$A:$SI,MATCH($AV$5&"_"&$BA37&$AV$6,データシート2!$A$1:$SI$1,0),0) -> 0 | BF37: =VLOOKUP(BF$13&"_"&$AW$8,データシート2!$A:$SI,MATCH($AW$5&"_"&$BA37&$AW$6,データシート2!$A$1:$SI$1,0),0) -> 0 | BH37: =VLOOKUP(BH$13&"_"&$AV$8,データシート2!$A:$SI,MATCH($AV$5&"_"&$BA37&$AV$6,データシート2!$A$1:$SI$1,0),0) -> 61 | BI37: =VLOOKUP(BI$13&"_"&$AW$8,データシート2!$A:$SI,MATCH($AW$5&"_"&$BA37&$AW$6,データシート2!$A$1:$SI$1,0),0) -> 410 | BJ37: 7
BA38: 31 | BC38: 31：輸送用機械器具製造業 | BD38: 31：輸送用機械器具製造業(N=0) | BE38: =VLOOKUP(BE$13&"_"&$AV$8,データシート2!$A:$SI,MATCH($AV$5&"_"&$BA38&$AV$6,データシート2!$A$1:$SI$1,0),0) -> 0 | BF38: =VLOOKUP(BF$13&"_"&$AW$8,データシート2!$A:$SI,MATCH($AW$5&"_"&$BA38&$AW$6,データシート2!$A$1:$SI$1,0),0) -> 0 | BH38: =VLOOKUP(BH$13&"_"&$AV$8,データシート2!$A:$SI,MATCH($AV$5&"_"&$BA38&$AV$6,データシート2!$A$1:$SI$1,0),0) -> 1,054 | BI38: =VLOOKUP(BI$13&"_"&$AW$8,データシート2!$A:$SI,MATCH($AW$5&"_"&$BA38&$AW$6,データシート2!$A$1:$SI$1,0),0) -> 14,506 | BJ38: 14
BA39: 32 | BC39: 32：その他の製造業 | BD39: 32：その他の製造業(N=0) | BE39: =VLOOKUP(BE$13&"_"&$AV$8,データシート2!$A:$SI,MATCH($AV$5&"_"&$BA39&$AV$6,データシート2!$A$1:$SI$1,0),0) -> 0 | BF39: =VLOOKUP(BF$13&"_"&$AW$8,データシート2!$A:$SI,MATCH($AW$5&"_"&$BA39&$AW$6,データシート2!$A$1:$SI$1,0),0) -> 0 | BH39: =VLOOKUP(BH$13&"_"&$AV$8,データシート2!$A:$SI,MATCH($AV$5&"_"&$BA39&$AV$6,データシート2!$A$1:$SI$1,0),0) -> 78 | BI39: =VLOOKUP(BI$13&"_"&$AW$8,データシート2!$A:$SI,MATCH($AW$5&"_"&$BA39&$AW$6,データシート2!$A$1:$SI$1,0),0) -> 685 | BJ39: 9
BA40: F | BB40: 業務その他部門 | BC40: F：電気・ガス・熱供給・水道業 | BD40: F：電気・ガス・熱供給・水道業(N=0) | BE40: =VLOOKUP(BE$13&"_"&$AV$8,データシート2!$A:$SI,MATCH($AV$5&"_"&$BA40&$AV$6,データシート2!$A$1:$SI$1,0),0) -> 0 | BF40: =VLOOKUP(BF$13&"_"&$AW$8,データシート2!$A:$SI,MATCH($AW$5&"_"&$BA40&$AW$6,データシート2!$A$1:$SI$1,0),0) -> 0 | BG40: =BF40/BE40 ->  | BH40: =VLOOKUP(BH$13&"_"&$AV$8,データシート2!$A:$SI,MATCH($AV$5&"_"&$BA40&$AV$6,データシート2!$A$1:$SI$1,0),0) -> 488 | BI40: =VLOOKUP(BI$13&"_"&$AW$8,データシート2!$A:$SI,MATCH($AW$5&"_"&$BA40&$AW$6,データシート2!$A$1:$SI$1,0),0) -> 4,823 | BJ40: =BI40/BH40 -> 10 | BK40: =BG40/BJ40 -> 
BA41: G | BC41: G：情報通信業 | BD41: G：情報通信業(N=0) | BE41: =VLOOKUP(BE$13&"_"&$AV$8,データシート2!$A:$SI,MATCH($AV$5&"_"&$BA41&$AV$6,データシート2!$A$1:$SI$1,0),0) -> 0 | BF41: =VLOOKUP(BF$13&"_"&$AW$8,データシート2!$A:$SI,MATCH($AW$5&"_"&$BA41&$AW$6,データシート2!$A$1:$SI$1,0),0) -> 0 | BH41: =VLOOKUP(BH$13&"_"&$AV$8,データシート2!$A:$SI,MATCH($AV$5&"_"&$BA41&$AV$6,データシート2!$A$1:$SI$1,0),0) -> 436 | BI41: =VLOOKUP(BI$13&"_"&$AW$8,データシート2!$A:$SI,MATCH($AW$5&"_"&$BA41&$AW$6,データシート2!$A$1:$SI$1,0),0) -> 3,694 | BJ41: 8
AB42: 3 全国の1事業所当たりの排出傾向との比較 | BA42: H | BC42: H：運輸業，郵便業 | BD42: H：運輸業，郵便業(N=0) | BE42: =VLOOKUP(BE$13&"_"&$AV$8,データシート2!$A:$SI,MATCH($AV$5&"_"&$BA42&$AV$6,データシート2!$A$1:$SI$1,0),0) -> 0 | BF42: =VLOOKUP(BF$13&"_"&$AW$8,データシート2!$A:$SI,MATCH($AW$5&"_"&$BA42&$AW$6,データシート2!$A$1:$SI$1,0),0) -> 0 | BH42: =VLOOKUP(BH$13&"_"&$AV$8,データシート2!$A:$SI,MATCH($AV$5&"_"&$BA42&$AV$6,データシート2!$A$1:$SI$1,0),0) -> 181 | BI42: =VLOOKUP(BI$13&"_"&$AW$8,データシート2!$A:$SI,MATCH($AW$5&"_"&$BA42&$AW$6,データシート2!$A$1:$SI$1,0),0) -> 1,207 | BJ42: 7
BA43: I | BC43: I：卸売業，小売業 | BD43: I：卸売業，小売業(N=0) | BE43: =VLOOKUP(BE$13&"_"&$AV$8,データシート2!$A:$SI,MATCH($AV$5&"_"&$BA43&$AV$6,データシート2!$A$1:$SI$1,0),0) -> 0 | BF43: =VLOOKUP(BF$13&"_"&$AW$8,データシート2!$A:$SI,MATCH($AW$5&"_"&$BA43&$AW$6,データシート2!$A$1:$SI$1,0),0) -> 0 | BH43: =VLOOKUP(BH$13&"_"&$AV$8,データシート2!$A:$SI,MATCH($AV$5&"_"&$BA43&$AV$6,データシート2!$A$1:$SI$1,0),0) -> 613 | BI43: =VLOOKUP(BI$13&"_"&$AW$8,データシート2!$A:$SI,MATCH($AW$5&"_"&$BA43&$AW$6,データシート2!$A$1:$SI$1,0),0) -> 2,526 | BJ43: 4
BA44: J | BC44: J：金融業，保険業 | BD44: J：金融業，保険業(N=0) | BE44: =VLOOKUP(BE$13&"_"&$AV$8,データシート2!$A:$SI,MATCH($AV$5&"_"&$BA44&$AV$6,データシート2!$A$1:$SI$1,0),0) -> 0 | BF44: =VLOOKUP(BF$13&"_"&$AW$8,データシート2!$A:$SI,MATCH($AW$5&"_"&$BA44&$AW$6,データシート2!$A$1:$SI$1,0),0) -> 0 | BH44: =VLOOKUP(BH$13&"_"&$AV$8,データシート2!$A:$SI,MATCH($AV$5&"_"&$BA44&$AV$6,データシート2!$A$1:$SI$1,0),0) -> 157 | BI44: =VLOOKUP(BI$13&"_"&$AW$8,データシート2!$A:$SI,MATCH($AW$5&"_"&$BA44&$AW$6,データシート2!$A$1:$SI$1,0),0) -> 767 | BJ44: 5
BA45: K | BC45: K：不動産業，物品賃貸業 | BD45: K：不動産業，物品賃貸業(N=0) | BE45: =VLOOKUP(BE$13&"_"&$AV$8,データシート2!$A:$SI,MATCH($AV$5&"_"&$BA45&$AV$6,データシート2!$A$1:$SI$1,0),0) -> 0 | BF45: =VLOOKUP(BF$13&"_"&$AW$8,データシート2!$A:$SI,MATCH($AW$5&"_"&$BA45&$AW$6,データシート2!$A$1:$SI$1,0),0) -> 0 | BH45: =VLOOKUP(BH$13&"_"&$AV$8,データシート2!$A:$SI,MATCH($AV$5&"_"&$BA45&$AV$6,データシート2!$A$1:$SI$1,0),0) -> 687 | BI45: =VLOOKUP(BI$13&"_"&$AW$8,データシート2!$A:$SI,MATCH($AW$5&"_"&$BA45&$AW$6,データシート2!$A$1:$SI$1,0),0) -> 3,705 | BJ45: 5
BA46: L | BC46: L：学術研究,専門･技術ｻｰﾋﾞｽ業 | BD46: L：学術研究,専門･技術ｻｰﾋﾞｽ業(N=0) | BE46: =VLOOKUP(BE$13&"_"&$AV$8,データシート2!$A:$SI,MATCH($AV$5&"_"&$BA46&$AV$6,データシート2!$A$1:$SI$1,0),0) -> 0 | BF46: =VLOOKUP(BF$13&"_"&$AW$8,データシート2!$A:$SI,MATCH($AW$5&"_"&$BA46&$AW$6,データシート2!$A$1:$SI$1,0),0) -> 0 | BH46: =VLOOKUP(BH$13&"_"&$AV$8,データシート2!$A:$SI,MATCH($AV$5&"_"&$BA46&$AV$6,データシート2!$A$1:$SI$1,0),0) -> 127 | BI46: =VLOOKUP(BI$13&"_"&$AW$8,データシート2!$A:$SI,MATCH($AW$5&"_"&$BA46&$AW$6,データシート2!$A$1:$SI$1,0),0) -> 1,532 | BJ46: 12
BA47: M | BC47: M：宿泊業，飲食サービス業 | BD47: M：宿泊業，飲食サービス業(N=0) | BE47: =VLOOKUP(BE$13&"_"&$AV$8,データシート2!$A:$SI,MATCH($AV$5&"_"&$BA47&$AV$6,データシート2!$A$1:$SI$1,0),0) -> 0 | BF47: =VLOOKUP(BF$13&"_"&$AW$8,データシート2!$A:$SI,MATCH($AW$5&"_"&$BA47&$AW$6,データシート2!$A$1:$SI$1,0),0) -> 0 | BH47: =VLOOKUP(BH$13&"_"&$AV$8,データシート2!$A:$SI,MATCH($AV$5&"_"&$BA47&$AV$6,データシート2!$A$1:$SI$1,0),0) -> 380 | BI47: =VLOOKUP(BI$13&"_"&$AW$8,データシート2!$A:$SI,MATCH($AW$5&"_"&$BA47&$AW$6,データシート2!$A$1:$SI$1,0),0) -> 1,783 | BJ47: 5
BA48: N | BC48: N：生活関連ｻｰﾋﾞｽ業,娯楽業 | BD48: N：生活関連ｻｰﾋﾞｽ業,娯楽業(N=0) | BE48: =VLOOKUP(BE$13&"_"&$AV$8,データシート2!$A:$SI,MATCH($AV$5&"_"&$BA48&$AV$6,データシート2!$A$1:$SI$1,0),0) -> 0 | BF48: =VLOOKUP(BF$13&"_"&$AW$8,データシート2!$A:$SI,MATCH($AW$5&"_"&$BA48&$AW$6,データシート2!$A$1:$SI$1,0),0) -> 0 | BH48: =VLOOKUP(BH$13&"_"&$AV$8,データシート2!$A:$SI,MATCH($AV$5&"_"&$BA48&$AV$6,データシート2!$A$1:$SI$1,0),0) -> 202 | BI48: =VLOOKUP(BI$13&"_"&$AW$8,データシート2!$A:$SI,MATCH($AW$5&"_"&$BA48&$AW$6,データシート2!$A$1:$SI$1,0),0) -> 1,002 | BJ48: 5
BA49: O | BC49: O：教育，学習支援業 | BD49: O：教育，学習支援業(N=0) | BE49: =VLOOKUP(BE$13&"_"&$AV$8,データシート2!$A:$SI,MATCH($AV$5&"_"&$BA49&$AV$6,データシート2!$A$1:$SI$1,0),0) -> 0 | BF49: =VLOOKUP(BF$13&"_"&$AW$8,データシート2!$A:$SI,MATCH($AW$5&"_"&$BA49&$AW$6,データシート2!$A$1:$SI$1,0),0) -> 0 | BH49: =VLOOKUP(BH$13&"_"&$AV$8,データシート2!$A:$SI,MATCH($AV$5&"_"&$BA49&$AV$6,データシート2!$A$1:$SI$1,0),0) -> 393 | BI49: =VLOOKUP(BI$13&"_"&$AW$8,データシート2!$A:$SI,MATCH($AW$5&"_"&$BA49&$AW$6,データシート2!$A$1:$SI$1,0),0) -> 3,356 | BJ49: 9
BA50: P | BC50: P：医療，福祉 | BD50: P：医療，福祉(N=0) | BE50: =VLOOKUP(BE$13&"_"&$AV$8,データシート2!$A:$SI,MATCH($AV$5&"_"&$BA50&$AV$6,データシート2!$A$1:$SI$1,0),0) -> 0 | BF50: =VLOOKUP(BF$13&"_"&$AW$8,データシート2!$A:$SI,MATCH($AW$5&"_"&$BA50&$AW$6,データシート2!$A$1:$SI$1,0),0) -> 0 | BH50: =VLOOKUP(BH$13&"_"&$AV$8,データシート2!$A:$SI,MATCH($AV$5&"_"&$BA50&$AV$6,データシート2!$A$1:$SI$1,0),0) -> 813 | BI50: =VLOOKUP(BI$13&"_"&$AW$8,データシート2!$A:$SI,MATCH($AW$5&"_"&$BA50&$AW$6,データシート2!$A$1:$SI$1,0),0) -> 4,507 | BJ50: 6
BA51: Q | BC51: Q：複合サービス事業 | BD51: Q：複合サービス事業(N=0) | BE51: =VLOOKUP(BE$13&"_"&$AV$8,データシート2!$A:$SI,MATCH($AV$5&"_"&$BA51&$AV$6,データシート2!$A$1:$SI$1,0),0) -> 0 | BF51: =VLOOKUP(BF$13&"_"&$AW$8,データシート2!$A:$SI,MATCH($AW$5&"_"&$BA51&$AW$6,データシート2!$A$1:$SI$1,0),0) -> 0 | BH51: =VLOOKUP(BH$13&"_"&$AV$8,データシート2!$A:$SI,MATCH($AV$5&"_"&$BA51&$AV$6,データシート2!$A$1:$SI$1,0),0) -> 3 | BI51: =VLOOKUP(BI$13&"_"&$AW$8,データシート2!$A:$SI,MATCH($AW$5&"_"&$BA51&$AW$6,データシート2!$A$1:$SI$1,0),0) -> 17 | BJ51: 6
BA52: R | BC52: R：ｻｰﾋﾞｽ業(他に分類されない) | BD52: =BC52&"(N="&BE52&")" -> R：ｻｰﾋﾞｽ業(他に分類されない)(N=0) | BE52: =VLOOKUP(BE$13&"_"&$AV$8,データシート2!$A:$SI,MATCH($AV$5&"_"&$BA52&$AV$6,データシート2!$A$1:$SI$1,0),0) -> 0 | BF52: =VLOOKUP(BF$13&"_"&$AW$8,データシート2!$A:$SI,MATCH($AW$5&"_"&$BA52&$AW$6,データシート2!$A$1:$SI$1,0),0) -> 0 | BG52: =BF52/BE52 ->  | BH52: =VLOOKUP(BH$13&"_"&$AV$8,データシート2!$A:$SI,MATCH($AV$5&"_"&$BA52&$AV$6,データシート2!$A$1:$SI$1,0),0) -> 641 | BI52: =VLOOKUP(BI$13&"_"&$AW$8,データシート2!$A:$SI,MATCH($AW$5&"_"&$BA52&$AW$6,データシート2!$A$1:$SI$1,0),0) -> 17,095 | BJ52: =BI52/BH52 -> 27 | BK52: =BG52/BJ52 -> 
P53: ［千t-CO2］ | BA53: S | BC53: S：公務 | BD53: =BC53&"(N="&BE53&")" -> S：公務(N=0) | BE53: =VLOOKUP(BE$13&"_"&$AV$8,データシート2!$A:$SI,MATCH($AV$5&"_"&$BA53&$AV$6,データシート2!$A$1:$SI$1,0),0) -> 0 | BF53: =VLOOKUP(BF$13&"_"&$AW$8,データシート2!$A:$SI,MATCH($AW$5&"_"&$BA53&$AW$6,データシート2!$A$1:$SI$1,0),0) -> 0 | BG53: =BF53/BE53 ->  | BH53: =VLOOKUP(BH$13&"_"&$AV$8,データシート2!$A:$SI,MATCH($AV$5&"_"&$BA53&$AV$6,データシート2!$A$1:$SI$1,0),0) -> 228 | BI53: =VLOOKUP(BI$13&"_"&$AW$8,データシート2!$A:$SI,MATCH($AW$5&"_"&$BA53&$AW$6,データシート2!$A$1:$SI$1,0),0) -> 1,056 | BJ53: =BI53/BH53 -> 5 | BK53: =BG53/BJ53 -> 
C54: 温室効果ガス種 | F54: 平成23年度 | G54: 平成24年度 | H54: 平成25年度 | I54: 平成26年度 | J54: 平成27年度 | K54: 平成28年度 | L54: 平成29年度 | M54: 平成30年度 | N54: 令和元年度 | O54: 令和2年度 | P54: 令和3年度 | BA54: 1711+1731 | BB54: エネルギー転換部門 | BC54: 石油精製業・コークス製造業 | BD54: =BC54&"(N="&BE54&")" -> 石油精製業・コークス製造業(N=0) | BE54: =BE58+BE59 -> 0 | BF54: =BF58+BF59 -> 0 | BH54: =BH58+BH59 -> 31 | BI54: =BI58+BI59 -> 27,295 | BJ54: 880
C55: 合計 | F55: =SUM(F56,F57,F60,F61,F62,F63,F64,F65,) -> 38.357 | G55: =SUM(G56,G57,G60,G61,G62,G63,G64,G65,) -> 51.168 | H55: 53.259 | I55: 49.141 | J55: 51.727 | K55: 52.967 | L55: 55.203 | M55: 46.328 | N55: 41.951 | O55: 31.822 | P55: 40.076 | BA55: 3311+3312 | BC55: 発電所・変電所 | BD55: =BC55&"(N="&BE55&")" -> 発電所・変電所(N=0) | BE55: =BE60+BE61 -> 0 | BF55: =BF60+BF61 -> 0 | BH55: =BH60+BH61 -> 231 | BI55: =BI60+BI61 -> 22,953 | BJ55: 99
C56: =D56 -> エネルギー起源CO2 | D56: エネルギー起源CO2 | F56: =IFERROR(VLOOKUP(年度マスタ!$K$4&"_"&F$54,データシート1!$A:$CE,MATCH("bc_"&$C56,データシート1!$A$1:$CE$1,0),0),0) -> 38.357 | G56: =IFERROR(VLOOKUP(年度マスタ!$K$4&"_"&G$54,データシート1!$A:$CE,MATCH("bc_"&$C56,データシート1!$A$1:$CE$1,0),0),0) -> 51.168 | H56: =IFERROR(VLOOKUP(年度マスタ!$K$4&"_"&H$54,データシート1!$A:$CE,MATCH("bc_"&$C56,データシート1!$A$1:$CE$1,0),0),0) -> 53.259 | I56: =IFERROR(VLOOKUP(年度マスタ!$K$4&"_"&I$54,データシート1!$A:$CE,MATCH("bc_"&$C56,データシート1!$A$1:$CE$1,0),0),0) -> 49.141 | J56: =IFERROR(VLOOKUP(年度マスタ!$K$4&"_"&J$54,データシート1!$A:$CE,MATCH("bc_"&$C56,データシート1!$A$1:$CE$1,0),0),0) -> 51.727 | K56: =IFERROR(VLOOKUP(年度マスタ!$K$4&"_"&K$54,データシート1!$A:$CE,MATCH("bc_"&$C56,データシート1!$A$1:$CE$1,0),0),0) -> 52.967 | L56: =IFERROR(VLOOKUP(年度マスタ!$K$4&"_"&L$54,データシート1!$A:$CE,MATCH("bc_"&$C56,データシート1!$A$1:$CE$1,0),0),0) -> 55.203 | M56: =IFERROR(VLOOKUP(年度マスタ!$K$4&"_"&M$54,データシート1!$A:$CE,MATCH("bc_"&$C56,データシート1!$A$1:$CE$1,0),0),0) -> 46.328 | N56: =IFERROR(VLOOKUP(年度マスタ!$K$4&"_"&N$54,データシート1!$A:$CE,MATCH("bc_"&$C56,データシート1!$A$1:$CE$1,0),0),0) -> 41.951 | O56: =IFERROR(VLOOKUP(年度マスタ!$K$4&"_"&O$54,データシート1!$A:$CE,MATCH("bc_"&$C56,データシート1!$A$1:$CE$1,0),0),0) -> 31.822 | P56: =IFERROR(VLOOKUP(年度マスタ!$K$4&"_"&P$54,データシート1!$A:$CE,MATCH("bc_"&$C56,データシート1!$A$1:$CE$1,0),0),0) -> 40.076 | BA56: 3411 | BC56: ガス製造工場 | BD56: ガス製造工場(N=0) | BE56: =BE62 -> 0 | BF56: =BF62 -> 0 | BH56: =BH62 -> 30 | BI56: =BI62 -> 751 | BJ56: 25
D57: 非エネルギー起源CO2 | F57: =SUM(F58:F59) -> 0 | G57: =SUM(G58:G59) -> 0 | H57: 0 | I57: 0 | J57: 0 | K57: =SUM(K58:K59) -> 0 | L57: 0 | M57: 0 | N57: 0 | O57: 0 | P57: =SUM(P58:P59) -> 0 | BA57: 3511 | BC57: 熱供給業 | BD57: 熱供給業(N=0) | BE57: =BE63 -> 0 | BF57: =BF63 -> 0 | BH57: =BH63 -> 137 | BI57: =BI63 -> 553 | BJ57: 4
C58: 非エネルギー起源CO2（廃棄物の原燃料使用） | E58: 廃棄物原燃料 | F58: =IFERROR(VLOOKUP(年度マスタ!$K$4&"_"&F$54,データシート1!$A:$CE,MATCH("bc_"&$C58,データシート1!$A$1:$CE$1,0),0),0) -> 0 | G58: =IFERROR(VLOOKUP(年度マスタ!$K$4&"_"&G$54,データシート1!$A:$CE,MATCH("bc_"&$C58,データシート1!$A$1:$CE$1,0),0),0) -> 0 | H58: =IFERROR(VLOOKUP(年度マスタ!$K$4&"_"&H$54,データシート1!$A:$CE,MATCH("bc_"&$C58,データシート1!$A$1:$CE$1,0),0),0) -> 0 | I58: =IFERROR(VLOOKUP(年度マスタ!$K$4&"_"&I$54,データシート1!$A:$CE,MATCH("bc_"&$C58,データシート1!$A$1:$CE$1,0),0),0) -> 0 | J58: =IFERROR(VLOOKUP(年度マスタ!$K$4&"_"&J$54,データシート1!$A:$CE,MATCH("bc_"&$C58,データシート1!$A$1:$CE$1,0),0),0) -> 0 | K58: =IFERROR(VLOOKUP(年度マスタ!$K$4&"_"&K$54,データシート1!$A:$CE,MATCH("bc_"&$C58,データシート1!$A$1:$CE$1,0),0),0) -> 0 | L58: =IFERROR(VLOOKUP(年度マスタ!$K$4&"_"&L$54,データシート1!$A:$CE,MATCH("bc_"&$C58,データシート1!$A$1:$CE$1,0),0),0) -> 0 | M58: =IFERROR(VLOOKUP(年度マスタ!$K$4&"_"&M$54,データシート1!$A:$CE,MATCH("bc_"&$C58,データシート1!$A$1:$CE$1,0),0),0) -> 0 | N58: =IFERROR(VLOOKUP(年度マスタ!$K$4&"_"&N$54,データシート1!$A:$CE,MATCH("bc_"&$C58,データシート1!$A$1:$CE$1,0),0),0) -> 0 | O58: =IFERROR(VLOOKUP(年度マスタ!$K$4&"_"&O$54,データシート1!$A:$CE,MATCH("bc_"&$C58,データシート1!$A$1:$CE$1,0),0),0) -> 0 | P58: =IFERROR(VLOOKUP(年度マスタ!$K$4&"_"&P$54,データシート1!$A:$CE,MATCH("bc_"&$C58,データシート1!$A$1:$CE$1,0),0),0) -> 0 | BA58: 1711 | BD58: 石油精製業 | BE58: =VLOOKUP(BE$13&"_"&$AV$8,データシート2!$A:$SI,MATCH($AV$5&"_"&$BA58,データシート2!$A$1:$SI$1,0),0) -> 0 | BF58: =VLOOKUP(BF$13&"_"&$AW$8,データシート2!$A:$SI,MATCH($AW$5&"_"&$BA58,データシート2!$A$1:$SI$1,0),0) -> 0 | BH58: =VLOOKUP(BH$13&"_"&$AV$8,データシート2!$A:$SI,MATCH($AV$5&"_"&$BA58,データシート2!$A$1:$SI$1,0),0) -> 28 | BI58: =VLOOKUP(BI$13&"_"&$AW$8,データシート2!$A:$SI,MATCH($AW$5&"_"&$BA58,データシート2!$A$1:$SI$1,0),0) -> 25,772 | BJ58: 920
C59: 非エネルギー起源CO2 | E59: 廃棄物原燃料以外 | F59: =IFERROR(VLOOKUP(年度マスタ!$K$4&"_"&F$54,データシート1!$A:$CE,MATCH("bc_"&$C59,データシート1!$A$1:$CE$1,0),0),0) -> 0 | G59: =IFERROR(VLOOKUP(年度マスタ!$K$4&"_"&G$54,データシート1!$A:$CE,MATCH("bc_"&$C59,データシート1!$A$1:$CE$1,0),0),0) -> 0 | H59: =IFERROR(VLOOKUP(年度マスタ!$K$4&"_"&H$54,データシート1!$A:$CE,MATCH("bc_"&$C59,データシート1!$A$1:$CE$1,0),0),0) -> 0 | I59: =IFERROR(VLOOKUP(年度マスタ!$K$4&"_"&I$54,データシート1!$A:$CE,MATCH("bc_"&$C59,データシート1!$A$1:$CE$1,0),0),0) -> 0 | J59: =IFERROR(VLOOKUP(年度マスタ!$K$4&"_"&J$54,データシート1!$A:$CE,MATCH("bc_"&$C59,データシート1!$A$1:$CE$1,0),0),0) -> 0 | K59: =IFERROR(VLOOKUP(年度マスタ!$K$4&"_"&K$54,データシート1!$A:$CE,MATCH("bc_"&$C59,データシート1!$A$1:$CE$1,0),0),0) -> 0 | L59: =IFERROR(VLOOKUP(年度マスタ!$K$4&"_"&L$54,データシート1!$A:$CE,MATCH("bc_"&$C59,データシート1!$A$1:$CE$1,0),0),0) -> 0 | M59: =IFERROR(VLOOKUP(年度マスタ!$K$4&"_"&M$54,データシート1!$A:$CE,MATCH("bc_"&$C59,データシート1!$A$1:$CE$1,0),0),0) -> 0 | N59: =IFERROR(VLOOKUP(年度マスタ!$K$4&"_"&N$54,データシート1!$A:$CE,MATCH("bc_"&$C59,データシート1!$A$1:$CE$1,0),0),0) -> 0 | O59: =IFERROR(VLOOKUP(年度マスタ!$K$4&"_"&O$54,データシート1!$A:$CE,MATCH("bc_"&$C59,データシート1!$A$1:$CE$1,0),0),0) -> 0 | P59: =IFERROR(VLOOKUP(年度マスタ!$K$4&"_"&P$54,データシート1!$A:$CE,MATCH("bc_"&$C59,データシート1!$A$1:$CE$1,0),0),0) -> 0 | BA59: 1731 | BD59: コークス製造業 | BE59: =VLOOKUP(BE$13&"_"&$AV$8,データシート2!$A:$SI,MATCH($AV$5&"_"&$BA59,データシート2!$A$1:$SI$1,0),0) -> 0 | BF59: =VLOOKUP(BF$13&"_"&$AW$8,データシート2!$A:$SI,MATCH($AW$5&"_"&$BA59,データシート2!$A$1:$SI$1,0),0) -> 0 | BH59: =VLOOKUP(BH$13&"_"&$AV$8,データシート2!$A:$SI,MATCH($AV$5&"_"&$BA59,データシート2!$A$1:$SI$1,0),0) -> 3 | BI59: =VLOOKUP(BI$13&"_"&$AW$8,データシート2!$A:$SI,MATCH($AW$5&"_"&$BA59,データシート2!$A$1:$SI$1,0),0) -> 1,523 | BJ59: 508
C60: =D60 -> CH4 | D60: CH4 | F60: =IFERROR(VLOOKUP(年度マスタ!$K$4&"_"&F$54,データシート1!$A:$CE,MATCH("bc_"&$C60,データシート1!$A$1:$CE$1,0),0),0) -> 0 | G60: =IFERROR(VLOOKUP(年度マスタ!$K$4&"_"&G$54,データシート1!$A:$CE,MATCH("bc_"&$C60,データシート1!$A$1:$CE$1,0),0),0) -> 0 | H60: =IFERROR(VLOOKUP(年度マスタ!$K$4&"_"&H$54,データシート1!$A:$CE,MATCH("bc_"&$C60,データシート1!$A$1:$CE$1,0),0),0) -> 0 | I60: =IFERROR(VLOOKUP(年度マスタ!$K$4&"_"&I$54,データシート1!$A:$CE,MATCH("bc_"&$C60,データシート1!$A$1:$CE$1,0),0),0) -> 0 | J60: =IFERROR(VLOOKUP(年度マスタ!$K$4&"_"&J$54,データシート1!$A:$CE,MATCH("bc_"&$C60,データシート1!$A$1:$CE$1,0),0),0) -> 0 | K60: =IFERROR(VLOOKUP(年度マスタ!$K$4&"_"&K$54,データシート1!$A:$CE,MATCH("bc_"&$C60,データシート1!$A$1:$CE$1,0),0),0) -> 0 | L60: =IFERROR(VLOOKUP(年度マスタ!$K$4&"_"&L$54,データシート1!$A:$CE,MATCH("bc_"&$C60,データシート1!$A$1:$CE$1,0),0),0) -> 0 | M60: =IFERROR(VLOOKUP(年度マスタ!$K$4&"_"&M$54,データシート1!$A:$CE,MATCH("bc_"&$C60,データシート1!$A$1:$CE$1,0),0),0) -> 0 | N60: =IFERROR(VLOOKUP(年度マスタ!$K$4&"_"&N$54,データシート1!$A:$CE,MATCH("bc_"&$C60,データシート1!$A$1:$CE$1,0),0),0) -> 0 | O60: =IFERROR(VLOOKUP(年度マスタ!$K$4&"_"&O$54,データシート1!$A:$CE,MATCH("bc_"&$C60,データシート1!$A$1:$CE$1,0),0),0) -> 0 | P60: =IFERROR(VLOOKUP(年度マスタ!$K$4&"_"&P$54,データシート1!$A:$CE,MATCH("bc_"&$C60,データシート1!$A$1:$CE$1,0),0),0) -> 0 | BA60: 3311 | BD60: 発電所 | BE60: =VLOOKUP(BE$13&"_"&$AV$8,データシート2!$A:$SI,MATCH($AV$5&"_"&$BA60,データシート2!$A$1:$SI$1,0),0) -> 0 | BF60: =VLOOKUP(BF$13&"_"&$AW$8,データシート2!$A:$SI,MATCH($AW$5&"_"&$BA60,データシート2!$A$1:$SI$1,0),0) -> 0 | BH60: =VLOOKUP(BH$13&"_"&$AV$8,データシート2!$A:$SI,MATCH($AV$5&"_"&$BA60,データシート2!$A$1:$SI$1,0),0) -> 228 | BI60: =VLOOKUP(BI$13&"_"&$AW$8,データシート2!$A:$SI,MATCH($AW$5&"_"&$BA60,データシート2!$A$1:$SI$1,0),0) -> 22,932 | BJ60: 101
B61: =AE32 -> 0 | C61: =D61 -> N2O | D61: N2O | F61: =IFERROR(VLOOKUP(年度マスタ!$K$4&"_"&F$54,データシート1!$A:$CE,MATCH("bc_"&$C61,データシート1!$A$1:$CE$1,0),0),0) -> 0 | G61: =IFERROR(VLOOKUP(年度マスタ!$K$4&"_"&G$54,データシート1!$A:$CE,MATCH("bc_"&$C61,データシート1!$A$1:$CE$1,0),0),0) -> 0 | H61: =IFERROR(VLOOKUP(年度マスタ!$K$4&"_"&H$54,データシート1!$A:$CE,MATCH("bc_"&$C61,データシート1!$A$1:$CE$1,0),0),0) -> 0 | I61: =IFERROR(VLOOKUP(年度マスタ!$K$4&"_"&I$54,データシート1!$A:$CE,MATCH("bc_"&$C61,データシート1!$A$1:$CE$1,0),0),0) -> 0 | J61: =IFERROR(VLOOKUP(年度マスタ!$K$4&"_"&J$54,データシート1!$A:$CE,MATCH("bc_"&$C61,データシート1!$A$1:$CE$1,0),0),0) -> 0 | K61: =IFERROR(VLOOKUP(年度マスタ!$K$4&"_"&K$54,データシート1!$A:$CE,MATCH("bc_"&$C61,データシート1!$A$1:$CE$1,0),0),0) -> 0 | L61: =IFERROR(VLOOKUP(年度マスタ!$K$4&"_"&L$54,データシート1!$A:$CE,MATCH("bc_"&$C61,データシート1!$A$1:$CE$1,0),0),0) -> 0 | M61: =IFERROR(VLOOKUP(年度マスタ!$K$4&"_"&M$54,データシート1!$A:$CE,MATCH("bc_"&$C61,データシート1!$A$1:$CE$1,0),0),0) -> 0 | N61: =IFERROR(VLOOKUP(年度マスタ!$K$4&"_"&N$54,データシート1!$A:$CE,MATCH("bc_"&$C61,データシート1!$A$1:$CE$1,0),0),0) -> 0 | O61: =IFERROR(VLOOKUP(年度マスタ!$K$4&"_"&O$54,データシート1!$A:$CE,MATCH("bc_"&$C61,データシート1!$A$1:$CE$1,0),0),0) -> 0 | P61: =IFERROR(VLOOKUP(年度マスタ!$K$4&"_"&P$54,データシート1!$A:$CE,MATCH("bc_"&$C61,データシート1!$A$1:$CE$1,0),0),0) -> 0 | BA61: 3312 | BD61: 変電所 | BE61: =VLOOKUP(BE$13&"_"&$AV$8,データシート2!$A:$SI,MATCH($AV$5&"_"&$BA61,データシート2!$A$1:$SI$1,0),0) -> 0 | BF61: =VLOOKUP(BF$13&"_"&$AW$8,データシート2!$A:$SI,MATCH($AW$5&"_"&$BA61,データシート2!$A$1:$SI$1,0),0) -> 0 | BH61: =VLOOKUP(BH$13&"_"&$AV$8,データシート2!$A:$SI,MATCH($AV$5&"_"&$BA61,データシート2!$A$1:$SI$1,0),0) -> 3 | BI61: =VLOOKUP(BI$13&"_"&$AW$8,データシート2!$A:$SI,MATCH($AW$5&"_"&$BA61,データシート2!$A$1:$SI$1,0),0) -> 20 | BJ61: 7
B62: =AE33 -> 0 | C62: HFC | D62: HFC | F62: =IFERROR(VLOOKUP(年度マスタ!$K$4&"_"&F$54,データシート1!$A:$CE,MATCH("bc_"&$C62,データシート1!$A$1:$CE$1,0),0),0) -> 0 | G62: =IFERROR(VLOOKUP(年度マスタ!$K$4&"_"&G$54,データシート1!$A:$CE,MATCH("bc_"&$C62,データシート1!$A$1:$CE$1,0),0),0) -> 0 | H62: =IFERROR(VLOOKUP(年度マスタ!$K$4&"_"&H$54,データシート1!$A:$CE,MATCH("bc_"&$C62,データシート1!$A$1:$CE$1,0),0),0) -> 0 | I62: =IFERROR(VLOOKUP(年度マスタ!$K$4&"_"&I$54,データシート1!$A:$CE,MATCH("bc_"&$C62,データシート1!$A$1:$CE$1,0),0),0) -> 0 | J62: =IFERROR(VLOOKUP(年度マスタ!$K$4&"_"&J$54,データシート1!$A:$CE,MATCH("bc_"&$C62,データシート1!$A$1:$CE$1,0),0),0) -> 0 | K62: =IFERROR(VLOOKUP(年度マスタ!$K$4&"_"&K$54,データシート1!$A:$CE,MATCH("bc_"&$C62,データシート1!$A$1:$CE$1,0),0),0) -> 0 | L62: =IFERROR(VLOOKUP(年度マスタ!$K$4&"_"&L$54,データシート1!$A:$CE,MATCH("bc_"&$C62,データシート1!$A$1:$CE$1,0),0),0) -> 0 | M62: =IFERROR(VLOOKUP(年度マスタ!$K$4&"_"&M$54,データシート1!$A:$CE,MATCH("bc_"&$C62,データシート1!$A$1:$CE$1,0),0),0) -> 0 | N62: =IFERROR(VLOOKUP(年度マスタ!$K$4&"_"&N$54,データシート1!$A:$CE,MATCH("bc_"&$C62,データシート1!$A$1:$CE$1,0),0),0) -> 0 | O62: =IFERROR(VLOOKUP(年度マスタ!$K$4&"_"&O$54,データシート1!$A:$CE,MATCH("bc_"&$C62,データシート1!$A$1:$CE$1,0),0),0) -> 0 | P62: =IFERROR(VLOOKUP(年度マスタ!$K$4&"_"&P$54,データシート1!$A:$CE,MATCH("bc_"&$C62,データシート1!$A$1:$CE$1,0),0),0) -> 0 | BA62: 3411 | BD62: ガス製造工場 | BE62: =VLOOKUP(BE$13&"_"&$AV$8,データシート2!$A:$SI,MATCH($AV$5&"_"&$BA62,データシート2!$A$1:$SI$1,0),0) -> 0 | BF62: =VLOOKUP(BF$13&"_"&$AW$8,データシート2!$A:$SI,MATCH($AW$5&"_"&$BA62,データシート2!$A$1:$SI$1,0),0) -> 0 | BH62: =VLOOKUP(BH$13&"_"&$AV$8,データシート2!$A:$SI,MATCH($AV$5&"_"&$BA62,データシート2!$A$1:$SI$1,0),0) -> 30 | BI62: =VLOOKUP(BI$13&"_"&$AW$8,データシート2!$A:$SI,MATCH($AW$5&"_"&$BA62,データシート2!$A$1:$SI$1,0),0) -> 751 | BJ62: 25
B63: =AD34 -> 0 | C63: PFC | D63: PFC | F63: =IFERROR(VLOOKUP(年度マスタ!$K$4&"_"&F$54,データシート1!$A:$CE,MATCH("bc_"&$C63,データシート1!$A$1:$CE$1,0),0),0) -> 0 | G63: =IFERROR(VLOOKUP(年度マスタ!$K$4&"_"&G$54,データシート1!$A:$CE,MATCH("bc_"&$C63,データシート1!$A$1:$CE$1,0),0),0) -> 0 | H63: =IFERROR(VLOOKUP(年度マスタ!$K$4&"_"&H$54,データシート1!$A:$CE,MATCH("bc_"&$C63,データシート1!$A$1:$CE$1,0),0),0) -> 0 | I63: =IFERROR(VLOOKUP(年度マスタ!$K$4&"_"&I$54,データシート1!$A:$CE,MATCH("bc_"&$C63,データシート1!$A$1:$CE$1,0),0),0) -> 0 | J63: =IFERROR(VLOOKUP(年度マスタ!$K$4&"_"&J$54,データシート1!$A:$CE,MATCH("bc_"&$C63,データシート1!$A$1:$CE$1,0),0),0) -> 0 | K63: =IFERROR(VLOOKUP(年度マスタ!$K$4&"_"&K$54,データシート1!$A:$CE,MATCH("bc_"&$C63,データシート1!$A$1:$CE$1,0),0),0) -> 0 | L63: =IFERROR(VLOOKUP(年度マスタ!$K$4&"_"&L$54,データシート1!$A:$CE,MATCH("bc_"&$C63,データシート1!$A$1:$CE$1,0),0),0) -> 0 | M63: =IFERROR(VLOOKUP(年度マスタ!$K$4&"_"&M$54,データシート1!$A:$CE,MATCH("bc_"&$C63,データシート1!$A$1:$CE$1,0),0),0) -> 0 | N63: =IFERROR(VLOOKUP(年度マスタ!$K$4&"_"&N$54,データシート1!$A:$CE,MATCH("bc_"&$C63,データシート1!$A$1:$CE$1,0),0),0) -> 0 | O63: =IFERROR(VLOOKUP(年度マスタ!$K$4&"_"&O$54,データシート1!$A:$CE,MATCH("bc_"&$C63,データシート1!$A$1:$CE$1,0),0),0) -> 0 | P63: =IFERROR(VLOOKUP(年度マスタ!$K$4&"_"&P$54,データシート1!$A:$CE,MATCH("bc_"&$C63,データシート1!$A$1:$CE$1,0),0),0) -> 0 | BA63: 3511 | BD63: 熱供給業 | BE63: =VLOOKUP(BE$13&"_"&$AV$8,データシート2!$A:$SI,MATCH($AV$5&"_"&$BA63,データシート2!$A$1:$SI$1,0),0) -> 0 | BF63: =VLOOKUP(BF$13&"_"&$AW$8,データシート2!$A:$SI,MATCH($AW$5&"_"&$BA63,データシート2!$A$1:$SI$1,0),0) -> 0 | BH63: =VLOOKUP(BH$13&"_"&$AV$8,データシート2!$A:$SI,MATCH($AV$5&"_"&$BA63,データシート2!$A$1:$SI$1,0),0) -> 137 | BI63: =VLOOKUP(BI$13&"_"&$AW$8,データシート2!$A:$SI,MATCH($AW$5&"_"&$BA63,データシート2!$A$1:$SI$1,0),0) -> 553 | BJ63: 4
B64: =AD35 -> 0 | C64: SF6 | D64: SF6 | F64: =IFERROR(VLOOKUP(年度マスタ!$K$4&"_"&F$54,データシート1!$A:$CE,MATCH("bc_"&$C64,データシート1!$A$1:$CE$1,0),0),0) -> 0 | G64: =IFERROR(VLOOKUP(年度マスタ!$K$4&"_"&G$54,データシート1!$A:$CE,MATCH("bc_"&$C64,データシート1!$A$1:$CE$1,0),0),0) -> 0 | H64: =IFERROR(VLOOKUP(年度マスタ!$K$4&"_"&H$54,データシート1!$A:$CE,MATCH("bc_"&$C64,データシート1!$A$1:$CE$1,0),0),0) -> 0 | I64: =IFERROR(VLOOKUP(年度マスタ!$K$4&"_"&I$54,データシート1!$A:$CE,MATCH("bc_"&$C64,データシート1!$A$1:$CE$1,0),0),0) -> 0 | J64: =IFERROR(VLOOKUP(年度マスタ!$K$4&"_"&J$54,データシート1!$A:$CE,MATCH("bc_"&$C64,データシート1!$A$1:$CE$1,0),0),0) -> 0 | K64: =IFERROR(VLOOKUP(年度マスタ!$K$4&"_"&K$54,データシート1!$A:$CE,MATCH("bc_"&$C64,データシート1!$A$1:$CE$1,0),0),0) -> 0 | L64: =IFERROR(VLOOKUP(年度マスタ!$K$4&"_"&L$54,データシート1!$A:$CE,MATCH("bc_"&$C64,データシート1!$A$1:$CE$1,0),0),0) -> 0 | M64: =IFERROR(VLOOKUP(年度マスタ!$K$4&"_"&M$54,データシート1!$A:$CE,MATCH("bc_"&$C64,データシート1!$A$1:$CE$1,0),0),0) -> 0 | N64: =IFERROR(VLOOKUP(年度マスタ!$K$4&"_"&N$54,データシート1!$A:$CE,MATCH("bc_"&$C64,データシート1!$A$1:$CE$1,0),0),0) -> 0 | O64: =IFERROR(VLOOKUP(年度マスタ!$K$4&"_"&O$54,データシート1!$A:$CE,MATCH("bc_"&$C64,データシート1!$A$1:$CE$1,0),0),0) -> 0 | P64: =IFERROR(VLOOKUP(年度マスタ!$K$4&"_"&P$54,データシート1!$A:$CE,MATCH("bc_"&$C64,データシート1!$A$1:$CE$1,0),0),0) -> 0
C65: NF3 | D65: NF3 | F65: =IFERROR(VLOOKUP(年度マスタ!$K$4&"_"&F$54,データシート1!$A:$CE,MATCH("bc_"&$C65,データシート1!$A$1:$CE$1,0),0),0) -> 0 | G65: =IFERROR(VLOOKUP(年度マスタ!$K$4&"_"&G$54,データシート1!$A:$CE,MATCH("bc_"&$C65,データシート1!$A$1:$CE$1,0),0),0) -> 0 | H65: =IFERROR(VLOOKUP(年度マスタ!$K$4&"_"&H$54,データシート1!$A:$CE,MATCH("bc_"&$C65,データシート1!$A$1:$CE$1,0),0),0) -> 0 | I65: =IFERROR(VLOOKUP(年度マスタ!$K$4&"_"&I$54,データシート1!$A:$CE,MATCH("bc_"&$C65,データシート1!$A$1:$CE$1,0),0),0) -> 0 | J65: =IFERROR(VLOOKUP(年度マスタ!$K$4&"_"&J$54,データシート1!$A:$CE,MATCH("bc_"&$C65,データシート1!$A$1:$CE$1,0),0),0) -> 0 | K65: =IFERROR(VLOOKUP(年度マスタ!$K$4&"_"&K$54,データシート1!$A:$CE,MATCH("bc_"&$C65,データシート1!$A$1:$CE$1,0),0),0) -> 0 | L65: =IFERROR(VLOOKUP(年度マスタ!$K$4&"_"&L$54,データシート1!$A:$CE,MATCH("bc_"&$C65,データシート1!$A$1:$CE$1,0),0),0) -> 0 | M65: =IFERROR(VLOOKUP(年度マスタ!$K$4&"_"&M$54,データシート1!$A:$CE,MATCH("bc_"&$C65,データシート1!$A$1:$CE$1,0),0),0) -> 0 | N65: =IFERROR(VLOOKUP(年度マスタ!$K$4&"_"&N$54,データシート1!$A:$CE,MATCH("bc_"&$C65,データシート1!$A$1:$CE$1,0),0),0) -> 0 | O65: =IFERROR(VLOOKUP(年度マスタ!$K$4&"_"&O$54,データシート1!$A:$CE,MATCH("bc_"&$C65,データシート1!$A$1:$CE$1,0),0),0) -> 0 | P65: =IFERROR(VLOOKUP(年度マスタ!$K$4&"_"&P$54,データシート1!$A:$CE,MATCH("bc_"&$C65,データシート1!$A$1:$CE$1,0),0),0) -> 0
B66: =AD36 -> 0

Sheet ④再エネ導入量・ポテンシャルの現状把握
B1: 自治体排出量カルテ④ 地方公共団体の再生可能エネルギー導入状況及び導入ポテンシャルの現状把握 | AE1: =年度マスタ!J4 -> 羽咋市
B2: 1 地方公共団体のFIT・FIP制度による再生可能エネルギー（電気）※1 | U2: 2 地方公共団体の再生可能エネルギーの導入ポテンシャル※7
R3: ［kW］
C4: 1）区域の再生可能エネルギーの導入設備容量 | J4: 区域の再生可能エネルギーの導入設備容量 | V4: 5）導入ポテンシャル（電気のみ・設備容量） | AC4: 設備容量 ［kW］ | AD4: 発電電力量［MWh/年］ | AE4: 導入ポテンシャル ［億MJ/年］
C5: （令和5年度） | J5: 平成27年度 | K5: 平成28年度 | L5: 平成29年度 | M5: 平成30年度 | N5: 令和元年度 | O5: 令和2年度 | P5: 令和3年度 | Q5: 令和4年度 | R5: 令和5年度
G6: 太陽光発電（10kW未満） | J6: =VLOOKUP(年度マスタ!$K$4&"_"&J$5,データシート1!$A:$BT,MATCH("cb_"&$G6,データシート1!$A$1:$BT$1,0),0) -> 597 | K6: =VLOOKUP(年度マスタ!$K$4&"_"&K$5,データシート1!$A:$BT,MATCH("cb_"&$G6,データシート1!$A$1:$BT$1,0),0) -> 670 | L6: =VLOOKUP(年度マスタ!$K$4&"_"&L$5,データシート1!$A:$BT,MATCH("cb_"&$G6,データシート1!$A$1:$BT$1,0),0) -> 738 | M6: =VLOOKUP(年度マスタ!$K$4&"_"&M$5,データシート1!$A:$BT,MATCH("cb_"&$G6,データシート1!$A$1:$BT$1,0),0) -> 816 | N6: =VLOOKUP(年度マスタ!$K$4&"_"&N$5,データシート1!$A:$BT,MATCH("cb_"&$G6,データシート1!$A$1:$BT$1,0),0) -> 843 | O6: =VLOOKUP(年度マスタ!$K$4&"_"&O$5,データシート1!$A:$BT,MATCH("cb_"&$G6,データシート1!$A$1:$BT$1,0),0) -> 920 | P6: =VLOOKUP(年度マスタ!$K$4&"_"&P$5,データシート1!$A:$BT,MATCH("cb_"&$G6,データシート1!$A$1:$BT$1,0),0) -> 1,001 | Q6: =VLOOKUP(年度マスタ!$K$4&"_"&Q$5,データシート1!$A:$BT,MATCH("cb_"&$G6,データシート1!$A$1:$BT$1,0),0) -> 1,043 | R6: =VLOOKUP(年度マスタ!$K$4&"_"&R$5,データシート1!$A:$BT,MATCH("cb_"&$G6,データシート1!$A$1:$BT$1,0),0) -> 1,106 | Y6: 太陽光発電（合計） | Z6: 太陽光発電 | AC6: =SUM(AC7:AC8) -> 921,012 | AD6: =SUM(AD7:AD8) -> 1,113,959 | AE6: =$AD6*3600/100000000 -> 40
G7: 太陽光発電（10kW以上） | J7: =VLOOKUP(年度マスタ!$K$4&"_"&J$5,データシート1!$A:$BT,MATCH("cb_"&$G7,データシート1!$A$1:$BT$1,0),0) -> 14,774 | K7: =VLOOKUP(年度マスタ!$K$4&"_"&K$5,データシート1!$A:$BT,MATCH("cb_"&$G7,データシート1!$A$1:$BT$1,0),0) -> 19,545 | L7: =VLOOKUP(年度マスタ!$K$4&"_"&L$5,データシート1!$A:$BT,MATCH("cb_"&$G7,データシート1!$A$1:$BT$1,0),0) -> 20,257 | M7: =VLOOKUP(年度マスタ!$K$4&"_"&M$5,データシート1!$A:$BT,MATCH("cb_"&$G7,データシート1!$A$1:$BT$1,0),0) -> 21,811 | N7: =VLOOKUP(年度マスタ!$K$4&"_"&N$5,データシート1!$A:$BT,MATCH("cb_"&$G7,データシート1!$A$1:$BT$1,0),0) -> 25,417 | O7: =VLOOKUP(年度マスタ!$K$4&"_"&O$5,データシート1!$A:$BT,MATCH("cb_"&$G7,データシート1!$A$1:$BT$1,0),0) -> 25,599 | P7: =VLOOKUP(年度マスタ!$K$4&"_"&P$5,データシート1!$A:$BT,MATCH("cb_"&$G7,データシート1!$A$1:$BT$1,0),0) -> 26,497 | Q7: =VLOOKUP(年度マスタ!$K$4&"_"&Q$5,データシート1!$A:$BT,MATCH("cb_"&$G7,データシート1!$A$1:$BT$1,0),0) -> 26,596 | R7: =VLOOKUP(年度マスタ!$K$4&"_"&R$5,データシート1!$A:$BT,MATCH("cb_"&$G7,データシート1!$A$1:$BT$1,0),0) -> 26,596 | Y7: 太陽光（建物系） | Z7: 建物系 | AC7: =VLOOKUP(年度マスタ!$K$4&"_"&年度マスタ!$K$9,データシート3!A:AB,MATCH("ea_"&$Y7&"_設備",データシート3!$A$1:$AB$1,0),0) -> 160,012 | AD7: =VLOOKUP(年度マスタ!$K$4&"_"&年度マスタ!$K$9,データシート3!A:AB,MATCH("ea_"&$Y7&"_年間発電",データシート3!$A$1:$AB$1,0),0)/10^3 -> 193,376 | AE7: =$AD7*3600/100000000 -> 7
G8: 風力発電 | J8: =VLOOKUP(年度マスタ!$K$4&"_"&J$5,データシート1!$A:$BT,MATCH("cb_"&$G8,データシート1!$A$1:$BT$1,0),0) -> 0 | K8: =VLOOKUP(年度マスタ!$K$4&"_"&K$5,データシート1!$A:$BT,MATCH("cb_"&$G8,データシート1!$A$1:$BT$1,0),0) -> 0 | L8: =VLOOKUP(年度マスタ!$K$4&"_"&L$5,データシート1!$A:$BT,MATCH("cb_"&$G8,データシート1!$A$1:$BT$1,0),0) -> 0 | M8: =VLOOKUP(年度マスタ!$K$4&"_"&M$5,データシート1!$A:$BT,MATCH("cb_"&$G8,データシート1!$A$1:$BT$1,0),0) -> 0 | N8: =VLOOKUP(年度マスタ!$K$4&"_"&N$5,データシート1!$A:$BT,MATCH("cb_"&$G8,データシート1!$A$1:$BT$1,0),0) -> 0 | O8: =VLOOKUP(年度マスタ!$K$4&"_"&O$5,データシート1!$A:$BT,MATCH("cb_"&$G8,データシート1!$A$1:$BT$1,0),0) -> 20 | P8: =VLOOKUP(年度マスタ!$K$4&"_"&P$5,データシート1!$A:$BT,MATCH("cb_"&$G8,データシート1!$A$1:$BT$1,0),0) -> 20 | Q8: =VLOOKUP(年度マスタ!$K$4&"_"&Q$5,データシート1!$A:$BT,MATCH("cb_"&$G8,データシート1!$A$1:$BT$1,0),0) -> 20 | R8: =VLOOKUP(年度マスタ!$K$4&"_"&R$5,データシート1!$A:$BT,MATCH("cb_"&$G8,データシート1!$A$1:$BT$1,0),0) -> 20 | Y8: 太陽光（土地系） | Z8: 土地系 | AC8: =VLOOKUP(年度マスタ!$K$4&"_"&年度マスタ!$K$9,データシート3!A:AB,MATCH("ea_"&$Y8&"_設備",データシート3!$A$1:$AB$1,0),0) -> 761,000 | AD8: =VLOOKUP(年度マスタ!$K$4&"_"&年度マスタ!$K$9,データシート3!A:AB,MATCH("ea_"&$Y8&"_年間発電",データシート3!$A$1:$AB$1,0),0)/10^3 -> 920,584 | AE8: 33
G9: 水力発電 | J9: =VLOOKUP(年度マスタ!$K$4&"_"&J$5,データシート1!$A:$BT,MATCH("cb_"&$G9,データシート1!$A$1:$BT$1,0),0) -> 0 | K9: =VLOOKUP(年度マスタ!$K$4&"_"&K$5,データシート1!$A:$BT,MATCH("cb_"&$G9,データシート1!$A$1:$BT$1,0),0) -> 0 | L9: =VLOOKUP(年度マスタ!$K$4&"_"&L$5,データシート1!$A:$BT,MATCH("cb_"&$G9,データシート1!$A$1:$BT$1,0),0) -> 0 | M9: =VLOOKUP(年度マスタ!$K$4&"_"&M$5,データシート1!$A:$BT,MATCH("cb_"&$G9,データシート1!$A$1:$BT$1,0),0) -> 0 | N9: =VLOOKUP(年度マスタ!$K$4&"_"&N$5,データシート1!$A:$BT,MATCH("cb_"&$G9,データシート1!$A$1:$BT$1,0),0) -> 0 | O9: =VLOOKUP(年度マスタ!$K$4&"_"&O$5,データシート1!$A:$BT,MATCH("cb_"&$G9,データシート1!$A$1:$BT$1,0),0) -> 0 | P9: =VLOOKUP(年度マスタ!$K$4&"_"&P$5,データシート1!$A:$BT,MATCH("cb_"&$G9,データシート1!$A$1:$BT$1,0),0) -> 0 | Q9: =VLOOKUP(年度マスタ!$K$4&"_"&Q$5,データシート1!$A:$BT,MATCH("cb_"&$G9,データシート1!$A$1:$BT$1,0),0) -> 0 | R9: =VLOOKUP(年度マスタ!$K$4&"_"&R$5,データシート1!$A:$BT,MATCH("cb_"&$G9,データシート1!$A$1:$BT$1,0),0) -> 0 | Y9: 風力（陸上） | Z9: 風力発電 | AC9: =VLOOKUP(年度マスタ!$K$4&"_"&年度マスタ!$K$9,データシート3!A:AB,MATCH("ea_"&$Y9&"_設備",データシート3!$A$1:$AB$1,0),0) -> 53,900 | AD9: =VLOOKUP(年度マスタ!$K$4&"_"&年度マスタ!$K$9,データシート3!A:AB,MATCH("ea_"&$Y9&"_年間発電",データシート3!$A$1:$AB$1,0),0)/10^3 -> 110,258 | AE9: 4
G10: 地熱発電 | J10: =VLOOKUP(年度マスタ!$K$4&"_"&J$5,データシート1!$A:$BT,MATCH("cb_"&$G10,データシート1!$A$1:$BT$1,0),0) -> 0 | K10: =VLOOKUP(年度マスタ!$K$4&"_"&K$5,データシート1!$A:$BT,MATCH("cb_"&$G10,データシート1!$A$1:$BT$1,0),0) -> 0 | L10: =VLOOKUP(年度マスタ!$K$4&"_"&L$5,データシート1!$A:$BT,MATCH("cb_"&$G10,データシート1!$A$1:$BT$1,0),0) -> 0 | M10: =VLOOKUP(年度マスタ!$K$4&"_"&M$5,データシート1!$A:$BT,MATCH("cb_"&$G10,データシート1!$A$1:$BT$1,0),0) -> 0 | N10: =VLOOKUP(年度マスタ!$K$4&"_"&N$5,データシート1!$A:$BT,MATCH("cb_"&$G10,データシート1!$A$1:$BT$1,0),0) -> 0 | O10: =VLOOKUP(年度マスタ!$K$4&"_"&O$5,データシート1!$A:$BT,MATCH("cb_"&$G10,データシート1!$A$1:$BT$1,0),0) -> 0 | P10: =VLOOKUP(年度マスタ!$K$4&"_"&P$5,データシート1!$A:$BT,MATCH("cb_"&$G10,データシート1!$A$1:$BT$1,0),0) -> 0 | Q10: =VLOOKUP(年度マスタ!$K$4&"_"&Q$5,データシート1!$A:$BT,MATCH("cb_"&$G10,データシート1!$A$1:$BT$1,0),0) -> 0 | R10: =VLOOKUP(年度マスタ!$K$4&"_"&R$5,データシート1!$A:$BT,MATCH("cb_"&$G10,データシート1!$A$1:$BT$1,0),0) -> 0 | Y10: 中小水力発電（合計） | Z10: 中小水力発電 | AC10: =SUM(AC11:AC12) -> 351 | AD10: =SUM(AD11:AD12) -> 2,107 | AE10: 0
G11: バイオマス発電 | I11: ※2 | J11: =VLOOKUP(年度マスタ!$K$4&"_"&J$5,データシート1!$A:$BT,MATCH("cb_"&$G11,データシート1!$A$1:$BT$1,0),0) -> 0 | K11: =VLOOKUP(年度マスタ!$K$4&"_"&K$5,データシート1!$A:$BT,MATCH("cb_"&$G11,データシート1!$A$1:$BT$1,0),0) -> 0 | L11: =VLOOKUP(年度マスタ!$K$4&"_"&L$5,データシート1!$A:$BT,MATCH("cb_"&$G11,データシート1!$A$1:$BT$1,0),0) -> 0 | M11: =VLOOKUP(年度マスタ!$K$4&"_"&M$5,データシート1!$A:$BT,MATCH("cb_"&$G11,データシート1!$A$1:$BT$1,0),0) -> 0 | N11: =VLOOKUP(年度マスタ!$K$4&"_"&N$5,データシート1!$A:$BT,MATCH("cb_"&$G11,データシート1!$A$1:$BT$1,0),0) -> 0 | O11: =VLOOKUP(年度マスタ!$K$4&"_"&O$5,データシート1!$A:$BT,MATCH("cb_"&$G11,データシート1!$A$1:$BT$1,0),0) -> 0 | P11: =VLOOKUP(年度マスタ!$K$4&"_"&P$5,データシート1!$A:$BT,MATCH("cb_"&$G11,データシート1!$A$1:$BT$1,0),0) -> 0 | Q11: =VLOOKUP(年度マスタ!$K$4&"_"&Q$5,データシート1!$A:$BT,MATCH("cb_"&$G11,データシート1!$A$1:$BT$1,0),0) -> 0 | R11: =VLOOKUP(年度マスタ!$K$4&"_"&R$5,データシート1!$A:$BT,MATCH("cb_"&$G11,データシート1!$A$1:$BT$1,0),0) -> 0 | Y11: 中小水（河川） | Z11: 河川 | AC11: =VLOOKUP(年度マスタ!$K$4&"_"&年度マスタ!$K$9,データシート3!A:AB,MATCH("ea_"&$Y11&"_設備",データシート3!$A$1:$AB$1,0),0) -> 351 | AD11: =VLOOKUP(年度マスタ!$K$4&"_"&年度マスタ!$K$9,データシート3!A:AB,MATCH("ea_"&$Y11&"_年間発電",データシート3!$A$1:$AB$1,0),0)/10^3 -> 2,107 | AE11: 0
G12: 再生可能エネルギー合計 | J12: =SUM(J6:J11) -> 15,371 | K12: =SUM(K6:K11) -> 20,214 | L12: 20,996 | M12: 22,627 | N12: 26,261 | O12: 26,538 | P12: 27,517 | Q12: 27,659 | R12: =SUM(R6:R11) -> 27,722 | Y12: 中小水（農業用水路） | Z12: 農業用水路 | AC12: =VLOOKUP(年度マスタ!$K$4&"_"&年度マスタ!$K$9,データシート3!A:AB,MATCH("ea_"&$Y12&"_設備",データシート3!$A$1:$AB$1,0),0) -> 0 | AD12: =VLOOKUP(年度マスタ!$K$4&"_"&年度マスタ!$K$9,データシート3!A:AB,MATCH("ea_"&$Y12&"_年間発電",データシート3!$A$1:$AB$1,0),0)/10^3 -> 0 | AE12: 0
Y13: 地熱発電（合計） | Z13: 地熱発電 | AC13: =SUM(AC14:AC16) -> 5 | AD13: =SUM(AD14:AD16) -> 32 | AE13: 0 | AF13: =AF15 -> 0
Y14: 地熱（蒸気フラッシュ発電） | Z14: 蒸気フラッシュ発電 | AC14: =VLOOKUP(年度マスタ!$K$4&"_"&年度マスタ!$K$9,データシート3!A:AB,MATCH("ea_"&$Y14&"_設備",データシート3!$A$1:$AB$1,0),0) -> 0 | AD14: =VLOOKUP(年度マスタ!$K$4&"_"&年度マスタ!$K$9,データシート3!A:AB,MATCH("ea_"&$Y14&"_年間発電",データシート3!$A$1:$AB$1,0),0)/10^3 -> 0 | AE14: 0
Y15: 地熱（バイナリー発電） | Z15: バイナリー発電 | AC15: =VLOOKUP(年度マスタ!$K$4&"_"&年度マスタ!$K$9,データシート3!A:AB,MATCH("ea_"&$Y15&"_設備",データシート3!$A$1:$AB$1,0),0) -> 0 | AD15: =VLOOKUP(年度マスタ!$K$4&"_"&年度マスタ!$K$9,データシート3!A:AB,MATCH("ea_"&$Y15&"_年間発電",データシート3!$A$1:$AB$1,0),0)/10^3 -> 0 | AE15: 0
R16: ［MWh/年］ | Y16: 地熱（低温バイナリー発電） | Z16: 低温バイナリー発電 | AC16: =VLOOKUP(年度マスタ!$K$4&"_"&年度マスタ!$K$9,データシート3!A:AB,MATCH("ea_"&$Y16&"_設備",データシート3!$A$1:$AB$1,0),0) -> 5 | AD16: =VLOOKUP(年度マスタ!$K$4&"_"&年度マスタ!$K$9,データシート3!A:AB,MATCH("ea_"&$Y16&"_年間発電",データシート3!$A$1:$AB$1,0),0)/10^3 -> 32 | AE16: 0
J17: 区域の再生可能エネルギーによる発電電力量※3 | V17: 6）導入ポテンシャル（発電電力量・利用可能熱量） | Y17: 太陽熱 | Z17: 太陽熱 | AC17: － | AD17: － | AE17: =VLOOKUP(年度マスタ!$K$4&"_"&年度マスタ!$K$9,データシート3!A:AB,MATCH("ea_"&$Y17&"_設備",データシート3!$A$1:$AB$1,0),0)/10^8 -> 4
J18: 平成27年度 | K18: 平成28年度 | L18: 平成29年度 | M18: 平成30年度 | N18: 令和元年度 | O18: 令和2年度 | P18: 令和3年度 | Q18: 令和4年度 | R18: 令和5年度 | Y18: 地中熱 | Z18: 地中熱 | AC18: － | AD18: － | AE18: =VLOOKUP(年度マスタ!$K$4&"_"&年度マスタ!$K$9,データシート3!A:AB,MATCH("ea_"&$Y18&"_設備",データシート3!$A$1:$AB$1,0),0)/10^8 -> 15
C19: 2）区域の再生可能エネルギーによる発電電力量 | G19: 太陽光発電（10kW未満） | J19: =J6*別紙!$C5/100*別紙!$E5/10^3 -> 716 | K19: =K6*別紙!$C5/100*別紙!$E5/10^3 -> 804 | L19: =L6*別紙!$C5/100*別紙!$E5/10^3 -> 886 | M19: =M6*別紙!$C5/100*別紙!$E5/10^3 -> 979 | N19: =N6*別紙!$C5/100*別紙!$E5/10^3 -> 1,012 | O19: =O6*別紙!$C5/100*別紙!$E5/10^3 -> 1,104 | P19: =P6*別紙!$C5/100*別紙!$E5/10^3 -> 1,201 | Q19: =Q6*別紙!$C5/100*別紙!$E5/10^3 -> 1,252 | R19: =R6*別紙!$C5/100*別紙!$E5/10^3 -> 1,328 | Z19: 再生可能エネルギー合計 | AC19: =SUM($AC$6,$AC$9,$AC$10,$AC$13) -> 975,268 | AD19: =SUM($AD$6,$AD$9,$AD$10,$AD$13) -> 1,226,356 | AE19: =SUM($AE$6,$AE$9,$AE$10,$AE$13,$AE$17,$AE$18) -> 63
C20: （令和5年度） | G20: 太陽光発電（10kW以上） | J20: =J7*別紙!$C6/100*別紙!$E6/10^3 -> 19,542 | K20: =K7*別紙!$C6/100*別紙!$E6/10^3 -> 25,853 | L20: =L7*別紙!$C6/100*別紙!$E6/10^3 -> 26,796 | M20: =M7*別紙!$C6/100*別紙!$E6/10^3 -> 28,851 | N20: =N7*別紙!$C6/100*別紙!$E6/10^3 -> 33,621 | O20: =O7*別紙!$C6/100*別紙!$E6/10^3 -> 33,861 | P20: =P7*別紙!$C6/100*別紙!$E6/10^3 -> 35,049 | Q20: =Q7*別紙!$C6/100*別紙!$E6/10^3 -> 35,180 | R20: =R7*別紙!$C6/100*別紙!$E6/10^3 -> 35,180
G21: 風力発電 | J21: =J8*別紙!$C7/100*別紙!$E7/10^3 -> 0 | K21: =K8*別紙!$C7/100*別紙!$E7/10^3 -> 0 | L21: =L8*別紙!$C7/100*別紙!$E7/10^3 -> 0 | M21: =M8*別紙!$C7/100*別紙!$E7/10^3 -> 0 | N21: =N8*別紙!$C7/100*別紙!$E7/10^3 -> 0 | O21: =O8*別紙!$C7/100*別紙!$E7/10^3 -> 43 | P21: =P8*別紙!$C7/100*別紙!$E7/10^3 -> 43 | Q21: =Q8*別紙!$C7/100*別紙!$E7/10^3 -> 43 | R21: =R8*別紙!$C7/100*別紙!$E7/10^3 -> 43
G22: 水力発電 | J22: =J9*別紙!$C8/100*別紙!$E8/10^3 -> 0 | K22: =K9*別紙!$C8/100*別紙!$E8/10^3 -> 0 | L22: =L9*別紙!$C8/100*別紙!$E8/10^3 -> 0 | M22: =M9*別紙!$C8/100*別紙!$E8/10^3 -> 0 | N22: =N9*別紙!$C8/100*別紙!$E8/10^3 -> 0 | O22: =O9*別紙!$C8/100*別紙!$E8/10^3 -> 0 | P22: =P9*別紙!$C8/100*別紙!$E8/10^3 -> 0 | Q22: =Q9*別紙!$C8/100*別紙!$E8/10^3 -> 0 | R22: =R9*別紙!$C8/100*別紙!$E8/10^3 -> 0 | Z22: 参考）再エネ導入ポテンシャルと再エネ導入量の集計対象の整理※8
G23: 地熱発電 | J23: =J10*別紙!$C9/100*別紙!$E9/10^3 -> 0 | K23: =K10*別紙!$C9/100*別紙!$E9/10^3 -> 0 | L23: =L10*別紙!$C9/100*別紙!$E9/10^3 -> 0 | M23: =M10*別紙!$C9/100*別紙!$E9/10^3 -> 0 | N23: =N10*別紙!$C9/100*別紙!$E9/10^3 -> 0 | O23: =O10*別紙!$C9/100*別紙!$E9/10^3 -> 0 | P23: =P10*別紙!$C9/100*別紙!$E9/10^3 -> 0 | Q23: =Q10*別紙!$C9/100*別紙!$E9/10^3 -> 0 | R23: =R10*別紙!$C9/100*別紙!$E9/10^3 -> 0 | AA23: 再エネ導入ポテンシャル | AD23: 再エネ導入量
G24: バイオマス発電 | I24: ※2 | J24: =J11*別紙!$C10/100*別紙!$E10/10^3 -> 0 | K24: =K11*別紙!$C10/100*別紙!$E10/10^3 -> 0 | L24: =L11*別紙!$C10/100*別紙!$E10/10^3 -> 0 | M24: =M11*別紙!$C10/100*別紙!$E10/10^3 -> 0 | N24: =N11*別紙!$C10/100*別紙!$E10/10^3 -> 0 | O24: =O11*別紙!$C10/100*別紙!$E10/10^3 -> 0 | P24: =P11*別紙!$C10/100*別紙!$E10/10^3 -> 0 | Q24: =Q11*別紙!$C10/100*別紙!$E10/10^3 -> 0 | R24: =R11*別紙!$C10/100*別紙!$E10/10^3 -> 0 | Z24: データ出所 | AA24: REPOS（ポテンシャル情報） | AD24: 再エネ特措法 情報公表用ウェブサイト （全国・都道府県はA表、市町村はB表）
G25: 再生可能エネルギー合計 | J25: =SUM(J19:J24) -> 20,259 | K25: 26,657 | L25: 27,681 | M25: 29,830 | N25: 34,633 | O25: 35,008 | P25: 36,293 | Q25: 36,475 | R25: =SUM(R19:R24) -> 36,551
G26: 区域の電気使用量 ※4 | J26: =(VLOOKUP(年度マスタ!$K$4&"_"&J$18,データシート1!$A:$BT,MATCH("da_合計",データシート1!$A$1:$BT$1,0),0))/10^3 -> 145,001 | K26: =(VLOOKUP(年度マスタ!$K$4&"_"&K$18,データシート1!$A:$BT,MATCH("da_合計",データシート1!$A$1:$BT$1,0),0))/10^3 -> 140,248 | L26: =(VLOOKUP(年度マスタ!$K$4&"_"&L$18,データシート1!$A:$BT,MATCH("da_合計",データシート1!$A$1:$BT$1,0),0))/10^3 -> 141,827 | M26: =(VLOOKUP(年度マスタ!$K$4&"_"&M$18,データシート1!$A:$BT,MATCH("da_合計",データシート1!$A$1:$BT$1,0),0))/10^3 -> 134,534 | N26: =(VLOOKUP(年度マスタ!$K$4&"_"&N$18,データシート1!$A:$BT,MATCH("da_合計",データシート1!$A$1:$BT$1,0),0))/10^3 -> 128,848 | O26: =(VLOOKUP(年度マスタ!$K$4&"_"&O$18,データシート1!$A:$BT,MATCH("da_合計",データシート1!$A$1:$BT$1,0),0))/10^3 -> 133,464 | P26: =(VLOOKUP(年度マスタ!$K$4&"_"&P$18,データシート1!$A:$BT,MATCH("da_合計",データシート1!$A$1:$BT$1,0),0))/10^3 -> 149,117 | Q26: =(VLOOKUP(年度マスタ!$K$4&"_"&Q$18,データシート1!$A:$BT,MATCH("da_合計",データシート1!$A$1:$BT$1,0),0))/10^3 -> 133,669 | R26: =Q26 -> 133,669 | Z26: 太陽光発電 | AA26: 太陽光発電（建物系・土地系） | AD26: 太陽光発電（10kW未満・10kW以上）
G27: 対電気使用量FIT・FIP導入比※5 | J27: =J25/J26 -> 14.0% | K27: =K25/K26 -> 19.0% | L27: 19.5% | M27: 22.2% | N27: 26.9% | O27: 26.2% | P27: 24.3% | Q27: =Q25/Q26 -> 27.3% | R27: =R25/R26 -> 27.3% | Z27: 風力発電 | AA27: 風力発電（陸上） | AD27: 風力発電（20kW未満・20kW以上のうち洋上風力を除く）
Z29: 水力発電 | AA29: 中小水力発電(河川・農業用水路) | AD29: 水力発電
Z30: 地熱発電 | AA30: 蒸気フラッシュ発電・バイナリー発電・低温バイナリー発電 | AD30: 地熱発電
C34: 3）区域の再生可能エネルギーの導入設備容量の推移（累積） | K34: 4） 区域の太陽光発電（10kW未満※6）設備の導入件数の推移（累積） | U34: 3 区域のエネルギー消費量及び再生可能エネルギー導入ポテンシャル・導入量の比較（電気）
V35: 7）区域内のエネルギー消費量に対する再エネ導入ポテンシャル（電気） | AB35: 8）区域内の再エネ導入ポテンシャルと再エネ導入量（電気）
V50: 区域のエネルギー消費量と再エネ導入ポテンシャル（電気） | AC50: 再エネ導入ポテンシャル［MWh/年］ | AD50: 再エネ導入量［MWh/年］ | AE50: 再エネポテンシャルに占める導入割合 | AI50: グラフ作成用
V51: 対電気使用量FIT・FIP導入比（再エネ自給率） | Z51: =R27 -> 27.3% | AI51: 区域の太陽光発電（10kW未満）設備の導入件数累積の経年変化
V52: 対電気使用量再エネ導入ポテンシャル比 ※9 | Z52: =AD19/R26 -> 917.5% | AB52: 太陽光発電 | AC52: =$AD6 -> 1,113,959 | AD52: =R19+R20 -> 36,508 | AE52: =IFERROR(AD52/AC52,"-") -> 3.3%
V53: 再エネ | W53: =IF($AD$19<$Q$26,"不足量","余剰量")&"[MWh/年]" -> 余剰量[MWh/年] | X53: ※10 | Y53: =IF($AD$19<$R$26,(-1)*($AD$19-$R$26),$AD$19-$R$26) -> 1,092,687 | AB53: 風力発電 | AC53: =$AD9 -> 110,258 | AD53: =R21 -> 43 | AE53: 0.0% | AJ53: 平成27年度 | AK53: 平成28年度 | AL53: 平成29年度 | AM53: 平成30年度 | AN53: 令和元年度 | AO53: 令和2年度 | AP53: 令和3年度 | AQ53: 令和4年度 | AR53: 令和5年度
AB54: 水力発電 | AC54: =$AD10 -> 2,107 | AD54: =R22 -> 0 | AE54: 0.0% | AI54: 導入件数 | AJ54: =VLOOKUP(年度マスタ!$K$4&"_"&AJ$53,データシート1!$A$1:$BT$2000,MATCH("ca_太陽光発電（10kW未満）",データシート1!$A$1:$BT$1,0),0) -> 136 | AK54: =VLOOKUP(年度マスタ!$K$4&"_"&AK$53,データシート1!$A$1:$BT$2000,MATCH("ca_太陽光発電（10kW未満）",データシート1!$A$1:$BT$1,0),0) -> 152 | AL54: =VLOOKUP(年度マスタ!$K$4&"_"&AL$53,データシート1!$A$1:$BT$2000,MATCH("ca_太陽光発電（10kW未満）",データシート1!$A$1:$BT$1,0),0) -> 162 | AM54: =VLOOKUP(年度マスタ!$K$4&"_"&AM$53,データシート1!$A$1:$BT$2000,MATCH("ca_太陽光発電（10kW未満）",データシート1!$A$1:$BT$1,0),0) -> 178 | AN54: =VLOOKUP(年度マスタ!$K$4&"_"&AN$53,データシート1!$A$1:$BT$2000,MATCH("ca_太陽光発電（10kW未満）",データシート1!$A$1:$BT$1,0),0) -> 183 | AO54: =VLOOKUP(年度マスタ!$K$4&"_"&AO$53,データシート1!$A$1:$BT$2000,MATCH("ca_太陽光発電（10kW未満）",データシート1!$A$1:$BT$1,0),0) -> 197 | AP54: =VLOOKUP(年度マスタ!$K$4&"_"&AP$53,データシート1!$A$1:$BT$2000,MATCH("ca_太陽光発電（10kW未満）",データシート1!$A$1:$BT$1,0),0) -> 212 | AQ54: =VLOOKUP(年度マスタ!$K$4&"_"&AQ$53,データシート1!$A$1:$BT$2000,MATCH("ca_太陽光発電（10kW未満）",データシート1!$A$1:$BT$1,0),0) -> 221 | AR54: =VLOOKUP(年度マスタ!$K$4&"_"&AR$53,データシート1!$A$1:$BT$2000,MATCH("ca_太陽光発電（10kW未満）",データシート1!$A$1:$BT$1,0),0) -> 233
AB55: 地熱発電 | AC55: =$AD13 -> 32 | AD55: =R23 -> 0 | AE55: =IFERROR(AD55/AC55,"-") -> 0.0%

Sheet 排出量比較シート
B1: 自治体排出量カルテ 他の地方公共団体との比較（部門・分野別排出量） | AT1: =AY12 -> 羽咋市
B2: ="1 部門・分野別排出量の比較（標準的手法）（" & $BC$14 & "（" & $BC$15 & "年度））" -> 1 部門・分野別排出量の比較（標準的手法）（令和3年度（2021年度）） | AC2: ="2 区域の排出量に占める特定事業所排出量比率の比較（"&BC14&"（"&BC15&"年度））" -> 2 区域の排出量に占める特定事業所排出量比率の比較（令和3年度（2021年度））
B3: 1）部門・分野別CO2排出量の比較 | O3: 2）部門・分野別CO2排出量構成比の比較 | AC3: 3）産業部門 | AL3: 4）業務その他部門
AX11: 年度マスタ | BC11: データ（排出量） | CW11: データ（特定事業所排出量） | DF11: データ（特定事業所件数）
AX12: =年度マスタ!$I4 -> 石川県 | AY12: =年度マスタ!$J4 -> 羽咋市 | AZ12: =年度マスタ!$K4 -> 17207 | BC12: aa | CW12: ba | DF12: bb
AX13: =年度マスタ!$I5 -> A.現況推計データ | AY13: =年度マスタ!$J5 -> 2022 | AZ13: =年度マスタ!$K5 -> 令和4年度 | BC13: A.現況推計データ | CW13: B.SHKデータ | DF13: B.SHKデータ
AX14: =年度マスタ!$I6 -> B.SHKデータ | AY14: =年度マスタ!$J6 -> 2021 | AZ14: =年度マスタ!$K6 -> 令和3年度 | BC14: =AZ14 -> 令和3年度 | BD14: ←SHKデータと同じ年度を利用 | CW14: =VLOOKUP(CW13,$AX$12:$AZ$16,3,0) -> 令和3年度 | DF14: =VLOOKUP(DF13,$AX$12:$AZ$16,3,0) -> 令和3年度
AX15: =年度マスタ!$I7 -> C.FITデータ | AY15: =年度マスタ!$J7 -> 2023 | AZ15: =年度マスタ!$K7 -> 令和5年度 | BC15: =AY14 -> 2021 | CW15: =VLOOKUP(CW13,$AX$12:$AZ$16,2,0) -> 2021 | DF15: =VLOOKUP(DF13,$AX$12:$AZ$16,2,0) -> 2021
AX16: =年度マスタ!$I8 -> D.区域電力使用量データ | AY16: =年度マスタ!$J8 -> 2022 | AZ16: =年度マスタ!$K8 -> 令和4年度 | CK16: ３)産業部門
BB17: １）部門・分野別の温室効果ガス（CO2）排出量の比較 | BR17: 千t-CO2 | BT17: ２）部門・分野別の温室効果ガス（CO2）構成比の比較 | CK17: ４)業務その他部門 | CW17: ５)特定事業所排出量の比較 | DF17: ６)特定事業所数の比較 | DN17: ７)特定事業所排出量の部門別構成比の比較
BE18: 産業部門 | BI18: 業務その他部門 | BJ18: 家庭部門 | BK18: 運輸部門 | BQ18: 廃棄物分野（一般廃棄物） | BV18: 産業部門 | BZ18: 業務その他部門 | CA18: 家庭部門 | CB18: 運輸部門 | CH18: 廃棄物分野（一般廃棄物） | CL18: 標準的手法に基づく排出量（単位：千t-CO2) | CW18: 特定事業所排出量（産業別）（単位：千t-CO2) | DF18: 特定事業所数（産業別）（単位：箇所) | DN18: 特定事業所排出量の部門別構成比
BF19: 製造業 | BG19: 建設業・鉱業 | BH19: 農林水産業 | BL19: 自動車 | BO19: 鉄道 | BP19: 船舶 | BW19: 製造業 | BX19: 建設業・鉱業 | BY19: 農林水産業 | CC19: 自動車 | CF19: 鉄道 | CG19: 船舶 | CW19: 産業部門 | CX19: 製造業 | CY19: 建設業・鉱業 | CZ19: 農林水産業 | DA19: 業務その他部門 | DB19: エネルギー転換部門 | DC19: 分類不能 | DD19: 合計 | DF19: 製造業 | DG19: 建設業・鉱業 | DH19: 農林水産業 | DI19: 業務その他部門 | DJ19: エネルギー転換部門 | DK19: 分類不能 | DL19: 合計 | DN19: 製造業 | DO19: 建設業・鉱業 | DP19: 農林水産業 | DQ19: 業務その他部門 | DR19: エネルギー転換部門 | DS19: 分類不能
AX20: 該当コード | AY20: 該当地域名 | BC20: グラフ 作成用 | BD20: 合計 | BE20: 産業部門 | BF20: 製造業 | BG20: 建設業・鉱業 | BH20: 農林水産業 | BI20: 業務その他部門 | BJ20: 家庭部門 | BK20: 運輸部門 | BL20: 自動車 | BM20: 旅客 | BN20: 貨物 | BO20: 鉄道 | BP20: 船舶 | BQ20: 廃棄物分野（一般廃棄物） | BR20: 合計 | BU20: 合計 | BV20: 産業部門 | BW20: 製造業 | BX20: 建設業・鉱業 | BY20: 農林水産業 | BZ20: 業務その他部門 | CA20: 家庭部門 | CB20: 運輸部門 | CC20: 自動車 | CD20: 旅客 | CE20: 貨物 | CF20: 鉄道 | CG20: 船舶 | CH20: 廃棄物分野（一般廃棄物） | CI20: 合計 | CK20: グラフ 作成用 | CL20: 産業部門 | CM20: (カバー率) | CN20: 製造業 | CO20: (カバー率) | CP20: 建設業・鉱業 | CQ20: (カバー率) | CR20: 農林水産業 | CS20: (カバー率) | CT20: 業務その他部門 | CU20: (カバー率) | CW20: 産業部門 | CX20: 製造業 | CY20: 建設業・鉱業 | CZ20: 農林水産業 | DA20: 業務その他部門 | DB20: エネルギー転換部門 | DC20: 分類不能 | DD20: 合計 | DF20: 製造業 | DG20: 建設業・鉱業 | DH20: 農林水産業 | DI20: 業務その他部門 | DJ20: エネルギー転換部門 | DK20: 分類不能 | DL20: 合計 | DN20: 製造業 | DO20: 建設業・鉱業 | DP20: 農林水産業 | DQ20: 業務その他部門 | DR20: エネルギー転換部門 | DS20: 分類不能
AX21: =比較地域マスタ!$Y6 -> 19384 | AY21: =IF(IFERROR(比較地域マスタ!$Z6,"")=0,"",IFERROR(比較地域マスタ!$Z6,"")) -> 昭和町 | BB21: =AX21 -> 19384 | BC21: 昭和町 | BD21: =SUM(BE21,BI21:BK21,BQ21) -> 205 | BE21: =SUM(BF21:BH21) -> 76 | BF21: =VLOOKUP($AX21&"_"&$BC$14,データシート1!$A:$BT,MATCH($BC$12&"_"&BF$20,データシート1!$A$1:$BT$1,0),0) -> 72 | BG21: =VLOOKUP($AX21&"_"&$BC$14,データシート1!$A:$BT,MATCH($BC$12&"_"&BG$20,データシート1!$A$1:$BT$1,0),0) -> 3 | BH21: =VLOOKUP($AX21&"_"&$BC$14,データシート1!$A:$BT,MATCH($BC$12&"_"&BH$20,データシート1!$A$1:$BT$1,0),0) -> 1 | BI21: =VLOOKUP($AX21&"_"&$BC$14,データシート1!$A:$BT,MATCH($BC$12&"_"&BI$20,データシート1!$A$1:$BT$1,0),0) -> 58 | BJ21: =VLOOKUP($AX21&"_"&$BC$14,データシート1!$A:$BT,MATCH($BC$12&"_"&BJ$20,データシート1!$A$1:$BT$1,0),0) -> 26 | BK21: =SUM(BL21,BO21:BP21) -> 43 | BL21: =SUM(BM21:BN21) -> 42 | BM21: =VLOOKUP($AX21&"_"&$BC$14,データシート1!$A:$BT,MATCH($BC$12&"_"&BM$20,データシート1!$A$1:$BT$1,0),0) -> 22 | BN21: =VLOOKUP($AX21&"_"&$BC$14,データシート1!$A:$BT,MATCH($BC$12&"_"&BN$20,データシート1!$A$1:$BT$1,0),0) -> 20 | BO21: =VLOOKUP($AX21&"_"&$BC$14,データシート1!$A:$BT,MATCH($BC$12&"_"&BO$20,データシート1!$A$1:$BT$1,0),0) -> 1 | BP21: =VLOOKUP($AX21&"_"&$BC$14,データシート1!$A:$BT,MATCH($BC$12&"_"&BP$20,データシート1!$A$1:$BT$1,0),0) -> 0 | BQ21: =VLOOKUP($AX21&"_"&$BC$14,データシート1!$A:$BT,MATCH($BC$12&"_"&BQ$20,データシート1!$A$1:$BT$1,0),0) -> 2 | BR21: =BD21 -> 205 | BT21: =AY21 -> 昭和町 | BU21: =BD21 -> 205 | BV21: =BE21/$BR21 -> 37% | BW21: =BF21/$BR21 -> 35% | BX21: 1% | BY21: 0% | BZ21: 28% | CA21: 13% | CB21: 21% | CC21: 20% | CD21: 11% | CE21: 10% | CF21: 1% | CG21: 0% | CH21: =BQ21/$BR21 -> 1% | CI21: =BR21/$BR21 -> 100% | CK21: =AY21 -> 昭和町 | CL21: =CN21+CP21+CR21 -> 76 | CM21: =IF(IF(CL21=0,0,CW21/CL21)>1,1,IF(CL21=0,0,CW21/CL21)) -> (100%) | CN21: =BF21 -> 72 | CO21: =IF(IF(CN21=0,0,CX21/CN21)>1,1,IF(CN21=0,0,CX21/CN21)) -> (100%) | CP21: =BG21 -> 3 | CQ21: =IF(IF(CP21=0,0,CY21/CP21)>1,1,IF(CP21=0,0,CY21/CP21)) -> 0 | CR21: =BH21 -> 1 | CS21: =IF(IF(CR21=0,0,CZ21/CR21)>1,1,IF(CR21=0,0,CZ21/CR21)) -> 0 | CT21: =BI21 -> 58 | CU21: =IF(IF(CT21=0,0,DA21/CT21)>1,1,IF(CT21=0,0,DA21/CT21)) -> (9%) | CW21: =SUM(CX21:CZ21) -> 162.543 | CX21: =VLOOKUP($AX21&"_"&$CW$14,データシート1!$A:$BT,MATCH($CW$12&"_"&CX$20,データシート1!$A$1:$BT$1,0),0) -> 162.543 | CY21: =VLOOKUP($AX21&"_"&$CW$14,データシート1!$A:$BT,MATCH($CW$12&"_"&CY$20,データシート1!$A$1:$BT$1,0),0) -> 0 | CZ21: =VLOOKUP($AX21&"_"&$CW$14,データシート1!$A:$BT,MATCH($CW$12&"_"&CZ$20,データシート1!$A$1:$BT$1,0),0) -> 0 | DA21: =VLOOKUP($AX21&"_"&$CW$14,データシート1!$A:$BT,MATCH($CW$12&"_"&DA$20,データシート1!$A$1:$BT$1,0),0) -> 4.941 | DB21: =VLOOKUP($AX21&"_"&$CW$14,データシート1!$A:$BT,MATCH($CW$12&"_"&DB$20,データシート1!$A$1:$BT$1,0),0) -> 0 | DC21: =VLOOKUP($AX21&"_"&$CW$14,データシート1!$A:$BT,MATCH($CW$12&"_"&DC$20,データシート1!$A$1:$BT$1,0),0) -> 0 | DD21: =SUM(CX21:DC21) -> 167.484 | DF21: =VLOOKUP($AX21&"_"&$DF$14,データシート1!$A:$BT,MATCH($DF$12&"_"&DF$20,データシート1!$A$1:$BT$1,0),0) -> 9 | DG21: =VLOOKUP($AX21&"_"&$DF$14,データシート1!$A:$BT,MATCH($DF$12&"_"&DG$20,データシート1!$A$1:$BT$1,0),0) -> 0 | DH21: =VLOOKUP($AX21&"_"&$DF$14,データシート1!$A:$BT,MATCH($DF$12&"_"&DH$20,データシート1!$A$1:$BT$1,0),0) -> 0 | DI21: =VLOOKUP($AX21&"_"&$DF$14,データシート1!$A:$BT,MATCH($DF$12&"_"&DI$20,データシート1!$A$1:$BT$1,0),0) -> 2 | DJ21: =VLOOKUP($AX21&"_"&$DF$14,データシート1!$A:$BT,MATCH($DF$12&"_"&DJ$20,データシート1!$A$1:$BT$1,0),0) -> 0 | DK21: =VLOOKUP($AX21&"_"&$DF$14,データシート1!$A:$BT,MATCH($DF$12&"_"&DK$20,データシート1!$A$1:$BT$1,0),0) -> 0 | DL21: =SUM(DF21:DK21) -> 11 | DN21: =IF($DD21=0,0,ROUND(CX21/$DD21,2)) -> 97.0% | DO21: =IF($DD21=0,0,ROUND(CY21/$DD21,2)) -> 0 | DP21: =IF($DD21=0,0,ROUND(CZ21/$DD21,2)) -> 0 | DQ21: 3.0% | DR21: 0 | DS21: =IF($DD21=0,0,ROUND(DC21/$DD21,2)) -> 0
AX22: =比較地域マスタ!$Y7 -> 40610 | AY22: =IF(IFERROR(比較地域マスタ!$Z7,"")=0,"",IFERROR(比較地域マスタ!$Z7,"")) -> 福智町 | BB22: 40610 | BC22: 福智町 | BD22: =SUM(BE22,BI22:BK22,BQ22) -> 115 | BE22: =SUM(BF22:BH22) -> 32 | BF22: =VLOOKUP($AX22&"_"&$BC$14,データシート1!$A:$BT,MATCH($BC$12&"_"&BF$20,データシート1!$A$1:$BT$1,0),0) -> 30 | BG22: =VLOOKUP($AX22&"_"&$BC$14,データシート1!$A:$BT,MATCH($BC$12&"_"&BG$20,データシート1!$A$1:$BT$1,0),0) -> 1 | BH22: =VLOOKUP($AX22&"_"&$BC$14,データシート1!$A:$BT,MATCH($BC$12&"_"&BH$20,データシート1!$A$1:$BT$1,0),0) -> 0 | BI22: =VLOOKUP($AX22&"_"&$BC$14,データシート1!$A:$BT,MATCH($BC$12&"_"&BI$20,データシート1!$A$1:$BT$1,0),0) -> 15 | BJ22: =VLOOKUP($AX22&"_"&$BC$14,データシート1!$A:$BT,MATCH($BC$12&"_"&BJ$20,データシート1!$A$1:$BT$1,0),0) -> 20 | BK22: 46 | BL22: 45 | BM22: =VLOOKUP($AX22&"_"&$BC$14,データシート1!$A:$BT,MATCH($BC$12&"_"&BM$20,データシート1!$A$1:$BT$1,0),0) -> 21 | BN22: =VLOOKUP($AX22&"_"&$BC$14,データシート1!$A:$BT,MATCH($BC$12&"_"&BN$20,データシート1!$A$1:$BT$1,0),0) -> 23 | BO22: =VLOOKUP($AX22&"_"&$BC$14,データシート1!$A:$BT,MATCH($BC$12&"_"&BO$20,データシート1!$A$1:$BT$1,0),0) -> 1 | BP22: =VLOOKUP($AX22&"_"&$BC$14,データシート1!$A:$BT,MATCH($BC$12&"_"&BP$20,データシート1!$A$1:$BT$1,0),0) -> 0 | BQ22: =VLOOKUP($AX22&"_"&$BC$14,データシート1!$A:$BT,MATCH($BC$12&"_"&BQ$20,データシート1!$A$1:$BT$1,0),0) -> 2 | BR22: 115 | BT22: 福智町 | BU22: =BD22 -> 115 | BV22: =BE22/$BR22 -> 28% | BW22: 27% | BX22: 1% | BY22: 0% | BZ22: 13% | CA22: 17% | CB22: 40% | CC22: 39% | CD22: 18% | CE22: 20% | CF22: 1% | CG22: 0% | CH22: 2% | CI22: 100% | CK22: 福智町 | CL22: =CN22+CP22+CR22 -> 32 | CM22: =IF(IF(CL22=0,0,CW22/CL22)>1,1,IF(CL22=0,0,CW22/CL22)) -> (11%) | CN22: =BF22 -> 30 | CO22: =IF(IF(CN22=0,0,CX22/CN22)>1,1,IF(CN22=0,0,CX22/CN22)) -> (12%) | CP22: 1 | CQ22: =IF(IF(CP22=0,0,CY22/CP22)>1,1,IF(CP22=0,0,CY22/CP22)) -> 0 | CR22: 0 | CS22: =IF(IF(CR22=0,0,CZ22/CR22)>1,1,IF(CR22=0,0,CZ22/CR22)) -> 0 | CT22: 15 | CU22: =IF(IF(CT22=0,0,DA22/CT22)>1,1,IF(CT22=0,0,DA22/CT22)) -> 0 | CW22: =SUM(CX22:CZ22) -> 3.672 | CX22: =VLOOKUP($AX22&"_"&$CW$14,データシート1!$A:$BT,MATCH($CW$12&"_"&CX$20,データシート1!$A$1:$BT$1,0),0) -> 3.672 | CY22: =VLOOKUP($AX22&"_"&$CW$14,データシート1!$A:$BT,MATCH($CW$12&"_"&CY$20,データシート1!$A$1:$BT$1,0),0) -> 0 | CZ22: =VLOOKUP($AX22&"_"&$CW$14,データシート1!$A:$BT,MATCH($CW$12&"_"&CZ$20,データシート1!$A$1:$BT$1,0),0) -> 0 | DA22: =VLOOKUP($AX22&"_"&$CW$14,データシート1!$A:$BT,MATCH($CW$12&"_"&DA$20,データシート1!$A$1:$BT$1,0),0) -> 0 | DB22: =VLOOKUP($AX22&"_"&$CW$14,データシート1!$A:$BT,MATCH($CW$12&"_"&DB$20,データシート1!$A$1:$BT$1,0),0) -> 0 | DC22: =VLOOKUP($AX22&"_"&$CW$14,データシート1!$A:$BT,MATCH($CW$12&"_"&DC$20,データシート1!$A$1:$BT$1,0),0) -> 0 | DD22: 3.672 | DF22: =VLOOKUP($AX22&"_"&$DF$14,データシート1!$A:$BT,MATCH($DF$12&"_"&DF$20,データシート1!$A$1:$BT$1,0),0) -> 1 | DG22: =VLOOKUP($AX22&"_"&$DF$14,データシート1!$A:$BT,MATCH($DF$12&"_"&DG$20,データシート1!$A$1:$BT$1,0),0) -> 0 | DH22: =VLOOKUP($AX22&"_"&$DF$14,データシート1!$A:$BT,MATCH($DF$12&"_"&DH$20,データシート1!$A$1:$BT$1,0),0) -> 0 | DI22: =VLOOKUP($AX22&"_"&$DF$14,データシート1!$A:$BT,MATCH($DF$12&"_"&DI$20,データシート1!$A$1:$BT$1,0),0) -> 0 | DJ22: =VLOOKUP($AX22&"_"&$DF$14,データシート1!$A:$BT,MATCH($DF$12&"_"&DJ$20,データシート1!$A$1:$BT$1,0),0) -> 0 | DK22: =VLOOKUP($AX22&"_"&$DF$14,データシート1!$A:$BT,MATCH($DF$12&"_"&DK$20,データシート1!$A$1:$BT$1,0),0) -> 0 | DL22: 1 | DN22: =IF($DD22=0,0,ROUND(CX22/$DD22,2)) -> 100.0% | DO22: =IF($DD22=0,0,ROUND(CY22/$DD22,2)) -> 0 | DP22: 0 | DQ22: 0 | DR22: 0 | DS22: =IF($DD22=0,0,ROUND(DC22/$DD22,2)) -> 0
AX23: =比較地域マスタ!$Y8 -> 25425 | AY23: =IF(IFERROR(比較地域マスタ!$Z8,"")=0,"",IFERROR(比較地域マスタ!$Z8,"")) -> 愛荘町 | BB23: 25425 | BC23: 愛荘町 | BD23: 128 | BE23: 49 | BF23: =VLOOKUP($AX23&"_"&$BC$14,データシート1!$A:$BT,MATCH($BC$12&"_"&BF$20,データシート1!$A$1:$BT$1,0),0) -> 45 | BG23: =VLOOKUP($AX23&"_"&$BC$14,データシート1!$A:$BT,MATCH($BC$12&"_"&BG$20,データシート1!$A$1:$BT$1,0),0) -> 1 | BH23: =VLOOKUP($AX23&"_"&$BC$14,データシート1!$A:$BT,MATCH($BC$12&"_"&BH$20,データシート1!$A$1:$BT$1,0),0) -> 4 | BI23: =VLOOKUP($AX23&"_"&$BC$14,データシート1!$A:$BT,MATCH($BC$12&"_"&BI$20,データシート1!$A$1:$BT$1,0),0) -> 17 | BJ23: =VLOOKUP($AX23&"_"&$BC$14,データシート1!$A:$BT,MATCH($BC$12&"_"&BJ$20,データシート1!$A$1:$BT$1,0),0) -> 19 | BK23: 43 | BL23: 42 | BM23: =VLOOKUP($AX23&"_"&$BC$14,データシート1!$A:$BT,MATCH($BC$12&"_"&BM$20,データシート1!$A$1:$BT$1,0),0) -> 20 | BN23: =VLOOKUP($AX23&"_"&$BC$14,データシート1!$A:$BT,MATCH($BC$12&"_"&BN$20,データシート1!$A$1:$BT$1,0),0) -> 21 | BO23: =VLOOKUP($AX23&"_"&$BC$14,データシート1!$A:$BT,MATCH($BC$12&"_"&BO$20,データシート1!$A$1:$BT$1,0),0) -> 1 | BP23: =VLOOKUP($AX23&"_"&$BC$14,データシート1!$A:$BT,MATCH($BC$12&"_"&BP$20,データシート1!$A$1:$BT$1,0),0) -> 0 | BQ23: =VLOOKUP($AX23&"_"&$BC$14,データシート1!$A:$BT,MATCH($BC$12&"_"&BQ$20,データシート1!$A$1:$BT$1,0),0) -> 0 | BR23: 128 | BT23: 愛荘町 | BU23: =BD23 -> 128 | BV23: 39% | BW23: 35% | BX23: 1% | BY23: 3% | BZ23: 13% | CA23: 15% | CB23: 34% | CC23: 33% | CD23: 16% | CE23: 17% | CF23: 1% | CG23: 0% | CH23: 0% | CI23: 100% | CK23: 愛荘町 | CL23: 49 | CM23: (100%) | CN23: 45 | CO23: (100%) | CP23: 1 | CQ23: 0 | CR23: 4 | CS23: 0 | CT23: 17 | CU23: 0 | CW23: 50.955 | CX23: =VLOOKUP($AX23&"_"&$CW$14,データシート1!$A:$BT,MATCH($CW$12&"_"&CX$20,データシート1!$A$1:$BT$1,0),0) -> 50.955 | CY23: =VLOOKUP($AX23&"_"&$CW$14,データシート1!$A:$BT,MATCH($CW$12&"_"&CY$20,データシート1!$A$1:$BT$1,0),0) -> 0 | CZ23: =VLOOKUP($AX23&"_"&$CW$14,データシート1!$A:$BT,MATCH($CW$12&"_"&CZ$20,データシート1!$A$1:$BT$1,0),0) -> 0 | DA23: =VLOOKUP($AX23&"_"&$CW$14,データシート1!$A:$BT,MATCH($CW$12&"_"&DA$20,データシート1!$A$1:$BT$1,0),0) -> 0 | DB23: =VLOOKUP($AX23&"_"&$CW$14,データシート1!$A:$BT,MATCH($CW$12&"_"&DB$20,データシート1!$A$1:$BT$1,0),0) -> 0 | DC23: =VLOOKUP($AX23&"_"&$CW$14,データシート1!$A:$BT,MATCH($CW$12&"_"&DC$20,データシート1!$A$1:$BT$1,0),0) -> 0 | DD23: 50.955 | DF23: =VLOOKUP($AX23&"_"&$DF$14,データシート1!$A:$BT,MATCH($DF$12&"_"&DF$20,データシート1!$A$1:$BT$1,0),0) -> 11 | DG23: =VLOOKUP($AX23&"_"&$DF$14,データシート1!$A:$BT,MATCH($DF$12&"_"&DG$20,データシート1!$A$1:$BT$1,0),0) -> 0 | DH23: =VLOOKUP($AX23&"_"&$DF$14,データシート1!$A:$BT,MATCH($DF$12&"_"&DH$20,データシート1!$A$1:$BT$1,0),0) -> 0 | DI23: =VLOOKUP($AX23&"_"&$DF$14,データシート1!$A:$BT,MATCH($DF$12&"_"&DI$20,データシート1!$A$1:$BT$1,0),0) -> 0 | DJ23: =VLOOKUP($AX23&"_"&$DF$14,データシート1!$A:$BT,MATCH($DF$12&"_"&DJ$20,データシート1!$A$1:$BT$1,0),0) -> 0 | DK23: =VLOOKUP($AX23&"_"&$DF$14,データシート1!$A:$BT,MATCH($DF$12&"_"&DK$20,データシート1!$A$1:$BT$1,0),0) -> 0 | DL23: 11 | DN23: =IF($DD23=0,0,ROUND(CX23/$DD23,2)) -> 100.0% | DO23: =IF($DD23=0,0,ROUND(CY23/$DD23,2)) -> 0 | DP23: 0 | DQ23: 0 | DR23: 0 | DS23: =IF($DD23=0,0,ROUND(DC23/$DD23,2)) -> 0
AX24: =比較地域マスタ!$Y9 -> 39386 | AY24: =IF(IFERROR(比較地域マスタ!$Z9,"")=0,"",IFERROR(比較地域マスタ!$Z9,"")) -> いの町 | BB24: 39386 | BC24: いの町 | BD24: 189 | BE24: 96 | BF24: =VLOOKUP($AX24&"_"&$BC$14,データシート1!$A:$BT,MATCH($BC$12&"_"&BF$20,データシート1!$A$1:$BT$1,0),0) -> 82 | BG24: =VLOOKUP($AX24&"_"&$BC$14,データシート1!$A:$BT,MATCH($BC$12&"_"&BG$20,データシート1!$A$1:$BT$1,0),0) -> 3 | BH24: =VLOOKUP($AX24&"_"&$BC$14,データシート1!$A:$BT,MATCH($BC$12&"_"&BH$20,データシート1!$A$1:$BT$1,0),0) -> 10 | BI24: =VLOOKUP($AX24&"_"&$BC$14,データシート1!$A:$BT,MATCH($BC$12&"_"&BI$20,データシート1!$A$1:$BT$1,0),0) -> 24 | BJ24: =VLOOKUP($AX24&"_"&$BC$14,データシート1!$A:$BT,MATCH($BC$12&"_"&BJ$20,データシート1!$A$1:$BT$1,0),0) -> 26 | BK24: 41 | BL24: 39 | BM24: =VLOOKUP($AX24&"_"&$BC$14,データシート1!$A:$BT,MATCH($BC$12&"_"&BM$20,データシート1!$A$1:$BT$1,0),0) -> 19 | BN24: =VLOOKUP($AX24&"_"&$BC$14,データシート1!$A:$BT,MATCH($BC$12&"_"&BN$20,データシート1!$A$1:$BT$1,0),0) -> 21 | BO24: =VLOOKUP($AX24&"_"&$BC$14,データシート1!$A:$BT,MATCH($BC$12&"_"&BO$20,データシート1!$A$1:$BT$1,0),0) -> 1 | BP24: =VLOOKUP($AX24&"_"&$BC$14,データシート1!$A:$BT,MATCH($BC$12&"_"&BP$20,データシート1!$A$1:$BT$1,0),0) -> 0 | BQ24: =VLOOKUP($AX24&"_"&$BC$14,データシート1!$A:$BT,MATCH($BC$12&"_"&BQ$20,データシート1!$A$1:$BT$1,0),0) -> 2 | BR24: 189 | BT24: いの町 | BU24: 189 | BV24: 51% | BW24: 44% | BX24: 2% | BY24: 5% | BZ24: 13% | CA24: 14% | CB24: 22% | CC24: 21% | CD24: 10% | CE24: 11% | CF24: 1% | CG24: 0% | CH24: 1% | CI24: 100% | CK24: いの町 | CL24: 96 | CM24: (33%) | CN24: 82 | CO24: (38%) | CP24: 3 | CQ24: 0 | CR24: 10 | CS24: 0 | CT24: 24 | CU24: 0 | CW24: 31.314 | CX24: =VLOOKUP($AX24&"_"&$CW$14,データシート1!$A:$BT,MATCH($CW$12&"_"&CX$20,データシート1!$A$1:$BT$1,0),0) -> 31.314 | CY24: =VLOOKUP($AX24&"_"&$CW$14,データシート1!$A:$BT,MATCH($CW$12&"_"&CY$20,データシート1!$A$1:$BT$1,0),0) -> 0 | CZ24: =VLOOKUP($AX24&"_"&$CW$14,データシート1!$A:$BT,MATCH($CW$12&"_"&CZ$20,データシート1!$A$1:$BT$1,0),0) -> 0 | DA24: =VLOOKUP($AX24&"_"&$CW$14,データシート1!$A:$BT,MATCH($CW$12&"_"&DA$20,データシート1!$A$1:$BT$1,0),0) -> 0 | DB24: =VLOOKUP($AX24&"_"&$CW$14,データシート1!$A:$BT,MATCH($CW$12&"_"&DB$20,データシート1!$A$1:$BT$1,0),0) -> 0 | DC24: =VLOOKUP($AX24&"_"&$CW$14,データシート1!$A:$BT,MATCH($CW$12&"_"&DC$20,データシート1!$A$1:$BT$1,0),0) -> 0 | DD24: 31.314 | DF24: =VLOOKUP($AX24&"_"&$DF$14,データシート1!$A:$BT,MATCH($DF$12&"_"&DF$20,データシート1!$A$1:$BT$1,0),0) -> 4 | DG24: =VLOOKUP($AX24&"_"&$DF$14,データシート1!$A:$BT,MATCH($DF$12&"_"&DG$20,データシート1!$A$1:$BT$1,0),0) -> 0 | DH24: =VLOOKUP($AX24&"_"&$DF$14,データシート1!$A:$BT,MATCH($DF$12&"_"&DH$20,データシート1!$A$1:$BT$1,0),0) -> 0 | DI24: =VLOOKUP($AX24&"_"&$DF$14,データシート1!$A:$BT,MATCH($DF$12&"_"&DI$20,データシート1!$A$1:$BT$1,0),0) -> 0 | DJ24: =VLOOKUP($AX24&"_"&$DF$14,データシート1!$A:$BT,MATCH($DF$12&"_"&DJ$20,データシート1!$A$1:$BT$1,0),0) -> 0 | DK24: =VLOOKUP($AX24&"_"&$DF$14,データシート1!$A:$BT,MATCH($DF$12&"_"&DK$20,データシート1!$A$1:$BT$1,0),0) -> 0 | DL24: 4 | DN24: 100.0% | DO24: 0 | DP24: 0 | DQ24: 0 | DR24: 0 | DS24: 0
AX25: =比較地域マスタ!$Y10 -> 08521 | AY25: =IF(IFERROR(比較地域マスタ!$Z10,"")=0,"",IFERROR(比較地域マスタ!$Z10,"")) -> 八千代町 | BB25: 08521 | BC25: 八千代町 | BD25: 299 | BE25: 194 | BF25: =VLOOKUP($AX25&"_"&$BC$14,データシート1!$A:$BT,MATCH($BC$12&"_"&BF$20,データシート1!$A$1:$BT$1,0),0) -> 180 | BG25: =VLOOKUP($AX25&"_"&$BC$14,データシート1!$A:$BT,MATCH($BC$12&"_"&BG$20,データシート1!$A$1:$BT$1,0),0) -> 2 | BH25: =VLOOKUP($AX25&"_"&$BC$14,データシート1!$A:$BT,MATCH($BC$12&"_"&BH$20,データシート1!$A$1:$BT$1,0),0) -> 13 | BI25: =VLOOKUP($AX25&"_"&$BC$14,データシート1!$A:$BT,MATCH($BC$12&"_"&BI$20,データシート1!$A$1:$BT$1,0),0) -> 19 | BJ25: =VLOOKUP($AX25&"_"&$BC$14,データシート1!$A:$BT,MATCH($BC$12&"_"&BJ$20,データシート1!$A$1:$BT$1,0),0) -> 25 | BK25: 59 | BL25: 57 | BM25: =VLOOKUP($AX25&"_"&$BC$14,データシート1!$A:$BT,MATCH($BC$12&"_"&BM$20,データシート1!$A$1:$BT$1,0),0) -> 23 | BN25: =VLOOKUP($AX25&"_"&$BC$14,データシート1!$A:$BT,MATCH($BC$12&"_"&BN$20,データシート1!$A$1:$BT$1,0),0) -> 34 | BO25: =VLOOKUP($AX25&"_"&$BC$14,データシート1!$A:$BT,MATCH($BC$12&"_"&BO$20,データシート1!$A$1:$BT$1,0),0) -> 1 | BP25: =VLOOKUP($AX25&"_"&$BC$14,データシート1!$A:$BT,MATCH($BC$12&"_"&BP$20,データシート1!$A$1:$BT$1,0),0) -> 0 | BQ25: =VLOOKUP($AX25&"_"&$BC$14,データシート1!$A:$BT,MATCH($BC$12&"_"&BQ$20,データシート1!$A$1:$BT$1,0),0) -> 3 | BR25: 299 | BT25: 八千代町 | BU25: 299 | BV25: 65% | BW25: 60% | BX25: 1% | BY25: 4% | BZ25: 6% | CA25: 8% | CB25: 20% | CC25: 19% | CD25: 8% | CE25: 12% | CF25: 0% | CG25: 0% | CH25: 1% | CI25: 100% | CK25: 八千代町 | CL25: 194 | CM25: (36%) | CN25: 180 | CO25: (39%) | CP25: 2 | CQ25: 0 | CR25: 13 | CS25: 0 | CT25: 19 | CU25: 0 | CW25: 69.228 | CX25: =VLOOKUP($AX25&"_"&$CW$14,データシート1!$A:$BT,MATCH($CW$12&"_"&CX$20,データシート1!$A$1:$BT$1,0),0) -> 69.228 | CY25: =VLOOKUP($AX25&"_"&$CW$14,データシート1!$A:$BT,MATCH($CW$12&"_"&CY$20,データシート1!$A$1:$BT$1,0),0) -> 0 | CZ25: =VLOOKUP($AX25&"_"&$CW$14,データシート1!$A:$BT,MATCH($CW$12&"_"&CZ$20,データシート1!$A$1:$BT$1,0),0) -> 0 | DA25: =VLOOKUP($AX25&"_"&$CW$14,データシート1!$A:$BT,MATCH($CW$12&"_"&DA$20,データシート1!$A$1:$BT$1,0),0) -> 0 | DB25: =VLOOKUP($AX25&"_"&$CW$14,データシート1!$A:$BT,MATCH($CW$12&"_"&DB$20,データシート1!$A$1:$BT$1,0),0) -> 0 | DC25: =VLOOKUP($AX25&"_"&$CW$14,データシート1!$A:$BT,MATCH($CW$12&"_"&DC$20,データシート1!$A$1:$BT$1,0),0) -> 0 | DD25: 69.228 | DF25: =VLOOKUP($AX25&"_"&$DF$14,データシート1!$A:$BT,MATCH($DF$12&"_"&DF$20,データシート1!$A$1:$BT$1,0),0) -> 5 | DG25: =VLOOKUP($AX25&"_"&$DF$14,データシート1!$A:$BT,MATCH($DF$12&"_"&DG$20,データシート1!$A$1:$BT$1,0),0) -> 0 | DH25: =VLOOKUP($AX25&"_"&$DF$14,データシート1!$A:$BT,MATCH($DF$12&"_"&DH$20,データシート1!$A$1:$BT$1,0),0) -> 0 | DI25: =VLOOKUP($AX25&"_"&$DF$14,データシート1!$A:$BT,MATCH($DF$12&"_"&DI$20,データシート1!$A$1:$BT$1,0),0) -> 0 | DJ25: =VLOOKUP($AX25&"_"&$DF$14,データシート1!$A:$BT,MATCH($DF$12&"_"&DJ$20,データシート1!$A$1:$BT$1,0),0) -> 0 | DK25: =VLOOKUP($AX25&"_"&$DF$14,データシート1!$A:$BT,MATCH($DF$12&"_"&DK$20,データシート1!$A$1:$BT$1,0),0) -> 0 | DL25: 5 | DN25: 100.0% | DO25: 0 | DP25: 0 | DQ25: 0 | DR25: 0 | DS25: 0
AX26: =比較地域マスタ!$Y11 -> 34215 | AY26: =IF(IFERROR(比較地域マスタ!$Z11,"")=0,"",IFERROR(比較地域マスタ!$Z11,"")) -> 江田島市 | BB26: 34215 | BC26: 江田島市 | BD26: 240 | BE26: 65 | BF26: =VLOOKUP($AX26&"_"&$BC$14,データシート1!$A:$BT,MATCH($BC$12&"_"&BF$20,データシート1!$A$1:$BT$1,0),0) -> 54 | BG26: =VLOOKUP($AX26&"_"&$BC$14,データシート1!$A:$BT,MATCH($BC$12&"_"&BG$20,データシート1!$A$1:$BT$1,0),0) -> 1 | BH26: =VLOOKUP($AX26&"_"&$BC$14,データシート1!$A:$BT,MATCH($BC$12&"_"&BH$20,データシート1!$A$1:$BT$1,0),0) -> 10 | BI26: =VLOOKUP($AX26&"_"&$BC$14,データシート1!$A:$BT,MATCH($BC$12&"_"&BI$20,データシート1!$A$1:$BT$1,0),0) -> 32 | BJ26: =VLOOKUP($AX26&"_"&$BC$14,データシート1!$A:$BT,MATCH($BC$12&"_"&BJ$20,データシート1!$A$1:$BT$1,0),0) -> 35 | BK26: 108 | BL26: 35 | BM26: =VLOOKUP($AX26&"_"&$BC$14,データシート1!$A:$BT,MATCH($BC$12&"_"&BM$20,データシート1!$A$1:$BT$1,0),0) -> 16 | BN26: =VLOOKUP($AX26&"_"&$BC$14,データシート1!$A:$BT,MATCH($BC$12&"_"&BN$20,データシート1!$A$1:$BT$1,0),0) -> 19 | BO26: =VLOOKUP($AX26&"_"&$BC$14,データシート1!$A:$BT,MATCH($BC$12&"_"&BO$20,データシート1!$A$1:$BT$1,0),0) -> 1 | BP26: =VLOOKUP($AX26&"_"&$BC$14,データシート1!$A:$BT,MATCH($BC$12&"_"&BP$20,データシート1!$A$1:$BT$1,0),0) -> 71 | BQ26: =VLOOKUP($AX26&"_"&$BC$14,データシート1!$A:$BT,MATCH($BC$12&"_"&BQ$20,データシート1!$A$1:$BT$1,0),0) -> 0 | BR26: 240 | BT26: 江田島市 | BU26: 240 | BV26: 27% | BW26: 23% | BX26: 0% | BY26: 4% | BZ26: 13% | CA26: 15% | CB26: 45% | CC26: 15% | CD26: 7% | CE26: 8% | CF26: 1% | CG26: 30% | CH26: 0% | CI26: 100% | CK26: 江田島市 | CL26: 65 | CM26: (9%) | CN26: 54 | CO26: (11%) | CP26: 1 | CQ26: 0 | CR26: 10 | CS26: 0 | CT26: 32 | CU26: (48%) | CW26: 6.002 | CX26: =VLOOKUP($AX26&"_"&$CW$14,データシート1!$A:$BT,MATCH($CW$12&"_"&CX$20,データシート1!$A$1:$BT$1,0),0) -> 6.002 | CY26: =VLOOKUP($AX26&"_"&$CW$14,データシート1!$A:$BT,MATCH($CW$12&"_"&CY$20,データシート1!$A$1:$BT$1,0),0) -> 0 | CZ26: =VLOOKUP($AX26&"_"&$CW$14,データシート1!$A:$BT,MATCH($CW$12&"_"&CZ$20,データシート1!$A$1:$BT$1,0),0) -> 0 | DA26: =VLOOKUP($AX26&"_"&$CW$14,データシート1!$A:$BT,MATCH($CW$12&"_"&DA$20,データシート1!$A$1:$BT$1,0),0) -> 15.301 | DB26: =VLOOKUP($AX26&"_"&$CW$14,データシート1!$A:$BT,MATCH($CW$12&"_"&DB$20,データシート1!$A$1:$BT$1,0),0) -> 0 | DC26: =VLOOKUP($AX26&"_"&$CW$14,データシート1!$A:$BT,MATCH($CW$12&"_"&DC$20,データシート1!$A$1:$BT$1,0),0) -> 0 | DD26: 21.303 | DF26: =VLOOKUP($AX26&"_"&$DF$14,データシート1!$A:$BT,MATCH($DF$12&"_"&DF$20,データシート1!$A$1:$BT$1,0),0) -> 1 | DG26: =VLOOKUP($AX26&"_"&$DF$14,データシート1!$A:$BT,MATCH($DF$12&"_"&DG$20,データシート1!$A$1:$BT$1,0),0) -> 0 | DH26: =VLOOKUP($AX26&"_"&$DF$14,データシート1!$A:$BT,MATCH($DF$12&"_"&DH$20,データシート1!$A$1:$BT$1,0),0) -> 0 | DI26: =VLOOKUP($AX26&"_"&$DF$14,データシート1!$A:$BT,MATCH($DF$12&"_"&DI$20,データシート1!$A$1:$BT$1,0),0) -> 2 | DJ26: =VLOOKUP($AX26&"_"&$DF$14,データシート1!$A:$BT,MATCH($DF$12&"_"&DJ$20,データシート1!$A$1:$BT$1,0),0) -> 0 | DK26: =VLOOKUP($AX26&"_"&$DF$14,データシート1!$A:$BT,MATCH($DF$12&"_"&DK$20,データシート1!$A$1:$BT$1,0),0) -> 0 | DL26: 3 | DN26: 28.0% | DO26: 0 | DP26: 0 | DQ26: 72.0% | DR26: 0 | DS26: 0
AX27: =比較地域マスタ!$Y12 -> 42208 | AY27: =IF(IFERROR(比較地域マスタ!$Z12,"")=0,"",IFERROR(比較地域マスタ!$Z12,"")) -> 松浦市 | BB27: 42208 | BC27: 松浦市 | BD27: 153 | BE27: 60 | BF27: =VLOOKUP($AX27&"_"&$BC$14,データシート1!$A:$BT,MATCH($BC$12&"_"&BF$20,データシート1!$A$1:$BT$1,0),0) -> 20 | BG27: =VLOOKUP($AX27&"_"&$BC$14,データシート1!$A:$BT,MATCH($BC$12&"_"&BG$20,データシート1!$A$1:$BT$1,0),0) -> 2 | BH27: =VLOOKUP($AX27&"_"&$BC$14,データシート1!$A:$BT,MATCH($BC$12&"_"&BH$20,データシート1!$A$1:$BT$1,0),0) -> 38 | BI27: =VLOOKUP($AX27&"_"&$BC$14,データシート1!$A:$BT,MATCH($BC$12&"_"&BI$20,データシート1!$A$1:$BT$1,0),0) -> 19 | BJ27: =VLOOKUP($AX27&"_"&$BC$14,データシート1!$A:$BT,MATCH($BC$12&"_"&BJ$20,データシート1!$A$1:$BT$1,0),0) -> 19 | BK27: 51 | BL27: 43 | BM27: =VLOOKUP($AX27&"_"&$BC$14,データシート1!$A:$BT,MATCH($BC$12&"_"&BM$20,データシート1!$A$1:$BT$1,0),0) -> 19 | BN27: =VLOOKUP($AX27&"_"&$BC$14,データシート1!$A:$BT,MATCH($BC$12&"_"&BN$20,データシート1!$A$1:$BT$1,0),0) -> 24 | BO27: =VLOOKUP($AX27&"_"&$BC$14,データシート1!$A:$BT,MATCH($BC$12&"_"&BO$20,データシート1!$A$1:$BT$1,0),0) -> 1 | BP27: =VLOOKUP($AX27&"_"&$BC$14,データシート1!$A:$BT,MATCH($BC$12&"_"&BP$20,データシート1!$A$1:$BT$1,0),0) -> 7 | BQ27: =VLOOKUP($AX27&"_"&$BC$14,データシート1!$A:$BT,MATCH($BC$12&"_"&BQ$20,データシート1!$A$1:$BT$1,0),0) -> 3 | BR27: 153 | BT27: 松浦市 | BU27: 153 | BV27: 39% | BW27: 13% | BX27: 1% | BY27: 25% | BZ27: 13% | CA27: 13% | CB27: 34% | CC27: 28% | CD27: 12% | CE27: 16% | CF27: 1% | CG27: 5% | CH27: 2% | CI27: 100% | CK27: 松浦市 | CL27: 60 | CM27: (53%) | CN27: 20 | CO27: (100%) | CP27: 2 | CQ27: 0 | CR27: 38 | CS27: 0 | CT27: 19 | CU27: 0 | CW27: 32.155 | CX27: =VLOOKUP($AX27&"_"&$CW$14,データシート1!$A:$BT,MATCH($CW$12&"_"&CX$20,データシート1!$A$1:$BT$1,0),0) -> 32.155 | CY27: =VLOOKUP($AX27&"_"&$CW$14,データシート1!$A:$BT,MATCH($CW$12&"_"&CY$20,データシート1!$A$1:$BT$1,0),0) -> 0 | CZ27: =VLOOKUP($AX27&"_"&$CW$14,データシート1!$A:$BT,MATCH($CW$12&"_"&CZ$20,データシート1!$A$1:$BT$1,0),0) -> 0 | DA27: =VLOOKUP($AX27&"_"&$CW$14,データシート1!$A:$BT,MATCH($CW$12&"_"&DA$20,データシート1!$A$1:$BT$1,0),0) -> 0 | DB27: =VLOOKUP($AX27&"_"&$CW$14,データシート1!$A:$BT,MATCH($CW$12&"_"&DB$20,データシート1!$A$1:$BT$1,0),0) -> 839.56 | DC27: =VLOOKUP($AX27&"_"&$CW$14,データシート1!$A:$BT,MATCH($CW$12&"_"&DC$20,データシート1!$A$1:$BT$1,0),0) -> 0 | DD27: 871.715 | DF27: =VLOOKUP($AX27&"_"&$DF$14,データシート1!$A:$BT,MATCH($DF$12&"_"&DF$20,データシート1!$A$1:$BT$1,0),0) -> 6 | DG27: =VLOOKUP($AX27&"_"&$DF$14,データシート1!$A:$BT,MATCH($DF$12&"_"&DG$20,データシート1!$A$1:$BT$1,0),0) -> 0 | DH27: =VLOOKUP($AX27&"_"&$DF$14,データシート1!$A:$BT,MATCH($DF$12&"_"&DH$20,データシート1!$A$1:$BT$1,0),0) -> 0 | DI27: =VLOOKUP($AX27&"_"&$DF$14,データシート1!$A:$BT,MATCH($DF$12&"_"&DI$20,データシート1!$A$1:$BT$1,0),0) -> 0 | DJ27: =VLOOKUP($AX27&"_"&$DF$14,データシート1!$A:$BT,MATCH($DF$12&"_"&DJ$20,データシート1!$A$1:$BT$1,0),0) -> 2 | DK27: =VLOOKUP($AX27&"_"&$DF$14,データシート1!$A:$BT,MATCH($DF$12&"_"&DK$20,データシート1!$A$1:$BT$1,0),0) -> 0 | DL27: 8 | DN27: 4.0% | DO27: 0 | DP27: 0 | DQ27: 0 | DR27: 96.0% | DS27: 0
AX28: =比較地域マスタ!$Y13 -> 23446 | AY28: =IF(IFERROR(比較地域マスタ!$Z13,"")=0,"",IFERROR(比較地域マスタ!$Z13,"")) -> 美浜町 | BB28: 23446 | BC28: 美浜町 | BD28: 142 | BE28: 47 | BF28: =VLOOKUP($AX28&"_"&$BC$14,データシート1!$A:$BT,MATCH($BC$12&"_"&BF$20,データシート1!$A$1:$BT$1,0),0) -> 42 | BG28: =VLOOKUP($AX28&"_"&$BC$14,データシート1!$A:$BT,MATCH($BC$12&"_"&BG$20,データシート1!$A$1:$BT$1,0),0) -> 1 | BH28: =VLOOKUP($AX28&"_"&$BC$14,データシート1!$A:$BT,MATCH($BC$12&"_"&BH$20,データシート1!$A$1:$BT$1,0),0) -> 4 | BI28: =VLOOKUP($AX28&"_"&$BC$14,データシート1!$A:$BT,MATCH($BC$12&"_"&BI$20,データシート1!$A$1:$BT$1,0),0) -> 27 | BJ28: =VLOOKUP($AX28&"_"&$BC$14,データシート1!$A:$BT,MATCH($BC$12&"_"&BJ$20,データシート1!$A$1:$BT$1,0),0) -> 23 | BK28: 43 | BL28: 41 | BM28: =VLOOKUP($AX28&"_"&$BC$14,データシート1!$A:$BT,MATCH($BC$12&"_"&BM$20,データシート1!$A$1:$BT$1,0),0) -> 19 | BN28: =VLOOKUP($AX28&"_"&$BC$14,データシート1!$A:$BT,MATCH($BC$12&"_"&BN$20,データシート1!$A$1:$BT$1,0),0) -> 22 | BO28: =VLOOKUP($AX28&"_"&$BC$14,データシート1!$A:$BT,MATCH($BC$12&"_"&BO$20,データシート1!$A$1:$BT$1,0),0) -> 1 | BP28: =VLOOKUP($AX28&"_"&$BC$14,データシート1!$A:$BT,MATCH($BC$12&"_"&BP$20,データシート1!$A$1:$BT$1,0),0) -> 1 | BQ28: =VLOOKUP($AX28&"_"&$BC$14,データシート1!$A:$BT,MATCH($BC$12&"_"&BQ$20,データシート1!$A$1:$BT$1,0),0) -> 2 | BR28: 142 | BT28: 美浜町 | BU28: 142 | BV28: 33% | BW28: 30% | BX28: 1% | BY28: 3% | BZ28: 19% | CA28: 16% | CB28: 30% | CC28: 29% | CD28: 13% | CE28: 15% | CF28: 1% | CG28: 1% | CH28: 1% | CI28: 100% | CK28: 美浜町 | CL28: 47 | CM28: (100%) | CN28: 42 | CO28: (100%) | CP28: 1 | CQ28: 0 | CR28: 4 | CS28: 0 | CT28: 27 | CU28: 0 | CW28: 169.927 | CX28: =VLOOKUP($AX28&"_"&$CW$14,データシート1!$A:$BT,MATCH($CW$12&"_"&CX$20,データシート1!$A$1:$BT$1,0),0) -> 169.927 | CY28: =VLOOKUP($AX28&"_"&$CW$14,データシート1!$A:$BT,MATCH($CW$12&"_"&CY$20,データシート1!$A$1:$BT$1,0),0) -> 0 | CZ28: =VLOOKUP($AX28&"_"&$CW$14,データシート1!$A:$BT,MATCH($CW$12&"_"&CZ$20,データシート1!$A$1:$BT$1,0),0) -> 0 | DA28: =VLOOKUP($AX28&"_"&$CW$14,データシート1!$A:$BT,MATCH($CW$12&"_"&DA$20,データシート1!$A$1:$BT$1,0),0) -> 0 | DB28: =VLOOKUP($AX28&"_"&$CW$14,データシート1!$A:$BT,MATCH($CW$12&"_"&DB$20,データシート1!$A$1:$BT$1,0),0) -> 0 | DC28: =VLOOKUP($AX28&"_"&$CW$14,データシート1!$A:$BT,MATCH($CW$12&"_"&DC$20,データシート1!$A$1:$BT$1,0),0) -> 0 | DD28: 169.927 | DF28: =VLOOKUP($AX28&"_"&$DF$14,データシート1!$A:$BT,MATCH($DF$12&"_"&DF$20,データシート1!$A$1:$BT$1,0),0) -> 4 | DG28: =VLOOKUP($AX28&"_"&$DF$14,データシート1!$A:$BT,MATCH($DF$12&"_"&DG$20,データシート1!$A$1:$BT$1,0),0) -> 0 | DH28: =VLOOKUP($AX28&"_"&$DF$14,データシート1!$A:$BT,MATCH($DF$12&"_"&DH$20,データシート1!$A$1:$BT$1,0),0) -> 0 | DI28: =VLOOKUP($AX28&"_"&$DF$14,データシート1!$A:$BT,MATCH($DF$12&"_"&DI$20,データシート1!$A$1:$BT$1,0),0) -> 0 | DJ28: =VLOOKUP($AX28&"_"&$DF$14,データシート1!$A:$BT,MATCH($DF$12&"_"&DJ$20,データシート1!$A$1:$BT$1,0),0) -> 0 | DK28: =VLOOKUP($AX28&"_"&$DF$14,データシート1!$A:$BT,MATCH($DF$12&"_"&DK$20,データシート1!$A$1:$BT$1,0),0) -> 0 | DL28: 4 | DN28: 100.0% | DO28: 0 | DP28: 0 | DQ28: 0 | DR28: 0 | DS28: 0
AX29: =比較地域マスタ!$Y14 -> 25383 | AY29: =IF(IFERROR(比較地域マスタ!$Z14,"")=0,"",IFERROR(比較地域マスタ!$Z14,"")) -> 日野町 | BB29: 25383 | BC29: 日野町 | BD29: 229 | BE29: 143 | BF29: =VLOOKUP($AX29&"_"&$BC$14,データシート1!$A:$BT,MATCH($BC$12&"_"&BF$20,データシート1!$A$1:$BT$1,0),0) -> 137 | BG29: =VLOOKUP($AX29&"_"&$BC$14,データシート1!$A:$BT,MATCH($BC$12&"_"&BG$20,データシート1!$A$1:$BT$1,0),0) -> 1 | BH29: =VLOOKUP($AX29&"_"&$BC$14,データシート1!$A:$BT,MATCH($BC$12&"_"&BH$20,データシート1!$A$1:$BT$1,0),0) -> 6 | BI29: =VLOOKUP($AX29&"_"&$BC$14,データシート1!$A:$BT,MATCH($BC$12&"_"&BI$20,データシート1!$A$1:$BT$1,0),0) -> 17 | BJ29: =VLOOKUP($AX29&"_"&$BC$14,データシート1!$A:$BT,MATCH($BC$12&"_"&BJ$20,データシート1!$A$1:$BT$1,0),0) -> 19 | BK29: 45 | BL29: 43 | BM29: =VLOOKUP($AX29&"_"&$BC$14,データシート1!$A:$BT,MATCH($BC$12&"_"&BM$20,データシート1!$A$1:$BT$1,0),0) -> 21 | BN29: =VLOOKUP($AX29&"_"&$BC$14,データシート1!$A:$BT,MATCH($BC$12&"_"&BN$20,データシート1!$A$1:$BT$1,0),0) -> 23 | BO29: =VLOOKUP($AX29&"_"&$BC$14,データシート1!$A:$BT,MATCH($BC$12&"_"&BO$20,データシート1!$A$1:$BT$1,0),0) -> 1 | BP29: =VLOOKUP($AX29&"_"&$BC$14,データシート1!$A:$BT,MATCH($BC$12&"_"&BP$20,データシート1!$A$1:$BT$1,0),0) -> 0 | BQ29: =VLOOKUP($AX29&"_"&$BC$14,データシート1!$A:$BT,MATCH($BC$12&"_"&BQ$20,データシート1!$A$1:$BT$1,0),0) -> 4 | BR29: 229 | BT29: 日野町 | BU29: 229 | BV29: 63% | BW29: 60% | BX29: 0% | BY29: 3% | BZ29: 8% | CA29: 8% | CB29: 20% | CC29: 19% | CD29: 9% | CE29: 10% | CF29: 1% | CG29: 0% | CH29: 2% | CI29: 100% | CK29: 日野町 | CL29: 143 | CM29: (51%) | CN29: 137 | CO29: (54%) | CP29: 1 | CQ29: 0 | CR29: 6 | CS29: 0 | CT29: 17 | CU29: 0 | CW29: 73.25 | CX29: =VLOOKUP($AX29&"_"&$CW$14,データシート1!$A:$BT,MATCH($CW$12&"_"&CX$20,データシート1!$A$1:$BT$1,0),0) -> 73.25 | CY29: =VLOOKUP($AX29&"_"&$CW$14,データシート1!$A:$BT,MATCH($CW$12&"_"&CY$20,データシート1!$A$1:$BT$1,0),0) -> 0 | CZ29: =VLOOKUP($AX29&"_"&$CW$14,データシート1!$A:$BT,MATCH($CW$12&"_"&CZ$20,データシート1!$A$1:$BT$1,0),0) -> 0 | DA29: =VLOOKUP($AX29&"_"&$CW$14,データシート1!$A:$BT,MATCH($CW$12&"_"&DA$20,データシート1!$A$1:$BT$1,0),0) -> 0 | DB29: =VLOOKUP($AX29&"_"&$CW$14,データシート1!$A:$BT,MATCH($CW$12&"_"&DB$20,データシート1!$A$1:$BT$1,0),0) -> 0 | DC29: =VLOOKUP($AX29&"_"&$CW$14,データシート1!$A:$BT,MATCH($CW$12&"_"&DC$20,データシート1!$A$1:$BT$1,0),0) -> 0 | DD29: 73.25 | DF29: =VLOOKUP($AX29&"_"&$DF$14,データシート1!$A:$BT,MATCH($DF$12&"_"&DF$20,データシート1!$A$1:$BT$1,0),0) -> 10 | DG29: =VLOOKUP($AX29&"_"&$DF$14,データシート1!$A:$BT,MATCH($DF$12&"_"&DG$20,データシート1!$A$1:$BT$1,0),0) -> 0 | DH29: =VLOOKUP($AX29&"_"&$DF$14,データシート1!$A:$BT,MATCH($DF$12&"_"&DH$20,データシート1!$A$1:$BT$1,0),0) -> 0 | DI29: =VLOOKUP($AX29&"_"&$DF$14,データシート1!$A:$BT,MATCH($DF$12&"_"&DI$20,データシート1!$A$1:$BT$1,0),0) -> 0 | DJ29: =VLOOKUP($AX29&"_"&$DF$14,データシート1!$A:$BT,MATCH($DF$12&"_"&DJ$20,データシート1!$A$1:$BT$1,0),0) -> 0 | DK29: =VLOOKUP($AX29&"_"&$DF$14,データシート1!$A:$BT,MATCH($DF$12&"_"&DK$20,データシート1!$A$1:$BT$1,0),0) -> 0 | DL29: 10 | DN29: 100.0% | DO29: 0 | DP29: 0 | DQ29: 0 | DR29: 0 | DS29: 0
AX30: =比較地域マスタ!$Y15 -> 01610 | AY30: =IF(IFERROR(比較地域マスタ!$Z15,"")=0,"",IFERROR(比較地域マスタ!$Z15,"")) -> 新ひだか町 | BB30: 01610 | BC30: 新ひだか町 | BD30: 184 | BE30: 53 | BF30: =VLOOKUP($AX30&"_"&$BC$14,データシート1!$A:$BT,MATCH($BC$12&"_"&BF$20,データシート1!$A$1:$BT$1,0),0) -> 7 | BG30: =VLOOKUP($AX30&"_"&$BC$14,データシート1!$A:$BT,MATCH($BC$12&"_"&BG$20,データシート1!$A$1:$BT$1,0),0) -> 3 | BH30: =VLOOKUP($AX30&"_"&$BC$14,データシート1!$A:$BT,MATCH($BC$12&"_"&BH$20,データシート1!$A$1:$BT$1,0),0) -> 43 | BI30: =VLOOKUP($AX30&"_"&$BC$14,データシート1!$A:$BT,MATCH($BC$12&"_"&BI$20,データシート1!$A$1:$BT$1,0),0) -> 33 | BJ30: =VLOOKUP($AX30&"_"&$BC$14,データシート1!$A:$BT,MATCH($BC$12&"_"&BJ$20,データシート1!$A$1:$BT$1,0),0) -> 50 | BK30: 44 | BL30: 43 | BM30: =VLOOKUP($AX30&"_"&$BC$14,データシート1!$A:$BT,MATCH($BC$12&"_"&BM$20,データシート1!$A$1:$BT$1,0),0) -> 19 | BN30: =VLOOKUP($AX30&"_"&$BC$14,データシート1!$A:$BT,MATCH($BC$12&"_"&BN$20,データシート1!$A$1:$BT$1,0),0) -> 24 | BO30: =VLOOKUP($AX30&"_"&$BC$14,データシート1!$A:$BT,MATCH($BC$12&"_"&BO$20,データシート1!$A$1:$BT$1,0),0) -> 1 | BP30: =VLOOKUP($AX30&"_"&$BC$14,データシート1!$A:$BT,MATCH($BC$12&"_"&BP$20,データシート1!$A$1:$BT$1,0),0) -> 0 | BQ30: =VLOOKUP($AX30&"_"&$BC$14,データシート1!$A:$BT,MATCH($BC$12&"_"&BQ$20,データシート1!$A$1:$BT$1,0),0) -> 3 | BR30: 184 | BT30: 新ひだか町 | BU30: 184 | BV30: 29% | BW30: 4% | BX30: 1% | BY30: 24% | BZ30: 18% | CA30: 27% | CB30: 24% | CC30: 23% | CD30: 11% | CE30: 13% | CF30: 1% | CG30: 0% | CH30: 2% | CI30: 100% | CK30: 新ひだか町 | CL30: 53 | CM30: 0 | CN30: 7 | CO30: 0 | CP30: 3 | CQ30: 0 | CR30: 43 | CS30: 0 | CT30: 33 | CU30: (20%) | CW30: 0 | CX30: =VLOOKUP($AX30&"_"&$CW$14,データシート1!$A:$BT,MATCH($CW$12&"_"&CX$20,データシート1!$A$1:$BT$1,0),0) -> 0 | CY30: =VLOOKUP($AX30&"_"&$CW$14,データシート1!$A:$BT,MATCH($CW$12&"_"&CY$20,データシート1!$A$1:$BT$1,0),0) -> 0 | CZ30: =VLOOKUP($AX30&"_"&$CW$14,データシート1!$A:$BT,MATCH($CW$12&"_"&CZ$20,データシート1!$A$1:$BT$1,0),0) -> 0 | DA30: =VLOOKUP($AX30&"_"&$CW$14,データシート1!$A:$BT,MATCH($CW$12&"_"&DA$20,データシート1!$A$1:$BT$1,0),0) -> 6.593 | DB30: =VLOOKUP($AX30&"_"&$CW$14,データシート1!$A:$BT,MATCH($CW$12&"_"&DB$20,データシート1!$A$1:$BT$1,0),0) -> 0 | DC30: =VLOOKUP($AX30&"_"&$CW$14,データシート1!$A:$BT,MATCH($CW$12&"_"&DC$20,データシート1!$A$1:$BT$1,0),0) -> 0 | DD30: 6.593 | DF30: =VLOOKUP($AX30&"_"&$DF$14,データシート1!$A:$BT,MATCH($DF$12&"_"&DF$20,データシート1!$A$1:$BT$1,0),0) -> 0 | DG30: =VLOOKUP($AX30&"_"&$DF$14,データシート1!$A:$BT,MATCH($DF$12&"_"&DG$20,データシート1!$A$1:$BT$1,0),0) -> 0 | DH30: =VLOOKUP($AX30&"_"&$DF$14,データシート1!$A:$BT,MATCH($DF$12&"_"&DH$20,データシート1!$A$1:$BT$1,0),0) -> 0 | DI30: =VLOOKUP($AX30&"_"&$DF$14,データシート1!$A:$BT,MATCH($DF$12&"_"&DI$20,データシート1!$A$1:$BT$1,0),0) -> 1 | DJ30: =VLOOKUP($AX30&"_"&$DF$14,データシート1!$A:$BT,MATCH($DF$12&"_"&DJ$20,データシート1!$A$1:$BT$1,0),0) -> 0 | DK30: =VLOOKUP($AX30&"_"&$DF$14,データシート1!$A:$BT,MATCH($DF$12&"_"&DK$20,データシート1!$A$1:$BT$1,0),0) -> 0 | DL30: 1 | DN30: 0 | DO30: 0 | DP30: 0 | DQ30: 100.0% | DR30: 0 | DS30: 0
AX31: =比較地域マスタ!$Y16 -> 07461 | AY31: =IF(IFERROR(比較地域マスタ!$Z16,"")=0,"",IFERROR(比較地域マスタ!$Z16,"")) -> 西郷村 | BB31: 07461 | BC31: 西郷村 | BD31: 300 | BE31: 203 | BF31: =VLOOKUP($AX31&"_"&$BC$14,データシート1!$A:$BT,MATCH($BC$12&"_"&BF$20,データシート1!$A$1:$BT$1,0),0) -> 188 | BG31: =VLOOKUP($AX31&"_"&$BC$14,データシート1!$A:$BT,MATCH($BC$12&"_"&BG$20,データシート1!$A$1:$BT$1,0),0) -> 2 | BH31: =VLOOKUP($AX31&"_"&$BC$14,データシート1!$A:$BT,MATCH($BC$12&"_"&BH$20,データシート1!$A$1:$BT$1,0),0) -> 13 | BI31: =VLOOKUP($AX31&"_"&$BC$14,データシート1!$A:$BT,MATCH($BC$12&"_"&BI$20,データシート1!$A$1:$BT$1,0),0) -> 23 | BJ31: =VLOOKUP($AX31&"_"&$BC$14,データシート1!$A:$BT,MATCH($BC$12&"_"&BJ$20,データシート1!$A$1:$BT$1,0),0) -> 32 | BK31: 40 | BL31: 38 | BM31: =VLOOKUP($AX31&"_"&$BC$14,データシート1!$A:$BT,MATCH($BC$12&"_"&BM$20,データシート1!$A$1:$BT$1,0),0) -> 21 | BN31: =VLOOKUP($AX31&"_"&$BC$14,データシート1!$A:$BT,MATCH($BC$12&"_"&BN$20,データシート1!$A$1:$BT$1,0),0) -> 17 | BO31: =VLOOKUP($AX31&"_"&$BC$14,データシート1!$A:$BT,MATCH($BC$12&"_"&BO$20,データシート1!$A$1:$BT$1,0),0) -> 1 | BP31: =VLOOKUP($AX31&"_"&$BC$14,データシート1!$A:$BT,MATCH($BC$12&"_"&BP$20,データシート1!$A$1:$BT$1,0),0) -> 0 | BQ31: =VLOOKUP($AX31&"_"&$BC$14,データシート1!$A:$BT,MATCH($BC$12&"_"&BQ$20,データシート1!$A$1:$BT$1,0),0) -> 3 | BR31: 300 | BT31: 西郷村 | BU31: 300 | BV31: 68% | BW31: 63% | BX31: 1% | BY31: 4% | BZ31: 8% | CA31: 11% | CB31: 13% | CC31: 13% | CD31: 7% | CE31: 6% | CF31: 0% | CG31: 0% | CH31: 1% | CI31: 100% | CK31: 西郷村 | CL31: 203 | CM31: (100%) | CN31: 188 | CO31: (100%) | CP31: 2 | CQ31: 0 | CR31: 13 | CS31: 0 | CT31: 23 | CU31: (17%) | CW31: 316.338 | CX31: =VLOOKUP($AX31&"_"&$CW$14,データシート1!$A:$BT,MATCH($CW$12&"_"&CX$20,データシート1!$A$1:$BT$1,0),0) -> 316.338 | CY31: =VLOOKUP($AX31&"_"&$CW$14,データシート1!$A:$BT,MATCH($CW$12&"_"&CY$20,データシート1!$A$1:$BT$1,0),0) -> 0 | CZ31: =VLOOKUP($AX31&"_"&$CW$14,データシート1!$A:$BT,MATCH($CW$12&"_"&CZ$20,データシート1!$A$1:$BT$1,0),0) -> 0 | DA31: =VLOOKUP($AX31&"_"&$CW$14,データシート1!$A:$BT,MATCH($CW$12&"_"&DA$20,データシート1!$A$1:$BT$1,0),0) -> 3.889 | DB31: =VLOOKUP($AX31&"_"&$CW$14,データシート1!$A:$BT,MATCH($CW$12&"_"&DB$20,データシート1!$A$1:$BT$1,0),0) -> 0 | DC31: =VLOOKUP($AX31&"_"&$CW$14,データシート1!$A:$BT,MATCH($CW$12&"_"&DC$20,データシート1!$A$1:$BT$1,0),0) -> 0 | DD31: 320.227 | DF31: =VLOOKUP($AX31&"_"&$DF$14,データシート1!$A:$BT,MATCH($DF$12&"_"&DF$20,データシート1!$A$1:$BT$1,0),0) -> 5 | DG31: =VLOOKUP($AX31&"_"&$DF$14,データシート1!$A:$BT,MATCH($DF$12&"_"&DG$20,データシート1!$A$1:$BT$1,0),0) -> 0 | DH31: =VLOOKUP($AX31&"_"&$DF$14,データシート1!$A:$BT,MATCH($DF$12&"_"&DH$20,データシート1!$A$1:$BT$1,0),0) -> 0 | DI31: =VLOOKUP($AX31&"_"&$DF$14,データシート1!$A:$BT,MATCH($DF$12&"_"&DI$20,データシート1!$A$1:$BT$1,0),0) -> 1 | DJ31: =VLOOKUP($AX31&"_"&$DF$14,データシート1!$A:$BT,MATCH($DF$12&"_"&DJ$20,データシート1!$A$1:$BT$1,0),0) -> 0 | DK31: =VLOOKUP($AX31&"_"&$DF$14,データシート1!$A:$BT,MATCH($DF$12&"_"&DK$20,データシート1!$A$1:$BT$1,0),0) -> 0 | DL31: 6 | DN31: 99.0% | DO31: 0 | DP31: 0 | DQ31: 1.0% | DR31: 0 | DS31: 0
AX32: =比較地域マスタ!$Y17 -> 38402 | AY32: =IF(IFERROR(比較地域マスタ!$Z17,"")=0,"",IFERROR(比較地域マスタ!$Z17,"")) -> 砥部町 | BB32: 38402 | BC32: 砥部町 | BD32: 128 | BE32: 40 | BF32: =VLOOKUP($AX32&"_"&$BC$14,データシート1!$A:$BT,MATCH($BC$12&"_"&BF$20,データシート1!$A$1:$BT$1,0),0) -> 36 | BG32: =VLOOKUP($AX32&"_"&$BC$14,データシート1!$A:$BT,MATCH($BC$12&"_"&BG$20,データシート1!$A$1:$BT$1,0),0) -> 1 | BH32: =VLOOKUP($AX32&"_"&$BC$14,データシート1!$A:$BT,MATCH($BC$12&"_"&BH$20,データシート1!$A$1:$BT$1,0),0) -> 2 | BI32: =VLOOKUP($AX32&"_"&$BC$14,データシート1!$A:$BT,MATCH($BC$12&"_"&BI$20,データシート1!$A$1:$BT$1,0),0) -> 22 | BJ32: =VLOOKUP($AX32&"_"&$BC$14,データシート1!$A:$BT,MATCH($BC$12&"_"&BJ$20,データシート1!$A$1:$BT$1,0),0) -> 29 | BK32: 38 | BL32: 37 | BM32: =VLOOKUP($AX32&"_"&$BC$14,データシート1!$A:$BT,MATCH($BC$12&"_"&BM$20,データシート1!$A$1:$BT$1,0),0) -> 17 | BN32: =VLOOKUP($AX32&"_"&$BC$14,データシート1!$A:$BT,MATCH($BC$12&"_"&BN$20,データシート1!$A$1:$BT$1,0),0) -> 20 | BO32: =VLOOKUP($AX32&"_"&$BC$14,データシート1!$A:$BT,MATCH($BC$12&"_"&BO$20,データシート1!$A$1:$BT$1,0),0) -> 1 | BP32: =VLOOKUP($AX32&"_"&$BC$14,データシート1!$A:$BT,MATCH($BC$12&"_"&BP$20,データシート1!$A$1:$BT$1,0),0) -> 0 | BQ32: =VLOOKUP($AX32&"_"&$BC$14,データシート1!$A:$BT,MATCH($BC$12&"_"&BQ$20,データシート1!$A$1:$BT$1,0),0) -> 0 | BR32: 128 | BT32: 砥部町 | BU32: 128 | BV32: 31% | BW32: 28% | BX32: 1% | BY32: 2% | BZ32: 17% | CA32: 22% | CB32: 30% | CC32: 29% | CD32: 13% | CE32: 16% | CF32: 1% | CG32: 0% | CH32: 0% | CI32: 100% | CK32: 砥部町 | CL32: 40 | CM32: (14%) | CN32: 36 | CO32: (15%) | CP32: 1 | CQ32: 0 | CR32: 2 | CS32: 0 | CT32: 22 | CU32: 0 | CW32: 5.508 | CX32: =VLOOKUP($AX32&"_"&$CW$14,データシート1!$A:$BT,MATCH($CW$12&"_"&CX$20,データシート1!$A$1:$BT$1,0),0) -> 5.508 | CY32: =VLOOKUP($AX32&"_"&$CW$14,データシート1!$A:$BT,MATCH($CW$12&"_"&CY$20,データシート1!$A$1:$BT$1,0),0) -> 0 | CZ32: =VLOOKUP($AX32&"_"&$CW$14,データシート1!$A:$BT,MATCH($CW$12&"_"&CZ$20,データシート1!$A$1:$BT$1,0),0) -> 0 | DA32: =VLOOKUP($AX32&"_"&$CW$14,データシート1!$A:$BT,MATCH($CW$12&"_"&DA$20,データシート1!$A$1:$BT$1,0),0) -> 0 | DB32: =VLOOKUP($AX32&"_"&$CW$14,データシート1!$A:$BT,MATCH($CW$12&"_"&DB$20,データシート1!$A$1:$BT$1,0),0) -> 0 | DC32: =VLOOKUP($AX32&"_"&$CW$14,データシート1!$A:$BT,MATCH($CW$12&"_"&DC$20,データシート1!$A$1:$BT$1,0),0) -> 0 | DD32: 5.508 | DF32: =VLOOKUP($AX32&"_"&$DF$14,データシート1!$A:$BT,MATCH($DF$12&"_"&DF$20,データシート1!$A$1:$BT$1,0),0) -> 1 | DG32: =VLOOKUP($AX32&"_"&$DF$14,データシート1!$A:$BT,MATCH($DF$12&"_"&DG$20,データシート1!$A$1:$BT$1,0),0) -> 0 | DH32: =VLOOKUP($AX32&"_"&$DF$14,データシート1!$A:$BT,MATCH($DF$12&"_"&DH$20,データシート1!$A$1:$BT$1,0),0) -> 0 | DI32: =VLOOKUP($AX32&"_"&$DF$14,データシート1!$A:$BT,MATCH($DF$12&"_"&DI$20,データシート1!$A$1:$BT$1,0),0) -> 0 | DJ32: =VLOOKUP($AX32&"_"&$DF$14,データシート1!$A:$BT,MATCH($DF$12&"_"&DJ$20,データシート1!$A$1:$BT$1,0),0) -> 0 | DK32: =VLOOKUP($AX32&"_"&$DF$14,データシート1!$A:$BT,MATCH($DF$12&"_"&DK$20,データシート1!$A$1:$BT$1,0),0) -> 0 | DL32: 1 | DN32: 100.0% | DO32: 0 | DP32: 0 | DQ32: 0 | DR32: 0 | DS32: 0
AX33: =比較地域マスタ!$Y18 -> 01219 | AY33: =IF(IFERROR(比較地域マスタ!$Z18,"")=0,"",IFERROR(比較地域マスタ!$Z18,"")) -> 紋別市 | BB33: 01219 | BC33: 紋別市 | BD33: 340 | BE33: 207 | BF33: =VLOOKUP($AX33&"_"&$BC$14,データシート1!$A:$BT,MATCH($BC$12&"_"&BF$20,データシート1!$A$1:$BT$1,0),0) -> 191 | BG33: =VLOOKUP($AX33&"_"&$BC$14,データシート1!$A:$BT,MATCH($BC$12&"_"&BG$20,データシート1!$A$1:$BT$1,0),0) -> 2 | BH33: =VLOOKUP($AX33&"_"&$BC$14,データシート1!$A:$BT,MATCH($BC$12&"_"&BH$20,データシート1!$A$1:$BT$1,0),0) -> 14 | BI33: =VLOOKUP($AX33&"_"&$BC$14,データシート1!$A:$BT,MATCH($BC$12&"_"&BI$20,データシート1!$A$1:$BT$1,0),0) -> 35 | BJ33: =VLOOKUP($AX33&"_"&$BC$14,データシート1!$A:$BT,MATCH($BC$12&"_"&BJ$20,データシート1!$A$1:$BT$1,0),0) -> 51 | BK33: 44 | BL33: 40 | BM33: =VLOOKUP($AX33&"_"&$BC$14,データシート1!$A:$BT,MATCH($BC$12&"_"&BM$20,データシート1!$A$1:$BT$1,0),0) -> 19 | BN33: =VLOOKUP($AX33&"_"&$BC$14,データシート1!$A:$BT,MATCH($BC$12&"_"&BN$20,データシート1!$A$1:$BT$1,0),0) -> 21 | BO33: =VLOOKUP($AX33&"_"&$BC$14,データシート1!$A:$BT,MATCH($BC$12&"_"&BO$20,データシート1!$A$1:$BT$1,0),0) -> 1 | BP33: =VLOOKUP($AX33&"_"&$BC$14,データシート1!$A:$BT,MATCH($BC$12&"_"&BP$20,データシート1!$A$1:$BT$1,0),0) -> 3 | BQ33: =VLOOKUP($AX33&"_"&$BC$14,データシート1!$A:$BT,MATCH($BC$12&"_"&BQ$20,データシート1!$A$1:$BT$1,0),0) -> 3 | BR33: 340 | BT33: 紋別市 | BU33: 340 | BV33: 61% | BW33: 56% | BX33: 1% | BY33: 4% | BZ33: 10% | CA33: 15% | CB33: 13% | CC33: 12% | CD33: 5% | CE33: 6% | CF33: 0% | CG33: 1% | CH33: 1% | CI33: 100% | CK33: 紋別市 | CL33: 207 | CM33: (14%) | CN33: 191 | CO33: (15%) | CP33: 2 | CQ33: 0 | CR33: 14 | CS33: 0 | CT33: 35 | CU33: 0 | CW33: 28.926 | CX33: =VLOOKUP($AX33&"_"&$CW$14,データシート1!$A:$BT,MATCH($CW$12&"_"&CX$20,データシート1!$A$1:$BT$1,0),0) -> 28.926 | CY33: =VLOOKUP($AX33&"_"&$CW$14,データシート1!$A:$BT,MATCH($CW$12&"_"&CY$20,データシート1!$A$1:$BT$1,0),0) -> 0 | CZ33: =VLOOKUP($AX33&"_"&$CW$14,データシート1!$A:$BT,MATCH($CW$12&"_"&CZ$20,データシート1!$A$1:$BT$1,0),0) -> 0 | DA33: =VLOOKUP($AX33&"_"&$CW$14,データシート1!$A:$BT,MATCH($CW$12&"_"&DA$20,データシート1!$A$1:$BT$1,0),0) -> 0 | DB33: =VLOOKUP($AX33&"_"&$CW$14,データシート1!$A:$BT,MATCH($CW$12&"_"&DB$20,データシート1!$A$1:$BT$1,0),0) -> 95.163 | DC33: =VLOOKUP($AX33&"_"&$CW$14,データシート1!$A:$BT,MATCH($CW$12&"_"&DC$20,データシート1!$A$1:$BT$1,0),0) -> 0 | DD33: 124.089 | DF33: =VLOOKUP($AX33&"_"&$DF$14,データシート1!$A:$BT,MATCH($DF$12&"_"&DF$20,データシート1!$A$1:$BT$1,0),0) -> 2 | DG33: =VLOOKUP($AX33&"_"&$DF$14,データシート1!$A:$BT,MATCH($DF$12&"_"&DG$20,データシート1!$A$1:$BT$1,0),0) -> 0 | DH33: =VLOOKUP($AX33&"_"&$DF$14,データシート1!$A:$BT,MATCH($DF$12&"_"&DH$20,データシート1!$A$1:$BT$1,0),0) -> 0 | DI33: =VLOOKUP($AX33&"_"&$DF$14,データシート1!$A:$BT,MATCH($DF$12&"_"&DI$20,データシート1!$A$1:$BT$1,0),0) -> 0 | DJ33: =VLOOKUP($AX33&"_"&$DF$14,データシート1!$A:$BT,MATCH($DF$12&"_"&DJ$20,データシート1!$A$1:$BT$1,0),0) -> 1 | DK33: =VLOOKUP($AX33&"_"&$DF$14,データシート1!$A:$BT,MATCH($DF$12&"_"&DK$20,データシート1!$A$1:$BT$1,0),0) -> 0 | DL33: 3 | DN33: 23.0% | DO33: 0 | DP33: 0 | DQ33: 0 | DR33: 77.0% | DS33: 0
AX34: =比較地域マスタ!$Y19 -> 12322 | AY34: =IF(IFERROR(比較地域マスタ!$Z19,"")=0,"",IFERROR(比較地域マスタ!$Z19,"")) -> 酒々井町 | BB34: 12322 | BC34: 酒々井町 | BD34: 131 | BE34: 43 | BF34: =VLOOKUP($AX34&"_"&$BC$14,データシート1!$A:$BT,MATCH($BC$12&"_"&BF$20,データシート1!$A$1:$BT$1,0),0) -> 39 | BG34: =VLOOKUP($AX34&"_"&$BC$14,データシート1!$A:$BT,MATCH($BC$12&"_"&BG$20,データシート1!$A$1:$BT$1,0),0) -> 0 | BH34: =VLOOKUP($AX34&"_"&$BC$14,データシート1!$A:$BT,MATCH($BC$12&"_"&BH$20,データシート1!$A$1:$BT$1,0),0) -> 3 | BI34: =VLOOKUP($AX34&"_"&$BC$14,データシート1!$A:$BT,MATCH($BC$12&"_"&BI$20,データシート1!$A$1:$BT$1,0),0) -> 32 | BJ34: =VLOOKUP($AX34&"_"&$BC$14,データシート1!$A:$BT,MATCH($BC$12&"_"&BJ$20,データシート1!$A$1:$BT$1,0),0) -> 24 | BK34: 30 | BL34: 29 | BM34: =VLOOKUP($AX34&"_"&$BC$14,データシート1!$A:$BT,MATCH($BC$12&"_"&BM$20,データシート1!$A$1:$BT$1,0),0) -> 17 | BN34: =VLOOKUP($AX34&"_"&$BC$14,データシート1!$A:$BT,MATCH($BC$12&"_"&BN$20,データシート1!$A$1:$BT$1,0),0) -> 12 | BO34: =VLOOKUP($AX34&"_"&$BC$14,データシート1!$A:$BT,MATCH($BC$12&"_"&BO$20,データシート1!$A$1:$BT$1,0),0) -> 1 | BP34: =VLOOKUP($AX34&"_"&$BC$14,データシート1!$A:$BT,MATCH($BC$12&"_"&BP$20,データシート1!$A$1:$BT$1,0),0) -> 0 | BQ34: =VLOOKUP($AX34&"_"&$BC$14,データシート1!$A:$BT,MATCH($BC$12&"_"&BQ$20,データシート1!$A$1:$BT$1,0),0) -> 2 | BR34: 131 | BT34: 酒々井町 | BU34: 131 | BV34: 33% | BW34: 30% | BX34: 0% | BY34: 2% | BZ34: 24% | CA34: 18% | CB34: 23% | CC34: 22% | CD34: 13% | CE34: 9% | CF34: 1% | CG34: 0% | CH34: 2% | CI34: 100% | CK34: 酒々井町 | CL34: 43 | CM34: (9%) | CN34: 39 | CO34: (10%) | CP34: 0 | CQ34: 0 | CR34: 3 | CS34: 0 | CT34: 32 | CU34: (24%) | CW34: 3.857 | CX34: =VLOOKUP($AX34&"_"&$CW$14,データシート1!$A:$BT,MATCH($CW$12&"_"&CX$20,データシート1!$A$1:$BT$1,0),0) -> 3.857 | CY34: =VLOOKUP($AX34&"_"&$CW$14,データシート1!$A:$BT,MATCH($CW$12&"_"&CY$20,データシート1!$A$1:$BT$1,0),0) -> 0 | CZ34: =VLOOKUP($AX34&"_"&$CW$14,データシート1!$A:$BT,MATCH($CW$12&"_"&CZ$20,データシート1!$A$1:$BT$1,0),0) -> 0 | DA34: =VLOOKUP($AX34&"_"&$CW$14,データシート1!$A:$BT,MATCH($CW$12&"_"&DA$20,データシート1!$A$1:$BT$1,0),0) -> 7.585 | DB34: =VLOOKUP($AX34&"_"&$CW$14,データシート1!$A:$BT,MATCH($CW$12&"_"&DB$20,データシート1!$A$1:$BT$1,0),0) -> 0 | DC34: =VLOOKUP($AX34&"_"&$CW$14,データシート1!$A:$BT,MATCH($CW$12&"_"&DC$20,データシート1!$A$1:$BT$1,0),0) -> 0 | DD34: 11.442 | DF34: =VLOOKUP($AX34&"_"&$DF$14,データシート1!$A:$BT,MATCH($DF$12&"_"&DF$20,データシート1!$A$1:$BT$1,0),0) -> 1 | DG34: =VLOOKUP($AX34&"_"&$DF$14,データシート1!$A:$BT,MATCH($DF$12&"_"&DG$20,データシート1!$A$1:$BT$1,0),0) -> 0 | DH34: =VLOOKUP($AX34&"_"&$DF$14,データシート1!$A:$BT,MATCH($DF$12&"_"&DH$20,データシート1!$A$1:$BT$1,0),0) -> 0 | DI34: =VLOOKUP($AX34&"_"&$DF$14,データシート1!$A:$BT,MATCH($DF$12&"_"&DI$20,データシート1!$A$1:$BT$1,0),0) -> 2 | DJ34: =VLOOKUP($AX34&"_"&$DF$14,データシート1!$A:$BT,MATCH($DF$12&"_"&DJ$20,データシート1!$A$1:$BT$1,0),0) -> 0 | DK34: =VLOOKUP($AX34&"_"&$DF$14,データシート1!$A:$BT,MATCH($DF$12&"_"&DK$20,データシート1!$A$1:$BT$1,0),0) -> 0 | DL34: 3 | DN34: 34.0% | DO34: 0 | DP34: 0 | DQ34: 66.0% | DR34: 0 | DS34: 0
AX35: =比較地域マスタ!$Y20 -> 30401 | AY35: =IF(IFERROR(比較地域マスタ!$Z20,"")=0,"",IFERROR(比較地域マスタ!$Z20,"")) -> 白浜町 | BB35: 30401 | BC35: 白浜町 | BD35: 115 | BE35: 25 | BF35: =VLOOKUP($AX35&"_"&$BC$14,データシート1!$A:$BT,MATCH($BC$12&"_"&BF$20,データシート1!$A$1:$BT$1,0),0) -> 19 | BG35: =VLOOKUP($AX35&"_"&$BC$14,データシート1!$A:$BT,MATCH($BC$12&"_"&BG$20,データシート1!$A$1:$BT$1,0),0) -> 1 | BH35: =VLOOKUP($AX35&"_"&$BC$14,データシート1!$A:$BT,MATCH($BC$12&"_"&BH$20,データシート1!$A$1:$BT$1,0),0) -> 6 | BI35: =VLOOKUP($AX35&"_"&$BC$14,データシート1!$A:$BT,MATCH($BC$12&"_"&BI$20,データシート1!$A$1:$BT$1,0),0) -> 25 | BJ35: =VLOOKUP($AX35&"_"&$BC$14,データシート1!$A:$BT,MATCH($BC$12&"_"&BJ$20,データシート1!$A$1:$BT$1,0),0) -> 23 | BK35: 37 | BL35: 36 | BM35: =VLOOKUP($AX35&"_"&$BC$14,データシート1!$A:$BT,MATCH($BC$12&"_"&BM$20,データシート1!$A$1:$BT$1,0),0) -> 17 | BN35: =VLOOKUP($AX35&"_"&$BC$14,データシート1!$A:$BT,MATCH($BC$12&"_"&BN$20,データシート1!$A$1:$BT$1,0),0) -> 18 | BO35: =VLOOKUP($AX35&"_"&$BC$14,データシート1!$A:$BT,MATCH($BC$12&"_"&BO$20,データシート1!$A$1:$BT$1,0),0) -> 1 | BP35: =VLOOKUP($AX35&"_"&$BC$14,データシート1!$A:$BT,MATCH($BC$12&"_"&BP$20,データシート1!$A$1:$BT$1,0),0) -> 0 | BQ35: =VLOOKUP($AX35&"_"&$BC$14,データシート1!$A:$BT,MATCH($BC$12&"_"&BQ$20,データシート1!$A$1:$BT$1,0),0) -> 5 | BR35: 115 | BT35: 白浜町 | BU35: 115 | BV35: 22% | BW35: 16% | BX35: 1% | BY35: 5% | BZ35: 22% | CA35: 20% | CB35: 32% | CC35: 31% | CD35: 15% | CE35: 16% | CF35: 1% | CG35: 0% | CH35: 4% | CI35: 100% | CK35: 白浜町 | CL35: 25 | CM35: 0 | CN35: 19 | CO35: 0 | CP35: 1 | CQ35: 0 | CR35: 6 | CS35: 0 | CT35: 25 | CU35: (45%) | CW35: 0 | CX35: =VLOOKUP($AX35&"_"&$CW$14,データシート1!$A:$BT,MATCH($CW$12&"_"&CX$20,データシート1!$A$1:$BT$1,0),0) -> 0 | CY35: =VLOOKUP($AX35&"_"&$CW$14,データシート1!$A:$BT,MATCH($CW$12&"_"&CY$20,データシート1!$A$1:$BT$1,0),0) -> 0 | CZ35: =VLOOKUP($AX35&"_"&$CW$14,データシート1!$A:$BT,MATCH($CW$12&"_"&CZ$20,データシート1!$A$1:$BT$1,0),0) -> 0 | DA35: =VLOOKUP($AX35&"_"&$CW$14,データシート1!$A:$BT,MATCH($CW$12&"_"&DA$20,データシート1!$A$1:$BT$1,0),0) -> 11.254 | DB35: =VLOOKUP($AX35&"_"&$CW$14,データシート1!$A:$BT,MATCH($CW$12&"_"&DB$20,データシート1!$A$1:$BT$1,0),0) -> 0 | DC35: =VLOOKUP($AX35&"_"&$CW$14,データシート1!$A:$BT,MATCH($CW$12&"_"&DC$20,データシート1!$A$1:$BT$1,0),0) -> 0 | DD35: 11.254 | DF35: =VLOOKUP($AX35&"_"&$DF$14,データシート1!$A:$BT,MATCH($DF$12&"_"&DF$20,データシート1!$A$1:$BT$1,0),0) -> 0 | DG35: =VLOOKUP($AX35&"_"&$DF$14,データシート1!$A:$BT,MATCH($DF$12&"_"&DG$20,データシート1!$A$1:$BT$1,0),0) -> 0 | DH35: =VLOOKUP($AX35&"_"&$DF$14,データシート1!$A:$BT,MATCH($DF$12&"_"&DH$20,データシート1!$A$1:$BT$1,0),0) -> 0 | DI35: =VLOOKUP($AX35&"_"&$DF$14,データシート1!$A:$BT,MATCH($DF$12&"_"&DI$20,データシート1!$A$1:$BT$1,0),0) -> 3 | DJ35: =VLOOKUP($AX35&"_"&$DF$14,データシート1!$A:$BT,MATCH($DF$12&"_"&DJ$20,データシート1!$A$1:$BT$1,0),0) -> 0 | DK35: =VLOOKUP($AX35&"_"&$DF$14,データシート1!$A:$BT,MATCH($DF$12&"_"&DK$20,データシート1!$A$1:$BT$1,0),0) -> 0 | DL35: 3 | DN35: 0 | DO35: 0 | DP35: 0 | DQ35: 100.0% | DR35: 0 | DS35: 0
AX36: =比較地域マスタ!$Y21 -> 18423 | AY36: =IF(IFERROR(比較地域マスタ!$Z21,"")=0,"",IFERROR(比較地域マスタ!$Z21,"")) -> 越前町 | BB36: 18423 | BC36: 越前町 | BD36: 152 | BE36: 58 | BF36: =VLOOKUP($AX36&"_"&$BC$14,データシート1!$A:$BT,MATCH($BC$12&"_"&BF$20,データシート1!$A$1:$BT$1,0),0) -> 49 | BG36: =VLOOKUP($AX36&"_"&$BC$14,データシート1!$A:$BT,MATCH($BC$12&"_"&BG$20,データシート1!$A$1:$BT$1,0),0) -> 1 | BH36: =VLOOKUP($AX36&"_"&$BC$14,データシート1!$A:$BT,MATCH($BC$12&"_"&BH$20,データシート1!$A$1:$BT$1,0),0) -> 7 | BI36: =VLOOKUP($AX36&"_"&$BC$14,データシート1!$A:$BT,MATCH($BC$12&"_"&BI$20,データシート1!$A$1:$BT$1,0),0) -> 18 | BJ36: =VLOOKUP($AX36&"_"&$BC$14,データシート1!$A:$BT,MATCH($BC$12&"_"&BJ$20,データシート1!$A$1:$BT$1,0),0) -> 34 | BK36: 39 | BL36: 38 | BM36: =VLOOKUP($AX36&"_"&$BC$14,データシート1!$A:$BT,MATCH($BC$12&"_"&BM$20,データシート1!$A$1:$BT$1,0),0) -> 19 | BN36: =VLOOKUP($AX36&"_"&$BC$14,データシート1!$A:$BT,MATCH($BC$12&"_"&BN$20,データシート1!$A$1:$BT$1,0),0) -> 19 | BO36: =VLOOKUP($AX36&"_"&$BC$14,データシート1!$A:$BT,MATCH($BC$12&"_"&BO$20,データシート1!$A$1:$BT$1,0),0) -> 1 | BP36: =VLOOKUP($AX36&"_"&$BC$14,データシート1!$A:$BT,MATCH($BC$12&"_"&BP$20,データシート1!$A$1:$BT$1,0),0) -> 0 | BQ36: =VLOOKUP($AX36&"_"&$BC$14,データシート1!$A:$BT,MATCH($BC$12&"_"&BQ$20,データシート1!$A$1:$BT$1,0),0) -> 3 | BR36: 152 | BT36: 越前町 | BU36: 152 | BV36: 38% | BW36: 33% | BX36: 1% | BY36: 5% | BZ36: 12% | CA36: 22% | CB36: 26% | CC36: 25% | CD36: 13% | CE36: 12% | CF36: 1% | CG36: 0% | CH36: 2% | CI36: 100% | CK36: 越前町 | CL36: 58 | CM36: (45%) | CN36: 49 | CO36: (53%) | CP36: 1 | CQ36: 0 | CR36: 7 | CS36: 0 | CT36: 18 | CU36: 0 | CW36: 26.02 | CX36: =VLOOKUP($AX36&"_"&$CW$14,データシート1!$A:$BT,MATCH($CW$12&"_"&CX$20,データシート1!$A$1:$BT$1,0),0) -> 26.02 | CY36: =VLOOKUP($AX36&"_"&$CW$14,データシート1!$A:$BT,MATCH($CW$12&"_"&CY$20,データシート1!$A$1:$BT$1,0),0) -> 0 | CZ36: =VLOOKUP($AX36&"_"&$CW$14,データシート1!$A:$BT,MATCH($CW$12&"_"&CZ$20,データシート1!$A$1:$BT$1,0),0) -> 0 | DA36: =VLOOKUP($AX36&"_"&$CW$14,データシート1!$A:$BT,MATCH($CW$12&"_"&DA$20,データシート1!$A$1:$BT$1,0),0) -> 0 | DB36: =VLOOKUP($AX36&"_"&$CW$14,データシート1!$A:$BT,MATCH($CW$12&"_"&DB$20,データシート1!$A$1:$BT$1,0),0) -> 0 | DC36: =VLOOKUP($AX36&"_"&$CW$14,データシート1!$A:$BT,MATCH($CW$12&"_"&DC$20,データシート1!$A$1:$BT$1,0),0) -> 0 | DD36: 26.02 | DF36: =VLOOKUP($AX36&"_"&$DF$14,データシート1!$A:$BT,MATCH($DF$12&"_"&DF$20,データシート1!$A$1:$BT$1,0),0) -> 2 | DG36: =VLOOKUP($AX36&"_"&$DF$14,データシート1!$A:$BT,MATCH($DF$12&"_"&DG$20,データシート1!$A$1:$BT$1,0),0) -> 0 | DH36: =VLOOKUP($AX36&"_"&$DF$14,データシート1!$A:$BT,MATCH($DF$12&"_"&DH$20,データシート1!$A$1:$BT$1,0),0) -> 0 | DI36: =VLOOKUP($AX36&"_"&$DF$14,データシート1!$A:$BT,MATCH($DF$12&"_"&DI$20,データシート1!$A$1:$BT$1,0),0) -> 0 | DJ36: =VLOOKUP($AX36&"_"&$DF$14,データシート1!$A:$BT,MATCH($DF$12&"_"&DJ$20,データシート1!$A$1:$BT$1,0),0) -> 0 | DK36: =VLOOKUP($AX36&"_"&$DF$14,データシート1!$A:$BT,MATCH($DF$12&"_"&DK$20,データシート1!$A$1:$BT$1,0),0) -> 0 | DL36: 2 | DN36: 100.0% | DO36: 0 | DP36: 0 | DQ36: 0 | DR36: 0 | DS36: 0
AX37: =比較地域マスタ!$Y22 -> 01229 | AY37: =IF(IFERROR(比較地域マスタ!$Z22,"")=0,"",IFERROR(比較地域マスタ!$Z22,"")) -> 富良野市 | BB37: 01229 | BC37: 富良野市 | BD37: 167 | BE37: 41 | BF37: =VLOOKUP($AX37&"_"&$BC$14,データシート1!$A:$BT,MATCH($BC$12&"_"&BF$20,データシート1!$A$1:$BT$1,0),0) -> 14 | BG37: =VLOOKUP($AX37&"_"&$BC$14,データシート1!$A:$BT,MATCH($BC$12&"_"&BG$20,データシート1!$A$1:$BT$1,0),0) -> 3 | BH37: =VLOOKUP($AX37&"_"&$BC$14,データシート1!$A:$BT,MATCH($BC$12&"_"&BH$20,データシート1!$A$1:$BT$1,0),0) -> 25 | BI37: =VLOOKUP($AX37&"_"&$BC$14,データシート1!$A:$BT,MATCH($BC$12&"_"&BI$20,データシート1!$A$1:$BT$1,0),0) -> 38 | BJ37: =VLOOKUP($AX37&"_"&$BC$14,データシート1!$A:$BT,MATCH($BC$12&"_"&BJ$20,データシート1!$A$1:$BT$1,0),0) -> 46 | BK37: 42 | BL37: 41 | BM37: =VLOOKUP($AX37&"_"&$BC$14,データシート1!$A:$BT,MATCH($BC$12&"_"&BM$20,データシート1!$A$1:$BT$1,0),0) -> 18 | BN37: =VLOOKUP($AX37&"_"&$BC$14,データシート1!$A:$BT,MATCH($BC$12&"_"&BN$20,データシート1!$A$1:$BT$1,0),0) -> 23 | BO37: =VLOOKUP($AX37&"_"&$BC$14,データシート1!$A:$BT,MATCH($BC$12&"_"&BO$20,データシート1!$A$1:$BT$1,0),0) -> 1 | BP37: =VLOOKUP($AX37&"_"&$BC$14,データシート1!$A:$BT,MATCH($BC$12&"_"&BP$20,データシート1!$A$1:$BT$1,0),0) -> 0 | BQ37: =VLOOKUP($AX37&"_"&$BC$14,データシート1!$A:$BT,MATCH($BC$12&"_"&BQ$20,データシート1!$A$1:$BT$1,0),0) -> 0 | BR37: 167 | BT37: 富良野市 | BU37: 167 | BV37: 25% | BW37: 8% | BX37: 2% | BY37: 15% | BZ37: 23% | CA37: 28% | CB37: 25% | CC37: 24% | CD37: 11% | CE37: 14% | CF37: 1% | CG37: 0% | CH37: 0% | CI37: 100% | CK37: 富良野市 | CL37: 41 | CM37: 0 | CN37: 14 | CO37: 0 | CP37: 3 | CQ37: 0 | CR37: 25 | CS37: 0 | CT37: 38 | CU37: (20%) | CW37: 0 | CX37: =VLOOKUP($AX37&"_"&$CW$14,データシート1!$A:$BT,MATCH($CW$12&"_"&CX$20,データシート1!$A$1:$BT$1,0),0) -> 0 | CY37: =VLOOKUP($AX37&"_"&$CW$14,データシート1!$A:$BT,MATCH($CW$12&"_"&CY$20,データシート1!$A$1:$BT$1,0),0) -> 0 | CZ37: =VLOOKUP($AX37&"_"&$CW$14,データシート1!$A:$BT,MATCH($CW$12&"_"&CZ$20,データシート1!$A$1:$BT$1,0),0) -> 0 | DA37: =VLOOKUP($AX37&"_"&$CW$14,データシート1!$A:$BT,MATCH($CW$12&"_"&DA$20,データシート1!$A$1:$BT$1,0),0) -> 7.739 | DB37: =VLOOKUP($AX37&"_"&$CW$14,データシート1!$A:$BT,MATCH($CW$12&"_"&DB$20,データシート1!$A$1:$BT$1,0),0) -> 0 | DC37: =VLOOKUP($AX37&"_"&$CW$14,データシート1!$A:$BT,MATCH($CW$12&"_"&DC$20,データシート1!$A$1:$BT$1,0),0) -> 0 | DD37: 7.739 | DF37: =VLOOKUP($AX37&"_"&$DF$14,データシート1!$A:$BT,MATCH($DF$12&"_"&DF$20,データシート1!$A$1:$BT$1,0),0) -> 0 | DG37: =VLOOKUP($AX37&"_"&$DF$14,データシート1!$A:$BT,MATCH($DF$12&"_"&DG$20,データシート1!$A$1:$BT$1,0),0) -> 0 | DH37: =VLOOKUP($AX37&"_"&$DF$14,データシート1!$A:$BT,MATCH($DF$12&"_"&DH$20,データシート1!$A$1:$BT$1,0),0) -> 0 | DI37: =VLOOKUP($AX37&"_"&$DF$14,データシート1!$A:$BT,MATCH($DF$12&"_"&DI$20,データシート1!$A$1:$BT$1,0),0) -> 1 | DJ37: =VLOOKUP($AX37&"_"&$DF$14,データシート1!$A:$BT,MATCH($DF$12&"_"&DJ$20,データシート1!$A$1:$BT$1,0),0) -> 0 | DK37: =VLOOKUP($AX37&"_"&$DF$14,データシート1!$A:$BT,MATCH($DF$12&"_"&DK$20,データシート1!$A$1:$BT$1,0),0) -> 0 | DL37: 1 | DN37: 0 | DO37: 0 | DP37: =IF($DD37=0,0,ROUND(CZ37/$DD37,2)) -> 0 | DQ37: =IF($DD37=0,0,ROUND(DA37/$DD37,2)) -> 100.0% | DR37: =IF($DD37=0,0,ROUND(DB37/$DD37,2)) -> 0 | DS37: 0
AX38: =比較地域マスタ!$Y23 -> 47348 | AY38: =IF(IFERROR(比較地域マスタ!$Z23,"")=0,"",IFERROR(比較地域マスタ!$Z23,"")) -> 与那原町 | BB38: 47348 | BC38: 与那原町 | BD38: 96 | BE38: 4 | BF38: =VLOOKUP($AX38&"_"&$BC$14,データシート1!$A:$BT,MATCH($BC$12&"_"&BF$20,データシート1!$A$1:$BT$1,0),0) -> 2 | BG38: =VLOOKUP($AX38&"_"&$BC$14,データシート1!$A:$BT,MATCH($BC$12&"_"&BG$20,データシート1!$A$1:$BT$1,0),0) -> 1 | BH38: =VLOOKUP($AX38&"_"&$BC$14,データシート1!$A:$BT,MATCH($BC$12&"_"&BH$20,データシート1!$A$1:$BT$1,0),0) -> 0 | BI38: =VLOOKUP($AX38&"_"&$BC$14,データシート1!$A:$BT,MATCH($BC$12&"_"&BI$20,データシート1!$A$1:$BT$1,0),0) -> 33 | BJ38: =VLOOKUP($AX38&"_"&$BC$14,データシート1!$A:$BT,MATCH($BC$12&"_"&BJ$20,データシート1!$A$1:$BT$1,0),0) -> 29 | BK38: 29 | BL38: 25 | BM38: =VLOOKUP($AX38&"_"&$BC$14,データシート1!$A:$BT,MATCH($BC$12&"_"&BM$20,データシート1!$A$1:$BT$1,0),0) -> 16 | BN38: =VLOOKUP($AX38&"_"&$BC$14,データシート1!$A:$BT,MATCH($BC$12&"_"&BN$20,データシート1!$A$1:$BT$1,0),0) -> 9 | BO38: =VLOOKUP($AX38&"_"&$BC$14,データシート1!$A:$BT,MATCH($BC$12&"_"&BO$20,データシート1!$A$1:$BT$1,0),0) -> 1 | BP38: =VLOOKUP($AX38&"_"&$BC$14,データシート1!$A:$BT,MATCH($BC$12&"_"&BP$20,データシート1!$A$1:$BT$1,0),0) -> 3 | BQ38: =VLOOKUP($AX38&"_"&$BC$14,データシート1!$A:$BT,MATCH($BC$12&"_"&BQ$20,データシート1!$A$1:$BT$1,0),0) -> 2 | BR38: 96 | BT38: 与那原町 | BU38: 96 | BV38: 4% | BW38: 2% | BX38: 1% | BY38: 0% | BZ38: 34% | CA38: 30% | CB38: 30% | CC38: 26% | CD38: 17% | CE38: 10% | CF38: 1% | CG38: 3% | CH38: 2% | CI38: 100% | CK38: 与那原町 | CL38: 4 | CM38: 0 | CN38: 2 | CO38: 0 | CP38: 1 | CQ38: 0 | CR38: 0 | CS38: 0 | CT38: 33 | CU38: 0 | CW38: 0 | CX38: =VLOOKUP($AX38&"_"&$CW$14,データシート1!$A:$BT,MATCH($CW$12&"_"&CX$20,データシート1!$A$1:$BT$1,0),0) -> 0 | CY38: =VLOOKUP($AX38&"_"&$CW$14,データシート1!$A:$BT,MATCH($CW$12&"_"&CY$20,データシート1!$A$1:$BT$1,0),0) -> 0 | CZ38: =VLOOKUP($AX38&"_"&$CW$14,データシート1!$A:$BT,MATCH($CW$12&"_"&CZ$20,データシート1!$A$1:$BT$1,0),0) -> 0 | DA38: =VLOOKUP($AX38&"_"&$CW$14,データシート1!$A:$BT,MATCH($CW$12&"_"&DA$20,データシート1!$A$1:$BT$1,0),0) -> 0 | DB38: =VLOOKUP($AX38&"_"&$CW$14,データシート1!$A:$BT,MATCH($CW$12&"_"&DB$20,データシート1!$A$1:$BT$1,0),0) -> 0 | DC38: =VLOOKUP($AX38&"_"&$CW$14,データシート1!$A:$BT,MATCH($CW$12&"_"&DC$20,データシート1!$A$1:$BT$1,0),0) -> 0 | DD38: 0 | DF38: =VLOOKUP($AX38&"_"&$DF$14,データシート1!$A:$BT,MATCH($DF$12&"_"&DF$20,データシート1!$A$1:$BT$1,0),0) -> 0 | DG38: =VLOOKUP($AX38&"_"&$DF$14,データシート1!$A:$BT,MATCH($DF$12&"_"&DG$20,データシート1!$A$1:$BT$1,0),0) -> 0 | DH38: =VLOOKUP($AX38&"_"&$DF$14,データシート1!$A:$BT,MATCH($DF$12&"_"&DH$20,データシート1!$A$1:$BT$1,0),0) -> 0 | DI38: =VLOOKUP($AX38&"_"&$DF$14,データシート1!$A:$BT,MATCH($DF$12&"_"&DI$20,データシート1!$A$1:$BT$1,0),0) -> 0 | DJ38: =VLOOKUP($AX38&"_"&$DF$14,データシート1!$A:$BT,MATCH($DF$12&"_"&DJ$20,データシート1!$A$1:$BT$1,0),0) -> 0 | DK38: =VLOOKUP($AX38&"_"&$DF$14,データシート1!$A:$BT,MATCH($DF$12&"_"&DK$20,データシート1!$A$1:$BT$1,0),0) -> 0 | DL38: 0 | DN38: 0 | DO38: 0 | DP38: 0 | DQ38: 0 | DR38: 0 | DS38: 0
AX39: =比較地域マスタ!$Y24 -> 17207 | AY39: =IF(IFERROR(比較地域マスタ!$Z24,"")=0,"",IFERROR(比較地域マスタ!$Z24,"")) -> 羽咋市 | BB39: 17207 | BC39: 羽咋市 | BD39: 142 | BE39: 44 | BF39: =VLOOKUP($AX39&"_"&$BC$14,データシート1!$A:$BT,MATCH($BC$12&"_"&BF$20,データシート1!$A$1:$BT$1,0),0) -> 34 | BG39: =VLOOKUP($AX39&"_"&$BC$14,データシート1!$A:$BT,MATCH($BC$12&"_"&BG$20,データシート1!$A$1:$BT$1,0),0) -> 1 | BH39: =VLOOKUP($AX39&"_"&$BC$14,データシート1!$A:$BT,MATCH($BC$12&"_"&BH$20,データシート1!$A$1:$BT$1,0),0) -> 9 | BI39: =VLOOKUP($AX39&"_"&$BC$14,データシート1!$A:$BT,MATCH($BC$12&"_"&BI$20,データシート1!$A$1:$BT$1,0),0) -> 26 | BJ39: =VLOOKUP($AX39&"_"&$BC$14,データシート1!$A:$BT,MATCH($BC$12&"_"&BJ$20,データシート1!$A$1:$BT$1,0),0) -> 32 | BK39: 38 | BL39: 37 | BM39: =VLOOKUP($AX39&"_"&$BC$14,データシート1!$A:$BT,MATCH($BC$12&"_"&BM$20,データシート1!$A$1:$BT$1,0),0) -> 19 | BN39: =VLOOKUP($AX39&"_"&$BC$14,データシート1!$A:$BT,MATCH($BC$12&"_"&BN$20,データシート1!$A$1:$BT$1,0),0) -> 18 | BO39: =VLOOKUP($AX39&"_"&$BC$14,データシート1!$A:$BT,MATCH($BC$12&"_"&BO$20,データシート1!$A$1:$BT$1,0),0) -> 1 | BP39: =VLOOKUP($AX39&"_"&$BC$14,データシート1!$A:$BT,MATCH($BC$12&"_"&BP$20,データシート1!$A$1:$BT$1,0),0) -> 0 | BQ39: =VLOOKUP($AX39&"_"&$BC$14,データシート1!$A:$BT,MATCH($BC$12&"_"&BQ$20,データシート1!$A$1:$BT$1,0),0) -> 2 | BR39: 142 | BT39: 羽咋市 | BU39: 142 | BV39: 31% | BW39: 24% | BX39: 1% | BY39: 6% | BZ39: 18% | CA39: 23% | CB39: 27% | CC39: 26% | CD39: 13% | CE39: 13% | CF39: 1% | CG39: 0% | CH39: 2% | CI39: 100% | CK39: 羽咋市 | CL39: 44 | CM39: (91%) | CN39: 34 | CO39: (100%) | CP39: 1 | CQ39: 0 | CR39: 9 | CS39: 0 | CT39: 26 | CU39: 0 | CW39: 40.076 | CX39: =VLOOKUP($AX39&"_"&$CW$14,データシート1!$A:$BT,MATCH($CW$12&"_"&CX$20,データシート1!$A$1:$BT$1,0),0) -> 40.076 | CY39: =VLOOKUP($AX39&"_"&$CW$14,データシート1!$A:$BT,MATCH($CW$12&"_"&CY$20,データシート1!$A$1:$BT$1,0),0) -> 0 | CZ39: =VLOOKUP($AX39&"_"&$CW$14,データシート1!$A:$BT,MATCH($CW$12&"_"&CZ$20,データシート1!$A$1:$BT$1,0),0) -> 0 | DA39: =VLOOKUP($AX39&"_"&$CW$14,データシート1!$A:$BT,MATCH($CW$12&"_"&DA$20,データシート1!$A$1:$BT$1,0),0) -> 0 | DB39: =VLOOKUP($AX39&"_"&$CW$14,データシート1!$A:$BT,MATCH($CW$12&"_"&DB$20,データシート1!$A$1:$BT$1,0),0) -> 0 | DC39: =VLOOKUP($AX39&"_"&$CW$14,データシート1!$A:$BT,MATCH($CW$12&"_"&DC$20,データシート1!$A$1:$BT$1,0),0) -> 0 | DD39: 40.076 | DF39: =VLOOKUP($AX39&"_"&$DF$14,データシート1!$A:$BT,MATCH($DF$12&"_"&DF$20,データシート1!$A$1:$BT$1,0),0) -> 6 | DG39: =VLOOKUP($AX39&"_"&$DF$14,データシート1!$A:$BT,MATCH($DF$12&"_"&DG$20,データシート1!$A$1:$BT$1,0),0) -> 0 | DH39: =VLOOKUP($AX39&"_"&$DF$14,データシート1!$A:$BT,MATCH($DF$12&"_"&DH$20,データシート1!$A$1:$BT$1,0),0) -> 0 | DI39: =VLOOKUP($AX39&"_"&$DF$14,データシート1!$A:$BT,MATCH($DF$12&"_"&DI$20,データシート1!$A$1:$BT$1,0),0) -> 0 | DJ39: =VLOOKUP($AX39&"_"&$DF$14,データシート1!$A:$BT,MATCH($DF$12&"_"&DJ$20,データシート1!$A$1:$BT$1,0),0) -> 0 | DK39: =VLOOKUP($AX39&"_"&$DF$14,データシート1!$A:$BT,MATCH($DF$12&"_"&DK$20,データシート1!$A$1:$BT$1,0),0) -> 0 | DL39: 6 | DN39: 100.0% | DO39: 0 | DP39: 0 | DQ39: 0 | DR39: 0 | DS39: 0
AX40: =比較地域マスタ!$Y25 -> 12329 | AY40: =IF(IFERROR(比較地域マスタ!$Z25,"")=0,"",IFERROR(比較地域マスタ!$Z25,"")) -> 栄町 | BB40: 12329 | BC40: 栄町 | BD40: 173 | BE40: 99 | BF40: =VLOOKUP($AX40&"_"&$BC$14,データシート1!$A:$BT,MATCH($BC$12&"_"&BF$20,データシート1!$A$1:$BT$1,0),0) -> 97 | BG40: =VLOOKUP($AX40&"_"&$BC$14,データシート1!$A:$BT,MATCH($BC$12&"_"&BG$20,データシート1!$A$1:$BT$1,0),0) -> 1 | BH40: =VLOOKUP($AX40&"_"&$BC$14,データシート1!$A:$BT,MATCH($BC$12&"_"&BH$20,データシート1!$A$1:$BT$1,0),0) -> 1 | BI40: =VLOOKUP($AX40&"_"&$BC$14,データシート1!$A:$BT,MATCH($BC$12&"_"&BI$20,データシート1!$A$1:$BT$1,0),0) -> 19 | BJ40: =VLOOKUP($AX40&"_"&$BC$14,データシート1!$A:$BT,MATCH($BC$12&"_"&BJ$20,データシート1!$A$1:$BT$1,0),0) -> 22 | BK40: 31 | BL40: 30 | BM40: =VLOOKUP($AX40&"_"&$BC$14,データシート1!$A:$BT,MATCH($BC$12&"_"&BM$20,データシート1!$A$1:$BT$1,0),0) -> 18 | BN40: =VLOOKUP($AX40&"_"&$BC$14,データシート1!$A:$BT,MATCH($BC$12&"_"&BN$20,データシート1!$A$1:$BT$1,0),0) -> 12 | BO40: =VLOOKUP($AX40&"_"&$BC$14,データシート1!$A:$BT,MATCH($BC$12&"_"&BO$20,データシート1!$A$1:$BT$1,0),0) -> 1 | BP40: =VLOOKUP($AX40&"_"&$BC$14,データシート1!$A:$BT,MATCH($BC$12&"_"&BP$20,データシート1!$A$1:$BT$1,0),0) -> 0 | BQ40: =VLOOKUP($AX40&"_"&$BC$14,データシート1!$A:$BT,MATCH($BC$12&"_"&BQ$20,データシート1!$A$1:$BT$1,0),0) -> 2 | BR40: 173 | BT40: 栄町 | BU40: 173 | BV40: 57% | BW40: 56% | BX40: 0% | BY40: 1% | BZ40: 11% | CA40: 13% | CB40: 18% | CC40: 17% | CD40: 10% | CE40: 7% | CF40: 1% | CG40: 0% | CH40: 1% | CI40: 100% | CK40: 栄町 | CL40: 99 | CM40: (15%) | CN40: 97 | CO40: (15%) | CP40: 1 | CQ40: 0 | CR40: 1 | CS40: 0 | CT40: 19 | CU40: 0 | CW40: 14.984 | CX40: =VLOOKUP($AX40&"_"&$CW$14,データシート1!$A:$BT,MATCH($CW$12&"_"&CX$20,データシート1!$A$1:$BT$1,0),0) -> 14.984 | CY40: =VLOOKUP($AX40&"_"&$CW$14,データシート1!$A:$BT,MATCH($CW$12&"_"&CY$20,データシート1!$A$1:$BT$1,0),0) -> 0 | CZ40: =VLOOKUP($AX40&"_"&$CW$14,データシート1!$A:$BT,MATCH($CW$12&"_"&CZ$20,データシート1!$A$1:$BT$1,0),0) -> 0 | DA40: =VLOOKUP($AX40&"_"&$CW$14,データシート1!$A:$BT,MATCH($CW$12&"_"&DA$20,データシート1!$A$1:$BT$1,0),0) -> 0 | DB40: =VLOOKUP($AX40&"_"&$CW$14,データシート1!$A:$BT,MATCH($CW$12&"_"&DB$20,データシート1!$A$1:$BT$1,0),0) -> 0 | DC40: =VLOOKUP($AX40&"_"&$CW$14,データシート1!$A:$BT,MATCH($CW$12&"_"&DC$20,データシート1!$A$1:$BT$1,0),0) -> 0 | DD40: 14.984 | DF40: =VLOOKUP($AX40&"_"&$DF$14,データシート1!$A:$BT,MATCH($DF$12&"_"&DF$20,データシート1!$A$1:$BT$1,0),0) -> 2 | DG40: =VLOOKUP($AX40&"_"&$DF$14,データシート1!$A:$BT,MATCH($DF$12&"_"&DG$20,データシート1!$A$1:$BT$1,0),0) -> 0 | DH40: =VLOOKUP($AX40&"_"&$DF$14,データシート1!$A:$BT,MATCH($DF$12&"_"&DH$20,データシート1!$A$1:$BT$1,0),0) -> 0 | DI40: =VLOOKUP($AX40&"_"&$DF$14,データシート1!$A:$BT,MATCH($DF$12&"_"&DI$20,データシート1!$A$1:$BT$1,0),0) -> 0 | DJ40: =VLOOKUP($AX40&"_"&$DF$14,データシート1!$A:$BT,MATCH($DF$12&"_"&DJ$20,データシート1!$A$1:$BT$1,0),0) -> 0 | DK40: =VLOOKUP($AX40&"_"&$DF$14,データシート1!$A:$BT,MATCH($DF$12&"_"&DK$20,データシート1!$A$1:$BT$1,0),0) -> 0 | DL40: 2 | DN40: 100.0% | DO40: 0 | DP40: 0 | DQ40: 0 | DR40: 0 | DS40: 0
AX41: =比較地域マスタ!$Y26 -> 39206 | AY41: =IF(IFERROR(比較地域マスタ!$Z26,"")=0,"",IFERROR(比較地域マスタ!$Z26,"")) -> 須崎市 | BB41: 39206 | BC41: 須崎市 | BD41: 312 | BE41: 165 | BF41: =VLOOKUP($AX41&"_"&$BC$14,データシート1!$A:$BT,MATCH($BC$12&"_"&BF$20,データシート1!$A$1:$BT$1,0),0) -> 152 | BG41: =VLOOKUP($AX41&"_"&$BC$14,データシート1!$A:$BT,MATCH($BC$12&"_"&BG$20,データシート1!$A$1:$BT$1,0),0) -> 3 | BH41: =VLOOKUP($AX41&"_"&$BC$14,データシート1!$A:$BT,MATCH($BC$12&"_"&BH$20,データシート1!$A$1:$BT$1,0),0) -> 11 | BI41: =VLOOKUP($AX41&"_"&$BC$14,データシート1!$A:$BT,MATCH($BC$12&"_"&BI$20,データシート1!$A$1:$BT$1,0),0) -> 32 | BJ41: =VLOOKUP($AX41&"_"&$BC$14,データシート1!$A:$BT,MATCH($BC$12&"_"&BJ$20,データシート1!$A$1:$BT$1,0),0) -> 26 | BK41: 89 | BL41: 41 | BM41: =VLOOKUP($AX41&"_"&$BC$14,データシート1!$A:$BT,MATCH($BC$12&"_"&BM$20,データシート1!$A$1:$BT$1,0),0) -> 17 | BN41: =VLOOKUP($AX41&"_"&$BC$14,データシート1!$A:$BT,MATCH($BC$12&"_"&BN$20,データシート1!$A$1:$BT$1,0),0) -> 24 | BO41: =VLOOKUP($AX41&"_"&$BC$14,データシート1!$A:$BT,MATCH($BC$12&"_"&BO$20,データシート1!$A$1:$BT$1,0),0) -> 1 | BP41: =VLOOKUP($AX41&"_"&$BC$14,データシート1!$A:$BT,MATCH($BC$12&"_"&BP$20,データシート1!$A$1:$BT$1,0),0) -> 46 | BQ41: =VLOOKUP($AX41&"_"&$BC$14,データシート1!$A:$BT,MATCH($BC$12&"_"&BQ$20,データシート1!$A$1:$BT$1,0),0) -> 0 | BR41: 312 | BT41: 須崎市 | BU41: 312 | BV41: 53% | BW41: 49% | BX41: 1% | BY41: 3% | BZ41: 10% | CA41: 8% | CB41: 28% | CC41: 13% | CD41: 5% | CE41: 8% | CF41: 0% | CG41: 15% | CH41: 0% | CI41: 100% | CK41: 須崎市 | CL41: 165 | CM41: (100%) | CN41: 152 | CO41: (100%) | CP41: 3 | CQ41: (100%) | CR41: 11 | CS41: 0 | CT41: 32 | CU41: 0 | CW41: 3143.198 | CX41: =VLOOKUP($AX41&"_"&$CW$14,データシート1!$A:$BT,MATCH($CW$12&"_"&CX$20,データシート1!$A$1:$BT$1,0),0) -> 3108.045 | CY41: =VLOOKUP($AX41&"_"&$CW$14,データシート1!$A:$BT,MATCH($CW$12&"_"&CY$20,データシート1!$A$1:$BT$1,0),0) -> 35.153 | CZ41: =VLOOKUP($AX41&"_"&$CW$14,データシート1!$A:$BT,MATCH($CW$12&"_"&CZ$20,データシート1!$A$1:$BT$1,0),0) -> 0 | DA41: =VLOOKUP($AX41&"_"&$CW$14,データシート1!$A:$BT,MATCH($CW$12&"_"&DA$20,データシート1!$A$1:$BT$1,0),0) -> 0 | DB41: =VLOOKUP($AX41&"_"&$CW$14,データシート1!$A:$BT,MATCH($CW$12&"_"&DB$20,データシート1!$A$1:$BT$1,0),0) -> 0 | DC41: =VLOOKUP($AX41&"_"&$CW$14,データシート1!$A:$BT,MATCH($CW$12&"_"&DC$20,データシート1!$A$1:$BT$1,0),0) -> 0 | DD41: 3143.198 | DF41: =VLOOKUP($AX41&"_"&$DF$14,データシート1!$A:$BT,MATCH($DF$12&"_"&DF$20,データシート1!$A$1:$BT$1,0),0) -> 4 | DG41: =VLOOKUP($AX41&"_"&$DF$14,データシート1!$A:$BT,MATCH($DF$12&"_"&DG$20,データシート1!$A$1:$BT$1,0),0) -> 1 | DH41: =VLOOKUP($AX41&"_"&$DF$14,データシート1!$A:$BT,MATCH($DF$12&"_"&DH$20,データシート1!$A$1:$BT$1,0),0) -> 0 | DI41: =VLOOKUP($AX41&"_"&$DF$14,データシート1!$A:$BT,MATCH($DF$12&"_"&DI$20,データシート1!$A$1:$BT$1,0),0) -> 0 | DJ41: =VLOOKUP($AX41&"_"&$DF$14,データシート1!$A:$BT,MATCH($DF$12&"_"&DJ$20,データシート1!$A$1:$BT$1,0),0) -> 0 | DK41: =VLOOKUP($AX41&"_"&$DF$14,データシート1!$A:$BT,MATCH($DF$12&"_"&DK$20,データシート1!$A$1:$BT$1,0),0) -> 0 | DL41: 5 | DN41: 99.0% | DO41: 1.0% | DP41: 0 | DQ41: 0 | DR41: 0 | DS41: 0
AX42: =比較地域マスタ!$Y27 -> 26465 | AY42: =IF(IFERROR(比較地域マスタ!$Z27,"")=0,"",IFERROR(比較地域マスタ!$Z27,"")) -> 与謝野町 | BB42: 26465 | BC42: 与謝野町 | BD42: 76 | BE42: 3 | BF42: =VLOOKUP($AX42&"_"&$BC$14,データシート1!$A:$BT,MATCH($BC$12&"_"&BF$20,データシート1!$A$1:$BT$1,0),0) -> 0 | BG42: =VLOOKUP($AX42&"_"&$BC$14,データシート1!$A:$BT,MATCH($BC$12&"_"&BG$20,データシート1!$A$1:$BT$1,0),0) -> 1 | BH42: =VLOOKUP($AX42&"_"&$BC$14,データシート1!$A:$BT,MATCH($BC$12&"_"&BH$20,データシート1!$A$1:$BT$1,0),0) -> 2 | BI42: =VLOOKUP($AX42&"_"&$BC$14,データシート1!$A:$BT,MATCH($BC$12&"_"&BI$20,データシート1!$A$1:$BT$1,0),0) -> 16 | BJ42: =VLOOKUP($AX42&"_"&$BC$14,データシート1!$A:$BT,MATCH($BC$12&"_"&BJ$20,データシート1!$A$1:$BT$1,0),0) -> 20 | BK42: 35 | BL42: 34 | BM42: =VLOOKUP($AX42&"_"&$BC$14,データシート1!$A:$BT,MATCH($BC$12&"_"&BM$20,データシート1!$A$1:$BT$1,0),0) -> 18 | BN42: =VLOOKUP($AX42&"_"&$BC$14,データシート1!$A:$BT,MATCH($BC$12&"_"&BN$20,データシート1!$A$1:$BT$1,0),0) -> 16 | BO42: =VLOOKUP($AX42&"_"&$BC$14,データシート1!$A:$BT,MATCH($BC$12&"_"&BO$20,データシート1!$A$1:$BT$1,0),0) -> 1 | BP42: =VLOOKUP($AX42&"_"&$BC$14,データシート1!$A:$BT,MATCH($BC$12&"_"&BP$20,データシート1!$A$1:$BT$1,0),0) -> 0 | BQ42: =VLOOKUP($AX42&"_"&$BC$14,データシート1!$A:$BT,MATCH($BC$12&"_"&BQ$20,データシート1!$A$1:$BT$1,0),0) -> 1 | BR42: 76 | BT42: 与謝野町 | BU42: 76 | BV42: 5% | BW42: 0% | BX42: 2% | BY42: 3% | BZ42: 22% | CA42: =BJ42/$BR42 -> 26% | CB42: 47% | CC42: 45% | CD42: 24% | CE42: 21% | CF42: 2% | CG42: 0% | CH42: 1% | CI42: 100% | CK42: 与謝野町 | CL42: 3 | CM42: 0 | CN42: 0 | CO42: 0 | CP42: 1 | CQ42: 0 | CR42: 2 | CS42: 0 | CT42: 16 | CU42: (26%) | CW42: 0 | CX42: =VLOOKUP($AX42&"_"&$CW$14,データシート1!$A:$BT,MATCH($CW$12&"_"&CX$20,データシート1!$A$1:$BT$1,0),0) -> 0 | CY42: =VLOOKUP($AX42&"_"&$CW$14,データシート1!$A:$BT,MATCH($CW$12&"_"&CY$20,データシート1!$A$1:$BT$1,0),0) -> 0 | CZ42: =VLOOKUP($AX42&"_"&$CW$14,データシート1!$A:$BT,MATCH($CW$12&"_"&CZ$20,データシート1!$A$1:$BT$1,0),0) -> 0 | DA42: =VLOOKUP($AX42&"_"&$CW$14,データシート1!$A:$BT,MATCH($CW$12&"_"&DA$20,データシート1!$A$1:$BT$1,0),0) -> 4.21 | DB42: =VLOOKUP($AX42&"_"&$CW$14,データシート1!$A:$BT,MATCH($CW$12&"_"&DB$20,データシート1!$A$1:$BT$1,0),0) -> 0 | DC42: =VLOOKUP($AX42&"_"&$CW$14,データシート1!$A:$BT,MATCH($CW$12&"_"&DC$20,データシート1!$A$1:$BT$1,0),0) -> 0 | DD42: 4.21 | DF42: =VLOOKUP($AX42&"_"&$DF$14,データシート1!$A:$BT,MATCH($DF$12&"_"&DF$20,データシート1!$A$1:$BT$1,0),0) -> 0 | DG42: =VLOOKUP($AX42&"_"&$DF$14,データシート1!$A:$BT,MATCH($DF$12&"_"&DG$20,データシート1!$A$1:$BT$1,0),0) -> 0 | DH42: =VLOOKUP($AX42&"_"&$DF$14,データシート1!$A:$BT,MATCH($DF$12&"_"&DH$20,データシート1!$A$1:$BT$1,0),0) -> 0 | DI42: =VLOOKUP($AX42&"_"&$DF$14,データシート1!$A:$BT,MATCH($DF$12&"_"&DI$20,データシート1!$A$1:$BT$1,0),0) -> 1 | DJ42: =VLOOKUP($AX42&"_"&$DF$14,データシート1!$A:$BT,MATCH($DF$12&"_"&DJ$20,データシート1!$A$1:$BT$1,0),0) -> 0 | DK42: =VLOOKUP($AX42&"_"&$DF$14,データシート1!$A:$BT,MATCH($DF$12&"_"&DK$20,データシート1!$A$1:$BT$1,0),0) -> 0 | DL42: 1 | DN42: 0 | DO42: 0 | DP42: 0 | DQ42: 100.0% | DR42: 0 | DS42: 0
AX43: =比較地域マスタ!$Y28 -> 11341 | AY43: =IF(IFERROR(比較地域マスタ!$Z28,"")=0,"",IFERROR(比較地域マスタ!$Z28,"")) -> 滑川町 | BB43: 11341 | BC43: 滑川町 | BD43: 132 | BE43: 60 | BF43: =VLOOKUP($AX43&"_"&$BC$14,データシート1!$A:$BT,MATCH($BC$12&"_"&BF$20,データシート1!$A$1:$BT$1,0),0) -> 54 | BG43: =VLOOKUP($AX43&"_"&$BC$14,データシート1!$A:$BT,MATCH($BC$12&"_"&BG$20,データシート1!$A$1:$BT$1,0),0) -> 1 | BH43: =VLOOKUP($AX43&"_"&$BC$14,データシート1!$A:$BT,MATCH($BC$12&"_"&BH$20,データシート1!$A$1:$BT$1,0),0) -> 6 | BI43: =VLOOKUP($AX43&"_"&$BC$14,データシート1!$A:$BT,MATCH($BC$12&"_"&BI$20,データシート1!$A$1:$BT$1,0),0) -> 20 | BJ43: =VLOOKUP($AX43&"_"&$BC$14,データシート1!$A:$BT,MATCH($BC$12&"_"&BJ$20,データシート1!$A$1:$BT$1,0),0) -> 20 | BK43: 31 | BL43: 30 | BM43: =VLOOKUP($AX43&"_"&$BC$14,データシート1!$A:$BT,MATCH($BC$12&"_"&BM$20,データシート1!$A$1:$BT$1,0),0) -> 16 | BN43: =VLOOKUP($AX43&"_"&$BC$14,データシート1!$A:$BT,MATCH($BC$12&"_"&BN$20,データシート1!$A$1:$BT$1,0),0) -> 14 | BO43: =VLOOKUP($AX43&"_"&$BC$14,データシート1!$A:$BT,MATCH($BC$12&"_"&BO$20,データシート1!$A$1:$BT$1,0),0) -> 1 | BP43: =VLOOKUP($AX43&"_"&$BC$14,データシート1!$A:$BT,MATCH($BC$12&"_"&BP$20,データシート1!$A$1:$BT$1,0),0) -> 0 | BQ43: =VLOOKUP($AX43&"_"&$BC$14,データシート1!$A:$BT,MATCH($BC$12&"_"&BQ$20,データシート1!$A$1:$BT$1,0),0) -> 1 | BR43: 132 | BT43: 滑川町 | BU43: 132 | BV43: 45% | BW43: 40% | BX43: 0% | BY43: 5% | BZ43: 15% | CA43: 15% | CB43: 23% | CC43: 23% | CD43: 12% | CE43: 10% | CF43: 1% | CG43: 0% | CH43: 1% | CI43: 100% | CK43: 滑川町 | CL43: 60 | CM43: (32%) | CN43: 54 | CO43: (37%) | CP43: 1 | CQ43: 0 | CR43: 6 | CS43: 0 | CT43: 20 | CU43: 0 | CW43: 19.538 | CX43: =VLOOKUP($AX43&"_"&$CW$14,データシート1!$A:$BT,MATCH($CW$12&"_"&CX$20,データシート1!$A$1:$BT$1,0),0) -> 19.538 | CY43: =VLOOKUP($AX43&"_"&$CW$14,データシート1!$A:$BT,MATCH($CW$12&"_"&CY$20,データシート1!$A$1:$BT$1,0),0) -> 0 | CZ43: =VLOOKUP($AX43&"_"&$CW$14,データシート1!$A:$BT,MATCH($CW$12&"_"&CZ$20,データシート1!$A$1:$BT$1,0),0) -> 0 | DA43: =VLOOKUP($AX43&"_"&$CW$14,データシート1!$A:$BT,MATCH($CW$12&"_"&DA$20,データシート1!$A$1:$BT$1,0),0) -> 0 | DB43: =VLOOKUP($AX43&"_"&$CW$14,データシート1!$A:$BT,MATCH($CW$12&"_"&DB$20,データシート1!$A$1:$BT$1,0),0) -> 0 | DC43: =VLOOKUP($AX43&"_"&$CW$14,データシート1!$A:$BT,MATCH($CW$12&"_"&DC$20,データシート1!$A$1:$BT$1,0),0) -> 0 | DD43: 19.538 | DF43: =VLOOKUP($AX43&"_"&$DF$14,データシート1!$A:$BT,MATCH($DF$12&"_"&DF$20,データシート1!$A$1:$BT$1,0),0) -> 5 | DG43: =VLOOKUP($AX43&"_"&$DF$14,データシート1!$A:$BT,MATCH($DF$12&"_"&DG$20,データシート1!$A$1:$BT$1,0),0) -> 0 | DH43: =VLOOKUP($AX43&"_"&$DF$14,データシート1!$A:$BT,MATCH($DF$12&"_"&DH$20,データシート1!$A$1:$BT$1,0),0) -> 0 | DI43: =VLOOKUP($AX43&"_"&$DF$14,データシート1!$A:$BT,MATCH($DF$12&"_"&DI$20,データシート1!$A$1:$BT$1,0),0) -> 0 | DJ43: =VLOOKUP($AX43&"_"&$DF$14,データシート1!$A:$BT,MATCH($DF$12&"_"&DJ$20,データシート1!$A$1:$BT$1,0),0) -> 0 | DK43: =VLOOKUP($AX43&"_"&$DF$14,データシート1!$A:$BT,MATCH($DF$12&"_"&DK$20,データシート1!$A$1:$BT$1,0),0) -> 0 | DL43: 5 | DN43: 100.0% | DO43: 0 | DP43: 0 | DQ43: 0 | DR43: 0 | DS43: 0
AX44: =比較地域マスタ!$Y29 -> 22219 | AY44: =IF(IFERROR(比較地域マスタ!$Z29,"")=0,"",IFERROR(比較地域マスタ!$Z29,"")) -> 下田市 | BB44: 22219 | BC44: 下田市 | BD44: 115 | BE44: 8 | BF44: =VLOOKUP($AX44&"_"&$BC$14,データシート1!$A:$BT,MATCH($BC$12&"_"&BF$20,データシート1!$A$1:$BT$1,0),0) -> 1 | BG44: =VLOOKUP($AX44&"_"&$BC$14,データシート1!$A:$BT,MATCH($BC$12&"_"&BG$20,データシート1!$A$1:$BT$1,0),0) -> 2 | BH44: =VLOOKUP($AX44&"_"&$BC$14,データシート1!$A:$BT,MATCH($BC$12&"_"&BH$20,データシート1!$A$1:$BT$1,0),0) -> 5 | BI44: =VLOOKUP($AX44&"_"&$BC$14,データシート1!$A:$BT,MATCH($BC$12&"_"&BI$20,データシート1!$A$1:$BT$1,0),0) -> 37 | BJ44: =VLOOKUP($AX44&"_"&$BC$14,データシート1!$A:$BT,MATCH($BC$12&"_"&BJ$20,データシート1!$A$1:$BT$1,0),0) -> 29 | BK44: 39 | BL44: 38 | BM44: =VLOOKUP($AX44&"_"&$BC$14,データシート1!$A:$BT,MATCH($BC$12&"_"&BM$20,データシート1!$A$1:$BT$1,0),0) -> 17 | BN44: =VLOOKUP($AX44&"_"&$BC$14,データシート1!$A:$BT,MATCH($BC$12&"_"&BN$20,データシート1!$A$1:$BT$1,0),0) -> 21 | BO44: =VLOOKUP($AX44&"_"&$BC$14,データシート1!$A:$BT,MATCH($BC$12&"_"&BO$20,データシート1!$A$1:$BT$1,0),0) -> 1 | BP44: =VLOOKUP($AX44&"_"&$BC$14,データシート1!$A:$BT,MATCH($BC$12&"_"&BP$20,データシート1!$A$1:$BT$1,0),0) -> 0 | BQ44: =VLOOKUP($AX44&"_"&$BC$14,データシート1!$A:$BT,MATCH($BC$12&"_"&BQ$20,データシート1!$A$1:$BT$1,0),0) -> 2 | BR44: 115 | BT44: 下田市 | BU44: 115 | BV44: 7% | BW44: 1% | BX44: 1% | BY44: 5% | BZ44: 32% | CA44: 25% | CB44: 34% | CC44: 33% | CD44: 14% | CE44: 18% | CF44: 1% | CG44: 0% | CH44: 2% | CI44: 100% | CK44: 下田市 | CL44: 8 | CM44: 0 | CN44: 1 | CO44: 0 | CP44: 2 | CQ44: 0 | CR44: 5 | CS44: 0 | CT44: 37 | CU44: (5%) | CW44: 0 | CX44: =VLOOKUP($AX44&"_"&$CW$14,データシート1!$A:$BT,MATCH($CW$12&"_"&CX$20,データシート1!$A$1:$BT$1,0),0) -> 0 | CY44: =VLOOKUP($AX44&"_"&$CW$14,データシート1!$A:$BT,MATCH($CW$12&"_"&CY$20,データシート1!$A$1:$BT$1,0),0) -> 0 | CZ44: =VLOOKUP($AX44&"_"&$CW$14,データシート1!$A:$BT,MATCH($CW$12&"_"&CZ$20,データシート1!$A$1:$BT$1,0),0) -> 0 | DA44: =VLOOKUP($AX44&"_"&$CW$14,データシート1!$A:$BT,MATCH($CW$12&"_"&DA$20,データシート1!$A$1:$BT$1,0),0) -> 1.938 | DB44: =VLOOKUP($AX44&"_"&$CW$14,データシート1!$A:$BT,MATCH($CW$12&"_"&DB$20,データシート1!$A$1:$BT$1,0),0) -> 0 | DC44: =VLOOKUP($AX44&"_"&$CW$14,データシート1!$A:$BT,MATCH($CW$12&"_"&DC$20,データシート1!$A$1:$BT$1,0),0) -> 0 | DD44: 1.938 | DF44: =VLOOKUP($AX44&"_"&$DF$14,データシート1!$A:$BT,MATCH($DF$12&"_"&DF$20,データシート1!$A$1:$BT$1,0),0) -> 0 | DG44: =VLOOKUP($AX44&"_"&$DF$14,データシート1!$A:$BT,MATCH($DF$12&"_"&DG$20,データシート1!$A$1:$BT$1,0),0) -> 0 | DH44: =VLOOKUP($AX44&"_"&$DF$14,データシート1!$A:$BT,MATCH($DF$12&"_"&DH$20,データシート1!$A$1:$BT$1,0),0) -> 0 | DI44: =VLOOKUP($AX44&"_"&$DF$14,データシート1!$A:$BT,MATCH($DF$12&"_"&DI$20,データシート1!$A$1:$BT$1,0),0) -> 1 | DJ44: =VLOOKUP($AX44&"_"&$DF$14,データシート1!$A:$BT,MATCH($DF$12&"_"&DJ$20,データシート1!$A$1:$BT$1,0),0) -> 0 | DK44: =VLOOKUP($AX44&"_"&$DF$14,データシート1!$A:$BT,MATCH($DF$12&"_"&DK$20,データシート1!$A$1:$BT$1,0),0) -> 0 | DL44: 1 | DN44: 0 | DO44: 0 | DP44: 0 | DQ44: 100.0% | DR44: 0 | DS44: 0
AX45: =比較地域マスタ!$Y30 -> 45401 | AY45: =IF(IFERROR(比較地域マスタ!$Z30,"")=0,"",IFERROR(比較地域マスタ!$Z30,"")) -> 高鍋町 | BB45: 45401 | BC45: 高鍋町 | BD45: 226 | BE45: 148 | BF45: =VLOOKUP($AX45&"_"&$BC$14,データシート1!$A:$BT,MATCH($BC$12&"_"&BF$20,データシート1!$A$1:$BT$1,0),0) -> 133 | BG45: =VLOOKUP($AX45&"_"&$BC$14,データシート1!$A:$BT,MATCH($BC$12&"_"&BG$20,データシート1!$A$1:$BT$1,0),0) -> 1 | BH45: =VLOOKUP($AX45&"_"&$BC$14,データシート1!$A:$BT,MATCH($BC$12&"_"&BH$20,データシート1!$A$1:$BT$1,0),0) -> 14 | BI45: =VLOOKUP($AX45&"_"&$BC$14,データシート1!$A:$BT,MATCH($BC$12&"_"&BI$20,データシート1!$A$1:$BT$1,0),0) -> 23 | BJ45: =VLOOKUP($AX45&"_"&$BC$14,データシート1!$A:$BT,MATCH($BC$12&"_"&BJ$20,データシート1!$A$1:$BT$1,0),0) -> 17 | BK45: 38 | BL45: 37 | BM45: =VLOOKUP($AX45&"_"&$BC$14,データシート1!$A:$BT,MATCH($BC$12&"_"&BM$20,データシート1!$A$1:$BT$1,0),0) -> 19 | BN45: =VLOOKUP($AX45&"_"&$BC$14,データシート1!$A:$BT,MATCH($BC$12&"_"&BN$20,データシート1!$A$1:$BT$1,0),0) -> 18 | BO45: =VLOOKUP($AX45&"_"&$BC$14,データシート1!$A:$BT,MATCH($BC$12&"_"&BO$20,データシート1!$A$1:$BT$1,0),0) -> 1 | BP45: =VLOOKUP($AX45&"_"&$BC$14,データシート1!$A:$BT,MATCH($BC$12&"_"&BP$20,データシート1!$A$1:$BT$1,0),0) -> 0 | BQ45: =VLOOKUP($AX45&"_"&$BC$14,データシート1!$A:$BT,MATCH($BC$12&"_"&BQ$20,データシート1!$A$1:$BT$1,0),0) -> 0 | BR45: 226 | BT45: 高鍋町 | BU45: 226 | BV45: 65% | BW45: 59% | BX45: 0% | BY45: 6% | BZ45: 10% | CA45: 8% | CB45: 17% | CC45: 16% | CD45: 8% | CE45: 8% | CF45: 1% | CG45: 0% | CH45: 0% | CI45: 100% | CK45: 高鍋町 | CL45: 148 | CM45: (12%) | CN45: 133 | CO45: (13%) | CP45: 1 | CQ45: 0 | CR45: 14 | CS45: 0 | CT45: 23 | CU45: 0 | CW45: 17.515 | CX45: =VLOOKUP($AX45&"_"&$CW$14,データシート1!$A:$BT,MATCH($CW$12&"_"&CX$20,データシート1!$A$1:$BT$1,0),0) -> 17.515 | CY45: =VLOOKUP($AX45&"_"&$CW$14,データシート1!$A:$BT,MATCH($CW$12&"_"&CY$20,データシート1!$A$1:$BT$1,0),0) -> 0 | CZ45: =VLOOKUP($AX45&"_"&$CW$14,データシート1!$A:$BT,MATCH($CW$12&"_"&CZ$20,データシート1!$A$1:$BT$1,0),0) -> 0 | DA45: =VLOOKUP($AX45&"_"&$CW$14,データシート1!$A:$BT,MATCH($CW$12&"_"&DA$20,データシート1!$A$1:$BT$1,0),0) -> 0 | DB45: =VLOOKUP($AX45&"_"&$CW$14,データシート1!$A:$BT,MATCH($CW$12&"_"&DB$20,データシート1!$A$1:$BT$1,0),0) -> 0 | DC45: =VLOOKUP($AX45&"_"&$CW$14,データシート1!$A:$BT,MATCH($CW$12&"_"&DC$20,データシート1!$A$1:$BT$1,0),0) -> 0 | DD45: 17.515 | DF45: =VLOOKUP($AX45&"_"&$DF$14,データシート1!$A:$BT,MATCH($DF$12&"_"&DF$20,データシート1!$A$1:$BT$1,0),0) -> 3 | DG45: =VLOOKUP($AX45&"_"&$DF$14,データシート1!$A:$BT,MATCH($DF$12&"_"&DG$20,データシート1!$A$1:$BT$1,0),0) -> 0 | DH45: =VLOOKUP($AX45&"_"&$DF$14,データシート1!$A:$BT,MATCH($DF$12&"_"&DH$20,データシート1!$A$1:$BT$1,0),0) -> 0 | DI45: =VLOOKUP($AX45&"_"&$DF$14,データシート1!$A:$BT,MATCH($DF$12&"_"&DI$20,データシート1!$A$1:$BT$1,0),0) -> 0 | DJ45: =VLOOKUP($AX45&"_"&$DF$14,データシート1!$A:$BT,MATCH($DF$12&"_"&DJ$20,データシート1!$A$1:$BT$1,0),0) -> 0 | DK45: =VLOOKUP($AX45&"_"&$DF$14,データシート1!$A:$BT,MATCH($DF$12&"_"&DK$20,データシート1!$A$1:$BT$1,0),0) -> 0 | DL45: 3 | DN45: 100.0% | DO45: 0 | DP45: 0 | DQ45: 0 | DR45: 0 | DS45: 0
AX46: =比較地域マスタ!$Y31 -> 06428 | AY46: =IF(IFERROR(比較地域マスタ!$Z31,"")=0,"",IFERROR(比較地域マスタ!$Z31,"")) -> 庄内町 | BB46: 06428 | BC46: 庄内町 | BD46: 108 | BE46: 15 | BF46: =VLOOKUP($AX46&"_"&$BC$14,データシート1!$A:$BT,MATCH($BC$12&"_"&BF$20,データシート1!$A$1:$BT$1,0),0) -> 7 | BG46: =VLOOKUP($AX46&"_"&$BC$14,データシート1!$A:$BT,MATCH($BC$12&"_"&BG$20,データシート1!$A$1:$BT$1,0),0) -> 2 | BH46: =VLOOKUP($AX46&"_"&$BC$14,データシート1!$A:$BT,MATCH($BC$12&"_"&BH$20,データシート1!$A$1:$BT$1,0),0) -> 7 | BI46: =VLOOKUP($AX46&"_"&$BC$14,データシート1!$A:$BT,MATCH($BC$12&"_"&BI$20,データシート1!$A$1:$BT$1,0),0) -> 18 | BJ46: =VLOOKUP($AX46&"_"&$BC$14,データシート1!$A:$BT,MATCH($BC$12&"_"&BJ$20,データシート1!$A$1:$BT$1,0),0) -> 30 | BK46: 40 | BL46: 39 | BM46: =VLOOKUP($AX46&"_"&$BC$14,データシート1!$A:$BT,MATCH($BC$12&"_"&BM$20,データシート1!$A$1:$BT$1,0),0) -> 19 | BN46: =VLOOKUP($AX46&"_"&$BC$14,データシート1!$A:$BT,MATCH($BC$12&"_"&BN$20,データシート1!$A$1:$BT$1,0),0) -> 20 | BO46: =VLOOKUP($AX46&"_"&$BC$14,データシート1!$A:$BT,MATCH($BC$12&"_"&BO$20,データシート1!$A$1:$BT$1,0),0) -> 1 | BP46: =VLOOKUP($AX46&"_"&$BC$14,データシート1!$A:$BT,MATCH($BC$12&"_"&BP$20,データシート1!$A$1:$BT$1,0),0) -> 0 | BQ46: =VLOOKUP($AX46&"_"&$BC$14,データシート1!$A:$BT,MATCH($BC$12&"_"&BQ$20,データシート1!$A$1:$BT$1,0),0) -> 4 | BR46: 108 | BT46: 庄内町 | BU46: 108 | BV46: 14% | BW46: 7% | BX46: 1% | BY46: 6% | BZ46: 17% | CA46: 28% | CB46: 37% | CC46: 36% | CD46: 17% | CE46: 19% | CF46: 1% | CG46: 0% | CH46: 4% | CI46: 100% | CK46: 庄内町 | CL46: 15 | CM46: 0 | CN46: 7 | CO46: 0 | CP46: 2 | CQ46: 0 | CR46: 7 | CS46: 0 | CT46: 18 | CU46: (30%) | CW46: 0 | CX46: =VLOOKUP($AX46&"_"&$CW$14,データシート1!$A:$BT,MATCH($CW$12&"_"&CX$20,データシート1!$A$1:$BT$1,0),0) -> 0 | CY46: =VLOOKUP($AX46&"_"&$CW$14,データシート1!$A:$BT,MATCH($CW$12&"_"&CY$20,データシート1!$A$1:$BT$1,0),0) -> 0 | CZ46: =VLOOKUP($AX46&"_"&$CW$14,データシート1!$A:$BT,MATCH($CW$12&"_"&CZ$20,データシート1!$A$1:$BT$1,0),0) -> 0 | DA46: =VLOOKUP($AX46&"_"&$CW$14,データシート1!$A:$BT,MATCH($CW$12&"_"&DA$20,データシート1!$A$1:$BT$1,0),0) -> 5.571 | DB46: =VLOOKUP($AX46&"_"&$CW$14,データシート1!$A:$BT,MATCH($CW$12&"_"&DB$20,データシート1!$A$1:$BT$1,0),0) -> 0 | DC46: =VLOOKUP($AX46&"_"&$CW$14,データシート1!$A:$BT,MATCH($CW$12&"_"&DC$20,データシート1!$A$1:$BT$1,0),0) -> 0 | DD46: 5.571 | DF46: =VLOOKUP($AX46&"_"&$DF$14,データシート1!$A:$BT,MATCH($DF$12&"_"&DF$20,データシート1!$A$1:$BT$1,0),0) -> 0 | DG46: =VLOOKUP($AX46&"_"&$DF$14,データシート1!$A:$BT,MATCH($DF$12&"_"&DG$20,データシート1!$A$1:$BT$1,0),0) -> 0 | DH46: =VLOOKUP($AX46&"_"&$DF$14,データシート1!$A:$BT,MATCH($DF$12&"_"&DH$20,データシート1!$A$1:$BT$1,0),0) -> 0 | DI46: =VLOOKUP($AX46&"_"&$DF$14,データシート1!$A:$BT,MATCH($DF$12&"_"&DI$20,データシート1!$A$1:$BT$1,0),0) -> 1 | DJ46: =VLOOKUP($AX46&"_"&$DF$14,データシート1!$A:$BT,MATCH($DF$12&"_"&DJ$20,データシート1!$A$1:$BT$1,0),0) -> 0 | DK46: =VLOOKUP($AX46&"_"&$DF$14,データシート1!$A:$BT,MATCH($DF$12&"_"&DK$20,データシート1!$A$1:$BT$1,0),0) -> 0 | DL46: 1 | DN46: 0 | DO46: 0 | DP46: 0 | DQ46: 100.0% | DR46: 0 | DS46: 0
AX47: =比較地域マスタ!$Y32 -> 44208 | AY47: =IF(IFERROR(比較地域マスタ!$Z32,"")=0,"",IFERROR(比較地域マスタ!$Z32,"")) -> 竹田市 | BB47: 44208 | BC47: 竹田市 | BD47: 142 | BE47: 40 | BF47: =VLOOKUP($AX47&"_"&$BC$14,データシート1!$A:$BT,MATCH($BC$12&"_"&BF$20,データシート1!$A$1:$BT$1,0),0) -> 12 | BG47: =VLOOKUP($AX47&"_"&$BC$14,データシート1!$A:$BT,MATCH($BC$12&"_"&BG$20,データシート1!$A$1:$BT$1,0),0) -> 3 | BH47: =VLOOKUP($AX47&"_"&$BC$14,データシート1!$A:$BT,MATCH($BC$12&"_"&BH$20,データシート1!$A$1:$BT$1,0),0) -> 26 | BI47: =VLOOKUP($AX47&"_"&$BC$14,データシート1!$A:$BT,MATCH($BC$12&"_"&BI$20,データシート1!$A$1:$BT$1,0),0) -> 26 | BJ47: =VLOOKUP($AX47&"_"&$BC$14,データシート1!$A:$BT,MATCH($BC$12&"_"&BJ$20,データシート1!$A$1:$BT$1,0),0) -> 21 | BK47: 55 | BL47: 54 | BM47: =VLOOKUP($AX47&"_"&$BC$14,データシート1!$A:$BT,MATCH($BC$12&"_"&BM$20,データシート1!$A$1:$BT$1,0),0) -> 18 | BN47: =VLOOKUP($AX47&"_"&$BC$14,データシート1!$A:$BT,MATCH($BC$12&"_"&BN$20,データシート1!$A$1:$BT$1,0),0) -> 36 | BO47: =VLOOKUP($AX47&"_"&$BC$14,データシート1!$A:$BT,MATCH($BC$12&"_"&BO$20,データシート1!$A$1:$BT$1,0),0) -> 1 | BP47: =VLOOKUP($AX47&"_"&$BC$14,データシート1!$A:$BT,MATCH($BC$12&"_"&BP$20,データシート1!$A$1:$BT$1,0),0) -> 0 | BQ47: =VLOOKUP($AX47&"_"&$BC$14,データシート1!$A:$BT,MATCH($BC$12&"_"&BQ$20,データシート1!$A$1:$BT$1,0),0) -> 0 | BR47: 142 | BT47: 竹田市 | BU47: 142 | BV47: 28% | BW47: 8% | BX47: 2% | BY47: 18% | BZ47: 18% | CA47: 15% | CB47: 39% | CC47: 38% | CD47: 13% | CE47: 26% | CF47: 1% | CG47: 0% | CH47: 0% | CI47: 100% | CK47: 竹田市 | CL47: 40 | CM47: 0 | CN47: 12 | CO47: 0 | CP47: 3 | CQ47: 0 | CR47: 26 | CS47: 0 | CT47: 26 | CU47: 0 | CW47: 0 | CX47: =VLOOKUP($AX47&"_"&$CW$14,データシート1!$A:$BT,MATCH($CW$12&"_"&CX$20,データシート1!$A$1:$BT$1,0),0) -> 0 | CY47: =VLOOKUP($AX47&"_"&$CW$14,データシート1!$A:$BT,MATCH($CW$12&"_"&CY$20,データシート1!$A$1:$BT$1,0),0) -> 0 | CZ47: =VLOOKUP($AX47&"_"&$CW$14,データシート1!$A:$BT,MATCH($CW$12&"_"&CZ$20,データシート1!$A$1:$BT$1,0),0) -> 0 | DA47: =VLOOKUP($AX47&"_"&$CW$14,データシート1!$A:$BT,MATCH($CW$12&"_"&DA$20,データシート1!$A$1:$BT$1,0),0) -> 0 | DB47: =VLOOKUP($AX47&"_"&$CW$14,データシート1!$A:$BT,MATCH($CW$12&"_"&DB$20,データシート1!$A$1:$BT$1,0),0) -> 0 | DC47: =VLOOKUP($AX47&"_"&$CW$14,データシート1!$A:$BT,MATCH($CW$12&"_"&DC$20,データシート1!$A$1:$BT$1,0),0) -> 0 | DD47: 0 | DF47: =VLOOKUP($AX47&"_"&$DF$14,データシート1!$A:$BT,MATCH($DF$12&"_"&DF$20,データシート1!$A$1:$BT$1,0),0) -> 0 | DG47: =VLOOKUP($AX47&"_"&$DF$14,データシート1!$A:$BT,MATCH($DF$12&"_"&DG$20,データシート1!$A$1:$BT$1,0),0) -> 0 | DH47: =VLOOKUP($AX47&"_"&$DF$14,データシート1!$A:$BT,MATCH($DF$12&"_"&DH$20,データシート1!$A$1:$BT$1,0),0) -> 0 | DI47: =VLOOKUP($AX47&"_"&$DF$14,データシート1!$A:$BT,MATCH($DF$12&"_"&DI$20,データシート1!$A$1:$BT$1,0),0) -> 0 | DJ47: =VLOOKUP($AX47&"_"&$DF$14,データシート1!$A:$BT,MATCH($DF$12&"_"&DJ$20,データシート1!$A$1:$BT$1,0),0) -> 0 | DK47: =VLOOKUP($AX47&"_"&$DF$14,データシート1!$A:$BT,MATCH($DF$12&"_"&DK$20,データシート1!$A$1:$BT$1,0),0) -> 0 | DL47: 0 | DN47: 0 | DO47: 0 | DP47: 0 | DQ47: 0 | DR47: 0 | DS47: 0
AX48: =比較地域マスタ!$Y33 -> 21207 | AY48: =IF(IFERROR(比較地域マスタ!$Z33,"")=0,"",IFERROR(比較地域マスタ!$Z33,"")) -> 美濃市 | BB48: 21207 | BC48: 美濃市 | BD48: 193 | BE48: 104 | BF48: =VLOOKUP($AX48&"_"&$BC$14,データシート1!$A:$BT,MATCH($BC$12&"_"&BF$20,データシート1!$A$1:$BT$1,0),0) -> 100 | BG48: =VLOOKUP($AX48&"_"&$BC$14,データシート1!$A:$BT,MATCH($BC$12&"_"&BG$20,データシート1!$A$1:$BT$1,0),0) -> 1 | BH48: =VLOOKUP($AX48&"_"&$BC$14,データシート1!$A:$BT,MATCH($BC$12&"_"&BH$20,データシート1!$A$1:$BT$1,0),0) -> 3 | BI48: =VLOOKUP($AX48&"_"&$BC$14,データシート1!$A:$BT,MATCH($BC$12&"_"&BI$20,データシート1!$A$1:$BT$1,0),0) -> 22 | BJ48: =VLOOKUP($AX48&"_"&$BC$14,データシート1!$A:$BT,MATCH($BC$12&"_"&BJ$20,データシート1!$A$1:$BT$1,0),0) -> 25 | BK48: 38 | BL48: 37 | BM48: =VLOOKUP($AX48&"_"&$BC$14,データシート1!$A:$BT,MATCH($BC$12&"_"&BM$20,データシート1!$A$1:$BT$1,0),0) -> 19 | BN48: =VLOOKUP($AX48&"_"&$BC$14,データシート1!$A:$BT,MATCH($BC$12&"_"&BN$20,データシート1!$A$1:$BT$1,0),0) -> 17 | BO48: =VLOOKUP($AX48&"_"&$BC$14,データシート1!$A:$BT,MATCH($BC$12&"_"&BO$20,データシート1!$A$1:$BT$1,0),0) -> 1 | BP48: =VLOOKUP($AX48&"_"&$BC$14,データシート1!$A:$BT,MATCH($BC$12&"_"&BP$20,データシート1!$A$1:$BT$1,0),0) -> 0 | BQ48: =VLOOKUP($AX48&"_"&$BC$14,データシート1!$A:$BT,MATCH($BC$12&"_"&BQ$20,データシート1!$A$1:$BT$1,0),0) -> 3 | BR48: 193 | BT48: 美濃市 | BU48: 193 | BV48: 54% | BW48: 52% | BX48: 1% | BY48: 2% | BZ48: 12% | CA48: 13% | CB48: 20% | CC48: 19% | CD48: 10% | CE48: 9% | CF48: 1% | CG48: 0% | CH48: 2% | CI48: 100% | CK48: 美濃市 | CL48: 104 | CM48: (45%) | CN48: 100 | CO48: (47%) | CP48: 1 | CQ48: 0 | CR48: 3 | CS48: 0 | CT48: 22 | CU48: 0 | CW48: 47.074 | CX48: =VLOOKUP($AX48&"_"&$CW$14,データシート1!$A:$BT,MATCH($CW$12&"_"&CX$20,データシート1!$A$1:$BT$1,0),0) -> 47.074 | CY48: =VLOOKUP($AX48&"_"&$CW$14,データシート1!$A:$BT,MATCH($CW$12&"_"&CY$20,データシート1!$A$1:$BT$1,0),0) -> 0 | CZ48: =VLOOKUP($AX48&"_"&$CW$14,データシート1!$A:$BT,MATCH($CW$12&"_"&CZ$20,データシート1!$A$1:$BT$1,0),0) -> 0 | DA48: =VLOOKUP($AX48&"_"&$CW$14,データシート1!$A:$BT,MATCH($CW$12&"_"&DA$20,データシート1!$A$1:$BT$1,0),0) -> 0 | DB48: =VLOOKUP($AX48&"_"&$CW$14,データシート1!$A:$BT,MATCH($CW$12&"_"&DB$20,データシート1!$A$1:$BT$1,0),0) -> 0 | DC48: =VLOOKUP($AX48&"_"&$CW$14,データシート1!$A:$BT,MATCH($CW$12&"_"&DC$20,データシート1!$A$1:$BT$1,0),0) -> 0 | DD48: 47.074 | DF48: =VLOOKUP($AX48&"_"&$DF$14,データシート1!$A:$BT,MATCH($DF$12&"_"&DF$20,データシート1!$A$1:$BT$1,0),0) -> 7 | DG48: =VLOOKUP($AX48&"_"&$DF$14,データシート1!$A:$BT,MATCH($DF$12&"_"&DG$20,データシート1!$A$1:$BT$1,0),0) -> 0 | DH48: =VLOOKUP($AX48&"_"&$DF$14,データシート1!$A:$BT,MATCH($DF$12&"_"&DH$20,データシート1!$A$1:$BT$1,0),0) -> 0 | DI48: =VLOOKUP($AX48&"_"&$DF$14,データシート1!$A:$BT,MATCH($DF$12&"_"&DI$20,データシート1!$A$1:$BT$1,0),0) -> 0 | DJ48: =VLOOKUP($AX48&"_"&$DF$14,データシート1!$A:$BT,MATCH($DF$12&"_"&DJ$20,データシート1!$A$1:$BT$1,0),0) -> 0 | DK48: =VLOOKUP($AX48&"_"&$DF$14,データシート1!$A:$BT,MATCH($DF$12&"_"&DK$20,データシート1!$A$1:$BT$1,0),0) -> 0 | DL48: 7 | DN48: 100.0% | DO48: 0 | DP48: 0 | DQ48: 0 | DR48: 0 | DS48: 0
AX49: =比較地域マスタ!$Y34 -> 40544 | AY49: =IF(IFERROR(比較地域マスタ!$Z34,"")=0,"",IFERROR(比較地域マスタ!$Z34,"")) -> 広川町 | BB49: 40544 | BC49: 広川町 | BD49: 208 | BE49: 133 | BF49: =VLOOKUP($AX49&"_"&$BC$14,データシート1!$A:$BT,MATCH($BC$12&"_"&BF$20,データシート1!$A$1:$BT$1,0),0) -> 129 | BG49: =VLOOKUP($AX49&"_"&$BC$14,データシート1!$A:$BT,MATCH($BC$12&"_"&BG$20,データシート1!$A$1:$BT$1,0),0) -> 1 | BH49: =VLOOKUP($AX49&"_"&$BC$14,データシート1!$A:$BT,MATCH($BC$12&"_"&BH$20,データシート1!$A$1:$BT$1,0),0) -> 4 | BI49: =VLOOKUP($AX49&"_"&$BC$14,データシート1!$A:$BT,MATCH($BC$12&"_"&BI$20,データシート1!$A$1:$BT$1,0),0) -> 20 | BJ49: =VLOOKUP($AX49&"_"&$BC$14,データシート1!$A:$BT,MATCH($BC$12&"_"&BJ$20,データシート1!$A$1:$BT$1,0),0) -> 14 | BK49: 38 | BL49: 36 | BM49: =VLOOKUP($AX49&"_"&$BC$14,データシート1!$A:$BT,MATCH($BC$12&"_"&BM$20,データシート1!$A$1:$BT$1,0),0) -> 18 | BN49: =VLOOKUP($AX49&"_"&$BC$14,データシート1!$A:$BT,MATCH($BC$12&"_"&BN$20,データシート1!$A$1:$BT$1,0),0) -> 19 | BO49: =VLOOKUP($AX49&"_"&$BC$14,データシート1!$A:$BT,MATCH($BC$12&"_"&BO$20,データシート1!$A$1:$BT$1,0),0) -> 1 | BP49: =VLOOKUP($AX49&"_"&$BC$14,データシート1!$A:$BT,MATCH($BC$12&"_"&BP$20,データシート1!$A$1:$BT$1,0),0) -> 0 | BQ49: =VLOOKUP($AX49&"_"&$BC$14,データシート1!$A:$BT,MATCH($BC$12&"_"&BQ$20,データシート1!$A$1:$BT$1,0),0) -> 2 | BR49: 208 | BT49: 広川町 | BU49: 208 | BV49: 64% | BW49: 62% | BX49: 0% | BY49: 2% | BZ49: 10% | CA49: 7% | CB49: 18% | CC49: 18% | CD49: 8% | CE49: 9% | CF49: 1% | CG49: 0% | CH49: 1% | CI49: 100% | CK49: 広川町 | CL49: 133 | CM49: (7%) | CN49: 129 | CO49: (8%) | CP49: 1 | CQ49: 0 | CR49: 4 | CS49: 0 | CT49: 20 | CU49: 0 | CW49: 9.808 | CX49: =VLOOKUP($AX49&"_"&$CW$14,データシート1!$A:$BT,MATCH($CW$12&"_"&CX$20,データシート1!$A$1:$BT$1,0),0) -> 9.808 | CY49: =VLOOKUP($AX49&"_"&$CW$14,データシート1!$A:$BT,MATCH($CW$12&"_"&CY$20,データシート1!$A$1:$BT$1,0),0) -> 0 | CZ49: =VLOOKUP($AX49&"_"&$CW$14,データシート1!$A:$BT,MATCH($CW$12&"_"&CZ$20,データシート1!$A$1:$BT$1,0),0) -> 0 | DA49: =VLOOKUP($AX49&"_"&$CW$14,データシート1!$A:$BT,MATCH($CW$12&"_"&DA$20,データシート1!$A$1:$BT$1,0),0) -> 0 | DB49: =VLOOKUP($AX49&"_"&$CW$14,データシート1!$A:$BT,MATCH($CW$12&"_"&DB$20,データシート1!$A$1:$BT$1,0),0) -> 0 | DC49: =VLOOKUP($AX49&"_"&$CW$14,データシート1!$A:$BT,MATCH($CW$12&"_"&DC$20,データシート1!$A$1:$BT$1,0),0) -> 0 | DD49: 9.808 | DF49: =VLOOKUP($AX49&"_"&$DF$14,データシート1!$A:$BT,MATCH($DF$12&"_"&DF$20,データシート1!$A$1:$BT$1,0),0) -> 3 | DG49: =VLOOKUP($AX49&"_"&$DF$14,データシート1!$A:$BT,MATCH($DF$12&"_"&DG$20,データシート1!$A$1:$BT$1,0),0) -> 0 | DH49: =VLOOKUP($AX49&"_"&$DF$14,データシート1!$A:$BT,MATCH($DF$12&"_"&DH$20,データシート1!$A$1:$BT$1,0),0) -> 0 | DI49: =VLOOKUP($AX49&"_"&$DF$14,データシート1!$A:$BT,MATCH($DF$12&"_"&DI$20,データシート1!$A$1:$BT$1,0),0) -> 0 | DJ49: =VLOOKUP($AX49&"_"&$DF$14,データシート1!$A:$BT,MATCH($DF$12&"_"&DJ$20,データシート1!$A$1:$BT$1,0),0) -> 0 | DK49: =VLOOKUP($AX49&"_"&$DF$14,データシート1!$A:$BT,MATCH($DF$12&"_"&DK$20,データシート1!$A$1:$BT$1,0),0) -> 0 | DL49: 3 | DN49: 100.0% | DO49: 0 | DP49: 0 | DQ49: 0 | DR49: 0 | DS49: 0
AX50: =比較地域マスタ!$Y35 -> 0 | AY50: =IF(IFERROR(比較地域マスタ!$Z35,"")=0,"",IFERROR(比較地域マスタ!$Z35,"")) ->  | BB50: 0 | BF50: =VLOOKUP($AX50&"_"&$BC$14,データシート1!$A:$BT,MATCH($BC$12&"_"&BF$20,データシート1!$A$1:$BT$1,0),0) ->  | BG50: =VLOOKUP($AX50&"_"&$BC$14,データシート1!$A:$BT,MATCH($BC$12&"_"&BG$20,データシート1!$A$1:$BT$1,0),0) ->  | BH50: =VLOOKUP($AX50&"_"&$BC$14,データシート1!$A:$BT,MATCH($BC$12&"_"&BH$20,データシート1!$A$1:$BT$1,0),0) ->  | BI50: =VLOOKUP($AX50&"_"&$BC$14,データシート1!$A:$BT,MATCH($BC$12&"_"&BI$20,データシート1!$A$1:$BT$1,0),0) ->  | BJ50: =VLOOKUP($AX50&"_"&$BC$14,データシート1!$A:$BT,MATCH($BC$12&"_"&BJ$20,データシート1!$A$1:$BT$1,0),0) ->  | BM50: =VLOOKUP($AX50&"_"&$BC$14,データシート1!$A:$BT,MATCH($BC$12&"_"&BM$20,データシート1!$A$1:$BT$1,0),0) ->  | BN50: =VLOOKUP($AX50&"_"&$BC$14,データシート1!$A:$BT,MATCH($BC$12&"_"&BN$20,データシート1!$A$1:$BT$1,0),0) ->  | BO50: =VLOOKUP($AX50&"_"&$BC$14,データシート1!$A:$BT,MATCH($BC$12&"_"&BO$20,データシート1!$A$1:$BT$1,0),0) ->  | BP50: =VLOOKUP($AX50&"_"&$BC$14,データシート1!$A:$BT,MATCH($BC$12&"_"&BP$20,データシート1!$A$1:$BT$1,0),0) ->  | BQ50: =VLOOKUP($AX50&"_"&$BC$14,データシート1!$A:$BT,MATCH($BC$12&"_"&BQ$20,データシート1!$A$1:$BT$1,0),0) ->  | CX50: =VLOOKUP($AX50&"_"&$CW$14,データシート1!$A:$BT,MATCH($CW$12&"_"&CX$20,データシート1!$A$1:$BT$1,0),0) ->  | CY50: =VLOOKUP($AX50&"_"&$CW$14,データシート1!$A:$BT,MATCH($CW$12&"_"&CY$20,データシート1!$A$1:$BT$1,0),0) ->  | CZ50: =VLOOKUP($AX50&"_"&$CW$14,データシート1!$A:$BT,MATCH($CW$12&"_"&CZ$20,データシート1!$A$1:$BT$1,0),0) ->  | DA50: =VLOOKUP($AX50&"_"&$CW$14,データシート1!$A:$BT,MATCH($CW$12&"_"&DA$20,データシート1!$A$1:$BT$1,0),0) ->  | DB50: =VLOOKUP($AX50&"_"&$CW$14,データシート1!$A:$BT,MATCH($CW$12&"_"&DB$20,データシート1!$A$1:$BT$1,0),0) ->  | DC50: =VLOOKUP($AX50&"_"&$CW$14,データシート1!$A:$BT,MATCH($CW$12&"_"&DC$20,データシート1!$A$1:$BT$1,0),0) ->  | DF50: =VLOOKUP($AX50&"_"&$DF$14,データシート1!$A:$BT,MATCH($DF$12&"_"&DF$20,データシート1!$A$1:$BT$1,0),0) ->  | DG50: =VLOOKUP($AX50&"_"&$DF$14,データシート1!$A:$BT,MATCH($DF$12&"_"&DG$20,データシート1!$A$1:$BT$1,0),0) ->  | DH50: =VLOOKUP($AX50&"_"&$DF$14,データシート1!$A:$BT,MATCH($DF$12&"_"&DH$20,データシート1!$A$1:$BT$1,0),0) ->  | DI50: =VLOOKUP($AX50&"_"&$DF$14,データシート1!$A:$BT,MATCH($DF$12&"_"&DI$20,データシート1!$A$1:$BT$1,0),0) ->  | DJ50: =VLOOKUP($AX50&"_"&$DF$14,データシート1!$A:$BT,MATCH($DF$12&"_"&DJ$20,データシート1!$A$1:$BT$1,0),0) ->  | DK50: =VLOOKUP($AX50&"_"&$DF$14,データシート1!$A:$BT,MATCH($DF$12&"_"&DK$20,データシート1!$A$1:$BT$1,0),0) -> 
AX51: =比較地域マスタ!$Y36 -> 0 | AY51: =IF(IFERROR(比較地域マスタ!$Z36,"")=0,"",IFERROR(比較地域マスタ!$Z36,"")) ->  | BB51: 0 | BF51: =VLOOKUP($AX51&"_"&$BC$14,データシート1!$A:$BT,MATCH($BC$12&"_"&BF$20,データシート1!$A$1:$BT$1,0),0) ->  | BG51: =VLOOKUP($AX51&"_"&$BC$14,データシート1!$A:$BT,MATCH($BC$12&"_"&BG$20,データシート1!$A$1:$BT$1,0),0) ->  | BH51: =VLOOKUP($AX51&"_"&$BC$14,データシート1!$A:$BT,MATCH($BC$12&"_"&BH$20,データシート1!$A$1:$BT$1,0),0) ->  | BI51: =VLOOKUP($AX51&"_"&$BC$14,データシート1!$A:$BT,MATCH($BC$12&"_"&BI$20,データシート1!$A$1:$BT$1,0),0) ->  | BJ51: =VLOOKUP($AX51&"_"&$BC$14,データシート1!$A:$BT,MATCH($BC$12&"_"&BJ$20,データシート1!$A$1:$BT$1,0),0) ->  | BM51: =VLOOKUP($AX51&"_"&$BC$14,データシート1!$A:$BT,MATCH($BC$12&"_"&BM$20,データシート1!$A$1:$BT$1,0),0) ->  | BN51: =VLOOKUP($AX51&"_"&$BC$14,データシート1!$A:$BT,MATCH($BC$12&"_"&BN$20,データシート1!$A$1:$BT$1,0),0) ->  | BO51: =VLOOKUP($AX51&"_"&$BC$14,データシート1!$A:$BT,MATCH($BC$12&"_"&BO$20,データシート1!$A$1:$BT$1,0),0) ->  | BP51: =VLOOKUP($AX51&"_"&$BC$14,データシート1!$A:$BT,MATCH($BC$12&"_"&BP$20,データシート1!$A$1:$BT$1,0),0) ->  | BQ51: =VLOOKUP($AX51&"_"&$BC$14,データシート1!$A:$BT,MATCH($BC$12&"_"&BQ$20,データシート1!$A$1:$BT$1,0),0) ->  | CX51: =VLOOKUP($AX51&"_"&$CW$14,データシート1!$A:$BT,MATCH($CW$12&"_"&CX$20,データシート1!$A$1:$BT$1,0),0) ->  | CY51: =VLOOKUP($AX51&"_"&$CW$14,データシート1!$A:$BT,MATCH($CW$12&"_"&CY$20,データシート1!$A$1:$BT$1,0),0) ->  | CZ51: =VLOOKUP($AX51&"_"&$CW$14,データシート1!$A:$BT,MATCH($CW$12&"_"&CZ$20,データシート1!$A$1:$BT$1,0),0) ->  | DA51: =VLOOKUP($AX51&"_"&$CW$14,データシート1!$A:$BT,MATCH($CW$12&"_"&DA$20,データシート1!$A$1:$BT$1,0),0) ->  | DB51: =VLOOKUP($AX51&"_"&$CW$14,データシート1!$A:$BT,MATCH($CW$12&"_"&DB$20,データシート1!$A$1:$BT$1,0),0) ->  | DC51: =VLOOKUP($AX51&"_"&$CW$14,データシート1!$A:$BT,MATCH($CW$12&"_"&DC$20,データシート1!$A$1:$BT$1,0),0) ->  | DF51: =VLOOKUP($AX51&"_"&$DF$14,データシート1!$A:$BT,MATCH($DF$12&"_"&DF$20,データシート1!$A$1:$BT$1,0),0) ->  | DG51: =VLOOKUP($AX51&"_"&$DF$14,データシート1!$A:$BT,MATCH($DF$12&"_"&DG$20,データシート1!$A$1:$BT$1,0),0) ->  | DH51: =VLOOKUP($AX51&"_"&$DF$14,データシート1!$A:$BT,MATCH($DF$12&"_"&DH$20,データシート1!$A$1:$BT$1,0),0) ->  | DI51: =VLOOKUP($AX51&"_"&$DF$14,データシート1!$A:$BT,MATCH($DF$12&"_"&DI$20,データシート1!$A$1:$BT$1,0),0) ->  | DJ51: =VLOOKUP($AX51&"_"&$DF$14,データシート1!$A:$BT,MATCH($DF$12&"_"&DJ$20,データシート1!$A$1:$BT$1,0),0) ->  | DK51: =VLOOKUP($AX51&"_"&$DF$14,データシート1!$A:$BT,MATCH($DF$12&"_"&DK$20,データシート1!$A$1:$BT$1,0),0) -> 
AX52: =比較地域マスタ!$Y37 -> 0 | AY52: =IF(IFERROR(比較地域マスタ!$Z37,"")=0,"",IFERROR(比較地域マスタ!$Z37,"")) ->  | BB52: 0 | BF52: =VLOOKUP($AX52&"_"&$BC$14,データシート1!$A:$BT,MATCH($BC$12&"_"&BF$20,データシート1!$A$1:$BT$1,0),0) ->  | BG52: =VLOOKUP($AX52&"_"&$BC$14,データシート1!$A:$BT,MATCH($BC$12&"_"&BG$20,データシート1!$A$1:$BT$1,0),0) ->  | BH52: =VLOOKUP($AX52&"_"&$BC$14,データシート1!$A:$BT,MATCH($BC$12&"_"&BH$20,データシート1!$A$1:$BT$1,0),0) ->  | BI52: =VLOOKUP($AX52&"_"&$BC$14,データシート1!$A:$BT,MATCH($BC$12&"_"&BI$20,データシート1!$A$1:$BT$1,0),0) ->  | BJ52: =VLOOKUP($AX52&"_"&$BC$14,データシート1!$A:$BT,MATCH($BC$12&"_"&BJ$20,データシート1!$A$1:$BT$1,0),0) ->  | BM52: =VLOOKUP($AX52&"_"&$BC$14,データシート1!$A:$BT,MATCH($BC$12&"_"&BM$20,データシート1!$A$1:$BT$1,0),0) ->  | BN52: =VLOOKUP($AX52&"_"&$BC$14,データシート1!$A:$BT,MATCH($BC$12&"_"&BN$20,データシート1!$A$1:$BT$1,0),0) ->  | BO52: =VLOOKUP($AX52&"_"&$BC$14,データシート1!$A:$BT,MATCH($BC$12&"_"&BO$20,データシート1!$A$1:$BT$1,0),0) ->  | BP52: =VLOOKUP($AX52&"_"&$BC$14,データシート1!$A:$BT,MATCH($BC$12&"_"&BP$20,データシート1!$A$1:$BT$1,0),0) ->  | BQ52: =VLOOKUP($AX52&"_"&$BC$14,データシート1!$A:$BT,MATCH($BC$12&"_"&BQ$20,データシート1!$A$1:$BT$1,0),0) ->  | CX52: =VLOOKUP($AX52&"_"&$CW$14,データシート1!$A:$BT,MATCH($CW$12&"_"&CX$20,データシート1!$A$1:$BT$1,0),0) ->  | CY52: =VLOOKUP($AX52&"_"&$CW$14,データシート1!$A:$BT,MATCH($CW$12&"_"&CY$20,データシート1!$A$1:$BT$1,0),0) ->  | CZ52: =VLOOKUP($AX52&"_"&$CW$14,データシート1!$A:$BT,MATCH($CW$12&"_"&CZ$20,データシート1!$A$1:$BT$1,0),0) ->  | DA52: =VLOOKUP($AX52&"_"&$CW$14,データシート1!$A:$BT,MATCH($CW$12&"_"&DA$20,データシート1!$A$1:$BT$1,0),0) ->  | DB52: =VLOOKUP($AX52&"_"&$CW$14,データシート1!$A:$BT,MATCH($CW$12&"_"&DB$20,データシート1!$A$1:$BT$1,0),0) ->  | DC52: =VLOOKUP($AX52&"_"&$CW$14,データシート1!$A:$BT,MATCH($CW$12&"_"&DC$20,データシート1!$A$1:$BT$1,0),0) ->  | DF52: =VLOOKUP($AX52&"_"&$DF$14,データシート1!$A:$BT,MATCH($DF$12&"_"&DF$20,データシート1!$A$1:$BT$1,0),0) ->  | DG52: =VLOOKUP($AX52&"_"&$DF$14,データシート1!$A:$BT,MATCH($DF$12&"_"&DG$20,データシート1!$A$1:$BT$1,0),0) ->  | DH52: =VLOOKUP($AX52&"_"&$DF$14,データシート1!$A:$BT,MATCH($DF$12&"_"&DH$20,データシート1!$A$1:$BT$1,0),0) ->  | DI52: =VLOOKUP($AX52&"_"&$DF$14,データシート1!$A:$BT,MATCH($DF$12&"_"&DI$20,データシート1!$A$1:$BT$1,0),0) ->  | DJ52: =VLOOKUP($AX52&"_"&$DF$14,データシート1!$A:$BT,MATCH($DF$12&"_"&DJ$20,データシート1!$A$1:$BT$1,0),0) ->  | DK52: =VLOOKUP($AX52&"_"&$DF$14,データシート1!$A:$BT,MATCH($DF$12&"_"&DK$20,データシート1!$A$1:$BT$1,0),0) -> 
AX53: =比較地域マスタ!$Y38 -> 0 | AY53: =IF(IFERROR(比較地域マスタ!$Z38,"")=0,"",IFERROR(比較地域マスタ!$Z38,"")) ->  | BB53: 0 | BF53: =VLOOKUP($AX53&"_"&$BC$14,データシート1!$A:$BT,MATCH($BC$12&"_"&BF$20,データシート1!$A$1:$BT$1,0),0) ->  | BG53: =VLOOKUP($AX53&"_"&$BC$14,データシート1!$A:$BT,MATCH($BC$12&"_"&BG$20,データシート1!$A$1:$BT$1,0),0) ->  | BH53: =VLOOKUP($AX53&"_"&$BC$14,データシート1!$A:$BT,MATCH($BC$12&"_"&BH$20,データシート1!$A$1:$BT$1,0),0) ->  | BI53: =VLOOKUP($AX53&"_"&$BC$14,データシート1!$A:$BT,MATCH($BC$12&"_"&BI$20,データシート1!$A$1:$BT$1,0),0) ->  | BJ53: =VLOOKUP($AX53&"_"&$BC$14,データシート1!$A:$BT,MATCH($BC$12&"_"&BJ$20,データシート1!$A$1:$BT$1,0),0) ->  | BM53: =VLOOKUP($AX53&"_"&$BC$14,データシート1!$A:$BT,MATCH($BC$12&"_"&BM$20,データシート1!$A$1:$BT$1,0),0) ->  | BN53: =VLOOKUP($AX53&"_"&$BC$14,データシート1!$A:$BT,MATCH($BC$12&"_"&BN$20,データシート1!$A$1:$BT$1,0),0) ->  | BO53: =VLOOKUP($AX53&"_"&$BC$14,データシート1!$A:$BT,MATCH($BC$12&"_"&BO$20,データシート1!$A$1:$BT$1,0),0) ->  | BP53: =VLOOKUP($AX53&"_"&$BC$14,データシート1!$A:$BT,MATCH($BC$12&"_"&BP$20,データシート1!$A$1:$BT$1,0),0) ->  | BQ53: =VLOOKUP($AX53&"_"&$BC$14,データシート1!$A:$BT,MATCH($BC$12&"_"&BQ$20,データシート1!$A$1:$BT$1,0),0) ->  | CX53: =VLOOKUP($AX53&"_"&$CW$14,データシート1!$A:$BT,MATCH($CW$12&"_"&CX$20,データシート1!$A$1:$BT$1,0),0) ->  | CY53: =VLOOKUP($AX53&"_"&$CW$14,データシート1!$A:$BT,MATCH($CW$12&"_"&CY$20,データシート1!$A$1:$BT$1,0),0) ->  | CZ53: =VLOOKUP($AX53&"_"&$CW$14,データシート1!$A:$BT,MATCH($CW$12&"_"&CZ$20,データシート1!$A$1:$BT$1,0),0) ->  | DA53: =VLOOKUP($AX53&"_"&$CW$14,データシート1!$A:$BT,MATCH($CW$12&"_"&DA$20,データシート1!$A$1:$BT$1,0),0) ->  | DB53: =VLOOKUP($AX53&"_"&$CW$14,データシート1!$A:$BT,MATCH($CW$12&"_"&DB$20,データシート1!$A$1:$BT$1,0),0) ->  | DC53: =VLOOKUP($AX53&"_"&$CW$14,データシート1!$A:$BT,MATCH($CW$12&"_"&DC$20,データシート1!$A$1:$BT$1,0),0) ->  | DF53: =VLOOKUP($AX53&"_"&$DF$14,データシート1!$A:$BT,MATCH($DF$12&"_"&DF$20,データシート1!$A$1:$BT$1,0),0) ->  | DG53: =VLOOKUP($AX53&"_"&$DF$14,データシート1!$A:$BT,MATCH($DF$12&"_"&DG$20,データシート1!$A$1:$BT$1,0),0) ->  | DH53: =VLOOKUP($AX53&"_"&$DF$14,データシート1!$A:$BT,MATCH($DF$12&"_"&DH$20,データシート1!$A$1:$BT$1,0),0) ->  | DI53: =VLOOKUP($AX53&"_"&$DF$14,データシート1!$A:$BT,MATCH($DF$12&"_"&DI$20,データシート1!$A$1:$BT$1,0),0) ->  | DJ53: =VLOOKUP($AX53&"_"&$DF$14,データシート1!$A:$BT,MATCH($DF$12&"_"&DJ$20,データシート1!$A$1:$BT$1,0),0) ->  | DK53: =VLOOKUP($AX53&"_"&$DF$14,データシート1!$A:$BT,MATCH($DF$12&"_"&DK$20,データシート1!$A$1:$BT$1,0),0) -> 
AX54: =比較地域マスタ!$Y39 -> 0 | AY54: =IF(IFERROR(比較地域マスタ!$Z39,"")=0,"",IFERROR(比較地域マスタ!$Z39,"")) ->  | BB54: 0 | BF54: =VLOOKUP($AX54&"_"&$BC$14,データシート1!$A:$BT,MATCH($BC$12&"_"&BF$20,データシート1!$A$1:$BT$1,0),0) ->  | BG54: =VLOOKUP($AX54&"_"&$BC$14,データシート1!$A:$BT,MATCH($BC$12&"_"&BG$20,データシート1!$A$1:$BT$1,0),0) ->  | BH54: =VLOOKUP($AX54&"_"&$BC$14,データシート1!$A:$BT,MATCH($BC$12&"_"&BH$20,データシート1!$A$1:$BT$1,0),0) ->  | BI54: =VLOOKUP($AX54&"_"&$BC$14,データシート1!$A:$BT,MATCH($BC$12&"_"&BI$20,データシート1!$A$1:$BT$1,0),0) ->  | BJ54: =VLOOKUP($AX54&"_"&$BC$14,データシート1!$A:$BT,MATCH($BC$12&"_"&BJ$20,データシート1!$A$1:$BT$1,0),0) ->  | BM54: =VLOOKUP($AX54&"_"&$BC$14,データシート1!$A:$BT,MATCH($BC$12&"_"&BM$20,データシート1!$A$1:$BT$1,0),0) ->  | BN54: =VLOOKUP($AX54&"_"&$BC$14,データシート1!$A:$BT,MATCH($BC$12&"_"&BN$20,データシート1!$A$1:$BT$1,0),0) ->  | BO54: =VLOOKUP($AX54&"_"&$BC$14,データシート1!$A:$BT,MATCH($BC$12&"_"&BO$20,データシート1!$A$1:$BT$1,0),0) ->  | BP54: =VLOOKUP($AX54&"_"&$BC$14,データシート1!$A:$BT,MATCH($BC$12&"_"&BP$20,データシート1!$A$1:$BT$1,0),0) ->  | BQ54: =VLOOKUP($AX54&"_"&$BC$14,データシート1!$A:$BT,MATCH($BC$12&"_"&BQ$20,データシート1!$A$1:$BT$1,0),0) ->  | CX54: =VLOOKUP($AX54&"_"&$CW$14,データシート1!$A:$BT,MATCH($CW$12&"_"&CX$20,データシート1!$A$1:$BT$1,0),0) ->  | CY54: =VLOOKUP($AX54&"_"&$CW$14,データシート1!$A:$BT,MATCH($CW$12&"_"&CY$20,データシート1!$A$1:$BT$1,0),0) ->  | CZ54: =VLOOKUP($AX54&"_"&$CW$14,データシート1!$A:$BT,MATCH($CW$12&"_"&CZ$20,データシート1!$A$1:$BT$1,0),0) ->  | DA54: =VLOOKUP($AX54&"_"&$CW$14,データシート1!$A:$BT,MATCH($CW$12&"_"&DA$20,データシート1!$A$1:$BT$1,0),0) ->  | DB54: =VLOOKUP($AX54&"_"&$CW$14,データシート1!$A:$BT,MATCH($CW$12&"_"&DB$20,データシート1!$A$1:$BT$1,0),0) ->  | DC54: =VLOOKUP($AX54&"_"&$CW$14,データシート1!$A:$BT,MATCH($CW$12&"_"&DC$20,データシート1!$A$1:$BT$1,0),0) ->  | DF54: =VLOOKUP($AX54&"_"&$DF$14,データシート1!$A:$BT,MATCH($DF$12&"_"&DF$20,データシート1!$A$1:$BT$1,0),0) ->  | DG54: =VLOOKUP($AX54&"_"&$DF$14,データシート1!$A:$BT,MATCH($DF$12&"_"&DG$20,データシート1!$A$1:$BT$1,0),0) ->  | DH54: =VLOOKUP($AX54&"_"&$DF$14,データシート1!$A:$BT,MATCH($DF$12&"_"&DH$20,データシート1!$A$1:$BT$1,0),0) ->  | DI54: =VLOOKUP($AX54&"_"&$DF$14,データシート1!$A:$BT,MATCH($DF$12&"_"&DI$20,データシート1!$A$1:$BT$1,0),0) ->  | DJ54: =VLOOKUP($AX54&"_"&$DF$14,データシート1!$A:$BT,MATCH($DF$12&"_"&DJ$20,データシート1!$A$1:$BT$1,0),0) ->  | DK54: =VLOOKUP($AX54&"_"&$DF$14,データシート1!$A:$BT,MATCH($DF$12&"_"&DK$20,データシート1!$A$1:$BT$1,0),0) -> 
AX55: =比較地域マスタ!$Y40 -> 0 | AY55: =IF(IFERROR(比較地域マスタ!$Z40,"")=0,"",IFERROR(比較地域マスタ!$Z40,"")) ->  | BB55: 0 | BF55: =VLOOKUP($AX55&"_"&$BC$14,データシート1!$A:$BT,MATCH($BC$12&"_"&BF$20,データシート1!$A$1:$BT$1,0),0) ->  | BG55: =VLOOKUP($AX55&"_"&$BC$14,データシート1!$A:$BT,MATCH($BC$12&"_"&BG$20,データシート1!$A$1:$BT$1,0),0) ->  | BH55: =VLOOKUP($AX55&"_"&$BC$14,データシート1!$A:$BT,MATCH($BC$12&"_"&BH$20,データシート1!$A$1:$BT$1,0),0) ->  | BI55: =VLOOKUP($AX55&"_"&$BC$14,データシート1!$A:$BT,MATCH($BC$12&"_"&BI$20,データシート1!$A$1:$BT$1,0),0) ->  | BJ55: =VLOOKUP($AX55&"_"&$BC$14,データシート1!$A:$BT,MATCH($BC$12&"_"&BJ$20,データシート1!$A$1:$BT$1,0),0) ->  | BM55: =VLOOKUP($AX55&"_"&$BC$14,データシート1!$A:$BT,MATCH($BC$12&"_"&BM$20,データシート1!$A$1:$BT$1,0),0) ->  | BN55: =VLOOKUP($AX55&"_"&$BC$14,データシート1!$A:$BT,MATCH($BC$12&"_"&BN$20,データシート1!$A$1:$BT$1,0),0) ->  | BO55: =VLOOKUP($AX55&"_"&$BC$14,データシート1!$A:$BT,MATCH($BC$12&"_"&BO$20,データシート1!$A$1:$BT$1,0),0) ->  | BP55: =VLOOKUP($AX55&"_"&$BC$14,データシート1!$A:$BT,MATCH($BC$12&"_"&BP$20,データシート1!$A$1:$BT$1,0),0) ->  | BQ55: =VLOOKUP($AX55&"_"&$BC$14,データシート1!$A:$BT,MATCH($BC$12&"_"&BQ$20,データシート1!$A$1:$BT$1,0),0) ->  | CX55: =VLOOKUP($AX55&"_"&$CW$14,データシート1!$A:$BT,MATCH($CW$12&"_"&CX$20,データシート1!$A$1:$BT$1,0),0) ->  | CY55: =VLOOKUP($AX55&"_"&$CW$14,データシート1!$A:$BT,MATCH($CW$12&"_"&CY$20,データシート1!$A$1:$BT$1,0),0) ->  | CZ55: =VLOOKUP($AX55&"_"&$CW$14,データシート1!$A:$BT,MATCH($CW$12&"_"&CZ$20,データシート1!$A$1:$BT$1,0),0) ->  | DA55: =VLOOKUP($AX55&"_"&$CW$14,データシート1!$A:$BT,MATCH($CW$12&"_"&DA$20,データシート1!$A$1:$BT$1,0),0) ->  | DB55: =VLOOKUP($AX55&"_"&$CW$14,データシート1!$A:$BT,MATCH($CW$12&"_"&DB$20,データシート1!$A$1:$BT$1,0),0) ->  | DC55: =VLOOKUP($AX55&"_"&$CW$14,データシート1!$A:$BT,MATCH($CW$12&"_"&DC$20,データシート1!$A$1:$BT$1,0),0) ->  | DF55: =VLOOKUP($AX55&"_"&$DF$14,データシート1!$A:$BT,MATCH($DF$12&"_"&DF$20,データシート1!$A$1:$BT$1,0),0) ->  | DG55: =VLOOKUP($AX55&"_"&$DF$14,データシート1!$A:$BT,MATCH($DF$12&"_"&DG$20,データシート1!$A$1:$BT$1,0),0) ->  | DH55: =VLOOKUP($AX55&"_"&$DF$14,データシート1!$A:$BT,MATCH($DF$12&"_"&DH$20,データシート1!$A$1:$BT$1,0),0) ->  | DI55: =VLOOKUP($AX55&"_"&$DF$14,データシート1!$A:$BT,MATCH($DF$12&"_"&DI$20,データシート1!$A$1:$BT$1,0),0) ->  | DJ55: =VLOOKUP($AX55&"_"&$DF$14,データシート1!$A:$BT,MATCH($DF$12&"_"&DJ$20,データシート1!$A$1:$BT$1,0),0) ->  | DK55: =VLOOKUP($AX55&"_"&$DF$14,データシート1!$A:$BT,MATCH($DF$12&"_"&DK$20,データシート1!$A$1:$BT$1,0),0) -> 
AX56: =比較地域マスタ!$Y41 -> 0 | AY56: =IF(IFERROR(比較地域マスタ!$Z41,"")=0,"",IFERROR(比較地域マスタ!$Z41,"")) ->  | BB56: 0 | BF56: =VLOOKUP($AX56&"_"&$BC$14,データシート1!$A:$BT,MATCH($BC$12&"_"&BF$20,データシート1!$A$1:$BT$1,0),0) ->  | BG56: =VLOOKUP($AX56&"_"&$BC$14,データシート1!$A:$BT,MATCH($BC$12&"_"&BG$20,データシート1!$A$1:$BT$1,0),0) ->  | BH56: =VLOOKUP($AX56&"_"&$BC$14,データシート1!$A:$BT,MATCH($BC$12&"_"&BH$20,データシート1!$A$1:$BT$1,0),0) ->  | BI56: =VLOOKUP($AX56&"_"&$BC$14,データシート1!$A:$BT,MATCH($BC$12&"_"&BI$20,データシート1!$A$1:$BT$1,0),0) ->  | BJ56: =VLOOKUP($AX56&"_"&$BC$14,データシート1!$A:$BT,MATCH($BC$12&"_"&BJ$20,データシート1!$A$1:$BT$1,0),0) ->  | BM56: =VLOOKUP($AX56&"_"&$BC$14,データシート1!$A:$BT,MATCH($BC$12&"_"&BM$20,データシート1!$A$1:$BT$1,0),0) ->  | BN56: =VLOOKUP($AX56&"_"&$BC$14,データシート1!$A:$BT,MATCH($BC$12&"_"&BN$20,データシート1!$A$1:$BT$1,0),0) ->  | BO56: =VLOOKUP($AX56&"_"&$BC$14,データシート1!$A:$BT,MATCH($BC$12&"_"&BO$20,データシート1!$A$1:$BT$1,0),0) ->  | BP56: =VLOOKUP($AX56&"_"&$BC$14,データシート1!$A:$BT,MATCH($BC$12&"_"&BP$20,データシート1!$A$1:$BT$1,0),0) ->  | BQ56: =VLOOKUP($AX56&"_"&$BC$14,データシート1!$A:$BT,MATCH($BC$12&"_"&BQ$20,データシート1!$A$1:$BT$1,0),0) ->  | CX56: =VLOOKUP($AX56&"_"&$CW$14,データシート1!$A:$BT,MATCH($CW$12&"_"&CX$20,データシート1!$A$1:$BT$1,0),0) ->  | CY56: =VLOOKUP($AX56&"_"&$CW$14,データシート1!$A:$BT,MATCH($CW$12&"_"&CY$20,データシート1!$A$1:$BT$1,0),0) ->  | CZ56: =VLOOKUP($AX56&"_"&$CW$14,データシート1!$A:$BT,MATCH($CW$12&"_"&CZ$20,データシート1!$A$1:$BT$1,0),0) ->  | DA56: =VLOOKUP($AX56&"_"&$CW$14,データシート1!$A:$BT,MATCH($CW$12&"_"&DA$20,データシート1!$A$1:$BT$1,0),0) ->  | DB56: =VLOOKUP($AX56&"_"&$CW$14,データシート1!$A:$BT,MATCH($CW$12&"_"&DB$20,データシート1!$A$1:$BT$1,0),0) ->  | DC56: =VLOOKUP($AX56&"_"&$CW$14,データシート1!$A:$BT,MATCH($CW$12&"_"&DC$20,データシート1!$A$1:$BT$1,0),0) ->  | DF56: =VLOOKUP($AX56&"_"&$DF$14,データシート1!$A:$BT,MATCH($DF$12&"_"&DF$20,データシート1!$A$1:$BT$1,0),0) ->  | DG56: =VLOOKUP($AX56&"_"&$DF$14,データシート1!$A:$BT,MATCH($DF$12&"_"&DG$20,データシート1!$A$1:$BT$1,0),0) ->  | DH56: =VLOOKUP($AX56&"_"&$DF$14,データシート1!$A:$BT,MATCH($DF$12&"_"&DH$20,データシート1!$A$1:$BT$1,0),0) ->  | DI56: =VLOOKUP($AX56&"_"&$DF$14,データシート1!$A:$BT,MATCH($DF$12&"_"&DI$20,データシート1!$A$1:$BT$1,0),0) ->  | DJ56: =VLOOKUP($AX56&"_"&$DF$14,データシート1!$A:$BT,MATCH($DF$12&"_"&DJ$20,データシート1!$A$1:$BT$1,0),0) ->  | DK56: =VLOOKUP($AX56&"_"&$DF$14,データシート1!$A:$BT,MATCH($DF$12&"_"&DK$20,データシート1!$A$1:$BT$1,0),0) -> 
AX57: =比較地域マスタ!$Y42 -> 0 | AY57: =IF(IFERROR(比較地域マスタ!$Z42,"")=0,"",IFERROR(比較地域マスタ!$Z42,"")) ->  | BB57: 0 | BF57: =VLOOKUP($AX57&"_"&$BC$14,データシート1!$A:$BT,MATCH($BC$12&"_"&BF$20,データシート1!$A$1:$BT$1,0),0) ->  | BG57: =VLOOKUP($AX57&"_"&$BC$14,データシート1!$A:$BT,MATCH($BC$12&"_"&BG$20,データシート1!$A$1:$BT$1,0),0) ->  | BH57: =VLOOKUP($AX57&"_"&$BC$14,データシート1!$A:$BT,MATCH($BC$12&"_"&BH$20,データシート1!$A$1:$BT$1,0),0) ->  | BI57: =VLOOKUP($AX57&"_"&$BC$14,データシート1!$A:$BT,MATCH($BC$12&"_"&BI$20,データシート1!$A$1:$BT$1,0),0) ->  | BJ57: =VLOOKUP($AX57&"_"&$BC$14,データシート1!$A:$BT,MATCH($BC$12&"_"&BJ$20,データシート1!$A$1:$BT$1,0),0) ->  | BM57: =VLOOKUP($AX57&"_"&$BC$14,データシート1!$A:$BT,MATCH($BC$12&"_"&BM$20,データシート1!$A$1:$BT$1,0),0) ->  | BN57: =VLOOKUP($AX57&"_"&$BC$14,データシート1!$A:$BT,MATCH($BC$12&"_"&BN$20,データシート1!$A$1:$BT$1,0),0) ->  | BO57: =VLOOKUP($AX57&"_"&$BC$14,データシート1!$A:$BT,MATCH($BC$12&"_"&BO$20,データシート1!$A$1:$BT$1,0),0) ->  | BP57: =VLOOKUP($AX57&"_"&$BC$14,データシート1!$A:$BT,MATCH($BC$12&"_"&BP$20,データシート1!$A$1:$BT$1,0),0) ->  | BQ57: =VLOOKUP($AX57&"_"&$BC$14,データシート1!$A:$BT,MATCH($BC$12&"_"&BQ$20,データシート1!$A$1:$BT$1,0),0) ->  | CX57: =VLOOKUP($AX57&"_"&$CW$14,データシート1!$A:$BT,MATCH($CW$12&"_"&CX$20,データシート1!$A$1:$BT$1,0),0) ->  | CY57: =VLOOKUP($AX57&"_"&$CW$14,データシート1!$A:$BT,MATCH($CW$12&"_"&CY$20,データシート1!$A$1:$BT$1,0),0) ->  | CZ57: =VLOOKUP($AX57&"_"&$CW$14,データシート1!$A:$BT,MATCH($CW$12&"_"&CZ$20,データシート1!$A$1:$BT$1,0),0) ->  | DA57: =VLOOKUP($AX57&"_"&$CW$14,データシート1!$A:$BT,MATCH($CW$12&"_"&DA$20,データシート1!$A$1:$BT$1,0),0) ->  | DB57: =VLOOKUP($AX57&"_"&$CW$14,データシート1!$A:$BT,MATCH($CW$12&"_"&DB$20,データシート1!$A$1:$BT$1,0),0) ->  | DC57: =VLOOKUP($AX57&"_"&$CW$14,データシート1!$A:$BT,MATCH($CW$12&"_"&DC$20,データシート1!$A$1:$BT$1,0),0) ->  | DF57: =VLOOKUP($AX57&"_"&$DF$14,データシート1!$A:$BT,MATCH($DF$12&"_"&DF$20,データシート1!$A$1:$BT$1,0),0) ->  | DG57: =VLOOKUP($AX57&"_"&$DF$14,データシート1!$A:$BT,MATCH($DF$12&"_"&DG$20,データシート1!$A$1:$BT$1,0),0) ->  | DH57: =VLOOKUP($AX57&"_"&$DF$14,データシート1!$A:$BT,MATCH($DF$12&"_"&DH$20,データシート1!$A$1:$BT$1,0),0) ->  | DI57: =VLOOKUP($AX57&"_"&$DF$14,データシート1!$A:$BT,MATCH($DF$12&"_"&DI$20,データシート1!$A$1:$BT$1,0),0) ->  | DJ57: =VLOOKUP($AX57&"_"&$DF$14,データシート1!$A:$BT,MATCH($DF$12&"_"&DJ$20,データシート1!$A$1:$BT$1,0),0) ->  | DK57: =VLOOKUP($AX57&"_"&$DF$14,データシート1!$A:$BT,MATCH($DF$12&"_"&DK$20,データシート1!$A$1:$BT$1,0),0) -> 
AX58: =比較地域マスタ!$Y43 -> 0 | AY58: =IF(IFERROR(比較地域マスタ!$Z43,"")=0,"",IFERROR(比較地域マスタ!$Z43,"")) ->  | BB58: 0 | BF58: =VLOOKUP($AX58&"_"&$BC$14,データシート1!$A:$BT,MATCH($BC$12&"_"&BF$20,データシート1!$A$1:$BT$1,0),0) ->  | BG58: =VLOOKUP($AX58&"_"&$BC$14,データシート1!$A:$BT,MATCH($BC$12&"_"&BG$20,データシート1!$A$1:$BT$1,0),0) ->  | BH58: =VLOOKUP($AX58&"_"&$BC$14,データシート1!$A:$BT,MATCH($BC$12&"_"&BH$20,データシート1!$A$1:$BT$1,0),0) ->  | BI58: =VLOOKUP($AX58&"_"&$BC$14,データシート1!$A:$BT,MATCH($BC$12&"_"&BI$20,データシート1!$A$1:$BT$1,0),0) ->  | BJ58: =VLOOKUP($AX58&"_"&$BC$14,データシート1!$A:$BT,MATCH($BC$12&"_"&BJ$20,データシート1!$A$1:$BT$1,0),0) ->  | BM58: =VLOOKUP($AX58&"_"&$BC$14,データシート1!$A:$BT,MATCH($BC$12&"_"&BM$20,データシート1!$A$1:$BT$1,0),0) ->  | BN58: =VLOOKUP($AX58&"_"&$BC$14,データシート1!$A:$BT,MATCH($BC$12&"_"&BN$20,データシート1!$A$1:$BT$1,0),0) ->  | BO58: =VLOOKUP($AX58&"_"&$BC$14,データシート1!$A:$BT,MATCH($BC$12&"_"&BO$20,データシート1!$A$1:$BT$1,0),0) ->  | BP58: =VLOOKUP($AX58&"_"&$BC$14,データシート1!$A:$BT,MATCH($BC$12&"_"&BP$20,データシート1!$A$1:$BT$1,0),0) ->  | BQ58: =VLOOKUP($AX58&"_"&$BC$14,データシート1!$A:$BT,MATCH($BC$12&"_"&BQ$20,データシート1!$A$1:$BT$1,0),0) ->  | CX58: =VLOOKUP($AX58&"_"&$CW$14,データシート1!$A:$BT,MATCH($CW$12&"_"&CX$20,データシート1!$A$1:$BT$1,0),0) ->  | CY58: =VLOOKUP($AX58&"_"&$CW$14,データシート1!$A:$BT,MATCH($CW$12&"_"&CY$20,データシート1!$A$1:$BT$1,0),0) ->  | CZ58: =VLOOKUP($AX58&"_"&$CW$14,データシート1!$A:$BT,MATCH($CW$12&"_"&CZ$20,データシート1!$A$1:$BT$1,0),0) ->  | DA58: =VLOOKUP($AX58&"_"&$CW$14,データシート1!$A:$BT,MATCH($CW$12&"_"&DA$20,データシート1!$A$1:$BT$1,0),0) ->  | DB58: =VLOOKUP($AX58&"_"&$CW$14,データシート1!$A:$BT,MATCH($CW$12&"_"&DB$20,データシート1!$A$1:$BT$1,0),0) ->  | DC58: =VLOOKUP($AX58&"_"&$CW$14,データシート1!$A:$BT,MATCH($CW$12&"_"&DC$20,データシート1!$A$1:$BT$1,0),0) ->  | DF58: =VLOOKUP($AX58&"_"&$DF$14,データシート1!$A:$BT,MATCH($DF$12&"_"&DF$20,データシート1!$A$1:$BT$1,0),0) ->  | DG58: =VLOOKUP($AX58&"_"&$DF$14,データシート1!$A:$BT,MATCH($DF$12&"_"&DG$20,データシート1!$A$1:$BT$1,0),0) ->  | DH58: =VLOOKUP($AX58&"_"&$DF$14,データシート1!$A:$BT,MATCH($DF$12&"_"&DH$20,データシート1!$A$1:$BT$1,0),0) ->  | DI58: =VLOOKUP($AX58&"_"&$DF$14,データシート1!$A:$BT,MATCH($DF$12&"_"&DI$20,データシート1!$A$1:$BT$1,0),0) ->  | DJ58: =VLOOKUP($AX58&"_"&$DF$14,データシート1!$A:$BT,MATCH($DF$12&"_"&DJ$20,データシート1!$A$1:$BT$1,0),0) ->  | DK58: =VLOOKUP($AX58&"_"&$DF$14,データシート1!$A:$BT,MATCH($DF$12&"_"&DK$20,データシート1!$A$1:$BT$1,0),0) -> 
AX59: =比較地域マスタ!$Y44 -> 0 | AY59: =IF(IFERROR(比較地域マスタ!$Z44,"")=0,"",IFERROR(比較地域マスタ!$Z44,"")) ->  | BB59: 0 | BF59: =VLOOKUP($AX59&"_"&$BC$14,データシート1!$A:$BT,MATCH($BC$12&"_"&BF$20,データシート1!$A$1:$BT$1,0),0) ->  | BG59: =VLOOKUP($AX59&"_"&$BC$14,データシート1!$A:$BT,MATCH($BC$12&"_"&BG$20,データシート1!$A$1:$BT$1,0),0) ->  | BH59: =VLOOKUP($AX59&"_"&$BC$14,データシート1!$A:$BT,MATCH($BC$12&"_"&BH$20,データシート1!$A$1:$BT$1,0),0) ->  | BI59: =VLOOKUP($AX59&"_"&$BC$14,データシート1!$A:$BT,MATCH($BC$12&"_"&BI$20,データシート1!$A$1:$BT$1,0),0) ->  | BJ59: =VLOOKUP($AX59&"_"&$BC$14,データシート1!$A:$BT,MATCH($BC$12&"_"&BJ$20,データシート1!$A$1:$BT$1,0),0) ->  | BM59: =VLOOKUP($AX59&"_"&$BC$14,データシート1!$A:$BT,MATCH($BC$12&"_"&BM$20,データシート1!$A$1:$BT$1,0),0) ->  | BN59: =VLOOKUP($AX59&"_"&$BC$14,データシート1!$A:$BT,MATCH($BC$12&"_"&BN$20,データシート1!$A$1:$BT$1,0),0) ->  | BO59: =VLOOKUP($AX59&"_"&$BC$14,データシート1!$A:$BT,MATCH($BC$12&"_"&BO$20,データシート1!$A$1:$BT$1,0),0) ->  | BP59: =VLOOKUP($AX59&"_"&$BC$14,データシート1!$A:$BT,MATCH($BC$12&"_"&BP$20,データシート1!$A$1:$BT$1,0),0) ->  | BQ59: =VLOOKUP($AX59&"_"&$BC$14,データシート1!$A:$BT,MATCH($BC$12&"_"&BQ$20,データシート1!$A$1:$BT$1,0),0) ->  | CX59: =VLOOKUP($AX59&"_"&$CW$14,データシート1!$A:$BT,MATCH($CW$12&"_"&CX$20,データシート1!$A$1:$BT$1,0),0) ->  | CY59: =VLOOKUP($AX59&"_"&$CW$14,データシート1!$A:$BT,MATCH($CW$12&"_"&CY$20,データシート1!$A$1:$BT$1,0),0) ->  | CZ59: =VLOOKUP($AX59&"_"&$CW$14,データシート1!$A:$BT,MATCH($CW$12&"_"&CZ$20,データシート1!$A$1:$BT$1,0),0) ->  | DA59: =VLOOKUP($AX59&"_"&$CW$14,データシート1!$A:$BT,MATCH($CW$12&"_"&DA$20,データシート1!$A$1:$BT$1,0),0) ->  | DB59: =VLOOKUP($AX59&"_"&$CW$14,データシート1!$A:$BT,MATCH($CW$12&"_"&DB$20,データシート1!$A$1:$BT$1,0),0) ->  | DC59: =VLOOKUP($AX59&"_"&$CW$14,データシート1!$A:$BT,MATCH($CW$12&"_"&DC$20,データシート1!$A$1:$BT$1,0),0) ->  | DF59: =VLOOKUP($AX59&"_"&$DF$14,データシート1!$A:$BT,MATCH($DF$12&"_"&DF$20,データシート1!$A$1:$BT$1,0),0) ->  | DG59: =VLOOKUP($AX59&"_"&$DF$14,データシート1!$A:$BT,MATCH($DF$12&"_"&DG$20,データシート1!$A$1:$BT$1,0),0) ->  | DH59: =VLOOKUP($AX59&"_"&$DF$14,データシート1!$A:$BT,MATCH($DF$12&"_"&DH$20,データシート1!$A$1:$BT$1,0),0) ->  | DI59: =VLOOKUP($AX59&"_"&$DF$14,データシート1!$A:$BT,MATCH($DF$12&"_"&DI$20,データシート1!$A$1:$BT$1,0),0) ->  | DJ59: =VLOOKUP($AX59&"_"&$DF$14,データシート1!$A:$BT,MATCH($DF$12&"_"&DJ$20,データシート1!$A$1:$BT$1,0),0) ->  | DK59: =VLOOKUP($AX59&"_"&$DF$14,データシート1!$A:$BT,MATCH($DF$12&"_"&DK$20,データシート1!$A$1:$BT$1,0),0) -> 
AX60: =比較地域マスタ!$Y45 -> 0 | AY60: =IF(IFERROR(比較地域マスタ!$Z45,"")=0,"",IFERROR(比較地域マスタ!$Z45,"")) ->  | BB60: 0 | BF60: =VLOOKUP($AX60&"_"&$BC$14,データシート1!$A:$BT,MATCH($BC$12&"_"&BF$20,データシート1!$A$1:$BT$1,0),0) ->  | BG60: =VLOOKUP($AX60&"_"&$BC$14,データシート1!$A:$BT,MATCH($BC$12&"_"&BG$20,データシート1!$A$1:$BT$1,0),0) ->  | BH60: =VLOOKUP($AX60&"_"&$BC$14,データシート1!$A:$BT,MATCH($BC$12&"_"&BH$20,データシート1!$A$1:$BT$1,0),0) ->  | BI60: =VLOOKUP($AX60&"_"&$BC$14,データシート1!$A:$BT,MATCH($BC$12&"_"&BI$20,データシート1!$A$1:$BT$1,0),0) ->  | BJ60: =VLOOKUP($AX60&"_"&$BC$14,データシート1!$A:$BT,MATCH($BC$12&"_"&BJ$20,データシート1!$A$1:$BT$1,0),0) ->  | BM60: =VLOOKUP($AX60&"_"&$BC$14,データシート1!$A:$BT,MATCH($BC$12&"_"&BM$20,データシート1!$A$1:$BT$1,0),0) ->  | BN60: =VLOOKUP($AX60&"_"&$BC$14,データシート1!$A:$BT,MATCH($BC$12&"_"&BN$20,データシート1!$A$1:$BT$1,0),0) ->  | BO60: =VLOOKUP($AX60&"_"&$BC$14,データシート1!$A:$BT,MATCH($BC$12&"_"&BO$20,データシート1!$A$1:$BT$1,0),0) ->  | BP60: =VLOOKUP($AX60&"_"&$BC$14,データシート1!$A:$BT,MATCH($BC$12&"_"&BP$20,データシート1!$A$1:$BT$1,0),0) ->  | BQ60: =VLOOKUP($AX60&"_"&$BC$14,データシート1!$A:$BT,MATCH($BC$12&"_"&BQ$20,データシート1!$A$1:$BT$1,0),0) ->  | CX60: =VLOOKUP($AX60&"_"&$CW$14,データシート1!$A:$BT,MATCH($CW$12&"_"&CX$20,データシート1!$A$1:$BT$1,0),0) ->  | CY60: =VLOOKUP($AX60&"_"&$CW$14,データシート1!$A:$BT,MATCH($CW$12&"_"&CY$20,データシート1!$A$1:$BT$1,0),0) ->  | CZ60: =VLOOKUP($AX60&"_"&$CW$14,データシート1!$A:$BT,MATCH($CW$12&"_"&CZ$20,データシート1!$A$1:$BT$1,0),0) ->  | DA60: =VLOOKUP($AX60&"_"&$CW$14,データシート1!$A:$BT,MATCH($CW$12&"_"&DA$20,データシート1!$A$1:$BT$1,0),0) ->  | DB60: =VLOOKUP($AX60&"_"&$CW$14,データシート1!$A:$BT,MATCH($CW$12&"_"&DB$20,データシート1!$A$1:$BT$1,0),0) ->  | DC60: =VLOOKUP($AX60&"_"&$CW$14,データシート1!$A:$BT,MATCH($CW$12&"_"&DC$20,データシート1!$A$1:$BT$1,0),0) ->  | DF60: =VLOOKUP($AX60&"_"&$DF$14,データシート1!$A:$BT,MATCH($DF$12&"_"&DF$20,データシート1!$A$1:$BT$1,0),0) ->  | DG60: =VLOOKUP($AX60&"_"&$DF$14,データシート1!$A:$BT,MATCH($DF$12&"_"&DG$20,データシート1!$A$1:$BT$1,0),0) ->  | DH60: =VLOOKUP($AX60&"_"&$DF$14,データシート1!$A:$BT,MATCH($DF$12&"_"&DH$20,データシート1!$A$1:$BT$1,0),0) ->  | DI60: =VLOOKUP($AX60&"_"&$DF$14,データシート1!$A:$BT,MATCH($DF$12&"_"&DI$20,データシート1!$A$1:$BT$1,0),0) ->  | DJ60: =VLOOKUP($AX60&"_"&$DF$14,データシート1!$A:$BT,MATCH($DF$12&"_"&DJ$20,データシート1!$A$1:$BT$1,0),0) ->  | DK60: =VLOOKUP($AX60&"_"&$DF$14,データシート1!$A:$BT,MATCH($DF$12&"_"&DK$20,データシート1!$A$1:$BT$1,0),0) -> 
AX61: =比較地域マスタ!$Y46 -> 0 | AY61: =IF(IFERROR(比較地域マスタ!$Z46,"")=0,"",IFERROR(比較地域マスタ!$Z46,"")) ->  | BB61: 0 | BF61: =VLOOKUP($AX61&"_"&$BC$14,データシート1!$A:$BT,MATCH($BC$12&"_"&BF$20,データシート1!$A$1:$BT$1,0),0) ->  | BG61: =VLOOKUP($AX61&"_"&$BC$14,データシート1!$A:$BT,MATCH($BC$12&"_"&BG$20,データシート1!$A$1:$BT$1,0),0) ->  | BH61: =VLOOKUP($AX61&"_"&$BC$14,データシート1!$A:$BT,MATCH($BC$12&"_"&BH$20,データシート1!$A$1:$BT$1,0),0) ->  | BI61: =VLOOKUP($AX61&"_"&$BC$14,データシート1!$A:$BT,MATCH($BC$12&"_"&BI$20,データシート1!$A$1:$BT$1,0),0) ->  | BJ61: =VLOOKUP($AX61&"_"&$BC$14,データシート1!$A:$BT,MATCH($BC$12&"_"&BJ$20,データシート1!$A$1:$BT$1,0),0) ->  | BM61: =VLOOKUP($AX61&"_"&$BC$14,データシート1!$A:$BT,MATCH($BC$12&"_"&BM$20,データシート1!$A$1:$BT$1,0),0) ->  | BN61: =VLOOKUP($AX61&"_"&$BC$14,データシート1!$A:$BT,MATCH($BC$12&"_"&BN$20,データシート1!$A$1:$BT$1,0),0) ->  | BO61: =VLOOKUP($AX61&"_"&$BC$14,データシート1!$A:$BT,MATCH($BC$12&"_"&BO$20,データシート1!$A$1:$BT$1,0),0) ->  | BP61: =VLOOKUP($AX61&"_"&$BC$14,データシート1!$A:$BT,MATCH($BC$12&"_"&BP$20,データシート1!$A$1:$BT$1,0),0) ->  | BQ61: =VLOOKUP($AX61&"_"&$BC$14,データシート1!$A:$BT,MATCH($BC$12&"_"&BQ$20,データシート1!$A$1:$BT$1,0),0) ->  | CX61: =VLOOKUP($AX61&"_"&$CW$14,データシート1!$A:$BT,MATCH($CW$12&"_"&CX$20,データシート1!$A$1:$BT$1,0),0) ->  | CY61: =VLOOKUP($AX61&"_"&$CW$14,データシート1!$A:$BT,MATCH($CW$12&"_"&CY$20,データシート1!$A$1:$BT$1,0),0) ->  | CZ61: =VLOOKUP($AX61&"_"&$CW$14,データシート1!$A:$BT,MATCH($CW$12&"_"&CZ$20,データシート1!$A$1:$BT$1,0),0) ->  | DA61: =VLOOKUP($AX61&"_"&$CW$14,データシート1!$A:$BT,MATCH($CW$12&"_"&DA$20,データシート1!$A$1:$BT$1,0),0) ->  | DB61: =VLOOKUP($AX61&"_"&$CW$14,データシート1!$A:$BT,MATCH($CW$12&"_"&DB$20,データシート1!$A$1:$BT$1,0),0) ->  | DC61: =VLOOKUP($AX61&"_"&$CW$14,データシート1!$A:$BT,MATCH($CW$12&"_"&DC$20,データシート1!$A$1:$BT$1,0),0) ->  | DF61: =VLOOKUP($AX61&"_"&$DF$14,データシート1!$A:$BT,MATCH($DF$12&"_"&DF$20,データシート1!$A$1:$BT$1,0),0) ->  | DG61: =VLOOKUP($AX61&"_"&$DF$14,データシート1!$A:$BT,MATCH($DF$12&"_"&DG$20,データシート1!$A$1:$BT$1,0),0) ->  | DH61: =VLOOKUP($AX61&"_"&$DF$14,データシート1!$A:$BT,MATCH($DF$12&"_"&DH$20,データシート1!$A$1:$BT$1,0),0) ->  | DI61: =VLOOKUP($AX61&"_"&$DF$14,データシート1!$A:$BT,MATCH($DF$12&"_"&DI$20,データシート1!$A$1:$BT$1,0),0) ->  | DJ61: =VLOOKUP($AX61&"_"&$DF$14,データシート1!$A:$BT,MATCH($DF$12&"_"&DJ$20,データシート1!$A$1:$BT$1,0),0) ->  | DK61: =VLOOKUP($AX61&"_"&$DF$14,データシート1!$A:$BT,MATCH($DF$12&"_"&DK$20,データシート1!$A$1:$BT$1,0),0) -> 
AX62: =比較地域マスタ!$Y47 -> 0 | AY62: =IF(IFERROR(比較地域マスタ!$Z47,"")=0,"",IFERROR(比較地域マスタ!$Z47,"")) ->  | BB62: 0 | BF62: =VLOOKUP($AX62&"_"&$BC$14,データシート1!$A:$BT,MATCH($BC$12&"_"&BF$20,データシート1!$A$1:$BT$1,0),0) ->  | BG62: =VLOOKUP($AX62&"_"&$BC$14,データシート1!$A:$BT,MATCH($BC$12&"_"&BG$20,データシート1!$A$1:$BT$1,0),0) ->  | BH62: =VLOOKUP($AX62&"_"&$BC$14,データシート1!$A:$BT,MATCH($BC$12&"_"&BH$20,データシート1!$A$1:$BT$1,0),0) ->  | BI62: =VLOOKUP($AX62&"_"&$BC$14,データシート1!$A:$BT,MATCH($BC$12&"_"&BI$20,データシート1!$A$1:$BT$1,0),0) ->  | BJ62: =VLOOKUP($AX62&"_"&$BC$14,データシート1!$A:$BT,MATCH($BC$12&"_"&BJ$20,データシート1!$A$1:$BT$1,0),0) ->  | BM62: =VLOOKUP($AX62&"_"&$BC$14,データシート1!$A:$BT,MATCH($BC$12&"_"&BM$20,データシート1!$A$1:$BT$1,0),0) ->  | BN62: =VLOOKUP($AX62&"_"&$BC$14,データシート1!$A:$BT,MATCH($BC$12&"_"&BN$20,データシート1!$A$1:$BT$1,0),0) ->  | BO62: =VLOOKUP($AX62&"_"&$BC$14,データシート1!$A:$BT,MATCH($BC$12&"_"&BO$20,データシート1!$A$1:$BT$1,0),0) ->  | BP62: =VLOOKUP($AX62&"_"&$BC$14,データシート1!$A:$BT,MATCH($BC$12&"_"&BP$20,データシート1!$A$1:$BT$1,0),0) ->  | BQ62: =VLOOKUP($AX62&"_"&$BC$14,データシート1!$A:$BT,MATCH($BC$12&"_"&BQ$20,データシート1!$A$1:$BT$1,0),0) ->  | CX62: =VLOOKUP($AX62&"_"&$CW$14,データシート1!$A:$BT,MATCH($CW$12&"_"&CX$20,データシート1!$A$1:$BT$1,0),0) ->  | CY62: =VLOOKUP($AX62&"_"&$CW$14,データシート1!$A:$BT,MATCH($CW$12&"_"&CY$20,データシート1!$A$1:$BT$1,0),0) ->  | CZ62: =VLOOKUP($AX62&"_"&$CW$14,データシート1!$A:$BT,MATCH($CW$12&"_"&CZ$20,データシート1!$A$1:$BT$1,0),0) ->  | DA62: =VLOOKUP($AX62&"_"&$CW$14,データシート1!$A:$BT,MATCH($CW$12&"_"&DA$20,データシート1!$A$1:$BT$1,0),0) ->  | DB62: =VLOOKUP($AX62&"_"&$CW$14,データシート1!$A:$BT,MATCH($CW$12&"_"&DB$20,データシート1!$A$1:$BT$1,0),0) ->  | DC62: =VLOOKUP($AX62&"_"&$CW$14,データシート1!$A:$BT,MATCH($CW$12&"_"&DC$20,データシート1!$A$1:$BT$1,0),0) ->  | DF62: =VLOOKUP($AX62&"_"&$DF$14,データシート1!$A:$BT,MATCH($DF$12&"_"&DF$20,データシート1!$A$1:$BT$1,0),0) ->  | DG62: =VLOOKUP($AX62&"_"&$DF$14,データシート1!$A:$BT,MATCH($DF$12&"_"&DG$20,データシート1!$A$1:$BT$1,0),0) ->  | DH62: =VLOOKUP($AX62&"_"&$DF$14,データシート1!$A:$BT,MATCH($DF$12&"_"&DH$20,データシート1!$A$1:$BT$1,0),0) ->  | DI62: =VLOOKUP($AX62&"_"&$DF$14,データシート1!$A:$BT,MATCH($DF$12&"_"&DI$20,データシート1!$A$1:$BT$1,0),0) ->  | DJ62: =VLOOKUP($AX62&"_"&$DF$14,データシート1!$A:$BT,MATCH($DF$12&"_"&DJ$20,データシート1!$A$1:$BT$1,0),0) ->  | DK62: =VLOOKUP($AX62&"_"&$DF$14,データシート1!$A:$BT,MATCH($DF$12&"_"&DK$20,データシート1!$A$1:$BT$1,0),0) -> 
AX63: =比較地域マスタ!$Y48 -> 0 | AY63: =IF(IFERROR(比較地域マスタ!$Z48,"")=0,"",IFERROR(比較地域マスタ!$Z48,"")) ->  | BB63: 0 | BF63: =VLOOKUP($AX63&"_"&$BC$14,データシート1!$A:$BT,MATCH($BC$12&"_"&BF$20,データシート1!$A$1:$BT$1,0),0) ->  | BG63: =VLOOKUP($AX63&"_"&$BC$14,データシート1!$A:$BT,MATCH($BC$12&"_"&BG$20,データシート1!$A$1:$BT$1,0),0) ->  | BH63: =VLOOKUP($AX63&"_"&$BC$14,データシート1!$A:$BT,MATCH($BC$12&"_"&BH$20,データシート1!$A$1:$BT$1,0),0) ->  | BI63: =VLOOKUP($AX63&"_"&$BC$14,データシート1!$A:$BT,MATCH($BC$12&"_"&BI$20,データシート1!$A$1:$BT$1,0),0) ->  | BJ63: =VLOOKUP($AX63&"_"&$BC$14,データシート1!$A:$BT,MATCH($BC$12&"_"&BJ$20,データシート1!$A$1:$BT$1,0),0) ->  | BM63: =VLOOKUP($AX63&"_"&$BC$14,データシート1!$A:$BT,MATCH($BC$12&"_"&BM$20,データシート1!$A$1:$BT$1,0),0) ->  | BN63: =VLOOKUP($AX63&"_"&$BC$14,データシート1!$A:$BT,MATCH($BC$12&"_"&BN$20,データシート1!$A$1:$BT$1,0),0) ->  | BO63: =VLOOKUP($AX63&"_"&$BC$14,データシート1!$A:$BT,MATCH($BC$12&"_"&BO$20,データシート1!$A$1:$BT$1,0),0) ->  | BP63: =VLOOKUP($AX63&"_"&$BC$14,データシート1!$A:$BT,MATCH($BC$12&"_"&BP$20,データシート1!$A$1:$BT$1,0),0) ->  | BQ63: =VLOOKUP($AX63&"_"&$BC$14,データシート1!$A:$BT,MATCH($BC$12&"_"&BQ$20,データシート1!$A$1:$BT$1,0),0) ->  | CX63: =VLOOKUP($AX63&"_"&$CW$14,データシート1!$A:$BT,MATCH($CW$12&"_"&CX$20,データシート1!$A$1:$BT$1,0),0) ->  | CY63: =VLOOKUP($AX63&"_"&$CW$14,データシート1!$A:$BT,MATCH($CW$12&"_"&CY$20,データシート1!$A$1:$BT$1,0),0) ->  | CZ63: =VLOOKUP($AX63&"_"&$CW$14,データシート1!$A:$BT,MATCH($CW$12&"_"&CZ$20,データシート1!$A$1:$BT$1,0),0) ->  | DA63: =VLOOKUP($AX63&"_"&$CW$14,データシート1!$A:$BT,MATCH($CW$12&"_"&DA$20,データシート1!$A$1:$BT$1,0),0) ->  | DB63: =VLOOKUP($AX63&"_"&$CW$14,データシート1!$A:$BT,MATCH($CW$12&"_"&DB$20,データシート1!$A$1:$BT$1,0),0) ->  | DC63: =VLOOKUP($AX63&"_"&$CW$14,データシート1!$A:$BT,MATCH($CW$12&"_"&DC$20,データシート1!$A$1:$BT$1,0),0) ->  | DF63: =VLOOKUP($AX63&"_"&$DF$14,データシート1!$A:$BT,MATCH($DF$12&"_"&DF$20,データシート1!$A$1:$BT$1,0),0) ->  | DG63: =VLOOKUP($AX63&"_"&$DF$14,データシート1!$A:$BT,MATCH($DF$12&"_"&DG$20,データシート1!$A$1:$BT$1,0),0) ->  | DH63: =VLOOKUP($AX63&"_"&$DF$14,データシート1!$A:$BT,MATCH($DF$12&"_"&DH$20,データシート1!$A$1:$BT$1,0),0) ->  | DI63: =VLOOKUP($AX63&"_"&$DF$14,データシート1!$A:$BT,MATCH($DF$12&"_"&DI$20,データシート1!$A$1:$BT$1,0),0) ->  | DJ63: =VLOOKUP($AX63&"_"&$DF$14,データシート1!$A:$BT,MATCH($DF$12&"_"&DJ$20,データシート1!$A$1:$BT$1,0),0) ->  | DK63: =VLOOKUP($AX63&"_"&$DF$14,データシート1!$A:$BT,MATCH($DF$12&"_"&DK$20,データシート1!$A$1:$BT$1,0),0) -> 
AX64: =比較地域マスタ!$Y49 -> 0 | AY64: =IF(IFERROR(比較地域マスタ!$Z49,"")=0,"",IFERROR(比較地域マスタ!$Z49,"")) ->  | BB64: 0 | BF64: =VLOOKUP($AX64&"_"&$BC$14,データシート1!$A:$BT,MATCH($BC$12&"_"&BF$20,データシート1!$A$1:$BT$1,0),0) ->  | BG64: =VLOOKUP($AX64&"_"&$BC$14,データシート1!$A:$BT,MATCH($BC$12&"_"&BG$20,データシート1!$A$1:$BT$1,0),0) ->  | BH64: =VLOOKUP($AX64&"_"&$BC$14,データシート1!$A:$BT,MATCH($BC$12&"_"&BH$20,データシート1!$A$1:$BT$1,0),0) ->  | BI64: =VLOOKUP($AX64&"_"&$BC$14,データシート1!$A:$BT,MATCH($BC$12&"_"&BI$20,データシート1!$A$1:$BT$1,0),0) ->  | BJ64: =VLOOKUP($AX64&"_"&$BC$14,データシート1!$A:$BT,MATCH($BC$12&"_"&BJ$20,データシート1!$A$1:$BT$1,0),0) ->  | BM64: =VLOOKUP($AX64&"_"&$BC$14,データシート1!$A:$BT,MATCH($BC$12&"_"&BM$20,データシート1!$A$1:$BT$1,0),0) ->  | BN64: =VLOOKUP($AX64&"_"&$BC$14,データシート1!$A:$BT,MATCH($BC$12&"_"&BN$20,データシート1!$A$1:$BT$1,0),0) ->  | BO64: =VLOOKUP($AX64&"_"&$BC$14,データシート1!$A:$BT,MATCH($BC$12&"_"&BO$20,データシート1!$A$1:$BT$1,0),0) ->  | BP64: =VLOOKUP($AX64&"_"&$BC$14,データシート1!$A:$BT,MATCH($BC$12&"_"&BP$20,データシート1!$A$1:$BT$1,0),0) ->  | BQ64: =VLOOKUP($AX64&"_"&$BC$14,データシート1!$A:$BT,MATCH($BC$12&"_"&BQ$20,データシート1!$A$1:$BT$1,0),0) ->  | CX64: =VLOOKUP($AX64&"_"&$CW$14,データシート1!$A:$BT,MATCH($CW$12&"_"&CX$20,データシート1!$A$1:$BT$1,0),0) ->  | CY64: =VLOOKUP($AX64&"_"&$CW$14,データシート1!$A:$BT,MATCH($CW$12&"_"&CY$20,データシート1!$A$1:$BT$1,0),0) ->  | CZ64: =VLOOKUP($AX64&"_"&$CW$14,データシート1!$A:$BT,MATCH($CW$12&"_"&CZ$20,データシート1!$A$1:$BT$1,0),0) ->  | DA64: =VLOOKUP($AX64&"_"&$CW$14,データシート1!$A:$BT,MATCH($CW$12&"_"&DA$20,データシート1!$A$1:$BT$1,0),0) ->  | DB64: =VLOOKUP($AX64&"_"&$CW$14,データシート1!$A:$BT,MATCH($CW$12&"_"&DB$20,データシート1!$A$1:$BT$1,0),0) ->  | DC64: =VLOOKUP($AX64&"_"&$CW$14,データシート1!$A:$BT,MATCH($CW$12&"_"&DC$20,データシート1!$A$1:$BT$1,0),0) ->  | DF64: =VLOOKUP($AX64&"_"&$DF$14,データシート1!$A:$BT,MATCH($DF$12&"_"&DF$20,データシート1!$A$1:$BT$1,0),0) ->  | DG64: =VLOOKUP($AX64&"_"&$DF$14,データシート1!$A:$BT,MATCH($DF$12&"_"&DG$20,データシート1!$A$1:$BT$1,0),0) ->  | DH64: =VLOOKUP($AX64&"_"&$DF$14,データシート1!$A:$BT,MATCH($DF$12&"_"&DH$20,データシート1!$A$1:$BT$1,0),0) ->  | DI64: =VLOOKUP($AX64&"_"&$DF$14,データシート1!$A:$BT,MATCH($DF$12&"_"&DI$20,データシート1!$A$1:$BT$1,0),0) ->  | DJ64: =VLOOKUP($AX64&"_"&$DF$14,データシート1!$A:$BT,MATCH($DF$12&"_"&DJ$20,データシート1!$A$1:$BT$1,0),0) ->  | DK64: =VLOOKUP($AX64&"_"&$DF$14,データシート1!$A:$BT,MATCH($DF$12&"_"&DK$20,データシート1!$A$1:$BT$1,0),0) -> 
AX65: =比較地域マスタ!$Y50 -> 0 | AY65: =IF(IFERROR(比較地域マスタ!$Z50,"")=0,"",IFERROR(比較地域マスタ!$Z50,"")) ->  | BB65: 0 | BF65: =VLOOKUP($AX65&"_"&$BC$14,データシート1!$A:$BT,MATCH($BC$12&"_"&BF$20,データシート1!$A$1:$BT$1,0),0) ->  | BG65: =VLOOKUP($AX65&"_"&$BC$14,データシート1!$A:$BT,MATCH($BC$12&"_"&BG$20,データシート1!$A$1:$BT$1,0),0) ->  | BH65: =VLOOKUP($AX65&"_"&$BC$14,データシート1!$A:$BT,MATCH($BC$12&"_"&BH$20,データシート1!$A$1:$BT$1,0),0) ->  | BI65: =VLOOKUP($AX65&"_"&$BC$14,データシート1!$A:$BT,MATCH($BC$12&"_"&BI$20,データシート1!$A$1:$BT$1,0),0) ->  | BJ65: =VLOOKUP($AX65&"_"&$BC$14,データシート1!$A:$BT,MATCH($BC$12&"_"&BJ$20,データシート1!$A$1:$BT$1,0),0) ->  | BM65: =VLOOKUP($AX65&"_"&$BC$14,データシート1!$A:$BT,MATCH($BC$12&"_"&BM$20,データシート1!$A$1:$BT$1,0),0) ->  | BN65: =VLOOKUP($AX65&"_"&$BC$14,データシート1!$A:$BT,MATCH($BC$12&"_"&BN$20,データシート1!$A$1:$BT$1,0),0) ->  | BO65: =VLOOKUP($AX65&"_"&$BC$14,データシート1!$A:$BT,MATCH($BC$12&"_"&BO$20,データシート1!$A$1:$BT$1,0),0) ->  | BP65: =VLOOKUP($AX65&"_"&$BC$14,データシート1!$A:$BT,MATCH($BC$12&"_"&BP$20,データシート1!$A$1:$BT$1,0),0) ->  | BQ65: =VLOOKUP($AX65&"_"&$BC$14,データシート1!$A:$BT,MATCH($BC$12&"_"&BQ$20,データシート1!$A$1:$BT$1,0),0) ->  | CX65: =VLOOKUP($AX65&"_"&$CW$14,データシート1!$A:$BT,MATCH($CW$12&"_"&CX$20,データシート1!$A$1:$BT$1,0),0) ->  | CY65: =VLOOKUP($AX65&"_"&$CW$14,データシート1!$A:$BT,MATCH($CW$12&"_"&CY$20,データシート1!$A$1:$BT$1,0),0) ->  | CZ65: =VLOOKUP($AX65&"_"&$CW$14,データシート1!$A:$BT,MATCH($CW$12&"_"&CZ$20,データシート1!$A$1:$BT$1,0),0) ->  | DA65: =VLOOKUP($AX65&"_"&$CW$14,データシート1!$A:$BT,MATCH($CW$12&"_"&DA$20,データシート1!$A$1:$BT$1,0),0) ->  | DB65: =VLOOKUP($AX65&"_"&$CW$14,データシート1!$A:$BT,MATCH($CW$12&"_"&DB$20,データシート1!$A$1:$BT$1,0),0) ->  | DC65: =VLOOKUP($AX65&"_"&$CW$14,データシート1!$A:$BT,MATCH($CW$12&"_"&DC$20,データシート1!$A$1:$BT$1,0),0) ->  | DF65: =VLOOKUP($AX65&"_"&$DF$14,データシート1!$A:$BT,MATCH($DF$12&"_"&DF$20,データシート1!$A$1:$BT$1,0),0) ->  | DG65: =VLOOKUP($AX65&"_"&$DF$14,データシート1!$A:$BT,MATCH($DF$12&"_"&DG$20,データシート1!$A$1:$BT$1,0),0) ->  | DH65: =VLOOKUP($AX65&"_"&$DF$14,データシート1!$A:$BT,MATCH($DF$12&"_"&DH$20,データシート1!$A$1:$BT$1,0),0) ->  | DI65: =VLOOKUP($AX65&"_"&$DF$14,データシート1!$A:$BT,MATCH($DF$12&"_"&DI$20,データシート1!$A$1:$BT$1,0),0) ->  | DJ65: =VLOOKUP($AX65&"_"&$DF$14,データシート1!$A:$BT,MATCH($DF$12&"_"&DJ$20,データシート1!$A$1:$BT$1,0),0) ->  | DK65: =VLOOKUP($AX65&"_"&$DF$14,データシート1!$A:$BT,MATCH($DF$12&"_"&DK$20,データシート1!$A$1:$BT$1,0),0) -> 
AX66: =比較地域マスタ!$Y51 -> 0 | AY66: =IF(IFERROR(比較地域マスタ!$Z51,"")=0,"",IFERROR(比較地域マスタ!$Z51,"")) ->  | BB66: 0 | BF66: =VLOOKUP($AX66&"_"&$BC$14,データシート1!$A:$BT,MATCH($BC$12&"_"&BF$20,データシート1!$A$1:$BT$1,0),0) ->  | BG66: =VLOOKUP($AX66&"_"&$BC$14,データシート1!$A:$BT,MATCH($BC$12&"_"&BG$20,データシート1!$A$1:$BT$1,0),0) ->  | BH66: =VLOOKUP($AX66&"_"&$BC$14,データシート1!$A:$BT,MATCH($BC$12&"_"&BH$20,データシート1!$A$1:$BT$1,0),0) ->  | BI66: =VLOOKUP($AX66&"_"&$BC$14,データシート1!$A:$BT,MATCH($BC$12&"_"&BI$20,データシート1!$A$1:$BT$1,0),0) ->  | BJ66: =VLOOKUP($AX66&"_"&$BC$14,データシート1!$A:$BT,MATCH($BC$12&"_"&BJ$20,データシート1!$A$1:$BT$1,0),0) ->  | BM66: =VLOOKUP($AX66&"_"&$BC$14,データシート1!$A:$BT,MATCH($BC$12&"_"&BM$20,データシート1!$A$1:$BT$1,0),0) ->  | BN66: =VLOOKUP($AX66&"_"&$BC$14,データシート1!$A:$BT,MATCH($BC$12&"_"&BN$20,データシート1!$A$1:$BT$1,0),0) ->  | BO66: =VLOOKUP($AX66&"_"&$BC$14,データシート1!$A:$BT,MATCH($BC$12&"_"&BO$20,データシート1!$A$1:$BT$1,0),0) ->  | BP66: =VLOOKUP($AX66&"_"&$BC$14,データシート1!$A:$BT,MATCH($BC$12&"_"&BP$20,データシート1!$A$1:$BT$1,0),0) ->  | BQ66: =VLOOKUP($AX66&"_"&$BC$14,データシート1!$A:$BT,MATCH($BC$12&"_"&BQ$20,データシート1!$A$1:$BT$1,0),0) ->  | CX66: =VLOOKUP($AX66&"_"&$CW$14,データシート1!$A:$BT,MATCH($CW$12&"_"&CX$20,データシート1!$A$1:$BT$1,0),0) ->  | CY66: =VLOOKUP($AX66&"_"&$CW$14,データシート1!$A:$BT,MATCH($CW$12&"_"&CY$20,データシート1!$A$1:$BT$1,0),0) ->  | CZ66: =VLOOKUP($AX66&"_"&$CW$14,データシート1!$A:$BT,MATCH($CW$12&"_"&CZ$20,データシート1!$A$1:$BT$1,0),0) ->  | DA66: =VLOOKUP($AX66&"_"&$CW$14,データシート1!$A:$BT,MATCH($CW$12&"_"&DA$20,データシート1!$A$1:$BT$1,0),0) ->  | DB66: =VLOOKUP($AX66&"_"&$CW$14,データシート1!$A:$BT,MATCH($CW$12&"_"&DB$20,データシート1!$A$1:$BT$1,0),0) ->  | DC66: =VLOOKUP($AX66&"_"&$CW$14,データシート1!$A:$BT,MATCH($CW$12&"_"&DC$20,データシート1!$A$1:$BT$1,0),0) ->  | DF66: =VLOOKUP($AX66&"_"&$DF$14,データシート1!$A:$BT,MATCH($DF$12&"_"&DF$20,データシート1!$A$1:$BT$1,0),0) ->  | DG66: =VLOOKUP($AX66&"_"&$DF$14,データシート1!$A:$BT,MATCH($DF$12&"_"&DG$20,データシート1!$A$1:$BT$1,0),0) ->  | DH66: =VLOOKUP($AX66&"_"&$DF$14,データシート1!$A:$BT,MATCH($DF$12&"_"&DH$20,データシート1!$A$1:$BT$1,0),0) ->  | DI66: =VLOOKUP($AX66&"_"&$DF$14,データシート1!$A:$BT,MATCH($DF$12&"_"&DI$20,データシート1!$A$1:$BT$1,0),0) ->  | DJ66: =VLOOKUP($AX66&"_"&$DF$14,データシート1!$A:$BT,MATCH($DF$12&"_"&DJ$20,データシート1!$A$1:$BT$1,0),0) ->  | DK66: =VLOOKUP($AX66&"_"&$DF$14,データシート1!$A:$BT,MATCH($DF$12&"_"&DK$20,データシート1!$A$1:$BT$1,0),0) -> 
AX67: =比較地域マスタ!$Y52 -> 0 | AY67: =IF(IFERROR(比較地域マスタ!$Z52,"")=0,"",IFERROR(比較地域マスタ!$Z52,"")) ->  | BB67: 0 | BF67: =VLOOKUP($AX67&"_"&$BC$14,データシート1!$A:$BT,MATCH($BC$12&"_"&BF$20,データシート1!$A$1:$BT$1,0),0) ->  | BG67: =VLOOKUP($AX67&"_"&$BC$14,データシート1!$A:$BT,MATCH($BC$12&"_"&BG$20,データシート1!$A$1:$BT$1,0),0) ->  | BH67: =VLOOKUP($AX67&"_"&$BC$14,データシート1!$A:$BT,MATCH($BC$12&"_"&BH$20,データシート1!$A$1:$BT$1,0),0) ->  | BI67: =VLOOKUP($AX67&"_"&$BC$14,データシート1!$A:$BT,MATCH($BC$12&"_"&BI$20,データシート1!$A$1:$BT$1,0),0) ->  | BJ67: =VLOOKUP($AX67&"_"&$BC$14,データシート1!$A:$BT,MATCH($BC$12&"_"&BJ$20,データシート1!$A$1:$BT$1,0),0) ->  | BM67: =VLOOKUP($AX67&"_"&$BC$14,データシート1!$A:$BT,MATCH($BC$12&"_"&BM$20,データシート1!$A$1:$BT$1,0),0) ->  | BN67: =VLOOKUP($AX67&"_"&$BC$14,データシート1!$A:$BT,MATCH($BC$12&"_"&BN$20,データシート1!$A$1:$BT$1,0),0) ->  | BO67: =VLOOKUP($AX67&"_"&$BC$14,データシート1!$A:$BT,MATCH($BC$12&"_"&BO$20,データシート1!$A$1:$BT$1,0),0) ->  | BP67: =VLOOKUP($AX67&"_"&$BC$14,データシート1!$A:$BT,MATCH($BC$12&"_"&BP$20,データシート1!$A$1:$BT$1,0),0) ->  | BQ67: =VLOOKUP($AX67&"_"&$BC$14,データシート1!$A:$BT,MATCH($BC$12&"_"&BQ$20,データシート1!$A$1:$BT$1,0),0) ->  | CX67: =VLOOKUP($AX67&"_"&$CW$14,データシート1!$A:$BT,MATCH($CW$12&"_"&CX$20,データシート1!$A$1:$BT$1,0),0) ->  | CY67: =VLOOKUP($AX67&"_"&$CW$14,データシート1!$A:$BT,MATCH($CW$12&"_"&CY$20,データシート1!$A$1:$BT$1,0),0) ->  | CZ67: =VLOOKUP($AX67&"_"&$CW$14,データシート1!$A:$BT,MATCH($CW$12&"_"&CZ$20,データシート1!$A$1:$BT$1,0),0) ->  | DA67: =VLOOKUP($AX67&"_"&$CW$14,データシート1!$A:$BT,MATCH($CW$12&"_"&DA$20,データシート1!$A$1:$BT$1,0),0) ->  | DB67: =VLOOKUP($AX67&"_"&$CW$14,データシート1!$A:$BT,MATCH($CW$12&"_"&DB$20,データシート1!$A$1:$BT$1,0),0) ->  | DC67: =VLOOKUP($AX67&"_"&$CW$14,データシート1!$A:$BT,MATCH($CW$12&"_"&DC$20,データシート1!$A$1:$BT$1,0),0) ->  | DF67: =VLOOKUP($AX67&"_"&$DF$14,データシート1!$A:$BT,MATCH($DF$12&"_"&DF$20,データシート1!$A$1:$BT$1,0),0) ->  | DG67: =VLOOKUP($AX67&"_"&$DF$14,データシート1!$A:$BT,MATCH($DF$12&"_"&DG$20,データシート1!$A$1:$BT$1,0),0) ->  | DH67: =VLOOKUP($AX67&"_"&$DF$14,データシート1!$A:$BT,MATCH($DF$12&"_"&DH$20,データシート1!$A$1:$BT$1,0),0) ->  | DI67: =VLOOKUP($AX67&"_"&$DF$14,データシート1!$A:$BT,MATCH($DF$12&"_"&DI$20,データシート1!$A$1:$BT$1,0),0) ->  | DJ67: =VLOOKUP($AX67&"_"&$DF$14,データシート1!$A:$BT,MATCH($DF$12&"_"&DJ$20,データシート1!$A$1:$BT$1,0),0) ->  | DK67: =VLOOKUP($AX67&"_"&$DF$14,データシート1!$A:$BT,MATCH($DF$12&"_"&DK$20,データシート1!$A$1:$BT$1,0),0) -> 
AX68: =比較地域マスタ!$Y53 -> 0 | AY68: =IF(IFERROR(比較地域マスタ!$Z53,"")=0,"",IFERROR(比較地域マスタ!$Z53,"")) ->  | BB68: 0 | BE68: =SUM(BF68:BH68) ->  | BF68: =VLOOKUP($AX68&"_"&$BC$14,データシート1!$A:$BT,MATCH($BC$12&"_"&BF$20,データシート1!$A$1:$BT$1,0),0) ->  | BG68: =VLOOKUP($AX68&"_"&$BC$14,データシート1!$A:$BT,MATCH($BC$12&"_"&BG$20,データシート1!$A$1:$BT$1,0),0) ->  | BH68: =VLOOKUP($AX68&"_"&$BC$14,データシート1!$A:$BT,MATCH($BC$12&"_"&BH$20,データシート1!$A$1:$BT$1,0),0) ->  | BI68: =VLOOKUP($AX68&"_"&$BC$14,データシート1!$A:$BT,MATCH($BC$12&"_"&BI$20,データシート1!$A$1:$BT$1,0),0) ->  | BJ68: =VLOOKUP($AX68&"_"&$BC$14,データシート1!$A:$BT,MATCH($BC$12&"_"&BJ$20,データシート1!$A$1:$BT$1,0),0) ->  | BL68: =SUM(BM68:BN68) ->  | BM68: =VLOOKUP($AX68&"_"&$BC$14,データシート1!$A:$BT,MATCH($BC$12&"_"&BM$20,データシート1!$A$1:$BT$1,0),0) ->  | BN68: =VLOOKUP($AX68&"_"&$BC$14,データシート1!$A:$BT,MATCH($BC$12&"_"&BN$20,データシート1!$A$1:$BT$1,0),0) ->  | BO68: =VLOOKUP($AX68&"_"&$BC$14,データシート1!$A:$BT,MATCH($BC$12&"_"&BO$20,データシート1!$A$1:$BT$1,0),0) ->  | BP68: =VLOOKUP($AX68&"_"&$BC$14,データシート1!$A:$BT,MATCH($BC$12&"_"&BP$20,データシート1!$A$1:$BT$1,0),0) ->  | BQ68: =VLOOKUP($AX68&"_"&$BC$14,データシート1!$A:$BT,MATCH($BC$12&"_"&BQ$20,データシート1!$A$1:$BT$1,0),0) ->  | CX68: =VLOOKUP($AX68&"_"&$CW$14,データシート1!$A:$BT,MATCH($CW$12&"_"&CX$20,データシート1!$A$1:$BT$1,0),0) ->  | CY68: =VLOOKUP($AX68&"_"&$CW$14,データシート1!$A:$BT,MATCH($CW$12&"_"&CY$20,データシート1!$A$1:$BT$1,0),0) ->  | CZ68: =VLOOKUP($AX68&"_"&$CW$14,データシート1!$A:$BT,MATCH($CW$12&"_"&CZ$20,データシート1!$A$1:$BT$1,0),0) ->  | DA68: =VLOOKUP($AX68&"_"&$CW$14,データシート1!$A:$BT,MATCH($CW$12&"_"&DA$20,データシート1!$A$1:$BT$1,0),0) ->  | DB68: =VLOOKUP($AX68&"_"&$CW$14,データシート1!$A:$BT,MATCH($CW$12&"_"&DB$20,データシート1!$A$1:$BT$1,0),0) ->  | DC68: =VLOOKUP($AX68&"_"&$CW$14,データシート1!$A:$BT,MATCH($CW$12&"_"&DC$20,データシート1!$A$1:$BT$1,0),0) ->  | DF68: =VLOOKUP($AX68&"_"&$DF$14,データシート1!$A:$BT,MATCH($DF$12&"_"&DF$20,データシート1!$A$1:$BT$1,0),0) ->  | DG68: =VLOOKUP($AX68&"_"&$DF$14,データシート1!$A:$BT,MATCH($DF$12&"_"&DG$20,データシート1!$A$1:$BT$1,0),0) ->  | DH68: =VLOOKUP($AX68&"_"&$DF$14,データシート1!$A:$BT,MATCH($DF$12&"_"&DH$20,データシート1!$A$1:$BT$1,0),0) ->  | DI68: =VLOOKUP($AX68&"_"&$DF$14,データシート1!$A:$BT,MATCH($DF$12&"_"&DI$20,データシート1!$A$1:$BT$1,0),0) ->  | DJ68: =VLOOKUP($AX68&"_"&$DF$14,データシート1!$A:$BT,MATCH($DF$12&"_"&DJ$20,データシート1!$A$1:$BT$1,0),0) ->  | DK68: =VLOOKUP($AX68&"_"&$DF$14,データシート1!$A:$BT,MATCH($DF$12&"_"&DK$20,データシート1!$A$1:$BT$1,0),0) ->  | DN68: =IF($DD68=0,0,ROUND(CX68/$DD68,2)) ->  | DO68: =IF($DD68=0,0,ROUND(CY68/$DD68,2)) ->  | DS68: =IF($DD68=0,0,ROUND(DC68/$DD68,2)) -> 
B71: ="3 特定事業所排出量の比較（" & $BC$14 & "（" & $BC$15 & "年度））" -> 3 特定事業所排出量の比較（令和3年度（2021年度））
B72: 5）特定事業所排出量の比較 | Q72: 6）特定事業所数の比較 | AF72: 7）特定事業所排出量の部門別構成比の比較
L74: （千t-CO2）

Sheet 再エネ比較シート
B1: 自治体排出量カルテ 他の地方公共団体との比較（再エネ導入量・再エネポテンシャル） | AT1: =AY4 -> 羽咋市
B2: ="1 再エネ導入量の比較（"&AZ7&"（"&AY7&"年度））" -> 1 再エネ導入量の比較（令和5年度（2023年度））
B3: 1）他の地方公共団体との再エネ別導入設備容量の比較 | M3: 2）他の地方公共団体との再エネ別発電電力量の比較 | Y3: 3）他の地方公共団体との対電気使用量FIT・FIP導入比の比較 | AK3: 4）対世帯数FIT・FIP太陽光発電（10kW未満）導入比の比較 | AX3: 年度マスタ
AX4: =年度マスタ!$I4 -> 石川県 | AY4: =年度マスタ!$J4 -> 羽咋市 | AZ4: =年度マスタ!$K4 -> 17207
AX5: =年度マスタ!$I5 -> A.現況推計データ | AY5: =年度マスタ!$J5 -> 2022 | AZ5: =年度マスタ!$K5 -> 令和4年度
AX6: =年度マスタ!$I6 -> B.SHKデータ | AY6: =年度マスタ!$J6 -> 2021 | AZ6: =年度マスタ!$K6 -> 令和3年度
AX7: =年度マスタ!$I7 -> C.FITデータ | AY7: =年度マスタ!$J7 -> 2023 | AZ7: =年度マスタ!$K7 -> 令和5年度
AX8: =年度マスタ!$I8 -> D.区域電力使用量データ | AY8: =年度マスタ!$J8 -> 2022 | AZ8: =年度マスタ!$K8 -> 令和4年度
AX9: =年度マスタ!$I9 -> E.REPOSデータ | AY9: =年度マスタ!$J9 -> 2024 | AZ9: =年度マスタ!$K9 -> 令和6年度
BC10: 1）他の地方公共団体との再エネ別導入設備容量の比較 | BM10: 2）他の地方公共団体との再エネ別発電電力量の比較 | CA10: 3）他の地方公共団体との対電気使用量FIT・FIP導入比の比較 | CK10: 4）対世帯数FIT・FIP太陽光発電（10kW未満）導入比の比較
BK11: [kW] | BU11: [MWh/年] | BY11: [MWh/年] | CI11: [%]
AX12: 該当コード | AY12: 該当地域名 | BD12: 該当地域名 | BE12: 太陽光発電（10kW未満） | BF12: 太陽光発電（10kW以上） | BG12: 風力発電 | BH12: 水力発電 | BI12: 地熱発電 | BJ12: バイオマス発電 | BK12: 合計 | BN12: 該当地域名 | BO12: 太陽光発電（10kW未満） | BP12: 太陽光発電（10kW以上） | BQ12: 風力発電 | BR12: 水力発電 | BS12: 地熱発電 | BT12: バイオマス発電 | BU12: 合計 | BX12: 該当地域名 | BY12: 区域の電気使用量 | CB12: 該当地域名 | CC12: 太陽光発電（10kW未満） | CD12: 太陽光発電（10kW以上） | CE12: 風力発電 | CF12: 水力発電 | CG12: 地熱発電 | CH12: バイオマス発電 | CI12: 区域の電気使用量 | CL12: 該当地域名 | CM12: 太陽光発電（10kW未満）導入件数 | CN12: 世帯数 | CO12: 導入比
AX13: =比較地域マスタ!$Y6 -> 19384 | AY13: =IF(IFERROR(比較地域マスタ!$Z6,"")=0,"",IFERROR(比較地域マスタ!$Z6,"")) -> 昭和町 | BC13: =AX13 -> 19384 | BD13: =AY13 -> 昭和町 | BE13: =VLOOKUP($BC13&"_"&$AZ$7,データシート1!$A:$BT,MATCH("cb_"&BE$12,データシート1!$A$1:$BT$1,0),0) -> 4,315 | BF13: =VLOOKUP($BC13&"_"&$AZ$7,データシート1!$A:$BT,MATCH("cb_"&BF$12,データシート1!$A$1:$BT$1,0),0) -> 7,839 | BG13: =VLOOKUP($BC13&"_"&$AZ$7,データシート1!$A:$BT,MATCH("cb_"&BG$12,データシート1!$A$1:$BT$1,0),0) -> 0 | BH13: =VLOOKUP($BC13&"_"&$AZ$7,データシート1!$A:$BT,MATCH("cb_"&BH$12,データシート1!$A$1:$BT$1,0),0) -> 0 | BI13: =VLOOKUP($BC13&"_"&$AZ$7,データシート1!$A:$BT,MATCH("cb_"&BI$12,データシート1!$A$1:$BT$1,0),0) -> 0 | BJ13: =VLOOKUP($BC13&"_"&$AZ$7,データシート1!$A:$BT,MATCH("cb_"&BJ$12,データシート1!$A$1:$BT$1,0),0) -> 0 | BK13: =SUM(BE13:BJ13) -> 12,153 | BM13: =AX13 -> 19384 | BN13: =AY13 -> 昭和町 | BO13: =BE13*VLOOKUP(BO$12,別紙!$B$4:$E$10,MATCH("設備利用率",別紙!$B$4:$E$4,0),0)/100*8760/10^3 -> 5,178 | BP13: =BF13*VLOOKUP(BP$12,別紙!$B$4:$E$10,MATCH("設備利用率",別紙!$B$4:$E$4,0),0)/100*8760/10^3 -> 10,369 | BQ13: =BG13*VLOOKUP(BQ$12,別紙!$B$4:$E$10,MATCH("設備利用率",別紙!$B$4:$E$4,0),0)/100*8760/10^3 -> 0 | BR13: =BH13*VLOOKUP(BR$12,別紙!$B$4:$E$10,MATCH("設備利用率",別紙!$B$4:$E$4,0),0)/100*8760/10^3 -> 0 | BS13: =BI13*VLOOKUP(BS$12,別紙!$B$4:$E$10,MATCH("設備利用率",別紙!$B$4:$E$4,0),0)/100*8760/10^3 -> 0 | BT13: =BJ13*VLOOKUP(BT$12,別紙!$B$4:$E$10,MATCH("設備利用率",別紙!$B$4:$E$4,0),0)/100*8760/10^3 -> 0 | BU13: =SUM(BO13:BT13) -> 15,547 | BW13: =AX13 -> 19384 | BX13: =AY13 -> 昭和町 | BY13: =(VLOOKUP($BW13&"_"&$AZ$8,データシート1!$A:$BT,MATCH("da_製造業",データシート1!$A$1:$BT$1,0),0)+VLOOKUP($BW13&"_"&$AZ$8,データシート1!$A:$BT,MATCH("da_建設業・鉱業",データシート1!$A$1:$BT$1,0),0)+VLOOKUP($BW13&"_"&$AZ$8,データシート1!$A:$BT,MATCH("da_農林水産業",データシート1!$A$1:$BT$1,0),0)+VLOOKUP($BW13&"_"&$AZ$8,データシート1!$A:$BT,MATCH("da_業務",データシート1!$A$1:$BT$1,0),0)+VLOOKUP($BW13&"_"&$AZ$8,データシート1!$A:$BT,MATCH("da_家庭",データシート1!$A$1:$BT$1,0),0)+VLOOKUP($BW13&"_"&$AZ$8,データシート1!$A:$BT,MATCH("da_鉄道",データシート1!$A$1:$BT$1,0),0))/10^3 -> 311,403 | CA13: =AX13 -> 19384 | CB13: =AY13 -> 昭和町 | CC13: =BO13/$BY13 -> 1.7% | CD13: =BP13/$BY13 -> 3.3% | CE13: 0.0% | CF13: 0.0% | CG13: 0.0% | CH13: 0.0% | CI13: =BU13/BY13 -> 5.0% | CK13: =AX13 -> 19384 | CL13: =AY13 -> 昭和町 | CM13: =VLOOKUP($CK13&"_"&$AZ$7,データシート1!$A:$BT,MATCH("ca_太陽光発電（10kW未満）",データシート1!$A$1:$BT$1,0),0) -> 819 | CN13: =VLOOKUP($CK13&"_"&$AZ$5,データシート1!$A:$BT,MATCH("ab_家庭",データシート1!$A$1:$BT$1,0),0) -> 9404 | CO13: =CM13/CN13 -> 8.7%
AX14: =比較地域マスタ!$Y7 -> 40610 | AY14: =IF(IFERROR(比較地域マスタ!$Z7,"")=0,"",IFERROR(比較地域マスタ!$Z7,"")) -> 福智町 | BC14: 40610 | BD14: =AY14 -> 福智町 | BE14: =VLOOKUP($BC14&"_"&$AZ$7,データシート1!$A:$BT,MATCH("cb_"&BE$12,データシート1!$A$1:$BT$1,0),0) -> 3,447 | BF14: =VLOOKUP($BC14&"_"&$AZ$7,データシート1!$A:$BT,MATCH("cb_"&BF$12,データシート1!$A$1:$BT$1,0),0) -> 20,499 | BG14: =VLOOKUP($BC14&"_"&$AZ$7,データシート1!$A:$BT,MATCH("cb_"&BG$12,データシート1!$A$1:$BT$1,0),0) -> 0 | BH14: =VLOOKUP($BC14&"_"&$AZ$7,データシート1!$A:$BT,MATCH("cb_"&BH$12,データシート1!$A$1:$BT$1,0),0) -> 0 | BI14: =VLOOKUP($BC14&"_"&$AZ$7,データシート1!$A:$BT,MATCH("cb_"&BI$12,データシート1!$A$1:$BT$1,0),0) -> 0 | BJ14: =VLOOKUP($BC14&"_"&$AZ$7,データシート1!$A:$BT,MATCH("cb_"&BJ$12,データシート1!$A$1:$BT$1,0),0) -> 0 | BK14: =SUM(BE14:BJ14) -> 23,946 | BM14: =AX14 -> 40610 | BN14: =AY14 -> 福智町 | BO14: =BE14*VLOOKUP(BO$12,別紙!$B$4:$E$10,MATCH("設備利用率",別紙!$B$4:$E$4,0),0)/100*8760/10^3 -> 4,137 | BP14: =BF14*VLOOKUP(BP$12,別紙!$B$4:$E$10,MATCH("設備利用率",別紙!$B$4:$E$4,0),0)/100*8760/10^3 -> 27,115 | BQ14: =BG14*VLOOKUP(BQ$12,別紙!$B$4:$E$10,MATCH("設備利用率",別紙!$B$4:$E$4,0),0)/100*8760/10^3 -> 0 | BR14: =BH14*VLOOKUP(BR$12,別紙!$B$4:$E$10,MATCH("設備利用率",別紙!$B$4:$E$4,0),0)/100*8760/10^3 -> 0 | BS14: =BI14*VLOOKUP(BS$12,別紙!$B$4:$E$10,MATCH("設備利用率",別紙!$B$4:$E$4,0),0)/100*8760/10^3 -> 0 | BT14: =BJ14*VLOOKUP(BT$12,別紙!$B$4:$E$10,MATCH("設備利用率",別紙!$B$4:$E$4,0),0)/100*8760/10^3 -> 0 | BU14: =SUM(BO14:BT14) -> 31,252 | BW14: =AX14 -> 40610 | BX14: =AY14 -> 福智町 | BY14: =(VLOOKUP($BW14&"_"&$AZ$8,データシート1!$A:$BT,MATCH("da_製造業",データシート1!$A$1:$BT$1,0),0)+VLOOKUP($BW14&"_"&$AZ$8,データシート1!$A:$BT,MATCH("da_建設業・鉱業",データシート1!$A$1:$BT$1,0),0)+VLOOKUP($BW14&"_"&$AZ$8,データシート1!$A:$BT,MATCH("da_農林水産業",データシート1!$A$1:$BT$1,0),0)+VLOOKUP($BW14&"_"&$AZ$8,データシート1!$A:$BT,MATCH("da_業務",データシート1!$A$1:$BT$1,0),0)+VLOOKUP($BW14&"_"&$AZ$8,データシート1!$A:$BT,MATCH("da_家庭",データシート1!$A$1:$BT$1,0),0)+VLOOKUP($BW14&"_"&$AZ$8,データシート1!$A:$BT,MATCH("da_鉄道",データシート1!$A$1:$BT$1,0),0))/10^3 -> 105,687 | CA14: =AX14 -> 40610 | CB14: =AY14 -> 福智町 | CC14: =BO14/$BY14 -> 3.9% | CD14: 25.7% | CE14: 0.0% | CF14: 0.0% | CG14: 0.0% | CH14: 0.0% | CI14: =BU14/BY14 -> 29.6% | CK14: =AX14 -> 40610 | CL14: =AY14 -> 福智町 | CM14: =VLOOKUP($CK14&"_"&$AZ$7,データシート1!$A:$BT,MATCH("ca_太陽光発電（10kW未満）",データシート1!$A$1:$BT$1,0),0) -> 666 | CN14: =VLOOKUP($CK14&"_"&$AZ$5,データシート1!$A:$BT,MATCH("ab_家庭",データシート1!$A$1:$BT$1,0),0) -> 11072 | CO14: =CM14/CN14 -> 6.0%
AX15: =比較地域マスタ!$Y8 -> 25425 | AY15: =IF(IFERROR(比較地域マスタ!$Z8,"")=0,"",IFERROR(比較地域マスタ!$Z8,"")) -> 愛荘町 | BC15: 25425 | BD15: 愛荘町 | BE15: =VLOOKUP($BC15&"_"&$AZ$7,データシート1!$A:$BT,MATCH("cb_"&BE$12,データシート1!$A$1:$BT$1,0),0) -> 5,571 | BF15: =VLOOKUP($BC15&"_"&$AZ$7,データシート1!$A:$BT,MATCH("cb_"&BF$12,データシート1!$A$1:$BT$1,0),0) -> 21,633 | BG15: =VLOOKUP($BC15&"_"&$AZ$7,データシート1!$A:$BT,MATCH("cb_"&BG$12,データシート1!$A$1:$BT$1,0),0) -> 0 | BH15: =VLOOKUP($BC15&"_"&$AZ$7,データシート1!$A:$BT,MATCH("cb_"&BH$12,データシート1!$A$1:$BT$1,0),0) -> 0 | BI15: =VLOOKUP($BC15&"_"&$AZ$7,データシート1!$A:$BT,MATCH("cb_"&BI$12,データシート1!$A$1:$BT$1,0),0) -> 0 | BJ15: =VLOOKUP($BC15&"_"&$AZ$7,データシート1!$A:$BT,MATCH("cb_"&BJ$12,データシート1!$A$1:$BT$1,0),0) -> 0 | BK15: 27,204 | BM15: 25425 | BN15: 愛荘町 | BO15: =BE15*VLOOKUP(BO$12,別紙!$B$4:$E$10,MATCH("設備利用率",別紙!$B$4:$E$4,0),0)/100*8760/10^3 -> 6,686 | BP15: =BF15*VLOOKUP(BP$12,別紙!$B$4:$E$10,MATCH("設備利用率",別紙!$B$4:$E$4,0),0)/100*8760/10^3 -> 28,616 | BQ15: =BG15*VLOOKUP(BQ$12,別紙!$B$4:$E$10,MATCH("設備利用率",別紙!$B$4:$E$4,0),0)/100*8760/10^3 -> 0 | BR15: =BH15*VLOOKUP(BR$12,別紙!$B$4:$E$10,MATCH("設備利用率",別紙!$B$4:$E$4,0),0)/100*8760/10^3 -> 0 | BS15: =BI15*VLOOKUP(BS$12,別紙!$B$4:$E$10,MATCH("設備利用率",別紙!$B$4:$E$4,0),0)/100*8760/10^3 -> 0 | BT15: =BJ15*VLOOKUP(BT$12,別紙!$B$4:$E$10,MATCH("設備利用率",別紙!$B$4:$E$4,0),0)/100*8760/10^3 -> 0 | BU15: 35,302 | BW15: 25425 | BX15: 愛荘町 | BY15: =(VLOOKUP($BW15&"_"&$AZ$8,データシート1!$A:$BT,MATCH("da_製造業",データシート1!$A$1:$BT$1,0),0)+VLOOKUP($BW15&"_"&$AZ$8,データシート1!$A:$BT,MATCH("da_建設業・鉱業",データシート1!$A$1:$BT$1,0),0)+VLOOKUP($BW15&"_"&$AZ$8,データシート1!$A:$BT,MATCH("da_農林水産業",データシート1!$A$1:$BT$1,0),0)+VLOOKUP($BW15&"_"&$AZ$8,データシート1!$A:$BT,MATCH("da_業務",データシート1!$A$1:$BT$1,0),0)+VLOOKUP($BW15&"_"&$AZ$8,データシート1!$A:$BT,MATCH("da_家庭",データシート1!$A$1:$BT$1,0),0)+VLOOKUP($BW15&"_"&$AZ$8,データシート1!$A:$BT,MATCH("da_鉄道",データシート1!$A$1:$BT$1,0),0))/10^3 -> 152,873 | CA15: 25425 | CB15: 愛荘町 | CC15: 4.4% | CD15: 18.7% | CE15: 0.0% | CF15: 0.0% | CG15: 0.0% | CH15: 0.0% | CI15: 23.1% | CK15: 25425 | CL15: 愛荘町 | CM15: =VLOOKUP($CK15&"_"&$AZ$7,データシート1!$A:$BT,MATCH("ca_太陽光発電（10kW未満）",データシート1!$A$1:$BT$1,0),0) -> 1223 | CN15: =VLOOKUP($CK15&"_"&$AZ$5,データシート1!$A:$BT,MATCH("ab_家庭",データシート1!$A$1:$BT$1,0),0) -> 8491 | CO15: 14.4%
AX16: =比較地域マスタ!$Y9 -> 39386 | AY16: =IF(IFERROR(比較地域マスタ!$Z9,"")=0,"",IFERROR(比較地域マスタ!$Z9,"")) -> いの町 | BC16: 39386 | BD16: いの町 | BE16: =VLOOKUP($BC16&"_"&$AZ$7,データシート1!$A:$BT,MATCH("cb_"&BE$12,データシート1!$A$1:$BT$1,0),0) -> 3,390 | BF16: =VLOOKUP($BC16&"_"&$AZ$7,データシート1!$A:$BT,MATCH("cb_"&BF$12,データシート1!$A$1:$BT$1,0),0) -> 5,248 | BG16: =VLOOKUP($BC16&"_"&$AZ$7,データシート1!$A:$BT,MATCH("cb_"&BG$12,データシート1!$A$1:$BT$1,0),0) -> 0 | BH16: =VLOOKUP($BC16&"_"&$AZ$7,データシート1!$A:$BT,MATCH("cb_"&BH$12,データシート1!$A$1:$BT$1,0),0) -> 0 | BI16: =VLOOKUP($BC16&"_"&$AZ$7,データシート1!$A:$BT,MATCH("cb_"&BI$12,データシート1!$A$1:$BT$1,0),0) -> 0 | BJ16: =VLOOKUP($BC16&"_"&$AZ$7,データシート1!$A:$BT,MATCH("cb_"&BJ$12,データシート1!$A$1:$BT$1,0),0) -> 0 | BK16: 8,638 | BM16: 39386 | BN16: いの町 | BO16: =BE16*VLOOKUP(BO$12,別紙!$B$4:$E$10,MATCH("設備利用率",別紙!$B$4:$E$4,0),0)/100*8760/10^3 -> 4,068 | BP16: =BF16*VLOOKUP(BP$12,別紙!$B$4:$E$10,MATCH("設備利用率",別紙!$B$4:$E$4,0),0)/100*8760/10^3 -> 6,942 | BQ16: =BG16*VLOOKUP(BQ$12,別紙!$B$4:$E$10,MATCH("設備利用率",別紙!$B$4:$E$4,0),0)/100*8760/10^3 -> 0 | BR16: =BH16*VLOOKUP(BR$12,別紙!$B$4:$E$10,MATCH("設備利用率",別紙!$B$4:$E$4,0),0)/100*8760/10^3 -> 0 | BS16: =BI16*VLOOKUP(BS$12,別紙!$B$4:$E$10,MATCH("設備利用率",別紙!$B$4:$E$4,0),0)/100*8760/10^3 -> 0 | BT16: =BJ16*VLOOKUP(BT$12,別紙!$B$4:$E$10,MATCH("設備利用率",別紙!$B$4:$E$4,0),0)/100*8760/10^3 -> 0 | BU16: 11,010 | BW16: 39386 | BX16: いの町 | BY16: =(VLOOKUP($BW16&"_"&$AZ$8,データシート1!$A:$BT,MATCH("da_製造業",データシート1!$A$1:$BT$1,0),0)+VLOOKUP($BW16&"_"&$AZ$8,データシート1!$A:$BT,MATCH("da_建設業・鉱業",データシート1!$A$1:$BT$1,0),0)+VLOOKUP($BW16&"_"&$AZ$8,データシート1!$A:$BT,MATCH("da_農林水産業",データシート1!$A$1:$BT$1,0),0)+VLOOKUP($BW16&"_"&$AZ$8,データシート1!$A:$BT,MATCH("da_業務",データシート1!$A$1:$BT$1,0),0)+VLOOKUP($BW16&"_"&$AZ$8,データシート1!$A:$BT,MATCH("da_家庭",データシート1!$A$1:$BT$1,0),0)+VLOOKUP($BW16&"_"&$AZ$8,データシート1!$A:$BT,MATCH("da_鉄道",データシート1!$A$1:$BT$1,0),0))/10^3 -> 115,563 | CA16: 39386 | CB16: いの町 | CC16: 3.5% | CD16: 6.0% | CE16: 0.0% | CF16: 0.0% | CG16: 0.0% | CH16: 0.0% | CI16: 9.5% | CK16: 39386 | CL16: いの町 | CM16: =VLOOKUP($CK16&"_"&$AZ$7,データシート1!$A:$BT,MATCH("ca_太陽光発電（10kW未満）",データシート1!$A$1:$BT$1,0),0) -> 738 | CN16: =VLOOKUP($CK16&"_"&$AZ$5,データシート1!$A:$BT,MATCH("ab_家庭",データシート1!$A$1:$BT$1,0),0) -> 10360 | CO16: 7.1%
AX17: =比較地域マスタ!$Y10 -> 08521 | AY17: =IF(IFERROR(比較地域マスタ!$Z10,"")=0,"",IFERROR(比較地域マスタ!$Z10,"")) -> 八千代町 | BC17: 08521 | BD17: 八千代町 | BE17: =VLOOKUP($BC17&"_"&$AZ$7,データシート1!$A:$BT,MATCH("cb_"&BE$12,データシート1!$A$1:$BT$1,0),0) -> 2,937 | BF17: =VLOOKUP($BC17&"_"&$AZ$7,データシート1!$A:$BT,MATCH("cb_"&BF$12,データシート1!$A$1:$BT$1,0),0) -> 25,882 | BG17: =VLOOKUP($BC17&"_"&$AZ$7,データシート1!$A:$BT,MATCH("cb_"&BG$12,データシート1!$A$1:$BT$1,0),0) -> 0 | BH17: =VLOOKUP($BC17&"_"&$AZ$7,データシート1!$A:$BT,MATCH("cb_"&BH$12,データシート1!$A$1:$BT$1,0),0) -> 0 | BI17: =VLOOKUP($BC17&"_"&$AZ$7,データシート1!$A:$BT,MATCH("cb_"&BI$12,データシート1!$A$1:$BT$1,0),0) -> 0 | BJ17: =VLOOKUP($BC17&"_"&$AZ$7,データシート1!$A:$BT,MATCH("cb_"&BJ$12,データシート1!$A$1:$BT$1,0),0) -> 0 | BK17: 28,820 | BM17: 08521 | BN17: 八千代町 | BO17: =BE17*VLOOKUP(BO$12,別紙!$B$4:$E$10,MATCH("設備利用率",別紙!$B$4:$E$4,0),0)/100*8760/10^3 -> 3,525 | BP17: =BF17*VLOOKUP(BP$12,別紙!$B$4:$E$10,MATCH("設備利用率",別紙!$B$4:$E$4,0),0)/100*8760/10^3 -> 34,236 | BQ17: =BG17*VLOOKUP(BQ$12,別紙!$B$4:$E$10,MATCH("設備利用率",別紙!$B$4:$E$4,0),0)/100*8760/10^3 -> 0 | BR17: =BH17*VLOOKUP(BR$12,別紙!$B$4:$E$10,MATCH("設備利用率",別紙!$B$4:$E$4,0),0)/100*8760/10^3 -> 0 | BS17: =BI17*VLOOKUP(BS$12,別紙!$B$4:$E$10,MATCH("設備利用率",別紙!$B$4:$E$4,0),0)/100*8760/10^3 -> 0 | BT17: =BJ17*VLOOKUP(BT$12,別紙!$B$4:$E$10,MATCH("設備利用率",別紙!$B$4:$E$4,0),0)/100*8760/10^3 -> 0 | BU17: 37,761 | BW17: 08521 | BX17: 八千代町 | BY17: =(VLOOKUP($BW17&"_"&$AZ$8,データシート1!$A:$BT,MATCH("da_製造業",データシート1!$A$1:$BT$1,0),0)+VLOOKUP($BW17&"_"&$AZ$8,データシート1!$A:$BT,MATCH("da_建設業・鉱業",データシート1!$A$1:$BT$1,0),0)+VLOOKUP($BW17&"_"&$AZ$8,データシート1!$A:$BT,MATCH("da_農林水産業",データシート1!$A$1:$BT$1,0),0)+VLOOKUP($BW17&"_"&$AZ$8,データシート1!$A:$BT,MATCH("da_業務",データシート1!$A$1:$BT$1,0),0)+VLOOKUP($BW17&"_"&$AZ$8,データシート1!$A:$BT,MATCH("da_家庭",データシート1!$A$1:$BT$1,0),0)+VLOOKUP($BW17&"_"&$AZ$8,データシート1!$A:$BT,MATCH("da_鉄道",データシート1!$A$1:$BT$1,0),0))/10^3 -> 189,904 | CA17: 08521 | CB17: 八千代町 | CC17: 1.9% | CD17: 18.0% | CE17: 0.0% | CF17: 0.0% | CG17: 0.0% | CH17: 0.0% | CI17: 19.9% | CK17: 08521 | CL17: 八千代町 | CM17: =VLOOKUP($CK17&"_"&$AZ$7,データシート1!$A:$BT,MATCH("ca_太陽光発電（10kW未満）",データシート1!$A$1:$BT$1,0),0) -> 550 | CN17: =VLOOKUP($CK17&"_"&$AZ$5,データシート1!$A:$BT,MATCH("ab_家庭",データシート1!$A$1:$BT$1,0),0) -> 7909 | CO17: 7.0%
AX18: =比較地域マスタ!$Y11 -> 34215 | AY18: =IF(IFERROR(比較地域マスタ!$Z11,"")=0,"",IFERROR(比較地域マスタ!$Z11,"")) -> 江田島市 | BC18: 34215 | BD18: 江田島市 | BE18: =VLOOKUP($BC18&"_"&$AZ$7,データシート1!$A:$BT,MATCH("cb_"&BE$12,データシート1!$A$1:$BT$1,0),0) -> 3,243 | BF18: =VLOOKUP($BC18&"_"&$AZ$7,データシート1!$A:$BT,MATCH("cb_"&BF$12,データシート1!$A$1:$BT$1,0),0) -> 17,015 | BG18: =VLOOKUP($BC18&"_"&$AZ$7,データシート1!$A:$BT,MATCH("cb_"&BG$12,データシート1!$A$1:$BT$1,0),0) -> 0 | BH18: =VLOOKUP($BC18&"_"&$AZ$7,データシート1!$A:$BT,MATCH("cb_"&BH$12,データシート1!$A$1:$BT$1,0),0) -> 0 | BI18: =VLOOKUP($BC18&"_"&$AZ$7,データシート1!$A:$BT,MATCH("cb_"&BI$12,データシート1!$A$1:$BT$1,0),0) -> 0 | BJ18: =VLOOKUP($BC18&"_"&$AZ$7,データシート1!$A:$BT,MATCH("cb_"&BJ$12,データシート1!$A$1:$BT$1,0),0) -> 0 | BK18: 20,258 | BM18: 34215 | BN18: 江田島市 | BO18: =BE18*VLOOKUP(BO$12,別紙!$B$4:$E$10,MATCH("設備利用率",別紙!$B$4:$E$4,0),0)/100*8760/10^3 -> 3,891 | BP18: =BF18*VLOOKUP(BP$12,別紙!$B$4:$E$10,MATCH("設備利用率",別紙!$B$4:$E$4,0),0)/100*8760/10^3 -> 22,507 | BQ18: =BG18*VLOOKUP(BQ$12,別紙!$B$4:$E$10,MATCH("設備利用率",別紙!$B$4:$E$4,0),0)/100*8760/10^3 -> 0 | BR18: =BH18*VLOOKUP(BR$12,別紙!$B$4:$E$10,MATCH("設備利用率",別紙!$B$4:$E$4,0),0)/100*8760/10^3 -> 0 | BS18: =BI18*VLOOKUP(BS$12,別紙!$B$4:$E$10,MATCH("設備利用率",別紙!$B$4:$E$4,0),0)/100*8760/10^3 -> 0 | BT18: =BJ18*VLOOKUP(BT$12,別紙!$B$4:$E$10,MATCH("設備利用率",別紙!$B$4:$E$4,0),0)/100*8760/10^3 -> 0 | BU18: 26,399 | BW18: 34215 | BX18: 江田島市 | BY18: =(VLOOKUP($BW18&"_"&$AZ$8,データシート1!$A:$BT,MATCH("da_製造業",データシート1!$A$1:$BT$1,0),0)+VLOOKUP($BW18&"_"&$AZ$8,データシート1!$A:$BT,MATCH("da_建設業・鉱業",データシート1!$A$1:$BT$1,0),0)+VLOOKUP($BW18&"_"&$AZ$8,データシート1!$A:$BT,MATCH("da_農林水産業",データシート1!$A$1:$BT$1,0),0)+VLOOKUP($BW18&"_"&$AZ$8,データシート1!$A:$BT,MATCH("da_業務",データシート1!$A$1:$BT$1,0),0)+VLOOKUP($BW18&"_"&$AZ$8,データシート1!$A:$BT,MATCH("da_家庭",データシート1!$A$1:$BT$1,0),0)+VLOOKUP($BW18&"_"&$AZ$8,データシート1!$A:$BT,MATCH("da_鉄道",データシート1!$A$1:$BT$1,0),0))/10^3 -> 126,931 | CA18: 34215 | CB18: 江田島市 | CC18: 3.1% | CD18: 17.7% | CE18: 0.0% | CF18: 0.0% | CG18: 0.0% | CH18: 0.0% | CI18: 20.8% | CK18: 34215 | CL18: 江田島市 | CM18: =VLOOKUP($CK18&"_"&$AZ$7,データシート1!$A:$BT,MATCH("ca_太陽光発電（10kW未満）",データシート1!$A$1:$BT$1,0),0) -> 728 | CN18: =VLOOKUP($CK18&"_"&$AZ$5,データシート1!$A:$BT,MATCH("ab_家庭",データシート1!$A$1:$BT$1,0),0) -> 11944 | CO18: 6.1%
AX19: =比較地域マスタ!$Y12 -> 42208 | AY19: =IF(IFERROR(比較地域マスタ!$Z12,"")=0,"",IFERROR(比較地域マスタ!$Z12,"")) -> 松浦市 | BC19: 42208 | BD19: 松浦市 | BE19: =VLOOKUP($BC19&"_"&$AZ$7,データシート1!$A:$BT,MATCH("cb_"&BE$12,データシート1!$A$1:$BT$1,0),0) -> 3,623 | BF19: =VLOOKUP($BC19&"_"&$AZ$7,データシート1!$A:$BT,MATCH("cb_"&BF$12,データシート1!$A$1:$BT$1,0),0) -> 29,690 | BG19: =VLOOKUP($BC19&"_"&$AZ$7,データシート1!$A:$BT,MATCH("cb_"&BG$12,データシート1!$A$1:$BT$1,0),0) -> 1,201 | BH19: =VLOOKUP($BC19&"_"&$AZ$7,データシート1!$A:$BT,MATCH("cb_"&BH$12,データシート1!$A$1:$BT$1,0),0) -> 0 | BI19: =VLOOKUP($BC19&"_"&$AZ$7,データシート1!$A:$BT,MATCH("cb_"&BI$12,データシート1!$A$1:$BT$1,0),0) -> 0 | BJ19: =VLOOKUP($BC19&"_"&$AZ$7,データシート1!$A:$BT,MATCH("cb_"&BJ$12,データシート1!$A$1:$BT$1,0),0) -> 7,820 | BK19: 42,334 | BM19: 42208 | BN19: 松浦市 | BO19: =BE19*VLOOKUP(BO$12,別紙!$B$4:$E$10,MATCH("設備利用率",別紙!$B$4:$E$4,0),0)/100*8760/10^3 -> 4,348 | BP19: =BF19*VLOOKUP(BP$12,別紙!$B$4:$E$10,MATCH("設備利用率",別紙!$B$4:$E$4,0),0)/100*8760/10^3 -> 39,273 | BQ19: =BG19*VLOOKUP(BQ$12,別紙!$B$4:$E$10,MATCH("設備利用率",別紙!$B$4:$E$4,0),0)/100*8760/10^3 -> 2,608 | BR19: =BH19*VLOOKUP(BR$12,別紙!$B$4:$E$10,MATCH("設備利用率",別紙!$B$4:$E$4,0),0)/100*8760/10^3 -> 0 | BS19: =BI19*VLOOKUP(BS$12,別紙!$B$4:$E$10,MATCH("設備利用率",別紙!$B$4:$E$4,0),0)/100*8760/10^3 -> 0 | BT19: =BJ19*VLOOKUP(BT$12,別紙!$B$4:$E$10,MATCH("設備利用率",別紙!$B$4:$E$4,0),0)/100*8760/10^3 -> 54,803 | BU19: 101,032 | BW19: 42208 | BX19: 松浦市 | BY19: =(VLOOKUP($BW19&"_"&$AZ$8,データシート1!$A:$BT,MATCH("da_製造業",データシート1!$A$1:$BT$1,0),0)+VLOOKUP($BW19&"_"&$AZ$8,データシート1!$A:$BT,MATCH("da_建設業・鉱業",データシート1!$A$1:$BT$1,0),0)+VLOOKUP($BW19&"_"&$AZ$8,データシート1!$A:$BT,MATCH("da_農林水産業",データシート1!$A$1:$BT$1,0),0)+VLOOKUP($BW19&"_"&$AZ$8,データシート1!$A:$BT,MATCH("da_業務",データシート1!$A$1:$BT$1,0),0)+VLOOKUP($BW19&"_"&$AZ$8,データシート1!$A:$BT,MATCH("da_家庭",データシート1!$A$1:$BT$1,0),0)+VLOOKUP($BW19&"_"&$AZ$8,データシート1!$A:$BT,MATCH("da_鉄道",データシート1!$A$1:$BT$1,0),0))/10^3 -> 149,241 | CA19: 42208 | CB19: 松浦市 | CC19: 2.9% | CD19: 26.3% | CE19: 1.7% | CF19: 0.0% | CG19: 0.0% | CH19: 36.7% | CI19: 67.7% | CK19: 42208 | CL19: 松浦市 | CM19: =VLOOKUP($CK19&"_"&$AZ$7,データシート1!$A:$BT,MATCH("ca_太陽光発電（10kW未満）",データシート1!$A$1:$BT$1,0),0) -> 718 | CN19: =VLOOKUP($CK19&"_"&$AZ$5,データシート1!$A:$BT,MATCH("ab_家庭",データシート1!$A$1:$BT$1,0),0) -> 10038 | CO19: 7.2%
AX20: =比較地域マスタ!$Y13 -> 23446 | AY20: =IF(IFERROR(比較地域マスタ!$Z13,"")=0,"",IFERROR(比較地域マスタ!$Z13,"")) -> 美浜町 | BC20: 23446 | BD20: 美浜町 | BE20: =VLOOKUP($BC20&"_"&$AZ$7,データシート1!$A:$BT,MATCH("cb_"&BE$12,データシート1!$A$1:$BT$1,0),0) -> 4,006 | BF20: =VLOOKUP($BC20&"_"&$AZ$7,データシート1!$A:$BT,MATCH("cb_"&BF$12,データシート1!$A$1:$BT$1,0),0) -> 71,603 | BG20: =VLOOKUP($BC20&"_"&$AZ$7,データシート1!$A:$BT,MATCH("cb_"&BG$12,データシート1!$A$1:$BT$1,0),0) -> 40 | BH20: =VLOOKUP($BC20&"_"&$AZ$7,データシート1!$A:$BT,MATCH("cb_"&BH$12,データシート1!$A$1:$BT$1,0),0) -> 0 | BI20: =VLOOKUP($BC20&"_"&$AZ$7,データシート1!$A:$BT,MATCH("cb_"&BI$12,データシート1!$A$1:$BT$1,0),0) -> 0 | BJ20: =VLOOKUP($BC20&"_"&$AZ$7,データシート1!$A:$BT,MATCH("cb_"&BJ$12,データシート1!$A$1:$BT$1,0),0) -> 0 | BK20: 75,649 | BM20: 23446 | BN20: 美浜町 | BO20: =BE20*VLOOKUP(BO$12,別紙!$B$4:$E$10,MATCH("設備利用率",別紙!$B$4:$E$4,0),0)/100*8760/10^3 -> 4,808 | BP20: =BF20*VLOOKUP(BP$12,別紙!$B$4:$E$10,MATCH("設備利用率",別紙!$B$4:$E$4,0),0)/100*8760/10^3 -> 94,713 | BQ20: =BG20*VLOOKUP(BQ$12,別紙!$B$4:$E$10,MATCH("設備利用率",別紙!$B$4:$E$4,0),0)/100*8760/10^3 -> 86 | BR20: =BH20*VLOOKUP(BR$12,別紙!$B$4:$E$10,MATCH("設備利用率",別紙!$B$4:$E$4,0),0)/100*8760/10^3 -> 0 | BS20: =BI20*VLOOKUP(BS$12,別紙!$B$4:$E$10,MATCH("設備利用率",別紙!$B$4:$E$4,0),0)/100*8760/10^3 -> 0 | BT20: =BJ20*VLOOKUP(BT$12,別紙!$B$4:$E$10,MATCH("設備利用率",別紙!$B$4:$E$4,0),0)/100*8760/10^3 -> 0 | BU20: 99,607 | BW20: 23446 | BX20: 美浜町 | BY20: =(VLOOKUP($BW20&"_"&$AZ$8,データシート1!$A:$BT,MATCH("da_製造業",データシート1!$A$1:$BT$1,0),0)+VLOOKUP($BW20&"_"&$AZ$8,データシート1!$A:$BT,MATCH("da_建設業・鉱業",データシート1!$A$1:$BT$1,0),0)+VLOOKUP($BW20&"_"&$AZ$8,データシート1!$A:$BT,MATCH("da_農林水産業",データシート1!$A$1:$BT$1,0),0)+VLOOKUP($BW20&"_"&$AZ$8,データシート1!$A:$BT,MATCH("da_業務",データシート1!$A$1:$BT$1,0),0)+VLOOKUP($BW20&"_"&$AZ$8,データシート1!$A:$BT,MATCH("da_家庭",データシート1!$A$1:$BT$1,0),0)+VLOOKUP($BW20&"_"&$AZ$8,データシート1!$A:$BT,MATCH("da_鉄道",データシート1!$A$1:$BT$1,0),0))/10^3 -> 118,328 | CA20: 23446 | CB20: 美浜町 | CC20: 4.1% | CD20: 80.0% | CE20: 0.1% | CF20: 0.0% | CG20: 0.0% | CH20: 0.0% | CI20: 84.2% | CK20: 23446 | CL20: 美浜町 | CM20: =VLOOKUP($CK20&"_"&$AZ$7,データシート1!$A:$BT,MATCH("ca_太陽光発電（10kW未満）",データシート1!$A$1:$BT$1,0),0) -> 835 | CN20: =VLOOKUP($CK20&"_"&$AZ$5,データシート1!$A:$BT,MATCH("ab_家庭",データシート1!$A$1:$BT$1,0),0) -> 9006 | CO20: 9.3%
AX21: =比較地域マスタ!$Y14 -> 25383 | AY21: =IF(IFERROR(比較地域マスタ!$Z14,"")=0,"",IFERROR(比較地域マスタ!$Z14,"")) -> 日野町 | BC21: 25383 | BD21: 日野町 | BE21: =VLOOKUP($BC21&"_"&$AZ$7,データシート1!$A:$BT,MATCH("cb_"&BE$12,データシート1!$A$1:$BT$1,0),0) -> 4,485 | BF21: =VLOOKUP($BC21&"_"&$AZ$7,データシート1!$A:$BT,MATCH("cb_"&BF$12,データシート1!$A$1:$BT$1,0),0) -> 40,372 | BG21: =VLOOKUP($BC21&"_"&$AZ$7,データシート1!$A:$BT,MATCH("cb_"&BG$12,データシート1!$A$1:$BT$1,0),0) -> 0 | BH21: =VLOOKUP($BC21&"_"&$AZ$7,データシート1!$A:$BT,MATCH("cb_"&BH$12,データシート1!$A$1:$BT$1,0),0) -> 0 | BI21: =VLOOKUP($BC21&"_"&$AZ$7,データシート1!$A:$BT,MATCH("cb_"&BI$12,データシート1!$A$1:$BT$1,0),0) -> 0 | BJ21: =VLOOKUP($BC21&"_"&$AZ$7,データシート1!$A:$BT,MATCH("cb_"&BJ$12,データシート1!$A$1:$BT$1,0),0) -> 1,176 | BK21: 46,033 | BM21: 25383 | BN21: 日野町 | BO21: =BE21*VLOOKUP(BO$12,別紙!$B$4:$E$10,MATCH("設備利用率",別紙!$B$4:$E$4,0),0)/100*8760/10^3 -> 5,383 | BP21: =BF21*VLOOKUP(BP$12,別紙!$B$4:$E$10,MATCH("設備利用率",別紙!$B$4:$E$4,0),0)/100*8760/10^3 -> 53,403 | BQ21: =BG21*VLOOKUP(BQ$12,別紙!$B$4:$E$10,MATCH("設備利用率",別紙!$B$4:$E$4,0),0)/100*8760/10^3 -> 0 | BR21: =BH21*VLOOKUP(BR$12,別紙!$B$4:$E$10,MATCH("設備利用率",別紙!$B$4:$E$4,0),0)/100*8760/10^3 -> 0 | BS21: =BI21*VLOOKUP(BS$12,別紙!$B$4:$E$10,MATCH("設備利用率",別紙!$B$4:$E$4,0),0)/100*8760/10^3 -> 0 | BT21: =BJ21*VLOOKUP(BT$12,別紙!$B$4:$E$10,MATCH("設備利用率",別紙!$B$4:$E$4,0),0)/100*8760/10^3 -> 8,241 | BU21: 67,027 | BW21: 25383 | BX21: 日野町 | BY21: =(VLOOKUP($BW21&"_"&$AZ$8,データシート1!$A:$BT,MATCH("da_製造業",データシート1!$A$1:$BT$1,0),0)+VLOOKUP($BW21&"_"&$AZ$8,データシート1!$A:$BT,MATCH("da_建設業・鉱業",データシート1!$A$1:$BT$1,0),0)+VLOOKUP($BW21&"_"&$AZ$8,データシート1!$A:$BT,MATCH("da_農林水産業",データシート1!$A$1:$BT$1,0),0)+VLOOKUP($BW21&"_"&$AZ$8,データシート1!$A:$BT,MATCH("da_業務",データシート1!$A$1:$BT$1,0),0)+VLOOKUP($BW21&"_"&$AZ$8,データシート1!$A:$BT,MATCH("da_家庭",データシート1!$A$1:$BT$1,0),0)+VLOOKUP($BW21&"_"&$AZ$8,データシート1!$A:$BT,MATCH("da_鉄道",データシート1!$A$1:$BT$1,0),0))/10^3 -> 361,721 | CA21: 25383 | CB21: 日野町 | CC21: 1.5% | CD21: 14.8% | CE21: 0.0% | CF21: 0.0% | CG21: 0.0% | CH21: 2.3% | CI21: 18.5% | CK21: 25383 | CL21: 日野町 | CM21: =VLOOKUP($CK21&"_"&$AZ$7,データシート1!$A:$BT,MATCH("ca_太陽光発電（10kW未満）",データシート1!$A$1:$BT$1,0),0) -> 925 | CN21: =VLOOKUP($CK21&"_"&$AZ$5,データシート1!$A:$BT,MATCH("ab_家庭",データシート1!$A$1:$BT$1,0),0) -> 8613 | CO21: 10.7%
AX22: =比較地域マスタ!$Y15 -> 01610 | AY22: =IF(IFERROR(比較地域マスタ!$Z15,"")=0,"",IFERROR(比較地域マスタ!$Z15,"")) -> 新ひだか町 | BC22: 01610 | BD22: 新ひだか町 | BE22: =VLOOKUP($BC22&"_"&$AZ$7,データシート1!$A:$BT,MATCH("cb_"&BE$12,データシート1!$A$1:$BT$1,0),0) -> 1,167 | BF22: =VLOOKUP($BC22&"_"&$AZ$7,データシート1!$A:$BT,MATCH("cb_"&BF$12,データシート1!$A$1:$BT$1,0),0) -> 22,106 | BG22: =VLOOKUP($BC22&"_"&$AZ$7,データシート1!$A:$BT,MATCH("cb_"&BG$12,データシート1!$A$1:$BT$1,0),0) -> 20 | BH22: =VLOOKUP($BC22&"_"&$AZ$7,データシート1!$A:$BT,MATCH("cb_"&BH$12,データシート1!$A$1:$BT$1,0),0) -> 0 | BI22: =VLOOKUP($BC22&"_"&$AZ$7,データシート1!$A:$BT,MATCH("cb_"&BI$12,データシート1!$A$1:$BT$1,0),0) -> 0 | BJ22: =VLOOKUP($BC22&"_"&$AZ$7,データシート1!$A:$BT,MATCH("cb_"&BJ$12,データシート1!$A$1:$BT$1,0),0) -> 0 | BK22: 23,293 | BM22: 01610 | BN22: 新ひだか町 | BO22: =BE22*VLOOKUP(BO$12,別紙!$B$4:$E$10,MATCH("設備利用率",別紙!$B$4:$E$4,0),0)/100*8760/10^3 -> 1,401 | BP22: =BF22*VLOOKUP(BP$12,別紙!$B$4:$E$10,MATCH("設備利用率",別紙!$B$4:$E$4,0),0)/100*8760/10^3 -> 29,241 | BQ22: =BG22*VLOOKUP(BQ$12,別紙!$B$4:$E$10,MATCH("設備利用率",別紙!$B$4:$E$4,0),0)/100*8760/10^3 -> 43 | BR22: =BH22*VLOOKUP(BR$12,別紙!$B$4:$E$10,MATCH("設備利用率",別紙!$B$4:$E$4,0),0)/100*8760/10^3 -> 0 | BS22: =BI22*VLOOKUP(BS$12,別紙!$B$4:$E$10,MATCH("設備利用率",別紙!$B$4:$E$4,0),0)/100*8760/10^3 -> 0 | BT22: =BJ22*VLOOKUP(BT$12,別紙!$B$4:$E$10,MATCH("設備利用率",別紙!$B$4:$E$4,0),0)/100*8760/10^3 -> 0 | BU22: 30,685 | BW22: 01610 | BX22: 新ひだか町 | BY22: =(VLOOKUP($BW22&"_"&$AZ$8,データシート1!$A:$BT,MATCH("da_製造業",データシート1!$A$1:$BT$1,0),0)+VLOOKUP($BW22&"_"&$AZ$8,データシート1!$A:$BT,MATCH("da_建設業・鉱業",データシート1!$A$1:$BT$1,0),0)+VLOOKUP($BW22&"_"&$AZ$8,データシート1!$A:$BT,MATCH("da_農林水産業",データシート1!$A$1:$BT$1,0),0)+VLOOKUP($BW22&"_"&$AZ$8,データシート1!$A:$BT,MATCH("da_業務",データシート1!$A$1:$BT$1,0),0)+VLOOKUP($BW22&"_"&$AZ$8,データシート1!$A:$BT,MATCH("da_家庭",データシート1!$A$1:$BT$1,0),0)+VLOOKUP($BW22&"_"&$AZ$8,データシート1!$A:$BT,MATCH("da_鉄道",データシート1!$A$1:$BT$1,0),0))/10^3 -> 106,104 | CA22: 01610 | CB22: 新ひだか町 | CC22: 1.3% | CD22: 27.6% | CE22: 0.0% | CF22: 0.0% | CG22: 0.0% | CH22: 0.0% | CI22: 28.9% | CK22: 01610 | CL22: 新ひだか町 | CM22: =VLOOKUP($CK22&"_"&$AZ$7,データシート1!$A:$BT,MATCH("ca_太陽光発電（10kW未満）",データシート1!$A$1:$BT$1,0),0) -> 202 | CN22: =VLOOKUP($CK22&"_"&$AZ$5,データシート1!$A:$BT,MATCH("ab_家庭",データシート1!$A$1:$BT$1,0),0) -> 11434 | CO22: 1.8%
AX23: =比較地域マスタ!$Y16 -> 07461 | AY23: =IF(IFERROR(比較地域マスタ!$Z16,"")=0,"",IFERROR(比較地域マスタ!$Z16,"")) -> 西郷村 | BC23: 07461 | BD23: 西郷村 | BE23: =VLOOKUP($BC23&"_"&$AZ$7,データシート1!$A:$BT,MATCH("cb_"&BE$12,データシート1!$A$1:$BT$1,0),0) -> 4,172 | BF23: =VLOOKUP($BC23&"_"&$AZ$7,データシート1!$A:$BT,MATCH("cb_"&BF$12,データシート1!$A$1:$BT$1,0),0) -> 205,655 | BG23: =VLOOKUP($BC23&"_"&$AZ$7,データシート1!$A:$BT,MATCH("cb_"&BG$12,データシート1!$A$1:$BT$1,0),0) -> 26 | BH23: =VLOOKUP($BC23&"_"&$AZ$7,データシート1!$A:$BT,MATCH("cb_"&BH$12,データシート1!$A$1:$BT$1,0),0) -> 0 | BI23: =VLOOKUP($BC23&"_"&$AZ$7,データシート1!$A:$BT,MATCH("cb_"&BI$12,データシート1!$A$1:$BT$1,0),0) -> 0 | BJ23: =VLOOKUP($BC23&"_"&$AZ$7,データシート1!$A:$BT,MATCH("cb_"&BJ$12,データシート1!$A$1:$BT$1,0),0) -> 50 | BK23: 209,904 | BM23: 07461 | BN23: 西郷村 | BO23: =BE23*VLOOKUP(BO$12,別紙!$B$4:$E$10,MATCH("設備利用率",別紙!$B$4:$E$4,0),0)/100*8760/10^3 -> 5,007 | BP23: =BF23*VLOOKUP(BP$12,別紙!$B$4:$E$10,MATCH("設備利用率",別紙!$B$4:$E$4,0),0)/100*8760/10^3 -> 272,033 | BQ23: =BG23*VLOOKUP(BQ$12,別紙!$B$4:$E$10,MATCH("設備利用率",別紙!$B$4:$E$4,0),0)/100*8760/10^3 -> 57 | BR23: =BH23*VLOOKUP(BR$12,別紙!$B$4:$E$10,MATCH("設備利用率",別紙!$B$4:$E$4,0),0)/100*8760/10^3 -> 0 | BS23: =BI23*VLOOKUP(BS$12,別紙!$B$4:$E$10,MATCH("設備利用率",別紙!$B$4:$E$4,0),0)/100*8760/10^3 -> 0 | BT23: =BJ23*VLOOKUP(BT$12,別紙!$B$4:$E$10,MATCH("設備利用率",別紙!$B$4:$E$4,0),0)/100*8760/10^3 -> 350 | BU23: 277,447 | BW23: 07461 | BX23: 西郷村 | BY23: =(VLOOKUP($BW23&"_"&$AZ$8,データシート1!$A:$BT,MATCH("da_製造業",データシート1!$A$1:$BT$1,0),0)+VLOOKUP($BW23&"_"&$AZ$8,データシート1!$A:$BT,MATCH("da_建設業・鉱業",データシート1!$A$1:$BT$1,0),0)+VLOOKUP($BW23&"_"&$AZ$8,データシート1!$A:$BT,MATCH("da_農林水産業",データシート1!$A$1:$BT$1,0),0)+VLOOKUP($BW23&"_"&$AZ$8,データシート1!$A:$BT,MATCH("da_業務",データシート1!$A$1:$BT$1,0),0)+VLOOKUP($BW23&"_"&$AZ$8,データシート1!$A:$BT,MATCH("da_家庭",データシート1!$A$1:$BT$1,0),0)+VLOOKUP($BW23&"_"&$AZ$8,データシート1!$A:$BT,MATCH("da_鉄道",データシート1!$A$1:$BT$1,0),0))/10^3 -> 279,941 | CA23: 07461 | CB23: 西郷村 | CC23: 1.8% | CD23: 97.2% | CE23: 0.0% | CF23: 0.0% | CG23: 0.0% | CH23: 0.1% | CI23: 99.1% | CK23: 07461 | CL23: 西郷村 | CM23: =VLOOKUP($CK23&"_"&$AZ$7,データシート1!$A:$BT,MATCH("ca_太陽光発電（10kW未満）",データシート1!$A$1:$BT$1,0),0) -> 888 | CN23: =VLOOKUP($CK23&"_"&$AZ$5,データシート1!$A:$BT,MATCH("ab_家庭",データシート1!$A$1:$BT$1,0),0) -> 8562 | CO23: 10.4%
AX24: =比較地域マスタ!$Y17 -> 38402 | AY24: =IF(IFERROR(比較地域マスタ!$Z17,"")=0,"",IFERROR(比較地域マスタ!$Z17,"")) -> 砥部町 | BC24: 38402 | BD24: 砥部町 | BE24: =VLOOKUP($BC24&"_"&$AZ$7,データシート1!$A:$BT,MATCH("cb_"&BE$12,データシート1!$A$1:$BT$1,0),0) -> 4,048 | BF24: =VLOOKUP($BC24&"_"&$AZ$7,データシート1!$A:$BT,MATCH("cb_"&BF$12,データシート1!$A$1:$BT$1,0),0) -> 8,251 | BG24: =VLOOKUP($BC24&"_"&$AZ$7,データシート1!$A:$BT,MATCH("cb_"&BG$12,データシート1!$A$1:$BT$1,0),0) -> 0 | BH24: =VLOOKUP($BC24&"_"&$AZ$7,データシート1!$A:$BT,MATCH("cb_"&BH$12,データシート1!$A$1:$BT$1,0),0) -> 0 | BI24: =VLOOKUP($BC24&"_"&$AZ$7,データシート1!$A:$BT,MATCH("cb_"&BI$12,データシート1!$A$1:$BT$1,0),0) -> 0 | BJ24: =VLOOKUP($BC24&"_"&$AZ$7,データシート1!$A:$BT,MATCH("cb_"&BJ$12,データシート1!$A$1:$BT$1,0),0) -> 0 | BK24: 12,299 | BM24: 38402 | BN24: 砥部町 | BO24: =BE24*VLOOKUP(BO$12,別紙!$B$4:$E$10,MATCH("設備利用率",別紙!$B$4:$E$4,0),0)/100*8760/10^3 -> 4,859 | BP24: =BF24*VLOOKUP(BP$12,別紙!$B$4:$E$10,MATCH("設備利用率",別紙!$B$4:$E$4,0),0)/100*8760/10^3 -> 10,913 | BQ24: =BG24*VLOOKUP(BQ$12,別紙!$B$4:$E$10,MATCH("設備利用率",別紙!$B$4:$E$4,0),0)/100*8760/10^3 -> 0 | BR24: =BH24*VLOOKUP(BR$12,別紙!$B$4:$E$10,MATCH("設備利用率",別紙!$B$4:$E$4,0),0)/100*8760/10^3 -> 0 | BS24: =BI24*VLOOKUP(BS$12,別紙!$B$4:$E$10,MATCH("設備利用率",別紙!$B$4:$E$4,0),0)/100*8760/10^3 -> 0 | BT24: =BJ24*VLOOKUP(BT$12,別紙!$B$4:$E$10,MATCH("設備利用率",別紙!$B$4:$E$4,0),0)/100*8760/10^3 -> 0 | BU24: 15,772 | BW24: 38402 | BX24: 砥部町 | BY24: =(VLOOKUP($BW24&"_"&$AZ$8,データシート1!$A:$BT,MATCH("da_製造業",データシート1!$A$1:$BT$1,0),0)+VLOOKUP($BW24&"_"&$AZ$8,データシート1!$A:$BT,MATCH("da_建設業・鉱業",データシート1!$A$1:$BT$1,0),0)+VLOOKUP($BW24&"_"&$AZ$8,データシート1!$A:$BT,MATCH("da_農林水産業",データシート1!$A$1:$BT$1,0),0)+VLOOKUP($BW24&"_"&$AZ$8,データシート1!$A:$BT,MATCH("da_業務",データシート1!$A$1:$BT$1,0),0)+VLOOKUP($BW24&"_"&$AZ$8,データシート1!$A:$BT,MATCH("da_家庭",データシート1!$A$1:$BT$1,0),0)+VLOOKUP($BW24&"_"&$AZ$8,データシート1!$A:$BT,MATCH("da_鉄道",データシート1!$A$1:$BT$1,0),0))/10^3 -> 104,853 | CA24: 38402 | CB24: 砥部町 | CC24: 4.6% | CD24: 10.4% | CE24: 0.0% | CF24: 0.0% | CG24: 0.0% | CH24: 0.0% | CI24: 15.0% | CK24: 38402 | CL24: 砥部町 | CM24: =VLOOKUP($CK24&"_"&$AZ$7,データシート1!$A:$BT,MATCH("ca_太陽光発電（10kW未満）",データシート1!$A$1:$BT$1,0),0) -> 833 | CN24: =VLOOKUP($CK24&"_"&$AZ$5,データシート1!$A:$BT,MATCH("ab_家庭",データシート1!$A$1:$BT$1,0),0) -> 9489 | CO24: 8.8%
AX25: =比較地域マスタ!$Y18 -> 01219 | AY25: =IF(IFERROR(比較地域マスタ!$Z18,"")=0,"",IFERROR(比較地域マスタ!$Z18,"")) -> 紋別市 | BC25: 01219 | BD25: 紋別市 | BE25: =VLOOKUP($BC25&"_"&$AZ$7,データシート1!$A:$BT,MATCH("cb_"&BE$12,データシート1!$A$1:$BT$1,0),0) -> 710 | BF25: =VLOOKUP($BC25&"_"&$AZ$7,データシート1!$A:$BT,MATCH("cb_"&BF$12,データシート1!$A$1:$BT$1,0),0) -> 36,831 | BG25: =VLOOKUP($BC25&"_"&$AZ$7,データシート1!$A:$BT,MATCH("cb_"&BG$12,データシート1!$A$1:$BT$1,0),0) -> 0 | BH25: =VLOOKUP($BC25&"_"&$AZ$7,データシート1!$A:$BT,MATCH("cb_"&BH$12,データシート1!$A$1:$BT$1,0),0) -> 0 | BI25: =VLOOKUP($BC25&"_"&$AZ$7,データシート1!$A:$BT,MATCH("cb_"&BI$12,データシート1!$A$1:$BT$1,0),0) -> 0 | BJ25: =VLOOKUP($BC25&"_"&$AZ$7,データシート1!$A:$BT,MATCH("cb_"&BJ$12,データシート1!$A$1:$BT$1,0),0) -> 47,860 | BK25: 85,400 | BM25: 01219 | BN25: 紋別市 | BO25: =BE25*VLOOKUP(BO$12,別紙!$B$4:$E$10,MATCH("設備利用率",別紙!$B$4:$E$4,0),0)/100*8760/10^3 -> 852 | BP25: =BF25*VLOOKUP(BP$12,別紙!$B$4:$E$10,MATCH("設備利用率",別紙!$B$4:$E$4,0),0)/100*8760/10^3 -> 48,718 | BQ25: =BG25*VLOOKUP(BQ$12,別紙!$B$4:$E$10,MATCH("設備利用率",別紙!$B$4:$E$4,0),0)/100*8760/10^3 -> 0 | BR25: =BH25*VLOOKUP(BR$12,別紙!$B$4:$E$10,MATCH("設備利用率",別紙!$B$4:$E$4,0),0)/100*8760/10^3 -> 0 | BS25: =BI25*VLOOKUP(BS$12,別紙!$B$4:$E$10,MATCH("設備利用率",別紙!$B$4:$E$4,0),0)/100*8760/10^3 -> 0 | BT25: =BJ25*VLOOKUP(BT$12,別紙!$B$4:$E$10,MATCH("設備利用率",別紙!$B$4:$E$4,0),0)/100*8760/10^3 -> 335,403 | BU25: 384,972 | BW25: 01219 | BX25: 紋別市 | BY25: =(VLOOKUP($BW25&"_"&$AZ$8,データシート1!$A:$BT,MATCH("da_製造業",データシート1!$A$1:$BT$1,0),0)+VLOOKUP($BW25&"_"&$AZ$8,データシート1!$A:$BT,MATCH("da_建設業・鉱業",データシート1!$A$1:$BT$1,0),0)+VLOOKUP($BW25&"_"&$AZ$8,データシート1!$A:$BT,MATCH("da_農林水産業",データシート1!$A$1:$BT$1,0),0)+VLOOKUP($BW25&"_"&$AZ$8,データシート1!$A:$BT,MATCH("da_業務",データシート1!$A$1:$BT$1,0),0)+VLOOKUP($BW25&"_"&$AZ$8,データシート1!$A:$BT,MATCH("da_家庭",データシート1!$A$1:$BT$1,0),0)+VLOOKUP($BW25&"_"&$AZ$8,データシート1!$A:$BT,MATCH("da_鉄道",データシート1!$A$1:$BT$1,0),0))/10^3 -> 170,724 | CA25: 01219 | CB25: 紋別市 | CC25: 0.5% | CD25: 28.5% | CE25: 0.0% | CF25: 0.0% | CG25: 0.0% | CH25: 196.5% | CI25: 225.5% | CK25: 01219 | CL25: 紋別市 | CM25: =VLOOKUP($CK25&"_"&$AZ$7,データシート1!$A:$BT,MATCH("ca_太陽光発電（10kW未満）",データシート1!$A$1:$BT$1,0),0) -> 122 | CN25: =VLOOKUP($CK25&"_"&$AZ$5,データシート1!$A:$BT,MATCH("ab_家庭",データシート1!$A$1:$BT$1,0),0) -> 11658 | CO25: 1.0%
AX26: =比較地域マスタ!$Y19 -> 12322 | AY26: =IF(IFERROR(比較地域マスタ!$Z19,"")=0,"",IFERROR(比較地域マスタ!$Z19,"")) -> 酒々井町 | BC26: 12322 | BD26: 酒々井町 | BE26: =VLOOKUP($BC26&"_"&$AZ$7,データシート1!$A:$BT,MATCH("cb_"&BE$12,データシート1!$A$1:$BT$1,0),0) -> 2,374 | BF26: =VLOOKUP($BC26&"_"&$AZ$7,データシート1!$A:$BT,MATCH("cb_"&BF$12,データシート1!$A$1:$BT$1,0),0) -> 14,895 | BG26: =VLOOKUP($BC26&"_"&$AZ$7,データシート1!$A:$BT,MATCH("cb_"&BG$12,データシート1!$A$1:$BT$1,0),0) -> 0 | BH26: =VLOOKUP($BC26&"_"&$AZ$7,データシート1!$A:$BT,MATCH("cb_"&BH$12,データシート1!$A$1:$BT$1,0),0) -> 0 | BI26: =VLOOKUP($BC26&"_"&$AZ$7,データシート1!$A:$BT,MATCH("cb_"&BI$12,データシート1!$A$1:$BT$1,0),0) -> 0 | BJ26: =VLOOKUP($BC26&"_"&$AZ$7,データシート1!$A:$BT,MATCH("cb_"&BJ$12,データシート1!$A$1:$BT$1,0),0) -> 1,425 | BK26: 18,694 | BM26: 12322 | BN26: 酒々井町 | BO26: =BE26*VLOOKUP(BO$12,別紙!$B$4:$E$10,MATCH("設備利用率",別紙!$B$4:$E$4,0),0)/100*8760/10^3 -> 2,849 | BP26: =BF26*VLOOKUP(BP$12,別紙!$B$4:$E$10,MATCH("設備利用率",別紙!$B$4:$E$4,0),0)/100*8760/10^3 -> 19,703 | BQ26: =BG26*VLOOKUP(BQ$12,別紙!$B$4:$E$10,MATCH("設備利用率",別紙!$B$4:$E$4,0),0)/100*8760/10^3 -> 0 | BR26: =BH26*VLOOKUP(BR$12,別紙!$B$4:$E$10,MATCH("設備利用率",別紙!$B$4:$E$4,0),0)/100*8760/10^3 -> 0 | BS26: =BI26*VLOOKUP(BS$12,別紙!$B$4:$E$10,MATCH("設備利用率",別紙!$B$4:$E$4,0),0)/100*8760/10^3 -> 0 | BT26: =BJ26*VLOOKUP(BT$12,別紙!$B$4:$E$10,MATCH("設備利用率",別紙!$B$4:$E$4,0),0)/100*8760/10^3 -> 9,986 | BU26: 32,538 | BW26: 12322 | BX26: 酒々井町 | BY26: =(VLOOKUP($BW26&"_"&$AZ$8,データシート1!$A:$BT,MATCH("da_製造業",データシート1!$A$1:$BT$1,0),0)+VLOOKUP($BW26&"_"&$AZ$8,データシート1!$A:$BT,MATCH("da_建設業・鉱業",データシート1!$A$1:$BT$1,0),0)+VLOOKUP($BW26&"_"&$AZ$8,データシート1!$A:$BT,MATCH("da_農林水産業",データシート1!$A$1:$BT$1,0),0)+VLOOKUP($BW26&"_"&$AZ$8,データシート1!$A:$BT,MATCH("da_業務",データシート1!$A$1:$BT$1,0),0)+VLOOKUP($BW26&"_"&$AZ$8,データシート1!$A:$BT,MATCH("da_家庭",データシート1!$A$1:$BT$1,0),0)+VLOOKUP($BW26&"_"&$AZ$8,データシート1!$A:$BT,MATCH("da_鉄道",データシート1!$A$1:$BT$1,0),0))/10^3 -> 109,219 | CA26: 12322 | CB26: 酒々井町 | CC26: 2.6% | CD26: 18.0% | CE26: 0.0% | CF26: 0.0% | CG26: 0.0% | CH26: 9.1% | CI26: 29.8% | CK26: 12322 | CL26: 酒々井町 | CM26: =VLOOKUP($CK26&"_"&$AZ$7,データシート1!$A:$BT,MATCH("ca_太陽光発電（10kW未満）",データシート1!$A$1:$BT$1,0),0) -> 496 | CN26: =VLOOKUP($CK26&"_"&$AZ$5,データシート1!$A:$BT,MATCH("ab_家庭",データシート1!$A$1:$BT$1,0),0) -> 9915 | CO26: 5.0%
AX27: =比較地域マスタ!$Y20 -> 30401 | AY27: =IF(IFERROR(比較地域マスタ!$Z20,"")=0,"",IFERROR(比較地域マスタ!$Z20,"")) -> 白浜町 | BC27: 30401 | BD27: 白浜町 | BE27: =VLOOKUP($BC27&"_"&$AZ$7,データシート1!$A:$BT,MATCH("cb_"&BE$12,データシート1!$A$1:$BT$1,0),0) -> 2,899 | BF27: =VLOOKUP($BC27&"_"&$AZ$7,データシート1!$A:$BT,MATCH("cb_"&BF$12,データシート1!$A$1:$BT$1,0),0) -> 43,640 | BG27: =VLOOKUP($BC27&"_"&$AZ$7,データシート1!$A:$BT,MATCH("cb_"&BG$12,データシート1!$A$1:$BT$1,0),0) -> 0 | BH27: =VLOOKUP($BC27&"_"&$AZ$7,データシート1!$A:$BT,MATCH("cb_"&BH$12,データシート1!$A$1:$BT$1,0),0) -> 0 | BI27: =VLOOKUP($BC27&"_"&$AZ$7,データシート1!$A:$BT,MATCH("cb_"&BI$12,データシート1!$A$1:$BT$1,0),0) -> 0 | BJ27: =VLOOKUP($BC27&"_"&$AZ$7,データシート1!$A:$BT,MATCH("cb_"&BJ$12,データシート1!$A$1:$BT$1,0),0) -> 0 | BK27: 46,539 | BM27: 30401 | BN27: 白浜町 | BO27: =BE27*VLOOKUP(BO$12,別紙!$B$4:$E$10,MATCH("設備利用率",別紙!$B$4:$E$4,0),0)/100*8760/10^3 -> 3,479 | BP27: =BF27*VLOOKUP(BP$12,別紙!$B$4:$E$10,MATCH("設備利用率",別紙!$B$4:$E$4,0),0)/100*8760/10^3 -> 57,725 | BQ27: =BG27*VLOOKUP(BQ$12,別紙!$B$4:$E$10,MATCH("設備利用率",別紙!$B$4:$E$4,0),0)/100*8760/10^3 -> 0 | BR27: =BH27*VLOOKUP(BR$12,別紙!$B$4:$E$10,MATCH("設備利用率",別紙!$B$4:$E$4,0),0)/100*8760/10^3 -> 0 | BS27: =BI27*VLOOKUP(BS$12,別紙!$B$4:$E$10,MATCH("設備利用率",別紙!$B$4:$E$4,0),0)/100*8760/10^3 -> 0 | BT27: =BJ27*VLOOKUP(BT$12,別紙!$B$4:$E$10,MATCH("設備利用率",別紙!$B$4:$E$4,0),0)/100*8760/10^3 -> 0 | BU27: 61,205 | BW27: 30401 | BX27: 白浜町 | BY27: =(VLOOKUP($BW27&"_"&$AZ$8,データシート1!$A:$BT,MATCH("da_製造業",データシート1!$A$1:$BT$1,0),0)+VLOOKUP($BW27&"_"&$AZ$8,データシート1!$A:$BT,MATCH("da_建設業・鉱業",データシート1!$A$1:$BT$1,0),0)+VLOOKUP($BW27&"_"&$AZ$8,データシート1!$A:$BT,MATCH("da_農林水産業",データシート1!$A$1:$BT$1,0),0)+VLOOKUP($BW27&"_"&$AZ$8,データシート1!$A:$BT,MATCH("da_業務",データシート1!$A$1:$BT$1,0),0)+VLOOKUP($BW27&"_"&$AZ$8,データシート1!$A:$BT,MATCH("da_家庭",データシート1!$A$1:$BT$1,0),0)+VLOOKUP($BW27&"_"&$AZ$8,データシート1!$A:$BT,MATCH("da_鉄道",データシート1!$A$1:$BT$1,0),0))/10^3 -> 125,654 | CA27: 30401 | CB27: 白浜町 | CC27: 2.8% | CD27: 45.9% | CE27: 0.0% | CF27: 0.0% | CG27: 0.0% | CH27: 0.0% | CI27: 48.7% | CK27: 30401 | CL27: 白浜町 | CM27: =VLOOKUP($CK27&"_"&$AZ$7,データシート1!$A:$BT,MATCH("ca_太陽光発電（10kW未満）",データシート1!$A$1:$BT$1,0),0) -> 631 | CN27: =VLOOKUP($CK27&"_"&$AZ$5,データシート1!$A:$BT,MATCH("ab_家庭",データシート1!$A$1:$BT$1,0),0) -> 11099 | CO27: 5.7%
AX28: =比較地域マスタ!$Y21 -> 18423 | AY28: =IF(IFERROR(比較地域マスタ!$Z21,"")=0,"",IFERROR(比較地域マスタ!$Z21,"")) -> 越前町 | BC28: 18423 | BD28: 越前町 | BE28: =VLOOKUP($BC28&"_"&$AZ$7,データシート1!$A:$BT,MATCH("cb_"&BE$12,データシート1!$A$1:$BT$1,0),0) -> 980 | BF28: =VLOOKUP($BC28&"_"&$AZ$7,データシート1!$A:$BT,MATCH("cb_"&BF$12,データシート1!$A$1:$BT$1,0),0) -> 5,347 | BG28: =VLOOKUP($BC28&"_"&$AZ$7,データシート1!$A:$BT,MATCH("cb_"&BG$12,データシート1!$A$1:$BT$1,0),0) -> 0 | BH28: =VLOOKUP($BC28&"_"&$AZ$7,データシート1!$A:$BT,MATCH("cb_"&BH$12,データシート1!$A$1:$BT$1,0),0) -> 0 | BI28: =VLOOKUP($BC28&"_"&$AZ$7,データシート1!$A:$BT,MATCH("cb_"&BI$12,データシート1!$A$1:$BT$1,0),0) -> 0 | BJ28: =VLOOKUP($BC28&"_"&$AZ$7,データシート1!$A:$BT,MATCH("cb_"&BJ$12,データシート1!$A$1:$BT$1,0),0) -> 0 | BK28: 6,327 | BM28: 18423 | BN28: 越前町 | BO28: =BE28*VLOOKUP(BO$12,別紙!$B$4:$E$10,MATCH("設備利用率",別紙!$B$4:$E$4,0),0)/100*8760/10^3 -> 1,176 | BP28: =BF28*VLOOKUP(BP$12,別紙!$B$4:$E$10,MATCH("設備利用率",別紙!$B$4:$E$4,0),0)/100*8760/10^3 -> 7,072 | BQ28: =BG28*VLOOKUP(BQ$12,別紙!$B$4:$E$10,MATCH("設備利用率",別紙!$B$4:$E$4,0),0)/100*8760/10^3 -> 0 | BR28: =BH28*VLOOKUP(BR$12,別紙!$B$4:$E$10,MATCH("設備利用率",別紙!$B$4:$E$4,0),0)/100*8760/10^3 -> 0 | BS28: =BI28*VLOOKUP(BS$12,別紙!$B$4:$E$10,MATCH("設備利用率",別紙!$B$4:$E$4,0),0)/100*8760/10^3 -> 0 | BT28: =BJ28*VLOOKUP(BT$12,別紙!$B$4:$E$10,MATCH("設備利用率",別紙!$B$4:$E$4,0),0)/100*8760/10^3 -> 0 | BU28: 8,248 | BW28: 18423 | BX28: 越前町 | BY28: =(VLOOKUP($BW28&"_"&$AZ$8,データシート1!$A:$BT,MATCH("da_製造業",データシート1!$A$1:$BT$1,0),0)+VLOOKUP($BW28&"_"&$AZ$8,データシート1!$A:$BT,MATCH("da_建設業・鉱業",データシート1!$A$1:$BT$1,0),0)+VLOOKUP($BW28&"_"&$AZ$8,データシート1!$A:$BT,MATCH("da_農林水産業",データシート1!$A$1:$BT$1,0),0)+VLOOKUP($BW28&"_"&$AZ$8,データシート1!$A:$BT,MATCH("da_業務",データシート1!$A$1:$BT$1,0),0)+VLOOKUP($BW28&"_"&$AZ$8,データシート1!$A:$BT,MATCH("da_家庭",データシート1!$A$1:$BT$1,0),0)+VLOOKUP($BW28&"_"&$AZ$8,データシート1!$A:$BT,MATCH("da_鉄道",データシート1!$A$1:$BT$1,0),0))/10^3 -> 131,820 | CA28: 18423 | CB28: 越前町 | CC28: 0.9% | CD28: 5.4% | CE28: 0.0% | CF28: 0.0% | CG28: 0.0% | CH28: 0.0% | CI28: 6.3% | CK28: 18423 | CL28: 越前町 | CM28: =VLOOKUP($CK28&"_"&$AZ$7,データシート1!$A:$BT,MATCH("ca_太陽光発電（10kW未満）",データシート1!$A$1:$BT$1,0),0) -> 189 | CN28: =VLOOKUP($CK28&"_"&$AZ$5,データシート1!$A:$BT,MATCH("ab_家庭",データシート1!$A$1:$BT$1,0),0) -> 7306 | CO28: 2.6%
AX29: =比較地域マスタ!$Y22 -> 01229 | AY29: =IF(IFERROR(比較地域マスタ!$Z22,"")=0,"",IFERROR(比較地域マスタ!$Z22,"")) -> 富良野市 | BC29: 01229 | BD29: 富良野市 | BE29: =VLOOKUP($BC29&"_"&$AZ$7,データシート1!$A:$BT,MATCH("cb_"&BE$12,データシート1!$A$1:$BT$1,0),0) -> 866 | BF29: =VLOOKUP($BC29&"_"&$AZ$7,データシート1!$A:$BT,MATCH("cb_"&BF$12,データシート1!$A$1:$BT$1,0),0) -> 1,070 | BG29: =VLOOKUP($BC29&"_"&$AZ$7,データシート1!$A:$BT,MATCH("cb_"&BG$12,データシート1!$A$1:$BT$1,0),0) -> 0 | BH29: =VLOOKUP($BC29&"_"&$AZ$7,データシート1!$A:$BT,MATCH("cb_"&BH$12,データシート1!$A$1:$BT$1,0),0) -> 0 | BI29: =VLOOKUP($BC29&"_"&$AZ$7,データシート1!$A:$BT,MATCH("cb_"&BI$12,データシート1!$A$1:$BT$1,0),0) -> 0 | BJ29: =VLOOKUP($BC29&"_"&$AZ$7,データシート1!$A:$BT,MATCH("cb_"&BJ$12,データシート1!$A$1:$BT$1,0),0) -> 0 | BK29: 1,936 | BM29: 01229 | BN29: 富良野市 | BO29: =BE29*VLOOKUP(BO$12,別紙!$B$4:$E$10,MATCH("設備利用率",別紙!$B$4:$E$4,0),0)/100*8760/10^3 -> 1,039 | BP29: =BF29*VLOOKUP(BP$12,別紙!$B$4:$E$10,MATCH("設備利用率",別紙!$B$4:$E$4,0),0)/100*8760/10^3 -> 1,415 | BQ29: =BG29*VLOOKUP(BQ$12,別紙!$B$4:$E$10,MATCH("設備利用率",別紙!$B$4:$E$4,0),0)/100*8760/10^3 -> 0 | BR29: =BH29*VLOOKUP(BR$12,別紙!$B$4:$E$10,MATCH("設備利用率",別紙!$B$4:$E$4,0),0)/100*8760/10^3 -> 0 | BS29: =BI29*VLOOKUP(BS$12,別紙!$B$4:$E$10,MATCH("設備利用率",別紙!$B$4:$E$4,0),0)/100*8760/10^3 -> 0 | BT29: =BJ29*VLOOKUP(BT$12,別紙!$B$4:$E$10,MATCH("設備利用率",別紙!$B$4:$E$4,0),0)/100*8760/10^3 -> 0 | BU29: 2,454 | BW29: 01229 | BX29: 富良野市 | BY29: =(VLOOKUP($BW29&"_"&$AZ$8,データシート1!$A:$BT,MATCH("da_製造業",データシート1!$A$1:$BT$1,0),0)+VLOOKUP($BW29&"_"&$AZ$8,データシート1!$A:$BT,MATCH("da_建設業・鉱業",データシート1!$A$1:$BT$1,0),0)+VLOOKUP($BW29&"_"&$AZ$8,データシート1!$A:$BT,MATCH("da_農林水産業",データシート1!$A$1:$BT$1,0),0)+VLOOKUP($BW29&"_"&$AZ$8,データシート1!$A:$BT,MATCH("da_業務",データシート1!$A$1:$BT$1,0),0)+VLOOKUP($BW29&"_"&$AZ$8,データシート1!$A:$BT,MATCH("da_家庭",データシート1!$A$1:$BT$1,0),0)+VLOOKUP($BW29&"_"&$AZ$8,データシート1!$A:$BT,MATCH("da_鉄道",データシート1!$A$1:$BT$1,0),0))/10^3 -> 108,460 | CA29: 01229 | CB29: 富良野市 | CC29: 1.0% | CD29: =BP29/$BY29 -> 1.3% | CE29: =BQ29/$BY29 -> 0.0% | CF29: =BR29/$BY29 -> 0.0% | CG29: =BS29/$BY29 -> 0.0% | CH29: =BT29/$BY29 -> 0.0% | CI29: 2.3% | CK29: 01229 | CL29: 富良野市 | CM29: =VLOOKUP($CK29&"_"&$AZ$7,データシート1!$A:$BT,MATCH("ca_太陽光発電（10kW未満）",データシート1!$A$1:$BT$1,0),0) -> 176 | CN29: =VLOOKUP($CK29&"_"&$AZ$5,データシート1!$A:$BT,MATCH("ab_家庭",データシート1!$A$1:$BT$1,0),0) -> 10513 | CO29: 1.7%
AX30: =比較地域マスタ!$Y23 -> 47348 | AY30: =IF(IFERROR(比較地域マスタ!$Z23,"")=0,"",IFERROR(比較地域マスタ!$Z23,"")) -> 与那原町 | BC30: 47348 | BD30: 与那原町 | BE30: =VLOOKUP($BC30&"_"&$AZ$7,データシート1!$A:$BT,MATCH("cb_"&BE$12,データシート1!$A$1:$BT$1,0),0) -> 1,335 | BF30: =VLOOKUP($BC30&"_"&$AZ$7,データシート1!$A:$BT,MATCH("cb_"&BF$12,データシート1!$A$1:$BT$1,0),0) -> 2,127 | BG30: =VLOOKUP($BC30&"_"&$AZ$7,データシート1!$A:$BT,MATCH("cb_"&BG$12,データシート1!$A$1:$BT$1,0),0) -> 0 | BH30: =VLOOKUP($BC30&"_"&$AZ$7,データシート1!$A:$BT,MATCH("cb_"&BH$12,データシート1!$A$1:$BT$1,0),0) -> 0 | BI30: =VLOOKUP($BC30&"_"&$AZ$7,データシート1!$A:$BT,MATCH("cb_"&BI$12,データシート1!$A$1:$BT$1,0),0) -> 0 | BJ30: =VLOOKUP($BC30&"_"&$AZ$7,データシート1!$A:$BT,MATCH("cb_"&BJ$12,データシート1!$A$1:$BT$1,0),0) -> 0 | BK30: 3,461 | BM30: 47348 | BN30: 与那原町 | BO30: =BE30*VLOOKUP(BO$12,別紙!$B$4:$E$10,MATCH("設備利用率",別紙!$B$4:$E$4,0),0)/100*8760/10^3 -> 1,602 | BP30: =BF30*VLOOKUP(BP$12,別紙!$B$4:$E$10,MATCH("設備利用率",別紙!$B$4:$E$4,0),0)/100*8760/10^3 -> 2,813 | BQ30: =BG30*VLOOKUP(BQ$12,別紙!$B$4:$E$10,MATCH("設備利用率",別紙!$B$4:$E$4,0),0)/100*8760/10^3 -> 0 | BR30: =BH30*VLOOKUP(BR$12,別紙!$B$4:$E$10,MATCH("設備利用率",別紙!$B$4:$E$4,0),0)/100*8760/10^3 -> 0 | BS30: =BI30*VLOOKUP(BS$12,別紙!$B$4:$E$10,MATCH("設備利用率",別紙!$B$4:$E$4,0),0)/100*8760/10^3 -> 0 | BT30: =BJ30*VLOOKUP(BT$12,別紙!$B$4:$E$10,MATCH("設備利用率",別紙!$B$4:$E$4,0),0)/100*8760/10^3 -> 0 | BU30: 4,415 | BW30: 47348 | BX30: 与那原町 | BY30: =(VLOOKUP($BW30&"_"&$AZ$8,データシート1!$A:$BT,MATCH("da_製造業",データシート1!$A$1:$BT$1,0),0)+VLOOKUP($BW30&"_"&$AZ$8,データシート1!$A:$BT,MATCH("da_建設業・鉱業",データシート1!$A$1:$BT$1,0),0)+VLOOKUP($BW30&"_"&$AZ$8,データシート1!$A:$BT,MATCH("da_農林水産業",データシート1!$A$1:$BT$1,0),0)+VLOOKUP($BW30&"_"&$AZ$8,データシート1!$A:$BT,MATCH("da_業務",データシート1!$A$1:$BT$1,0),0)+VLOOKUP($BW30&"_"&$AZ$8,データシート1!$A:$BT,MATCH("da_家庭",データシート1!$A$1:$BT$1,0),0)+VLOOKUP($BW30&"_"&$AZ$8,データシート1!$A:$BT,MATCH("da_鉄道",データシート1!$A$1:$BT$1,0),0))/10^3 -> 82,513 | CA30: 47348 | CB30: 与那原町 | CC30: 1.9% | CD30: 3.4% | CE30: 0.0% | CF30: 0.0% | CG30: 0.0% | CH30: 0.0% | CI30: 5.4% | CK30: 47348 | CL30: 与那原町 | CM30: =VLOOKUP($CK30&"_"&$AZ$7,データシート1!$A:$BT,MATCH("ca_太陽光発電（10kW未満）",データシート1!$A$1:$BT$1,0),0) -> 238 | CN30: =VLOOKUP($CK30&"_"&$AZ$5,データシート1!$A:$BT,MATCH("ab_家庭",データシート1!$A$1:$BT$1,0),0) -> 8786 | CO30: 2.7%
AX31: =比較地域マスタ!$Y24 -> 17207 | AY31: =IF(IFERROR(比較地域マスタ!$Z24,"")=0,"",IFERROR(比較地域マスタ!$Z24,"")) -> 羽咋市 | BC31: 17207 | BD31: 羽咋市 | BE31: =VLOOKUP($BC31&"_"&$AZ$7,データシート1!$A:$BT,MATCH("cb_"&BE$12,データシート1!$A$1:$BT$1,0),0) -> 1,106 | BF31: =VLOOKUP($BC31&"_"&$AZ$7,データシート1!$A:$BT,MATCH("cb_"&BF$12,データシート1!$A$1:$BT$1,0),0) -> 26,596 | BG31: =VLOOKUP($BC31&"_"&$AZ$7,データシート1!$A:$BT,MATCH("cb_"&BG$12,データシート1!$A$1:$BT$1,0),0) -> 20 | BH31: =VLOOKUP($BC31&"_"&$AZ$7,データシート1!$A:$BT,MATCH("cb_"&BH$12,データシート1!$A$1:$BT$1,0),0) -> 0 | BI31: =VLOOKUP($BC31&"_"&$AZ$7,データシート1!$A:$BT,MATCH("cb_"&BI$12,データシート1!$A$1:$BT$1,0),0) -> 0 | BJ31: =VLOOKUP($BC31&"_"&$AZ$7,データシート1!$A:$BT,MATCH("cb_"&BJ$12,データシート1!$A$1:$BT$1,0),0) -> 0 | BK31: 27,722 | BM31: 17207 | BN31: 羽咋市 | BO31: =BE31*VLOOKUP(BO$12,別紙!$B$4:$E$10,MATCH("設備利用率",別紙!$B$4:$E$4,0),0)/100*8760/10^3 -> 1,328 | BP31: =BF31*VLOOKUP(BP$12,別紙!$B$4:$E$10,MATCH("設備利用率",別紙!$B$4:$E$4,0),0)/100*8760/10^3 -> 35,180 | BQ31: =BG31*VLOOKUP(BQ$12,別紙!$B$4:$E$10,MATCH("設備利用率",別紙!$B$4:$E$4,0),0)/100*8760/10^3 -> 43 | BR31: =BH31*VLOOKUP(BR$12,別紙!$B$4:$E$10,MATCH("設備利用率",別紙!$B$4:$E$4,0),0)/100*8760/10^3 -> 0 | BS31: =BI31*VLOOKUP(BS$12,別紙!$B$4:$E$10,MATCH("設備利用率",別紙!$B$4:$E$4,0),0)/100*8760/10^3 -> 0 | BT31: =BJ31*VLOOKUP(BT$12,別紙!$B$4:$E$10,MATCH("設備利用率",別紙!$B$4:$E$4,0),0)/100*8760/10^3 -> 0 | BU31: 36,551 | BW31: 17207 | BX31: 羽咋市 | BY31: =(VLOOKUP($BW31&"_"&$AZ$8,データシート1!$A:$BT,MATCH("da_製造業",データシート1!$A$1:$BT$1,0),0)+VLOOKUP($BW31&"_"&$AZ$8,データシート1!$A:$BT,MATCH("da_建設業・鉱業",データシート1!$A$1:$BT$1,0),0)+VLOOKUP($BW31&"_"&$AZ$8,データシート1!$A:$BT,MATCH("da_農林水産業",データシート1!$A$1:$BT$1,0),0)+VLOOKUP($BW31&"_"&$AZ$8,データシート1!$A:$BT,MATCH("da_業務",データシート1!$A$1:$BT$1,0),0)+VLOOKUP($BW31&"_"&$AZ$8,データシート1!$A:$BT,MATCH("da_家庭",データシート1!$A$1:$BT$1,0),0)+VLOOKUP($BW31&"_"&$AZ$8,データシート1!$A:$BT,MATCH("da_鉄道",データシート1!$A$1:$BT$1,0),0))/10^3 -> 133,669 | CA31: 17207 | CB31: 羽咋市 | CC31: 1.0% | CD31: 26.3% | CE31: 0.0% | CF31: 0.0% | CG31: 0.0% | CH31: 0.0% | CI31: 27.3% | CK31: 17207 | CL31: 羽咋市 | CM31: =VLOOKUP($CK31&"_"&$AZ$7,データシート1!$A:$BT,MATCH("ca_太陽光発電（10kW未満）",データシート1!$A$1:$BT$1,0),0) -> 233 | CN31: =VLOOKUP($CK31&"_"&$AZ$5,データシート1!$A:$BT,MATCH("ab_家庭",データシート1!$A$1:$BT$1,0),0) -> 8484 | CO31: 2.7%
AX32: =比較地域マスタ!$Y25 -> 12329 | AY32: =IF(IFERROR(比較地域マスタ!$Z25,"")=0,"",IFERROR(比較地域マスタ!$Z25,"")) -> 栄町 | BC32: 12329 | BD32: 栄町 | BE32: =VLOOKUP($BC32&"_"&$AZ$7,データシート1!$A:$BT,MATCH("cb_"&BE$12,データシート1!$A$1:$BT$1,0),0) -> 2,291 | BF32: =VLOOKUP($BC32&"_"&$AZ$7,データシート1!$A:$BT,MATCH("cb_"&BF$12,データシート1!$A$1:$BT$1,0),0) -> 7,404 | BG32: =VLOOKUP($BC32&"_"&$AZ$7,データシート1!$A:$BT,MATCH("cb_"&BG$12,データシート1!$A$1:$BT$1,0),0) -> 0 | BH32: =VLOOKUP($BC32&"_"&$AZ$7,データシート1!$A:$BT,MATCH("cb_"&BH$12,データシート1!$A$1:$BT$1,0),0) -> 0 | BI32: =VLOOKUP($BC32&"_"&$AZ$7,データシート1!$A:$BT,MATCH("cb_"&BI$12,データシート1!$A$1:$BT$1,0),0) -> 0 | BJ32: =VLOOKUP($BC32&"_"&$AZ$7,データシート1!$A:$BT,MATCH("cb_"&BJ$12,データシート1!$A$1:$BT$1,0),0) -> 300 | BK32: 9,996 | BM32: 12329 | BN32: 栄町 | BO32: =BE32*VLOOKUP(BO$12,別紙!$B$4:$E$10,MATCH("設備利用率",別紙!$B$4:$E$4,0),0)/100*8760/10^3 -> 2,750 | BP32: =BF32*VLOOKUP(BP$12,別紙!$B$4:$E$10,MATCH("設備利用率",別紙!$B$4:$E$4,0),0)/100*8760/10^3 -> 9,794 | BQ32: =BG32*VLOOKUP(BQ$12,別紙!$B$4:$E$10,MATCH("設備利用率",別紙!$B$4:$E$4,0),0)/100*8760/10^3 -> 0 | BR32: =BH32*VLOOKUP(BR$12,別紙!$B$4:$E$10,MATCH("設備利用率",別紙!$B$4:$E$4,0),0)/100*8760/10^3 -> 0 | BS32: =BI32*VLOOKUP(BS$12,別紙!$B$4:$E$10,MATCH("設備利用率",別紙!$B$4:$E$4,0),0)/100*8760/10^3 -> 0 | BT32: =BJ32*VLOOKUP(BT$12,別紙!$B$4:$E$10,MATCH("設備利用率",別紙!$B$4:$E$4,0),0)/100*8760/10^3 -> 2,102 | BU32: 14,646 | BW32: 12329 | BX32: 栄町 | BY32: =(VLOOKUP($BW32&"_"&$AZ$8,データシート1!$A:$BT,MATCH("da_製造業",データシート1!$A$1:$BT$1,0),0)+VLOOKUP($BW32&"_"&$AZ$8,データシート1!$A:$BT,MATCH("da_建設業・鉱業",データシート1!$A$1:$BT$1,0),0)+VLOOKUP($BW32&"_"&$AZ$8,データシート1!$A:$BT,MATCH("da_農林水産業",データシート1!$A$1:$BT$1,0),0)+VLOOKUP($BW32&"_"&$AZ$8,データシート1!$A:$BT,MATCH("da_業務",データシート1!$A$1:$BT$1,0),0)+VLOOKUP($BW32&"_"&$AZ$8,データシート1!$A:$BT,MATCH("da_家庭",データシート1!$A$1:$BT$1,0),0)+VLOOKUP($BW32&"_"&$AZ$8,データシート1!$A:$BT,MATCH("da_鉄道",データシート1!$A$1:$BT$1,0),0))/10^3 -> 97,776 | CA32: 12329 | CB32: 栄町 | CC32: 2.8% | CD32: 10.0% | CE32: 0.0% | CF32: 0.0% | CG32: 0.0% | CH32: 2.2% | CI32: 15.0% | CK32: 12329 | CL32: 栄町 | CM32: =VLOOKUP($CK32&"_"&$AZ$7,データシート1!$A:$BT,MATCH("ca_太陽光発電（10kW未満）",データシート1!$A$1:$BT$1,0),0) -> 485 | CN32: =VLOOKUP($CK32&"_"&$AZ$5,データシート1!$A:$BT,MATCH("ab_家庭",データシート1!$A$1:$BT$1,0),0) -> 9230 | CO32: 5.3%
AX33: =比較地域マスタ!$Y26 -> 39206 | AY33: =IF(IFERROR(比較地域マスタ!$Z26,"")=0,"",IFERROR(比較地域マスタ!$Z26,"")) -> 須崎市 | BC33: 39206 | BD33: 須崎市 | BE33: =VLOOKUP($BC33&"_"&$AZ$7,データシート1!$A:$BT,MATCH("cb_"&BE$12,データシート1!$A$1:$BT$1,0),0) -> 2,544 | BF33: =VLOOKUP($BC33&"_"&$AZ$7,データシート1!$A:$BT,MATCH("cb_"&BF$12,データシート1!$A$1:$BT$1,0),0) -> 8,853 | BG33: =VLOOKUP($BC33&"_"&$AZ$7,データシート1!$A:$BT,MATCH("cb_"&BG$12,データシート1!$A$1:$BT$1,0),0) -> 0 | BH33: =VLOOKUP($BC33&"_"&$AZ$7,データシート1!$A:$BT,MATCH("cb_"&BH$12,データシート1!$A$1:$BT$1,0),0) -> 0 | BI33: =VLOOKUP($BC33&"_"&$AZ$7,データシート1!$A:$BT,MATCH("cb_"&BI$12,データシート1!$A$1:$BT$1,0),0) -> 0 | BJ33: =VLOOKUP($BC33&"_"&$AZ$7,データシート1!$A:$BT,MATCH("cb_"&BJ$12,データシート1!$A$1:$BT$1,0),0) -> 29,221 | BK33: 40,617 | BM33: 39206 | BN33: 須崎市 | BO33: =BE33*VLOOKUP(BO$12,別紙!$B$4:$E$10,MATCH("設備利用率",別紙!$B$4:$E$4,0),0)/100*8760/10^3 -> 3,053 | BP33: =BF33*VLOOKUP(BP$12,別紙!$B$4:$E$10,MATCH("設備利用率",別紙!$B$4:$E$4,0),0)/100*8760/10^3 -> 11,710 | BQ33: =BG33*VLOOKUP(BQ$12,別紙!$B$4:$E$10,MATCH("設備利用率",別紙!$B$4:$E$4,0),0)/100*8760/10^3 -> 0 | BR33: =BH33*VLOOKUP(BR$12,別紙!$B$4:$E$10,MATCH("設備利用率",別紙!$B$4:$E$4,0),0)/100*8760/10^3 -> 0 | BS33: =BI33*VLOOKUP(BS$12,別紙!$B$4:$E$10,MATCH("設備利用率",別紙!$B$4:$E$4,0),0)/100*8760/10^3 -> 0 | BT33: =BJ33*VLOOKUP(BT$12,別紙!$B$4:$E$10,MATCH("設備利用率",別紙!$B$4:$E$4,0),0)/100*8760/10^3 -> 204,778 | BU33: 219,541 | BW33: 39206 | BX33: 須崎市 | BY33: =(VLOOKUP($BW33&"_"&$AZ$8,データシート1!$A:$BT,MATCH("da_製造業",データシート1!$A$1:$BT$1,0),0)+VLOOKUP($BW33&"_"&$AZ$8,データシート1!$A:$BT,MATCH("da_建設業・鉱業",データシート1!$A$1:$BT$1,0),0)+VLOOKUP($BW33&"_"&$AZ$8,データシート1!$A:$BT,MATCH("da_農林水産業",データシート1!$A$1:$BT$1,0),0)+VLOOKUP($BW33&"_"&$AZ$8,データシート1!$A:$BT,MATCH("da_業務",データシート1!$A$1:$BT$1,0),0)+VLOOKUP($BW33&"_"&$AZ$8,データシート1!$A:$BT,MATCH("da_家庭",データシート1!$A$1:$BT$1,0),0)+VLOOKUP($BW33&"_"&$AZ$8,データシート1!$A:$BT,MATCH("da_鉄道",データシート1!$A$1:$BT$1,0),0))/10^3 -> 176,430 | CA33: 39206 | CB33: 須崎市 | CC33: 1.7% | CD33: 6.6% | CE33: 0.0% | CF33: 0.0% | CG33: 0.0% | CH33: 116.1% | CI33: 124.4% | CK33: 39206 | CL33: 須崎市 | CM33: =VLOOKUP($CK33&"_"&$AZ$7,データシート1!$A:$BT,MATCH("ca_太陽光発電（10kW未満）",データシート1!$A$1:$BT$1,0),0) -> 514 | CN33: =VLOOKUP($CK33&"_"&$AZ$5,データシート1!$A:$BT,MATCH("ab_家庭",データシート1!$A$1:$BT$1,0),0) -> 10652 | CO33: 4.8%
AX34: =比較地域マスタ!$Y27 -> 26465 | AY34: =IF(IFERROR(比較地域マスタ!$Z27,"")=0,"",IFERROR(比較地域マスタ!$Z27,"")) -> 与謝野町 | BC34: 26465 | BD34: 与謝野町 | BE34: =VLOOKUP($BC34&"_"&$AZ$7,データシート1!$A:$BT,MATCH("cb_"&BE$12,データシート1!$A$1:$BT$1,0),0) -> 1,759 | BF34: =VLOOKUP($BC34&"_"&$AZ$7,データシート1!$A:$BT,MATCH("cb_"&BF$12,データシート1!$A$1:$BT$1,0),0) -> 6,244 | BG34: =VLOOKUP($BC34&"_"&$AZ$7,データシート1!$A:$BT,MATCH("cb_"&BG$12,データシート1!$A$1:$BT$1,0),0) -> 0 | BH34: =VLOOKUP($BC34&"_"&$AZ$7,データシート1!$A:$BT,MATCH("cb_"&BH$12,データシート1!$A$1:$BT$1,0),0) -> 0 | BI34: =VLOOKUP($BC34&"_"&$AZ$7,データシート1!$A:$BT,MATCH("cb_"&BI$12,データシート1!$A$1:$BT$1,0),0) -> 0 | BJ34: =VLOOKUP($BC34&"_"&$AZ$7,データシート1!$A:$BT,MATCH("cb_"&BJ$12,データシート1!$A$1:$BT$1,0),0) -> 0 | BK34: 8,003 | BM34: 26465 | BN34: 与謝野町 | BO34: =BE34*VLOOKUP(BO$12,別紙!$B$4:$E$10,MATCH("設備利用率",別紙!$B$4:$E$4,0),0)/100*8760/10^3 -> 2,111 | BP34: =BF34*VLOOKUP(BP$12,別紙!$B$4:$E$10,MATCH("設備利用率",別紙!$B$4:$E$4,0),0)/100*8760/10^3 -> 8,259 | BQ34: =BG34*VLOOKUP(BQ$12,別紙!$B$4:$E$10,MATCH("設備利用率",別紙!$B$4:$E$4,0),0)/100*8760/10^3 -> 0 | BR34: =BH34*VLOOKUP(BR$12,別紙!$B$4:$E$10,MATCH("設備利用率",別紙!$B$4:$E$4,0),0)/100*8760/10^3 -> 0 | BS34: =BI34*VLOOKUP(BS$12,別紙!$B$4:$E$10,MATCH("設備利用率",別紙!$B$4:$E$4,0),0)/100*8760/10^3 -> 0 | BT34: =BJ34*VLOOKUP(BT$12,別紙!$B$4:$E$10,MATCH("設備利用率",別紙!$B$4:$E$4,0),0)/100*8760/10^3 -> 0 | BU34: 10,370 | BW34: 26465 | BX34: 与謝野町 | BY34: =(VLOOKUP($BW34&"_"&$AZ$8,データシート1!$A:$BT,MATCH("da_製造業",データシート1!$A$1:$BT$1,0),0)+VLOOKUP($BW34&"_"&$AZ$8,データシート1!$A:$BT,MATCH("da_建設業・鉱業",データシート1!$A$1:$BT$1,0),0)+VLOOKUP($BW34&"_"&$AZ$8,データシート1!$A:$BT,MATCH("da_農林水産業",データシート1!$A$1:$BT$1,0),0)+VLOOKUP($BW34&"_"&$AZ$8,データシート1!$A:$BT,MATCH("da_業務",データシート1!$A$1:$BT$1,0),0)+VLOOKUP($BW34&"_"&$AZ$8,データシート1!$A:$BT,MATCH("da_家庭",データシート1!$A$1:$BT$1,0),0)+VLOOKUP($BW34&"_"&$AZ$8,データシート1!$A:$BT,MATCH("da_鉄道",データシート1!$A$1:$BT$1,0),0))/10^3 -> 92,264 | CA34: 26465 | CB34: 与謝野町 | CC34: 2.3% | CD34: 9.0% | CE34: 0.0% | CF34: 0.0% | CG34: 0.0% | CH34: 0.0% | CI34: 11.2% | CK34: 26465 | CL34: 与謝野町 | CM34: =VLOOKUP($CK34&"_"&$AZ$7,データシート1!$A:$BT,MATCH("ca_太陽光発電（10kW未満）",データシート1!$A$1:$BT$1,0),0) -> 362 | CN34: =VLOOKUP($CK34&"_"&$AZ$5,データシート1!$A:$BT,MATCH("ab_家庭",データシート1!$A$1:$BT$1,0),0) -> 8928 | CO34: 4.1%
